Workbook

Sheet Introduction
B3: =Benchmarking!C1&" Data" -> 2023-24 Data | E3: ="Kent LA Schools' Benchmarking Data "&Benchmarking!C1 -> Kent LA Schools' Benchmarking Data 2023-24
E5: THIS BENCHMARKING SHEET IS FOR PRIMARY SCHOOLS ONLY
E7: ="The Benchmarking spreadsheet shows the income and expenditure information for the "&Benchmarking!C1&" financial year at subjective account level i.e. CFR codes. It shows all revenue income and expenditure including standards funds. Capital income and expenditure is excluded." -> The Benchmarking spreadsheet shows the income and expenditure information for the 2023-24 financial year at subjective account level i.e. CFR codes. It shows all revenue income and expenditure including standards funds. Capital income and expenditure is excluded.
E12: Enter your DFE number in the pink shaded box.
E14: Select Schools with or without Nursery places, School type and Pupil options from the drop down boxes.
E17: Your school is shown compared to schools based on your selections and to the overall primary school average.
E20: The sheet is formatted to print on one page.
E22: CFR = Consistent Financial Reporting

Sheet Benchmarking
B1: Subjective Analysis of | C1: 2023-24 | D1: Income and Expenditure Compared to selected and Kent Primary Averages
F3: Nursery | G3: R to Yr 6 | I3: Benchmark against schools with Nursery's
C4: Enter last 4 digits of your DfE No. | E4: Pupil Roll | F4: =IF(ISERROR(VLOOKUP(D4,'2023-24 Data'!A3:C254,3,0)),"",VLOOKUP(D4,'2023-24 Data'!A3:C254,3,0)) ->  | G4: =IF(ISERROR(VLOOKUP(D4,'2023-24 Data'!A3:D254,4,0)),"",VLOOKUP(D4,'2023-24 Data'!A3:D254,4,0)) -> 
I5: Select type of School
B6: =B1&C1&D1 -> Subjective Analysis of 2023-24 Income and Expenditure Compared to selected and Kent Primary Averages
I7: Select Pupil Roll to Benchmark against
N9: =IF(I6="","",IF(I4=I6,"you have already selected this school","")) -> 
E10: Your School | I10: Your selection includes: | M10: All Kent Primary Schools
E11: =IF(D4="","","Total Pupil Roll : "&VLOOKUP($D$4,'2023-24 Data'!A3:I254,9,FALSE)) ->  | I11: =SUM('2023-24 Data'!M3:M254)&" Schools" -> 0 Schools
B12: =IF(D4="","",VLOOKUP($D$4,'2023-24 Data'!A3:B254,2,0)) ->  | D12: total Exp. / Inc. | E12: amount per Pupil | F12: % of total Exp. | G12: % of Exp / total inc. | I12: =E12 -> amount per Pupil | J12: =F12 -> % of total Exp. | K12: =G12 -> % of Exp / total inc. | M12: =E12 -> amount per Pupil | N12: =F12 -> % of total Exp. | O12: =G12 -> % of Exp / total inc.
B13: (Total Revenue) | D13: £ | E13: £ | F13: % | G13: % | I13: £ | J13: % | K13: % | M13: £ | N13: % | O13: %
B15: EXPENDITURE
B16: Teaching staff | C16: E01 | D16: =IF(ISERROR(INDEX('2023-24 Data'!$B$3:$BP$254,MATCH($D$4,dfenums,0),MATCH(C16,'2023-24 Data'!$B$2:$BP$2,0))),"",INDEX('2023-24 Data'!$B$3:$BP$254,MATCH($D$4,dfenums,0),MATCH(C16,'2023-24 Data'!$B$2:$BP$2,0))) ->  | E16: =IF(ISERROR(D16/($F$4+$G$4)),"",D16/($F$4+$G$4)) ->  | F16: =IF(ISERROR(D16/$D$49),"",D16/$D$49) ->  | G16: =IF(ISERROR(D16/$D$75),"",D16/-$D$75) ->  | I16: =IF(ISERROR(IF(D4>0,SUMIF('2023-24 Data'!$M$3:$M$254,1,'2023-24 Data'!$N$3:$N$254)/(SUMIF('2023-24 Data'!$M$3:$M$254,1,'2023-24 Data'!$C$3:$C$254)+SUMIF('2023-24 Data'!$M$3:$M$254,1,'2023-24 Data'!$D$3:$D$254)),"")),"",IF(D4>0,SUMIF('2023-24 Data'!$M$3:$M$254,1,'2023-24 Data'!$N$3:$N$254)/(SUMIF('2023-24 Data'!$M$3:$M$254,1,'2023-24 Data'!$C$3:$C$254)+SUMIF('2023-24 Data'!$M$3:$M$254,1,'2023-24 Data'!$D$3:$D$254)),"")) ->  | J16: =IF(ISERROR(I16/$I$49),"",I16/$I$49) ->  | K16: =IF(ISERROR(I16/$I$75),"",I16/-$I$75) ->  | M16: =IF(ISERROR(SUM('2023-24 Data'!$N$3:$N$254)/SUM('2023-24 Data'!$C$3:$D$254)),"",SUM('2023-24 Data'!$N$3:$N$254)/SUM('2023-24 Data'!$C$3:$D$254)) -> 2932.066263 | N16: =IF(ISERROR(M16/$M$49),"",M16/$M$49) -> 0.4535135897 | O16: =IF(ISERROR(M16/-$M$75),"",M16/-$M$75) -> 0.4707478077
B17: Supply teaching staff | C17: E02 | D17: =IF(ISERROR(INDEX('2023-24 Data'!$B$3:$BP$254,MATCH($D$4,dfenums,0),MATCH(C17,'2023-24 Data'!$B$2:$BP$2,0))),"",INDEX('2023-24 Data'!$B$3:$BP$254,MATCH($D$4,dfenums,0),MATCH(C17,'2023-24 Data'!$B$2:$BP$2,0))) ->  | E17: =IF(ISERROR(D17/($F$4+$G$4)),"",D17/($F$4+$G$4)) ->  | I17: =IF(ISERROR(IF(D4>0,SUMIF('2023-24 Data'!$M$3:$M$254,1,'2023-24 Data'!$O$3:$O$254)/(SUMIF('2023-24 Data'!$M$3:$M$254,1,'2023-24 Data'!$C$3:$C$254)+SUMIF('2023-24 Data'!$M$3:$M$254,1,'2023-24 Data'!$D$3:$D$254)),"")),"",IF(D4>0,SUMIF('2023-24 Data'!$M$3:$M$254,1,'2023-24 Data'!$O$3:$O$254)/(SUMIF('2023-24 Data'!$M$3:$M$254,1,'2023-24 Data'!$C$3:$C$254)+SUMIF('2023-24 Data'!$M$3:$M$254,1,'2023-24 Data'!$D$3:$D$254)),"")) ->  | M17: =IF(ISERROR(SUM('2023-24 Data'!$O$3:$O$254)/SUM('2023-24 Data'!$C$3:$D$254)),"",SUM('2023-24 Data'!$O$3:$O$254)/SUM('2023-24 Data'!$C$3:$D$254)) -> 29.66216747 | N17: 0.004587957721 | O17: 0.004762307212
B18: Education support staff | C18: E03 | D18: =IF(ISERROR(INDEX('2023-24 Data'!$B$3:$BP$254,MATCH($D$4,dfenums,0),MATCH(C18,'2023-24 Data'!$B$2:$BP$2,0))),"",INDEX('2023-24 Data'!$B$3:$BP$254,MATCH($D$4,dfenums,0),MATCH(C18,'2023-24 Data'!$B$2:$BP$2,0))) ->  | I18: =IF(ISERROR(IF(D4>0,SUMIF('2023-24 Data'!$M$3:$M$254,1,'2023-24 Data'!$P$3:$P$254)/(SUMIF('2023-24 Data'!$M$3:$M$254,1,'2023-24 Data'!$C$3:$C$254)+SUMIF('2023-24 Data'!$M$3:$M$254,1,'2023-24 Data'!$D$3:$D$254)),"")),"",IF(D4>0,SUMIF('2023-24 Data'!$M$3:$M$254,1,'2023-24 Data'!$P$3:$P$254)/(SUMIF('2023-24 Data'!$M$3:$M$254,1,'2023-24 Data'!$C$3:$C$254)+SUMIF('2023-24 Data'!$M$3:$M$254,1,'2023-24 Data'!$D$3:$D$254)),"")) ->  | M18: =IF(ISERROR(SUM('2023-24 Data'!$P$3:$P$254)/SUM('2023-24 Data'!$C$3:$D$254)),"",SUM('2023-24 Data'!$P$3:$P$254)/SUM('2023-24 Data'!$C$3:$D$254)) -> 1270.105644 | N18: 0.1964519619 | O18: 0.2039174403
B19: Premises staff | C19: E04 | D19: =IF(ISERROR(INDEX('2023-24 Data'!$B$3:$BP$254,MATCH($D$4,dfenums,0),MATCH(C19,'2023-24 Data'!$B$2:$BP$2,0))),"",INDEX('2023-24 Data'!$B$3:$BP$254,MATCH($D$4,dfenums,0),MATCH(C19,'2023-24 Data'!$B$2:$BP$2,0))) ->  | I19: =IF(ISERROR(IF(D4>0,SUMIF('2023-24 Data'!$M$3:$M$254,1,'2023-24 Data'!$Q$3:$Q$254)/(SUMIF('2023-24 Data'!$M$3:$M$254,1,'2023-24 Data'!$C$3:$C$254)+SUMIF('2023-24 Data'!$M$3:$M$254,1,'2023-24 Data'!$D$3:$D$254)),"")),"",IF(D4>0,SUMIF('2023-24 Data'!$M$3:$M$254,1,'2023-24 Data'!$Q$3:$Q$254)/(SUMIF('2023-24 Data'!$M$3:$M$254,1,'2023-24 Data'!$C$3:$C$254)+SUMIF('2023-24 Data'!$M$3:$M$254,1,'2023-24 Data'!$D$3:$D$254)),"")) ->  | M19: =IF(ISERROR(SUM('2023-24 Data'!$Q$3:$Q$254)/SUM('2023-24 Data'!$C$3:$D$254)),"",SUM('2023-24 Data'!$Q$3:$Q$254)/SUM('2023-24 Data'!$C$3:$D$254)) -> 147.8283316 | N19: 0.02286515764 | O19: 0.02373406901
B20: Administrative and clerical staff | C20: E05 | D20: =IF(ISERROR(INDEX('2023-24 Data'!$B$3:$BP$254,MATCH($D$4,dfenums,0),MATCH(C20,'2023-24 Data'!$B$2:$BP$2,0))),"",INDEX('2023-24 Data'!$B$3:$BP$254,MATCH($D$4,dfenums,0),MATCH(C20,'2023-24 Data'!$B$2:$BP$2,0))) ->  | I20: =IF(ISERROR(IF(D4>0,SUMIF('2023-24 Data'!$M$3:$M$254,1,'2023-24 Data'!$R$3:$R$254)/(SUMIF('2023-24 Data'!$M$3:$M$254,1,'2023-24 Data'!$C$3:$C$254)+SUMIF('2023-24 Data'!$M$3:$M$254,1,'2023-24 Data'!$D$3:$D$254)),"")),"",IF(D4>0,SUMIF('2023-24 Data'!$M$3:$M$254,1,'2023-24 Data'!$R$3:$R$254)/(SUMIF('2023-24 Data'!$M$3:$M$254,1,'2023-24 Data'!$C$3:$C$254)+SUMIF('2023-24 Data'!$M$3:$M$254,1,'2023-24 Data'!$D$3:$D$254)),"")) ->  | M20: =IF(ISERROR(SUM('2023-24 Data'!$R$3:$R$254)/SUM('2023-24 Data'!$C$3:$D$254)),"",SUM('2023-24 Data'!$R$3:$R$254)/SUM('2023-24 Data'!$C$3:$D$254)) -> 295.3367242 | N20: 0.04568082914 | O20: 0.04741677132
B21: Catering staff | C21: E06 | D21: =IF(ISERROR(INDEX('2023-24 Data'!$B$3:$BP$254,MATCH($D$4,dfenums,0),MATCH(C21,'2023-24 Data'!$B$2:$BP$2,0))),"",INDEX('2023-24 Data'!$B$3:$BP$254,MATCH($D$4,dfenums,0),MATCH(C21,'2023-24 Data'!$B$2:$BP$2,0))) ->  | I21: =IF(ISERROR(IF(D4>0,SUMIF('2023-24 Data'!$M$3:$M$254,1,'2023-24 Data'!$S$3:$S$254)/(SUMIF('2023-24 Data'!$M$3:$M$254,1,'2023-24 Data'!$C$3:$C$254)+SUMIF('2023-24 Data'!$M$3:$M$254,1,'2023-24 Data'!$D$3:$D$254)),"")),"",IF(D4>0,SUMIF('2023-24 Data'!$M$3:$M$254,1,'2023-24 Data'!$S$3:$S$254)/(SUMIF('2023-24 Data'!$M$3:$M$254,1,'2023-24 Data'!$C$3:$C$254)+SUMIF('2023-24 Data'!$M$3:$M$254,1,'2023-24 Data'!$D$3:$D$254)),"")) ->  | M21: =IF(ISERROR(SUM('2023-24 Data'!$S$3:$S$254)/SUM('2023-24 Data'!$C$3:$D$254)),"",SUM('2023-24 Data'!$S$3:$S$254)/SUM('2023-24 Data'!$C$3:$D$254)) -> 25.94082064 | N21: 0.004012363172 | O21: 0.00416483918
B22: Cost of other staff | C22: E07 | D22: =IF(ISERROR(INDEX('2023-24 Data'!$B$3:$BP$254,MATCH($D$4,dfenums,0),MATCH(C22,'2023-24 Data'!$B$2:$BP$2,0))),"",INDEX('2023-24 Data'!$B$3:$BP$254,MATCH($D$4,dfenums,0),MATCH(C22,'2023-24 Data'!$B$2:$BP$2,0))) ->  | I22: =IF(ISERROR(IF(D4>0,SUMIF('2023-24 Data'!$M$3:$M$254,1,'2023-24 Data'!$T$3:$T$254)/(SUMIF('2023-24 Data'!$M$3:$M$254,1,'2023-24 Data'!$C$3:$C$254)+SUMIF('2023-24 Data'!$M$3:$M$254,1,'2023-24 Data'!$D$3:$D$254)),"")),"",IF(D4>0,SUMIF('2023-24 Data'!$M$3:$M$254,1,'2023-24 Data'!$T$3:$T$254)/(SUMIF('2023-24 Data'!$M$3:$M$254,1,'2023-24 Data'!$C$3:$C$254)+SUMIF('2023-24 Data'!$M$3:$M$254,1,'2023-24 Data'!$D$3:$D$254)),"")) ->  | M22: =IF(ISERROR(SUM('2023-24 Data'!$T$3:$T$254)/SUM('2023-24 Data'!$C$3:$D$254)),"",SUM('2023-24 Data'!$T$3:$T$254)/SUM('2023-24 Data'!$C$3:$D$254)) -> 174.953676 | N22: 0.02706073551 | O22: 0.02808908532
B23: Indirect employee expenses | C23: E08 | D23: =IF(ISERROR(INDEX('2023-24 Data'!$B$3:$BP$254,MATCH($D$4,dfenums,0),MATCH(C23,'2023-24 Data'!$B$2:$BP$2,0))),"",INDEX('2023-24 Data'!$B$3:$BP$254,MATCH($D$4,dfenums,0),MATCH(C23,'2023-24 Data'!$B$2:$BP$2,0))) ->  | I23: =IF(ISERROR(IF(D4>0,SUMIF('2023-24 Data'!$M$3:$M$254,1,'2023-24 Data'!$U$3:$U$254)/(SUMIF('2023-24 Data'!$M$3:$M$254,1,'2023-24 Data'!$C$3:$C$254)+SUMIF('2023-24 Data'!$M$3:$M$254,1,'2023-24 Data'!$D$3:$D$254)),"")),"",IF(D4>0,SUMIF('2023-24 Data'!$M$3:$M$254,1,'2023-24 Data'!$U$3:$U$254)/(SUMIF('2023-24 Data'!$M$3:$M$254,1,'2023-24 Data'!$C$3:$C$254)+SUMIF('2023-24 Data'!$M$3:$M$254,1,'2023-24 Data'!$D$3:$D$254)),"")) ->  | M23: =IF(ISERROR(SUM('2023-24 Data'!$U$3:$U$254)/SUM('2023-24 Data'!$C$3:$D$254)),"",SUM('2023-24 Data'!$U$3:$U$254)/SUM('2023-24 Data'!$C$3:$D$254)) -> 21.39106414 | N23: 0.003308635418 | O23: 0.003434368683
B24: Development and training | C24: E09 | D24: =IF(ISERROR(INDEX('2023-24 Data'!$B$3:$BP$254,MATCH($D$4,dfenums,0),MATCH(C24,'2023-24 Data'!$B$2:$BP$2,0))),"",INDEX('2023-24 Data'!$B$3:$BP$254,MATCH($D$4,dfenums,0),MATCH(C24,'2023-24 Data'!$B$2:$BP$2,0))) ->  | I24: =IF(ISERROR(IF(D4>0,SUMIF('2023-24 Data'!$M$3:$M$254,1,'2023-24 Data'!$V$3:$V$254)/(SUMIF('2023-24 Data'!$M$3:$M$254,1,'2023-24 Data'!$C$3:$C$254)+SUMIF('2023-24 Data'!$M$3:$M$254,1,'2023-24 Data'!$D$3:$D$254)),"")),"",IF(D4>0,SUMIF('2023-24 Data'!$M$3:$M$254,1,'2023-24 Data'!$V$3:$V$254)/(SUMIF('2023-24 Data'!$M$3:$M$254,1,'2023-24 Data'!$C$3:$C$254)+SUMIF('2023-24 Data'!$M$3:$M$254,1,'2023-24 Data'!$D$3:$D$254)),"")) ->  | M24: =IF(ISERROR(SUM('2023-24 Data'!$V$3:$V$254)/SUM('2023-24 Data'!$C$3:$D$254)),"",SUM('2023-24 Data'!$V$3:$V$254)/SUM('2023-24 Data'!$C$3:$D$254)) -> 28.69037609 | N24: 0.004437647135 | O24: 0.004606284591
B25: Supply teacher insurance | C25: E10 | D25: =IF(ISERROR(INDEX('2023-24 Data'!$B$3:$BP$254,MATCH($D$4,dfenums,0),MATCH(C25,'2023-24 Data'!$B$2:$BP$2,0))),"",INDEX('2023-24 Data'!$B$3:$BP$254,MATCH($D$4,dfenums,0),MATCH(C25,'2023-24 Data'!$B$2:$BP$2,0))) ->  | I25: =IF(ISERROR(IF(D4>0,SUMIF('2023-24 Data'!$M$3:$M$254,1,'2023-24 Data'!$W$3:$W$254)/(SUMIF('2023-24 Data'!$M$3:$M$254,1,'2023-24 Data'!$C$3:$C$254)+SUMIF('2023-24 Data'!$M$3:$M$254,1,'2023-24 Data'!$D$3:$D$254)),"")),"",IF(D4>0,SUMIF('2023-24 Data'!$M$3:$M$254,1,'2023-24 Data'!$W$3:$W$254)/(SUMIF('2023-24 Data'!$M$3:$M$254,1,'2023-24 Data'!$C$3:$C$254)+SUMIF('2023-24 Data'!$M$3:$M$254,1,'2023-24 Data'!$D$3:$D$254)),"")) ->  | M25: =IF(ISERROR(SUM('2023-24 Data'!$W$3:$W$254)/SUM('2023-24 Data'!$C$3:$D$254)),"",SUM('2023-24 Data'!$W$3:$W$254)/SUM('2023-24 Data'!$C$3:$D$254)) -> 15.93541845 | N25: 0.002464790417 | O25: 0.002558456266
B26: Staff related insurance | C26: E11 | D26: =IF(ISERROR(INDEX('2023-24 Data'!$B$3:$BP$254,MATCH($D$4,dfenums,0),MATCH(C26,'2023-24 Data'!$B$2:$BP$2,0))),"",INDEX('2023-24 Data'!$B$3:$BP$254,MATCH($D$4,dfenums,0),MATCH(C26,'2023-24 Data'!$B$2:$BP$2,0))) ->  | I26: =IF(ISERROR(IF(D4>0,SUMIF('2023-24 Data'!$M$3:$M$254,1,'2023-24 Data'!$X$3:$X$254)/(SUMIF('2023-24 Data'!$M$3:$M$254,1,'2023-24 Data'!$C$3:$C$254)+SUMIF('2023-24 Data'!$M$3:$M$254,1,'2023-24 Data'!$D$3:$D$254)),"")),"",IF(D4>0,SUMIF('2023-24 Data'!$M$3:$M$254,1,'2023-24 Data'!$X$3:$X$254)/(SUMIF('2023-24 Data'!$M$3:$M$254,1,'2023-24 Data'!$C$3:$C$254)+SUMIF('2023-24 Data'!$M$3:$M$254,1,'2023-24 Data'!$D$3:$D$254)),"")) ->  | M26: =IF(ISERROR(SUM('2023-24 Data'!$X$3:$X$254)/SUM('2023-24 Data'!$C$3:$D$254)),"",SUM('2023-24 Data'!$X$3:$X$254)/SUM('2023-24 Data'!$C$3:$D$254)) -> 25.16376911 | N26: 0.003892173722 | O26: 0.004040082345
B27: Building maintenance and improvement | C27: E12 | D27: =IF(ISERROR(INDEX('2023-24 Data'!$B$3:$BP$254,MATCH($D$4,dfenums,0),MATCH(C27,'2023-24 Data'!$B$2:$BP$2,0))),"",INDEX('2023-24 Data'!$B$3:$BP$254,MATCH($D$4,dfenums,0),MATCH(C27,'2023-24 Data'!$B$2:$BP$2,0))) ->  | I27: =IF(ISERROR(IF(D4>0,SUMIF('2023-24 Data'!$M$3:$M$254,1,'2023-24 Data'!$Y$3:$Y$254)/(SUMIF('2023-24 Data'!$M$3:$M$254,1,'2023-24 Data'!$C$3:$C$254)+SUMIF('2023-24 Data'!$M$3:$M$254,1,'2023-24 Data'!$D$3:$D$254)),"")),"",IF(D4>0,SUMIF('2023-24 Data'!$M$3:$M$254,1,'2023-24 Data'!$Y$3:$Y$254)/(SUMIF('2023-24 Data'!$M$3:$M$254,1,'2023-24 Data'!$C$3:$C$254)+SUMIF('2023-24 Data'!$M$3:$M$254,1,'2023-24 Data'!$D$3:$D$254)),"")) ->  | M27: =IF(ISERROR(SUM('2023-24 Data'!$Y$3:$Y$254)/SUM('2023-24 Data'!$C$3:$D$254)),"",SUM('2023-24 Data'!$Y$3:$Y$254)/SUM('2023-24 Data'!$C$3:$D$254)) -> 64.48323436 | N27: 0.009973861594 | O27: 0.01035288376
B28: Grounds maintenance and improvement | C28: E13 | D28: =IF(ISERROR(INDEX('2023-24 Data'!$B$3:$BP$254,MATCH($D$4,dfenums,0),MATCH(C28,'2023-24 Data'!$B$2:$BP$2,0))),"",INDEX('2023-24 Data'!$B$3:$BP$254,MATCH($D$4,dfenums,0),MATCH(C28,'2023-24 Data'!$B$2:$BP$2,0))) ->  | I28: =IF(ISERROR(IF(D4>0,SUMIF('2023-24 Data'!$M$3:$M$254,1,'2023-24 Data'!$Z$3:$Z$254)/(SUMIF('2023-24 Data'!$M$3:$M$254,1,'2023-24 Data'!$C$3:$C$254)+SUMIF('2023-24 Data'!$M$3:$M$254,1,'2023-24 Data'!$D$3:$D$254)),"")),"",IF(D4>0,SUMIF('2023-24 Data'!$M$3:$M$254,1,'2023-24 Data'!$Z$3:$Z$254)/(SUMIF('2023-24 Data'!$M$3:$M$254,1,'2023-24 Data'!$C$3:$C$254)+SUMIF('2023-24 Data'!$M$3:$M$254,1,'2023-24 Data'!$D$3:$D$254)),"")) ->  | M28: =IF(ISERROR(SUM('2023-24 Data'!$Z$3:$Z$254)/SUM('2023-24 Data'!$C$3:$D$254)),"",SUM('2023-24 Data'!$Z$3:$Z$254)/SUM('2023-24 Data'!$C$3:$D$254)) -> 30.72218041 | N28: 0.004751913863 | O28: 0.004932493942
B29: Cleaning and caretaking | C29: E14 | D29: =IF(ISERROR(INDEX('2023-24 Data'!$B$3:$BP$254,MATCH($D$4,dfenums,0),MATCH(C29,'2023-24 Data'!$B$2:$BP$2,0))),"",INDEX('2023-24 Data'!$B$3:$BP$254,MATCH($D$4,dfenums,0),MATCH(C29,'2023-24 Data'!$B$2:$BP$2,0))) ->  | I29: =IF(ISERROR(IF(D4>0,SUMIF('2023-24 Data'!$M$3:$M$254,1,'2023-24 Data'!$AA$3:$AA$254)/(SUMIF('2023-24 Data'!$M$3:$M$254,1,'2023-24 Data'!$C$3:$C$254)+SUMIF('2023-24 Data'!$M$3:$M$254,1,'2023-24 Data'!$D$3:$D$254)),"")),"",IF(D4>0,SUMIF('2023-24 Data'!$M$3:$M$254,1,'2023-24 Data'!$AA$3:$AA$254)/(SUMIF('2023-24 Data'!$M$3:$M$254,1,'2023-24 Data'!$C$3:$C$254)+SUMIF('2023-24 Data'!$M$3:$M$254,1,'2023-24 Data'!$D$3:$D$254)),"")) ->  | M29: =IF(ISERROR(SUM('2023-24 Data'!$AA$3:$AA$254)/SUM('2023-24 Data'!$C$3:$D$254)),"",SUM('2023-24 Data'!$AA$3:$AA$254)/SUM('2023-24 Data'!$C$3:$D$254)) -> 72.26332858 | N29: 0.01117723769 | O29: 0.01160199002
B30: Water and sewerage | C30: E15 | D30: =IF(ISERROR(INDEX('2023-24 Data'!$B$3:$BP$254,MATCH($D$4,dfenums,0),MATCH(C30,'2023-24 Data'!$B$2:$BP$2,0))),"",INDEX('2023-24 Data'!$B$3:$BP$254,MATCH($D$4,dfenums,0),MATCH(C30,'2023-24 Data'!$B$2:$BP$2,0))) ->  | I30: =IF(ISERROR(IF(D4>0,SUMIF('2023-24 Data'!$M$3:$M$254,1,'2023-24 Data'!$AB$3:$AB$254)/(SUMIF('2023-24 Data'!$M$3:$M$254,1,'2023-24 Data'!$C$3:$C$254)+SUMIF('2023-24 Data'!$M$3:$M$254,1,'2023-24 Data'!$D$3:$D$254)),"")),"",IF(D4>0,SUMIF('2023-24 Data'!$M$3:$M$254,1,'2023-24 Data'!$AB$3:$AB$254)/(SUMIF('2023-24 Data'!$M$3:$M$254,1,'2023-24 Data'!$C$3:$C$254)+SUMIF('2023-24 Data'!$M$3:$M$254,1,'2023-24 Data'!$D$3:$D$254)),"")) ->  | M30: =IF(ISERROR(SUM('2023-24 Data'!$AB$3:$AB$254)/SUM('2023-24 Data'!$C$3:$D$254)),"",SUM('2023-24 Data'!$AB$3:$AB$254)/SUM('2023-24 Data'!$C$3:$D$254)) -> 20.47262887 | N30: 0.00316657762 | O30: 0.003286912468
B31: Energy | C31: E16 | D31: =IF(ISERROR(INDEX('2023-24 Data'!$B$3:$BP$254,MATCH($D$4,dfenums,0),MATCH(C31,'2023-24 Data'!$B$2:$BP$2,0))),"",INDEX('2023-24 Data'!$B$3:$BP$254,MATCH($D$4,dfenums,0),MATCH(C31,'2023-24 Data'!$B$2:$BP$2,0))) ->  | I31: =IF(ISERROR(IF(D4>0,SUMIF('2023-24 Data'!$M$3:$M$254,1,'2023-24 Data'!$AC$3:$AC$254)/(SUMIF('2023-24 Data'!$M$3:$M$254,1,'2023-24 Data'!$C$3:$C$254)+SUMIF('2023-24 Data'!$M$3:$M$254,1,'2023-24 Data'!$D$3:$D$254)),"")),"",IF(D4>0,SUMIF('2023-24 Data'!$M$3:$M$254,1,'2023-24 Data'!$AC$3:$AC$254)/(SUMIF('2023-24 Data'!$M$3:$M$254,1,'2023-24 Data'!$C$3:$C$254)+SUMIF('2023-24 Data'!$M$3:$M$254,1,'2023-24 Data'!$D$3:$D$254)),"")) ->  | M31: =IF(ISERROR(SUM('2023-24 Data'!$AC$3:$AC$254)/SUM('2023-24 Data'!$C$3:$D$254)),"",SUM('2023-24 Data'!$AC$3:$AC$254)/SUM('2023-24 Data'!$C$3:$D$254)) -> 134.5995317 | N31: 0.02081900999 | O31: 0.02161016458
B32: Rates | C32: E17 | D32: =IF(ISERROR(INDEX('2023-24 Data'!$B$3:$BP$254,MATCH($D$4,dfenums,0),MATCH(C32,'2023-24 Data'!$B$2:$BP$2,0))),"",INDEX('2023-24 Data'!$B$3:$BP$254,MATCH($D$4,dfenums,0),MATCH(C32,'2023-24 Data'!$B$2:$BP$2,0))) ->  | I32: =IF(ISERROR(IF(D4>0,SUMIF('2023-24 Data'!$M$3:$M$254,1,'2023-24 Data'!$AD$3:$AD$254)/(SUMIF('2023-24 Data'!$M$3:$M$254,1,'2023-24 Data'!$C$3:$C$254)+SUMIF('2023-24 Data'!$M$3:$M$254,1,'2023-24 Data'!$D$3:$D$254)),"")),"",IF(D4>0,SUMIF('2023-24 Data'!$M$3:$M$254,1,'2023-24 Data'!$AD$3:$AD$254)/(SUMIF('2023-24 Data'!$M$3:$M$254,1,'2023-24 Data'!$C$3:$C$254)+SUMIF('2023-24 Data'!$M$3:$M$254,1,'2023-24 Data'!$D$3:$D$254)),"")) ->  | M32: =IF(ISERROR(SUM('2023-24 Data'!$AD$3:$AD$254)/SUM('2023-24 Data'!$C$3:$D$254)),"",SUM('2023-24 Data'!$AD$3:$AD$254)/SUM('2023-24 Data'!$C$3:$D$254)) -> 95.87277746 | N32: 0.01482899892 | O32: 0.01539252382
B33: Other occupation costs | C33: E18 | D33: =IF(ISERROR(INDEX('2023-24 Data'!$B$3:$BP$254,MATCH($D$4,dfenums,0),MATCH(C33,'2023-24 Data'!$B$2:$BP$2,0))),"",INDEX('2023-24 Data'!$B$3:$BP$254,MATCH($D$4,dfenums,0),MATCH(C33,'2023-24 Data'!$B$2:$BP$2,0))) ->  | I33: =IF(ISERROR(IF(D4>0,SUMIF('2023-24 Data'!$M$3:$M$254,1,'2023-24 Data'!$AE$3:$AE$254)/(SUMIF('2023-24 Data'!$M$3:$M$254,1,'2023-24 Data'!$C$3:$C$254)+SUMIF('2023-24 Data'!$M$3:$M$254,1,'2023-24 Data'!$D$3:$D$254)),"")),"",IF(D4>0,SUMIF('2023-24 Data'!$M$3:$M$254,1,'2023-24 Data'!$AE$3:$AE$254)/(SUMIF('2023-24 Data'!$M$3:$M$254,1,'2023-24 Data'!$C$3:$C$254)+SUMIF('2023-24 Data'!$M$3:$M$254,1,'2023-24 Data'!$D$3:$D$254)),"")) ->  | M33: =IF(ISERROR(SUM('2023-24 Data'!$AE$3:$AE$254)/SUM('2023-24 Data'!$C$3:$D$254)),"",SUM('2023-24 Data'!$AE$3:$AE$254)/SUM('2023-24 Data'!$C$3:$D$254)) -> 45.49247587 | N33: 0.007036490375 | O33: 0.007303887895
B34: Learning resources (not ICT equipment) | C34: E19 | D34: =IF(ISERROR(INDEX('2023-24 Data'!$B$3:$BP$254,MATCH($D$4,dfenums,0),MATCH(C34,'2023-24 Data'!$B$2:$BP$2,0))),"",INDEX('2023-24 Data'!$B$3:$BP$254,MATCH($D$4,dfenums,0),MATCH(C34,'2023-24 Data'!$B$2:$BP$2,0))) ->  | I34: =IF(ISERROR(IF(D4>0,SUMIF('2023-24 Data'!$M$3:$M$254,1,'2023-24 Data'!$AF$3:$AF$254)/(SUMIF('2023-24 Data'!$M$3:$M$254,1,'2023-24 Data'!$C$3:$C$254)+SUMIF('2023-24 Data'!$M$3:$M$254,1,'2023-24 Data'!$D$3:$D$254)),"")),"",IF(D4>0,SUMIF('2023-24 Data'!$M$3:$M$254,1,'2023-24 Data'!$AF$3:$AF$254)/(SUMIF('2023-24 Data'!$M$3:$M$254,1,'2023-24 Data'!$C$3:$C$254)+SUMIF('2023-24 Data'!$M$3:$M$254,1,'2023-24 Data'!$D$3:$D$254)),"")) ->  | M34: =IF(ISERROR(SUM('2023-24 Data'!$AF$3:$AF$254)/SUM('2023-24 Data'!$C$3:$D$254)),"",SUM('2023-24 Data'!$AF$3:$AF$254)/SUM('2023-24 Data'!$C$3:$D$254)) -> 271.7677545 | N34: 0.04203532896 | O34: 0.04363273649
B35: ICT learning resources | C35: E20 | D35: =IF(ISERROR(INDEX('2023-24 Data'!$B$3:$BP$254,MATCH($D$4,dfenums,0),MATCH(C35,'2023-24 Data'!$B$2:$BP$2,0))),"",INDEX('2023-24 Data'!$B$3:$BP$254,MATCH($D$4,dfenums,0),MATCH(C35,'2023-24 Data'!$B$2:$BP$2,0))) ->  | I35: =IF(ISERROR(IF(D4>0,SUMIF('2023-24 Data'!$M$3:$M$254,1,'2023-24 Data'!$AG$3:$AG$254)/(SUMIF('2023-24 Data'!$M$3:$M$254,1,'2023-24 Data'!$C$3:$C$254)+SUMIF('2023-24 Data'!$M$3:$M$254,1,'2023-24 Data'!$D$3:$D$254)),"")),"",IF(D4>0,SUMIF('2023-24 Data'!$M$3:$M$254,1,'2023-24 Data'!$AG$3:$AG$254)/(SUMIF('2023-24 Data'!$M$3:$M$254,1,'2023-24 Data'!$C$3:$C$254)+SUMIF('2023-24 Data'!$M$3:$M$254,1,'2023-24 Data'!$D$3:$D$254)),"")) ->  | M35: =IF(ISERROR(SUM('2023-24 Data'!$AG$3:$AG$254)/SUM('2023-24 Data'!$C$3:$D$254)),"",SUM('2023-24 Data'!$AG$3:$AG$254)/SUM('2023-24 Data'!$C$3:$D$254)) -> 57.89151288 | N35: 0.008954295525 | O35: 0.009294572608
B36: Exam fees | C36: E21 | D36: =IF(ISERROR(INDEX('2023-24 Data'!$B$3:$BP$254,MATCH($D$4,dfenums,0),MATCH(C36,'2023-24 Data'!$B$2:$BP$2,0))),"",INDEX('2023-24 Data'!$B$3:$BP$254,MATCH($D$4,dfenums,0),MATCH(C36,'2023-24 Data'!$B$2:$BP$2,0))) ->  | I36: =IF(ISERROR(IF(D4>0,SUMIF('2023-24 Data'!$M$3:$M$254,1,'2023-24 Data'!$AH$3:$AH$254)/(SUMIF('2023-24 Data'!$M$3:$M$254,1,'2023-24 Data'!$C$3:$C$254)+SUMIF('2023-24 Data'!$M$3:$M$254,1,'2023-24 Data'!$D$3:$D$254)),"")),"",IF(D4>0,SUMIF('2023-24 Data'!$M$3:$M$254,1,'2023-24 Data'!$AH$3:$AH$254)/(SUMIF('2023-24 Data'!$M$3:$M$254,1,'2023-24 Data'!$C$3:$C$254)+SUMIF('2023-24 Data'!$M$3:$M$254,1,'2023-24 Data'!$D$3:$D$254)),"")) ->  | M36: =IF(ISERROR(SUM('2023-24 Data'!$AH$3:$AH$254)/SUM('2023-24 Data'!$C$3:$D$254)),"",SUM('2023-24 Data'!$AH$3:$AH$254)/SUM('2023-24 Data'!$C$3:$D$254)) -> 0 | N36: 0 | O36: 0
B37: Administrative supplies | C37: E22 | D37: =IF(ISERROR(INDEX('2023-24 Data'!$B$3:$BP$254,MATCH($D$4,dfenums,0),MATCH(C37,'2023-24 Data'!$B$2:$BP$2,0))),"",INDEX('2023-24 Data'!$B$3:$BP$254,MATCH($D$4,dfenums,0),MATCH(C37,'2023-24 Data'!$B$2:$BP$2,0))) ->  | I37: =IF(ISERROR(IF(D4>0,SUMIF('2023-24 Data'!$M$3:$M$254,1,'2023-24 Data'!$AI$3:$AI$254)/(SUMIF('2023-24 Data'!$M$3:$M$254,1,'2023-24 Data'!$C$3:$C$254)+SUMIF('2023-24 Data'!$M$3:$M$254,1,'2023-24 Data'!$D$3:$D$254)),"")),"",IF(D4>0,SUMIF('2023-24 Data'!$M$3:$M$254,1,'2023-24 Data'!$AI$3:$AI$254)/(SUMIF('2023-24 Data'!$M$3:$M$254,1,'2023-24 Data'!$C$3:$C$254)+SUMIF('2023-24 Data'!$M$3:$M$254,1,'2023-24 Data'!$D$3:$D$254)),"")) ->  | M37: =IF(ISERROR(SUM('2023-24 Data'!$AI$3:$AI$254)/SUM('2023-24 Data'!$C$3:$D$254)),"",SUM('2023-24 Data'!$AI$3:$AI$254)/SUM('2023-24 Data'!$C$3:$D$254)) -> 70.65652256 | N37: 0.01092870703 | O37: 0.01134401481
B38: Other insurance premiums | C38: E23 | D38: =IF(ISERROR(INDEX('2023-24 Data'!$B$3:$BP$254,MATCH($D$4,dfenums,0),MATCH(C38,'2023-24 Data'!$B$2:$BP$2,0))),"",INDEX('2023-24 Data'!$B$3:$BP$254,MATCH($D$4,dfenums,0),MATCH(C38,'2023-24 Data'!$B$2:$BP$2,0))) ->  | I38: =IF(ISERROR(IF(D4>0,SUMIF('2023-24 Data'!$M$3:$M$254,1,'2023-24 Data'!$AJ$3:$AJ$254)/(SUMIF('2023-24 Data'!$M$3:$M$254,1,'2023-24 Data'!$C$3:$C$254)+SUMIF('2023-24 Data'!$M$3:$M$254,1,'2023-24 Data'!$D$3:$D$254)),"")),"",IF(D4>0,SUMIF('2023-24 Data'!$M$3:$M$254,1,'2023-24 Data'!$AJ$3:$AJ$254)/(SUMIF('2023-24 Data'!$M$3:$M$254,1,'2023-24 Data'!$C$3:$C$254)+SUMIF('2023-24 Data'!$M$3:$M$254,1,'2023-24 Data'!$D$3:$D$254)),"")) ->  | M38: =IF(ISERROR(SUM('2023-24 Data'!$AJ$3:$AJ$254)/SUM('2023-24 Data'!$C$3:$D$254)),"",SUM('2023-24 Data'!$AJ$3:$AJ$254)/SUM('2023-24 Data'!$C$3:$D$254)) -> 38.3143876 | N38: 0.005926228774 | O38: 0.006151434636
B39: Special facilities | C39: E24 | D39: =IF(ISERROR(INDEX('2023-24 Data'!$B$3:$BP$254,MATCH($D$4,dfenums,0),MATCH(C39,'2023-24 Data'!$B$2:$BP$2,0))),"",INDEX('2023-24 Data'!$B$3:$BP$254,MATCH($D$4,dfenums,0),MATCH(C39,'2023-24 Data'!$B$2:$BP$2,0))) ->  | I39: =IF(ISERROR(IF(D4>0,SUMIF('2023-24 Data'!$M$3:$M$254,1,'2023-24 Data'!$AK$3:$AK$254)/(SUMIF('2023-24 Data'!$M$3:$M$254,1,'2023-24 Data'!$C$3:$C$254)+SUMIF('2023-24 Data'!$M$3:$M$254,1,'2023-24 Data'!$D$3:$D$254)),"")),"",IF(D4>0,SUMIF('2023-24 Data'!$M$3:$M$254,1,'2023-24 Data'!$AK$3:$AK$254)/(SUMIF('2023-24 Data'!$M$3:$M$254,1,'2023-24 Data'!$C$3:$C$254)+SUMIF('2023-24 Data'!$M$3:$M$254,1,'2023-24 Data'!$D$3:$D$254)),"")) ->  | M39: =IF(ISERROR(SUM('2023-24 Data'!$AK$3:$AK$254)/SUM('2023-24 Data'!$C$3:$D$254)),"",SUM('2023-24 Data'!$AK$3:$AK$254)/SUM('2023-24 Data'!$C$3:$D$254)) -> 44.95682474 | N39: 0.006953639223 | O39: 0.007217888271
B40: Catering supplies | C40: E25 | D40: =IF(ISERROR(INDEX('2023-24 Data'!$B$3:$BP$254,MATCH($D$4,dfenums,0),MATCH(C40,'2023-24 Data'!$B$2:$BP$2,0))),"",INDEX('2023-24 Data'!$B$3:$BP$254,MATCH($D$4,dfenums,0),MATCH(C40,'2023-24 Data'!$B$2:$BP$2,0))) ->  | I40: =IF(ISERROR(IF(D4>0,SUMIF('2023-24 Data'!$M$3:$M$254,1,'2023-24 Data'!$AL$3:$AL$254)/(SUMIF('2023-24 Data'!$M$3:$M$254,1,'2023-24 Data'!$C$3:$C$254)+SUMIF('2023-24 Data'!$M$3:$M$254,1,'2023-24 Data'!$D$3:$D$254)),"")),"",IF(D4>0,SUMIF('2023-24 Data'!$M$3:$M$254,1,'2023-24 Data'!$AL$3:$AL$254)/(SUMIF('2023-24 Data'!$M$3:$M$254,1,'2023-24 Data'!$C$3:$C$254)+SUMIF('2023-24 Data'!$M$3:$M$254,1,'2023-24 Data'!$D$3:$D$254)),"")) ->  | M40: =IF(ISERROR(SUM('2023-24 Data'!$AL$3:$AL$254)/SUM('2023-24 Data'!$C$3:$D$254)),"",SUM('2023-24 Data'!$AL$3:$AL$254)/SUM('2023-24 Data'!$C$3:$D$254)) -> 207.2183885 | N40: 0.03205123854 | O40: 0.03326923519
B41: Agency supply teaching staff | C41: E26 | D41: =IF(ISERROR(INDEX('2023-24 Data'!$B$3:$BP$254,MATCH($D$4,dfenums,0),MATCH(C41,'2023-24 Data'!$B$2:$BP$2,0))),"",INDEX('2023-24 Data'!$B$3:$BP$254,MATCH($D$4,dfenums,0),MATCH(C41,'2023-24 Data'!$B$2:$BP$2,0))) ->  | I41: =IF(ISERROR(IF(D4>0,SUMIF('2023-24 Data'!$M$3:$M$254,1,'2023-24 Data'!$AM$3:$AM$254)/(SUMIF('2023-24 Data'!$M$3:$M$254,1,'2023-24 Data'!$C$3:$C$254)+SUMIF('2023-24 Data'!$M$3:$M$254,1,'2023-24 Data'!$D$3:$D$254)),"")),"",IF(D4>0,SUMIF('2023-24 Data'!$M$3:$M$254,1,'2023-24 Data'!$AM$3:$AM$254)/(SUMIF('2023-24 Data'!$M$3:$M$254,1,'2023-24 Data'!$C$3:$C$254)+SUMIF('2023-24 Data'!$M$3:$M$254,1,'2023-24 Data'!$D$3:$D$254)),"")) ->  | M41: =IF(ISERROR(SUM('2023-24 Data'!$AM$3:$AM$254)/SUM('2023-24 Data'!$C$3:$D$254)),"",SUM('2023-24 Data'!$AM$3:$AM$254)/SUM('2023-24 Data'!$C$3:$D$254)) -> 61.49750554 | N41: 0.009512047816 | O41: 0.009873520349
B42: Bought in professional services - curriculum | C42: E27 | D42: =IF(ISERROR(INDEX('2023-24 Data'!$B$3:$BP$254,MATCH($D$4,dfenums,0),MATCH(C42,'2023-24 Data'!$B$2:$BP$2,0))),"",INDEX('2023-24 Data'!$B$3:$BP$254,MATCH($D$4,dfenums,0),MATCH(C42,'2023-24 Data'!$B$2:$BP$2,0))) ->  | I42: =IF(ISERROR(IF(D4>0,SUMIF('2023-24 Data'!$M$3:$M$254,1,'2023-24 Data'!$AN$3:$AN$254)/(SUMIF('2023-24 Data'!$M$3:$M$254,1,'2023-24 Data'!$C$3:$C$254)+SUMIF('2023-24 Data'!$M$3:$M$254,1,'2023-24 Data'!$D$3:$D$254)),"")),"",IF(D4>0,SUMIF('2023-24 Data'!$M$3:$M$254,1,'2023-24 Data'!$AN$3:$AN$254)/(SUMIF('2023-24 Data'!$M$3:$M$254,1,'2023-24 Data'!$C$3:$C$254)+SUMIF('2023-24 Data'!$M$3:$M$254,1,'2023-24 Data'!$D$3:$D$254)),"")) ->  | M42: =IF(ISERROR(SUM('2023-24 Data'!$AN$3:$AN$254)/SUM('2023-24 Data'!$C$3:$D$254)),"",SUM('2023-24 Data'!$AN$3:$AN$254)/SUM('2023-24 Data'!$C$3:$D$254)) -> 90.04603742 | N42: 0.01392775538 | O42: 0.01445703163
B43: Bought in professional services other - Non PFI | C43: E28 | D43: =IF(ISERROR(INDEX('2023-24 Data'!$B$3:$BP$254,MATCH($D$4,dfenums,0),MATCH(C43,'2023-24 Data'!$B$2:$BP$2,0))),"",INDEX('2023-24 Data'!$B$3:$BP$254,MATCH($D$4,dfenums,0),MATCH(C43,'2023-24 Data'!$B$2:$BP$2,0))) ->  | E43: =IF(ISERROR(D43/($F$4+$G$4)),"",D43/($F$4+$G$4)) ->  | I43: =IF(ISERROR(IF(D4>0,SUMIF('2023-24 Data'!$M$3:$M$254,1,'2023-24 Data'!$AO$3:$AO$254)/(SUMIF('2023-24 Data'!$M$3:$M$254,1,'2023-24 Data'!$C$3:$C$254)+SUMIF('2023-24 Data'!$M$3:$M$254,1,'2023-24 Data'!$D$3:$D$254)),"")),"",IF(D4>0,SUMIF('2023-24 Data'!$M$3:$M$254,1,'2023-24 Data'!$AO$3:$AO$254)/(SUMIF('2023-24 Data'!$M$3:$M$254,1,'2023-24 Data'!$C$3:$C$254)+SUMIF('2023-24 Data'!$M$3:$M$254,1,'2023-24 Data'!$D$3:$D$254)),"")) ->  | M43: =IF(ISERROR(SUM('2023-24 Data'!$AO$3:$AO$254)/SUM('2023-24 Data'!$C$3:$D$254)),"",SUM('2023-24 Data'!$AO$3:$AO$254)/SUM('2023-24 Data'!$C$3:$D$254)) -> 115.3435009 | N43: 0.0178406081 | O43: 0.01851857881
B44: Bought in professional services other - PFI only | C44: E28b | D44: =IF(ISERROR(INDEX('2023-24 Data'!$B$3:$BP$254,MATCH($D$4,dfenums,0),MATCH(C44,'2023-24 Data'!$B$2:$BP$2,0))),"",INDEX('2023-24 Data'!$B$3:$BP$254,MATCH($D$4,dfenums,0),MATCH(C44,'2023-24 Data'!$B$2:$BP$2,0))) ->  | I44: =IF(ISERROR(IF(D4>0,SUMIF('2023-24 Data'!$M$3:$M$254,1,'2023-24 Data'!$AP$3:$AP$254)/(SUMIF('2023-24 Data'!$M$3:$M$254,1,'2023-24 Data'!$C$3:$C$254)+SUMIF('2023-24 Data'!$M$3:$M$254,1,'2023-24 Data'!$D$3:$D$254)),"")),"",IF(D4>0,SUMIF('2023-24 Data'!$M$3:$M$254,1,'2023-24 Data'!$AP$3:$AP$254)/(SUMIF('2023-24 Data'!$M$3:$M$254,1,'2023-24 Data'!$C$3:$C$254)+SUMIF('2023-24 Data'!$M$3:$M$254,1,'2023-24 Data'!$D$3:$D$254)),"")) ->  | M44: =IF(ISERROR(SUM('2023-24 Data'!$AP$3:$AP$254)/SUM('2023-24 Data'!$C$3:$D$254)),"",SUM('2023-24 Data'!$AP$3:$AP$254)/SUM('2023-24 Data'!$C$3:$D$254)) -> 0 | N44: 0 | O44: 0
B45: Loan interest | C45: E29 | D45: =IF(ISERROR(INDEX('2023-24 Data'!$B$3:$BP$254,MATCH($D$4,dfenums,0),MATCH(C45,'2023-24 Data'!$B$2:$BP$2,0))),"",INDEX('2023-24 Data'!$B$3:$BP$254,MATCH($D$4,dfenums,0),MATCH(C45,'2023-24 Data'!$B$2:$BP$2,0))) ->  | I45: =IF(ISERROR(IF(D4>0,SUMIF('2023-24 Data'!$M$3:$M$254,1,'2023-24 Data'!$AQ$3:$AQ$254)/(SUMIF('2023-24 Data'!$M$3:$M$254,1,'2023-24 Data'!$C$3:$C$254)+SUMIF('2023-24 Data'!$M$3:$M$254,1,'2023-24 Data'!$D$3:$D$254)),"")),"",IF(D4>0,SUMIF('2023-24 Data'!$M$3:$M$254,1,'2023-24 Data'!$AQ$3:$AQ$254)/(SUMIF('2023-24 Data'!$M$3:$M$254,1,'2023-24 Data'!$C$3:$C$254)+SUMIF('2023-24 Data'!$M$3:$M$254,1,'2023-24 Data'!$D$3:$D$254)),"")) ->  | M45: =IF(ISERROR(SUM('2023-24 Data'!$AQ$3:$AQ$254)/SUM('2023-24 Data'!$C$3:$D$254)),"",SUM('2023-24 Data'!$AQ$3:$AQ$254)/SUM('2023-24 Data'!$C$3:$D$254)) -> 0.1354390557 | N45: 2.094886229e-05 | O45: 2.174495146e-05
B46: Direct revenue financing (rev contrib. to cap) | C46: E30 | D46: =IF(ISERROR(INDEX('2023-24 Data'!$B$3:$BP$254,MATCH($D$4,dfenums,0),MATCH(C46,'2023-24 Data'!$B$2:$BP$2,0))),"",INDEX('2023-24 Data'!$B$3:$BP$254,MATCH($D$4,dfenums,0),MATCH(C46,'2023-24 Data'!$B$2:$BP$2,0))) ->  | I46: =IF(ISERROR(IF(D4>0,SUMIF('2023-24 Data'!$M$3:$M$254,1,'2023-24 Data'!$AR$3:$AR$254)/(SUMIF('2023-24 Data'!$M$3:$M$254,1,'2023-24 Data'!$C$3:$C$254)+SUMIF('2023-24 Data'!$M$3:$M$254,1,'2023-24 Data'!$D$3:$D$254)),"")),"",IF(D4>0,SUMIF('2023-24 Data'!$M$3:$M$254,1,'2023-24 Data'!$AR$3:$AR$254)/(SUMIF('2023-24 Data'!$M$3:$M$254,1,'2023-24 Data'!$C$3:$C$254)+SUMIF('2023-24 Data'!$M$3:$M$254,1,'2023-24 Data'!$D$3:$D$254)),"")) ->  | M46: =IF(ISERROR(SUM('2023-24 Data'!$AR$3:$AR$254)/SUM('2023-24 Data'!$C$3:$D$254)),"",SUM('2023-24 Data'!$AR$3:$AR$254)/SUM('2023-24 Data'!$C$3:$D$254)) -> 53.21356093 | N46: 0.008230739306 | O46: 0.008543520133
B47: Community focussed extended school staff | C47: E31 | D47: =IF(ISERROR(INDEX('2023-24 Data'!$B$3:$BP$254,MATCH($D$4,dfenums,0),MATCH(C47,'2023-24 Data'!$B$2:$BP$2,0))),"",INDEX('2023-24 Data'!$B$3:$BP$254,MATCH($D$4,dfenums,0),MATCH(C47,'2023-24 Data'!$B$2:$BP$2,0))) ->  | I47: =IF(ISERROR(IF(D4>0,SUMIF('2023-24 Data'!$M$3:$M$254,1,'2023-24 Data'!$AS$3:$AS$254)/(SUMIF('2023-24 Data'!$M$3:$M$254,1,'2023-24 Data'!$C$3:$C$254)+SUMIF('2023-24 Data'!$M$3:$M$254,1,'2023-24 Data'!$D$3:$D$254)),"")),"",IF(D4>0,SUMIF('2023-24 Data'!$M$3:$M$254,1,'2023-24 Data'!$AS$3:$AS$254)/(SUMIF('2023-24 Data'!$M$3:$M$254,1,'2023-24 Data'!$C$3:$C$254)+SUMIF('2023-24 Data'!$M$3:$M$254,1,'2023-24 Data'!$D$3:$D$254)),"")) ->  | M47: =IF(ISERROR(SUM('2023-24 Data'!$AS$3:$AS$254)/SUM('2023-24 Data'!$C$3:$D$254)),"",SUM('2023-24 Data'!$AS$3:$AS$254)/SUM('2023-24 Data'!$C$3:$D$254)) -> 11.60032575 | N47: 0.001794265511 | O47: 0.001862450376
B48: Community focussed extended school costs | C48: E32 | D48: =IF(ISERROR(INDEX('2023-24 Data'!$B$3:$BP$254,MATCH($D$4,dfenums,0),MATCH(C48,'2023-24 Data'!$B$2:$BP$2,0))),"",INDEX('2023-24 Data'!$B$3:$BP$254,MATCH($D$4,dfenums,0),MATCH(C48,'2023-24 Data'!$B$2:$BP$2,0))) ->  | I48: =IF(ISERROR(IF(D4>0,SUMIF('2023-24 Data'!$M$3:$M$254,1,'2023-24 Data'!$AT$3:$AT$254)/(SUMIF('2023-24 Data'!$M$3:$M$254,1,'2023-24 Data'!$C$3:$C$254)+SUMIF('2023-24 Data'!$M$3:$M$254,1,'2023-24 Data'!$D$3:$D$254)),"")),"",IF(D4>0,SUMIF('2023-24 Data'!$M$3:$M$254,1,'2023-24 Data'!$AT$3:$AT$254)/(SUMIF('2023-24 Data'!$M$3:$M$254,1,'2023-24 Data'!$C$3:$C$254)+SUMIF('2023-24 Data'!$M$3:$M$254,1,'2023-24 Data'!$D$3:$D$254)),"")) ->  | M48: =IF(ISERROR(SUM('2023-24 Data'!$AT$3:$AT$254)/SUM('2023-24 Data'!$C$3:$D$254)),"",SUM('2023-24 Data'!$AT$3:$AT$254)/SUM('2023-24 Data'!$C$3:$D$254)) -> 11.60032575 | N48: 0.001794265511 | O48: 0.001862450376
B49: Total Expenditure | D49: =IF(ISERROR(SUM(D16:D48)),"",SUM(D16:D48)) -> 0 | E49: =IF(ISERROR(SUM(E16:E48)),"",SUM(E16:E48)) -> 0 | F49: =IF(ISERROR(SUM(F16:F48)),"",SUM(F16:F48)) -> 0 | G49: =IF(ISERROR(SUM(G16:G48)),"",SUM(G16:G48)) -> 0 | I49: =IF(ISERROR(SUM(I16:I48)),"",SUM(I16:I48)) -> 0 | J49: =IF(ISERROR(SUM(J16:J48)),"",SUM(J16:J48)) -> 0 | K49: =IF(ISERROR(SUM(K16:K48)),"",SUM(K16:K48)) -> 0 | M49: =IF(ISERROR(SUM(M16:M48)),"",SUM(M16:M48)) -> 6465.222497 | N49: =IF(ISERROR(SUM(N16:N48)),"",SUM(N16:N48)) -> 1 | O49: =IF(ISERROR(SUM(O16:O48)),"",SUM(O16:O48)) -> 1.038001547
B51: INCOME
B52: Funds delegated by the LEA (excluding High Needs) | C52: I01 | D52: =IF(ISERROR(INDEX('2023-24 Data'!$B$3:$BP$254,MATCH($D$4,dfenums,0),MATCH(B52,'2023-24 Data'!$B$2:$BP$2,0))),"",INDEX('2023-24 Data'!$B$3:$BP$254,MATCH($D$4,dfenums,0),MATCH(B52,'2023-24 Data'!$B$2:$BP$2,0))) ->  | E52: =IF(ISERROR(D52/($F$4+$G$4-VLOOKUP($D$4,'2023-24 Data'!$A$3:$E$254,5,0))),"",D52/($F$4+$G$4-VLOOKUP($D$4,'2023-24 Data'!$A$3:$E$254,5,0))) ->  | F52: =IF(ISERROR(D52/$D$75),"",D52/$D$75) ->  | I52: =IF(ISERROR(IF(D4>0,SUMIF('2023-24 Data'!$M$3:$M$254,1,'2023-24 Data'!$AU$3:$AU$254)/(SUMIF('2023-24 Data'!$M$3:$M$254,1,'2023-24 Data'!$C$3:$C$254)-SUMIF('2023-24 Data'!M3:M254,1,'2023-24 Data'!E3:E254)+SUMIF('2023-24 Data'!$M$3:$M$254,1,'2023-24 Data'!$D$3:$D$254)),"")),"",IF(D4>0,SUMIF('2023-24 Data'!$M$3:$M$254,1,'2023-24 Data'!$AU$3:$AU$254)/(SUMIF('2023-24 Data'!$M$3:$M$254,1,'2023-24 Data'!$C$3:$C$254)-SUMIF('2023-24 Data'!M3:M254,1,'2023-24 Data'!E3:E254)+SUMIF('2023-24 Data'!$M$3:$M$254,1,'2023-24 Data'!$D$3:$D$254)),"")) ->  | J52: =IF(ISERROR(I52/$I$75),"",I52/$I$75) ->  | M52: =IF(ISERROR(SUM('2023-24 Data'!$AU$3:$AU$254)/(SUM('2023-24 Data'!$C$3:$D$254)-SUM('2023-24 Data'!$E$3:$E$254))),"", SUM('2023-24 Data'!$AU$3:$AU$254)/(SUM('2023-24 Data'!$C$3:$D$254)-SUM('2023-24 Data'!$E$3:$E$254))) -> -4296.99705 | N52: =IF(ISERROR(M52/$M$75),"",M52/$M$75) -> 0.6898895726
B53: Notional SEN Budget | C53: I01 | D53: =IF(ISERROR(INDEX('2023-24 Data'!$B$3:$BP$254,MATCH($D$4,dfenums,0),MATCH(B53,'2023-24 Data'!$B$2:$BP$2,0))),"",INDEX('2023-24 Data'!$B$3:$BP$254,MATCH($D$4,dfenums,0),MATCH(B53,'2023-24 Data'!$B$2:$BP$2,0))) ->  | E53: =IF(ISERROR(D53/($G$4-VLOOKUP($D$4,'2023-24 Data'!$A$3:$E$254,5,0))),"",D53/($G$4-VLOOKUP($D$4,'2023-24 Data'!$A$3:$E$254,5,0))) ->  | F53: =IF(ISERROR(D53/$D$75),"",D53/$D$75) ->  | I53: =IF(ISERROR(IF(D4>0,SUMIF('2023-24 Data'!$M$3:$M$254,1,'2023-24 Data'!$AV$3:$AV$254)/(SUMIF('2023-24 Data'!$M$3:$M$254,1,'2023-24 Data'!$D$3:$D$254)-SUMIF('2023-24 Data'!$M$3:$M$254,1,'2023-24 Data'!$E$3:$E$254)),"")),"",IF(D4>0,SUMIF('2023-24 Data'!$M$3:$M$254,1,'2023-24 Data'!$AV$3:$AV$254)/(SUMIF('2023-24 Data'!$M$3:$M$254,1,'2023-24 Data'!$D$3:$D$254)-SUMIF('2023-24 Data'!$M$3:$M$254,1,'2023-24 Data'!$E$3:$E$254)),"")) ->  | J53: =IF(ISERROR(I53/$I$75),"",I53/$I$75) ->  | M53: =IF(ISERROR(SUM('2023-24 Data'!$AV$3:$AV$254)/(SUM('2023-24 Data'!$D$3:$D$254)-SUM('2023-24 Data'!$E$3:$E$254))),"", SUM('2023-24 Data'!$AV$3:$AV$254)/(SUM('2023-24 Data'!$D$3:$D$254)-SUM('2023-24 Data'!$E$3:$E$254))) -> -712.4090515 | N53: =IF(ISERROR(M53/$M$75),"",M53/$M$75) -> 0.1143783834
B54: Funding for sixth form students (excluding High Needs) | C54: I02 | D54: =IF(D4>0,0,"") ->  | E54: =IF(D4>0,0,"") ->  | F54: =IF(D4>0,0,"") ->  | I54: =IF(D4>0,0,"") ->  | J54: =IF(D4>0,0,"") ->  | M54: =IF(D4>0,0,"") ->  | N54: =IF(D4>0,0,"") -> 
B55: Specially Rescourced Provision (Unit) Funding | C55: I01/2/3 | D55: =IF(ISERROR(INDEX('2023-24 Data'!$B$3:$BP$254,MATCH($D$4,dfenums,0),MATCH(B55,'2023-24 Data'!$B$2:$BP$2,0))),"",INDEX('2023-24 Data'!$B$3:$BP$254,MATCH($D$4,dfenums,0),MATCH(B55,'2023-24 Data'!$B$2:$BP$2,0))) ->  | E55: Meaningful comparison is not possible in this area
B56: Funding for High Needs Pupils | C56: I01/2/3 | D56: =IF(ISERROR(INDEX('2023-24 Data'!$B$3:$BP$254,MATCH($D$4,dfenums,0),MATCH(B56,'2023-24 Data'!$B$2:$BP$2,0))),"",INDEX('2023-24 Data'!$B$3:$BP$254,MATCH($D$4,dfenums,0),MATCH(B56,'2023-24 Data'!$B$2:$BP$2,0))) -> 
B57: Funding for minority ethnic pupils | C57: I04 | D57: =IF(ISERROR(INDEX('2023-24 Data'!$B$3:$BP$254,MATCH($D$4,dfenums,0),MATCH(C57,'2023-24 Data'!$B$2:$BP$2,0))),"",INDEX('2023-24 Data'!$B$3:$BP$254,MATCH($D$4,dfenums,0),MATCH(C57,'2023-24 Data'!$B$2:$BP$2,0))) ->  | E57: =IF(ISERROR(D57/($F$4+$G$4)),"",D57/($F$4+$G$4)) ->  | I57: =IF(ISERROR(IF(D4>0,SUMIF('2023-24 Data'!$M$3:$M$254,1,'2023-24 Data'!$AY$3:$AY$254)/(SUMIF('2023-24 Data'!$M$3:$M$254,1,'2023-24 Data'!$C$3:$C$254)+SUMIF('2023-24 Data'!$M$3:$M$254,1,'2023-24 Data'!$D$3:$D$254)),"")),"",IF(D4>0,SUMIF('2023-24 Data'!$M$3:$M$254,1,'2023-24 Data'!$AY$3:$AY$254)/(SUMIF('2023-24 Data'!$M$3:$M$254,1,'2023-24 Data'!$C$3:$C$254)+SUMIF('2023-24 Data'!$M$3:$M$254,1,'2023-24 Data'!$D$3:$D$254)),"")) ->  | M57: =IF(ISERROR(SUM('2023-24 Data'!$AY$3:$AY$254)/SUM('2023-24 Data'!$C$3:$D$254)),"",SUM('2023-24 Data'!$AY$3:$AY$254)/SUM('2023-24 Data'!$C$3:$D$254)) -> -0.476308493 | N57: 7.647207081e-05
B58: Pupil Premium | C58: I05 | D58: =IF(ISERROR(INDEX('2023-24 Data'!$B$3:$BP$254,MATCH($D$4,dfenums,0),MATCH(C58,'2023-24 Data'!$B$2:$BP$2,0))),"",INDEX('2023-24 Data'!$B$3:$BP$254,MATCH($D$4,dfenums,0),MATCH(C58,'2023-24 Data'!$B$2:$BP$2,0))) ->  | E58: =IF(ISERROR(D58/($F$4+$G$4)),"",D58/($F$4+$G$4)) ->  | I58: =IF(ISERROR(IF(D4>0,SUMIF('2023-24 Data'!$M$3:$M$254,1,'2023-24 Data'!$AZ$3:$AZ$254)/(SUMIF('2023-24 Data'!$M$3:$M$254,1,'2023-24 Data'!$C$3:$C$254)+SUMIF('2023-24 Data'!$M$3:$M$254,1,'2023-24 Data'!$D$3:$D$254)),"")),"",IF(D4>0,SUMIF('2023-24 Data'!$M$3:$M$254,1,'2023-24 Data'!$AZ$3:$AZ$254)/(SUMIF('2023-24 Data'!$M$3:$M$254,1,'2023-24 Data'!$C$3:$C$254)+SUMIF('2023-24 Data'!$M$3:$M$254,1,'2023-24 Data'!$D$3:$D$254)),"")) ->  | M58: =IF(ISERROR(SUM('2023-24 Data'!$AZ$3:$AZ$254)/SUM('2023-24 Data'!$C$3:$D$254)),"",SUM('2023-24 Data'!$AZ$3:$AZ$254)/SUM('2023-24 Data'!$C$3:$D$254)) -> -332.9128719 | N58: 0.05344968039
B59: Other government grants | C59: I06 | D59: =IF(ISERROR(INDEX('2023-24 Data'!$B$3:$BP$254,MATCH($D$4,dfenums,0),MATCH(C59,'2023-24 Data'!$B$2:$BP$2,0))),"",INDEX('2023-24 Data'!$B$3:$BP$254,MATCH($D$4,dfenums,0),MATCH(C59,'2023-24 Data'!$B$2:$BP$2,0))) ->  | I59: =IF(ISERROR(IF(D4>0,SUMIF('2023-24 Data'!$M$3:$M$254,1,'2023-24 Data'!$BA$3:$BA$254)/(SUMIF('2023-24 Data'!$M$3:$M$254,1,'2023-24 Data'!$C$3:$C$254)+SUMIF('2023-24 Data'!$M$3:$M$254,1,'2023-24 Data'!$D$3:$D$254)),"")),"",IF(D4>0,SUMIF('2023-24 Data'!$M$3:$M$254,1,'2023-24 Data'!$BA$3:$BA$254)/(SUMIF('2023-24 Data'!$M$3:$M$254,1,'2023-24 Data'!$C$3:$C$254)+SUMIF('2023-24 Data'!$M$3:$M$254,1,'2023-24 Data'!$D$3:$D$254)),"")) ->  | M59: =IF(ISERROR(SUM('2023-24 Data'!$BA$3:$BA$254)/SUM('2023-24 Data'!$C$3:$D$254)),"",SUM('2023-24 Data'!$BA$3:$BA$254)/SUM('2023-24 Data'!$C$3:$D$254)) -> -76.50587494 | N59: 0.01228313744
B60: Other grants and payments | C60: I07 | D60: =IF(ISERROR(INDEX('2023-24 Data'!$B$3:$BP$254,MATCH($D$4,dfenums,0),MATCH(C60,'2023-24 Data'!$B$2:$BP$2,0))),"",INDEX('2023-24 Data'!$B$3:$BP$254,MATCH($D$4,dfenums,0),MATCH(C60,'2023-24 Data'!$B$2:$BP$2,0))) ->  | I60: =IF(ISERROR(IF(D4>0,SUMIF('2023-24 Data'!$M$3:$M$254,1,'2023-24 Data'!$BB$3:$BB$254)/(SUMIF('2023-24 Data'!$M$3:$M$254,1,'2023-24 Data'!$C$3:$C$254)+SUMIF('2023-24 Data'!$M$3:$M$254,1,'2023-24 Data'!$D$3:$D$254)),"")),"",IF(D4>0,SUMIF('2023-24 Data'!$M$3:$M$254,1,'2023-24 Data'!$BB$3:$BB$254)/(SUMIF('2023-24 Data'!$M$3:$M$254,1,'2023-24 Data'!$C$3:$C$254)+SUMIF('2023-24 Data'!$M$3:$M$254,1,'2023-24 Data'!$D$3:$D$254)),"")) ->  | M60: =IF(ISERROR(SUM('2023-24 Data'!$BB$3:$BB$254)/SUM('2023-24 Data'!$C$3:$D$254)),"",SUM('2023-24 Data'!$BB$3:$BB$254)/SUM('2023-24 Data'!$C$3:$D$254)) -> -33.49361034 | N60: 0.005377451335
B61: Income from Letting premises | C61: I08 | D61: =IF(ISERROR(INDEX('2023-24 Data'!$B$3:$BP$254,MATCH($D$4,dfenums,0),MATCH(C61,'2023-24 Data'!$B$2:$BP$2,0))),"",INDEX('2023-24 Data'!$B$3:$BP$254,MATCH($D$4,dfenums,0),MATCH(C61,'2023-24 Data'!$B$2:$BP$2,0))) ->  | E61: =IF(ISERROR(D61/($F$4+$G$4)),"",D61/($F$4+$G$4)) ->  | F61: =IF(ISERROR(D61/$D$75),"",D61/$D$75) ->  | I61: =IF(ISERROR(IF(D4>0,SUMIF('2023-24 Data'!$M$3:$M$254,1,'2023-24 Data'!$BC$3:$BC$254)/(SUMIF('2023-24 Data'!$M$3:$M$254,1,'2023-24 Data'!$C$3:$C$254)+SUMIF('2023-24 Data'!$M$3:$M$254,1,'2023-24 Data'!$D$3:$D$254)),"")),"",IF(D4>0,SUMIF('2023-24 Data'!$M$3:$M$254,1,'2023-24 Data'!$BC$3:$BC$254)/(SUMIF('2023-24 Data'!$M$3:$M$254,1,'2023-24 Data'!$C$3:$C$254)+SUMIF('2023-24 Data'!$M$3:$M$254,1,'2023-24 Data'!$D$3:$D$254)),"")) ->  | J61: =IF(ISERROR(I61/$I$75),"",I61/$I$75) ->  | M61: =IF(ISERROR(SUM('2023-24 Data'!$BD$3:$BD$254)/SUM('2023-24 Data'!$C$3:$D$254)),"",SUM('2023-24 Data'!$BD$3:$BD$254)/SUM('2023-24 Data'!$C$3:$D$254)) -> -167.7636838 | N61: =IF(ISERROR(M61/$M$75),"",M61/$M$75) -> 0.02693472086
B62: Other income from facilities and services | C62: I08b | D62: =IF(ISERROR(INDEX('2023-24 Data'!$B$3:$BP$254,MATCH($D$4,dfenums,0),MATCH(C62,'2023-24 Data'!$B$2:$BP$2,0))),"",INDEX('2023-24 Data'!$B$3:$BP$254,MATCH($D$4,dfenums,0),MATCH(C62,'2023-24 Data'!$B$2:$BP$2,0))) ->  | I62: =IF(ISERROR(IF(D4>0,SUMIF('2023-24 Data'!$M$3:$M$254,1,'2023-24 Data'!$BD$3:$BD$254)/(SUMIF('2023-24 Data'!$M$3:$M$254,1,'2023-24 Data'!$C$3:$C$254)+SUMIF('2023-24 Data'!$M$3:$M$254,1,'2023-24 Data'!$D$3:$D$254)),"")),"",IF(D4>0,SUMIF('2023-24 Data'!$M$3:$M$254,1,'2023-24 Data'!$BD$3:$BD$254)/(SUMIF('2023-24 Data'!$M$3:$M$254,1,'2023-24 Data'!$C$3:$C$254)+SUMIF('2023-24 Data'!$M$3:$M$254,1,'2023-24 Data'!$D$3:$D$254)),"")) ->  | M62: =IF(ISERROR(SUM('2023-24 Data'!$BD$3:$BD$254)/SUM('2023-24 Data'!$C$3:$D$254)),"",SUM('2023-24 Data'!$BD$3:$BD$254)/SUM('2023-24 Data'!$C$3:$D$254)) -> -167.7636838 | N62: 0.02693472086
B63: Income from catering | C63: I09 | D63: =IF(ISERROR(INDEX('2023-24 Data'!$B$3:$BP$254,MATCH($D$4,dfenums,0),MATCH(C63,'2023-24 Data'!$B$2:$BP$2,0))),"",INDEX('2023-24 Data'!$B$3:$BP$254,MATCH($D$4,dfenums,0),MATCH(C63,'2023-24 Data'!$B$2:$BP$2,0))) ->  | I63: =IF(ISERROR(IF(D4>0,SUMIF('2023-24 Data'!$M$3:$M$254,1,'2023-24 Data'!$BE$3:$BE$254)/(SUMIF('2023-24 Data'!$M$3:$M$254,1,'2023-24 Data'!$C$3:$C$254)+SUMIF('2023-24 Data'!$M$3:$M$254,1,'2023-24 Data'!$D$3:$D$254)),"")),"",IF(D4>0,SUMIF('2023-24 Data'!$M$3:$M$254,1,'2023-24 Data'!$BE$3:$BE$254)/(SUMIF('2023-24 Data'!$M$3:$M$254,1,'2023-24 Data'!$C$3:$C$254)+SUMIF('2023-24 Data'!$M$3:$M$254,1,'2023-24 Data'!$D$3:$D$254)),"")) ->  | M63: =IF(ISERROR(SUM('2023-24 Data'!$BE$3:$BE$254)/SUM('2023-24 Data'!$C$3:$D$254)),"",SUM('2023-24 Data'!$BE$3:$BE$254)/SUM('2023-24 Data'!$C$3:$D$254)) -> -27.3719359 | N63: 0.004394606965
B64: Receipts from supply teachers insurance claims | C64: I10 | D64: =IF(ISERROR(INDEX('2023-24 Data'!$B$3:$BP$254,MATCH($D$4,dfenums,0),MATCH(C64,'2023-24 Data'!$B$2:$BP$2,0))),"",INDEX('2023-24 Data'!$B$3:$BP$254,MATCH($D$4,dfenums,0),MATCH(C64,'2023-24 Data'!$B$2:$BP$2,0))) ->  | I64: =IF(ISERROR(IF(D4>0,SUMIF('2023-24 Data'!$M$3:$M$254,1,'2023-24 Data'!$BF$3:$BF$254)/(SUMIF('2023-24 Data'!$M$3:$M$254,1,'2023-24 Data'!$C$3:$C$254)+SUMIF('2023-24 Data'!$M$3:$M$254,1,'2023-24 Data'!$D$3:$D$254)),"")),"",IF(D4>0,SUMIF('2023-24 Data'!$M$3:$M$254,1,'2023-24 Data'!$BF$3:$BF$254)/(SUMIF('2023-24 Data'!$M$3:$M$254,1,'2023-24 Data'!$C$3:$C$254)+SUMIF('2023-24 Data'!$M$3:$M$254,1,'2023-24 Data'!$D$3:$D$254)),"")) ->  | M64: =IF(ISERROR(SUM('2023-24 Data'!$BF$3:$BF$254)/SUM('2023-24 Data'!$C$3:$D$254)),"",SUM('2023-24 Data'!$BF$3:$BF$254)/SUM('2023-24 Data'!$C$3:$D$254)) -> -7.925421088 | N64: 0.001272438706
B65: Receipts from other insurance claims | C65: I11 | D65: =IF(ISERROR(INDEX('2023-24 Data'!$B$3:$BP$254,MATCH($D$4,dfenums,0),MATCH(C65,'2023-24 Data'!$B$2:$BP$2,0))),"",INDEX('2023-24 Data'!$B$3:$BP$254,MATCH($D$4,dfenums,0),MATCH(C65,'2023-24 Data'!$B$2:$BP$2,0))) ->  | I65: =IF(ISERROR(IF(D4>0,SUMIF('2023-24 Data'!$M$3:$M$254,1,'2023-24 Data'!$BG$3:$BG$254)/(SUMIF('2023-24 Data'!$M$3:$M$254,1,'2023-24 Data'!$C$3:$C$254)+SUMIF('2023-24 Data'!$M$3:$M$254,1,'2023-24 Data'!$D$3:$D$254)),"")),"",IF(D4>0,SUMIF('2023-24 Data'!$M$3:$M$254,1,'2023-24 Data'!$BG$3:$BG$254)/(SUMIF('2023-24 Data'!$M$3:$M$254,1,'2023-24 Data'!$C$3:$C$254)+SUMIF('2023-24 Data'!$M$3:$M$254,1,'2023-24 Data'!$D$3:$D$254)),"")) ->  | M65: =IF(ISERROR(SUM('2023-24 Data'!$BG$3:$BG$254)/SUM('2023-24 Data'!$C$3:$D$254)),"",SUM('2023-24 Data'!$BG$3:$BG$254)/SUM('2023-24 Data'!$C$3:$D$254)) -> -22.81566505 | N65: 0.003663090579
B66: Income from contributions to visits etc. | C66: I12 | D66: =IF(ISERROR(INDEX('2023-24 Data'!$B$3:$BP$254,MATCH($D$4,dfenums,0),MATCH(C66,'2023-24 Data'!$B$2:$BP$2,0))),"",INDEX('2023-24 Data'!$B$3:$BP$254,MATCH($D$4,dfenums,0),MATCH(C66,'2023-24 Data'!$B$2:$BP$2,0))) ->  | I66: =IF(ISERROR(IF(D4>0,SUMIF('2023-24 Data'!$M$3:$M$254,1,'2023-24 Data'!$BH$3:$BH$254)/(SUMIF('2023-24 Data'!$M$3:$M$254,1,'2023-24 Data'!$C$3:$C$254)+SUMIF('2023-24 Data'!$M$3:$M$254,1,'2023-24 Data'!$D$3:$D$254)),"")),"",IF(D4>0,SUMIF('2023-24 Data'!$M$3:$M$254,1,'2023-24 Data'!$BH$3:$BH$254)/(SUMIF('2023-24 Data'!$M$3:$M$254,1,'2023-24 Data'!$C$3:$C$254)+SUMIF('2023-24 Data'!$M$3:$M$254,1,'2023-24 Data'!$D$3:$D$254)),"")) ->  | M66: =IF(ISERROR(SUM('2023-24 Data'!$BH$3:$BH$254)/SUM('2023-24 Data'!$C$3:$D$254)),"",SUM('2023-24 Data'!$BH$3:$BH$254)/SUM('2023-24 Data'!$C$3:$D$254)) -> -71.53841463 | N66: 0.01148560395
B67: Donations and/or voluntary funds | C67: I13 | D67: =IF(ISERROR(INDEX('2023-24 Data'!$B$3:$BP$254,MATCH($D$4,dfenums,0),MATCH(C67,'2023-24 Data'!$B$2:$BP$2,0))),"",INDEX('2023-24 Data'!$B$3:$BP$254,MATCH($D$4,dfenums,0),MATCH(C67,'2023-24 Data'!$B$2:$BP$2,0))) ->  | I67: =IF(ISERROR(IF(D4>0,SUMIF('2023-24 Data'!$M$3:$M$254,1,'2023-24 Data'!$BI$3:$BI$254)/(SUMIF('2023-24 Data'!$M$3:$M$254,1,'2023-24 Data'!$C$3:$C$254)+SUMIF('2023-24 Data'!$M$3:$M$254,1,'2023-24 Data'!$D$3:$D$254)),"")),"",IF(D4>0,SUMIF('2023-24 Data'!$M$3:$M$254,1,'2023-24 Data'!$BI$3:$BI$254)/(SUMIF('2023-24 Data'!$M$3:$M$254,1,'2023-24 Data'!$C$3:$C$254)+SUMIF('2023-24 Data'!$M$3:$M$254,1,'2023-24 Data'!$D$3:$D$254)),"")) ->  | M67: =IF(ISERROR(SUM('2023-24 Data'!$BI$3:$BI$254)/SUM('2023-24 Data'!$C$3:$D$254)),"",SUM('2023-24 Data'!$BI$3:$BI$254)/SUM('2023-24 Data'!$C$3:$D$254)) -> -42.46270187 | N67: 0.006817452957
B68: Pupil focussed extended school funding &/or grants | C68: I15 | D68: =IF(ISERROR(INDEX('2023-24 Data'!$B$3:$BP$254,MATCH($D$4,dfenums,0),MATCH(C68,'2023-24 Data'!$B$2:$BP$2,0))),"",INDEX('2023-24 Data'!$B$3:$BP$254,MATCH($D$4,dfenums,0),MATCH(C68,'2023-24 Data'!$B$2:$BP$2,0))) ->  | I68: =IF(ISERROR(IF(D4>0,SUMIF('2023-24 Data'!$M$3:$M$254,1,'2023-24 Data'!$BJ$3:$BJ$254)/(SUMIF('2023-24 Data'!$M$3:$M$254,1,'2023-24 Data'!$C$3:$C$254)+SUMIF('2023-24 Data'!$M$3:$M$254,1,'2023-24 Data'!$D$3:$D$254)),"")),"",IF(D4>0,SUMIF('2023-24 Data'!$M$3:$M$254,1,'2023-24 Data'!$BJ$3:$BJ$254)/(SUMIF('2023-24 Data'!$M$3:$M$254,1,'2023-24 Data'!$C$3:$C$254)+SUMIF('2023-24 Data'!$M$3:$M$254,1,'2023-24 Data'!$D$3:$D$254)),"")) ->  | M68: =IF(ISERROR(SUM('2023-24 Data'!$BJ$3:$BJ$254)/SUM('2023-24 Data'!$C$3:$D$254)),"",SUM('2023-24 Data'!$BJ$3:$BJ$254)/SUM('2023-24 Data'!$C$3:$D$254)) -> 0 | N68: 0
B69: Com focussed extended school funding &/or grants | C69: I16 | D69: =IF(ISERROR(INDEX('2023-24 Data'!$B$3:$BP$254,MATCH($D$4,dfenums,0),MATCH(C69,'2023-24 Data'!$B$2:$BP$2,0))),"",INDEX('2023-24 Data'!$B$3:$BP$254,MATCH($D$4,dfenums,0),MATCH(C69,'2023-24 Data'!$B$2:$BP$2,0))) ->  | I69: =IF(ISERROR(IF(D4>0,SUMIF('2023-24 Data'!$M$3:$M$254,1,'2023-24 Data'!$BK$3:$BK$254)/(SUMIF('2023-24 Data'!$M$3:$M$254,1,'2023-24 Data'!$C$3:$C$254)+SUMIF('2023-24 Data'!$M$3:$M$254,1,'2023-24 Data'!$D$3:$D$254)),"")),"",IF(D4>0,SUMIF('2023-24 Data'!$M$3:$M$254,1,'2023-24 Data'!$BK$3:$BK$254)/(SUMIF('2023-24 Data'!$M$3:$M$254,1,'2023-24 Data'!$C$3:$C$254)+SUMIF('2023-24 Data'!$M$3:$M$254,1,'2023-24 Data'!$D$3:$D$254)),"")) ->  | M69: =IF(ISERROR(SUM('2023-24 Data'!$BK$3:$BK$254)/SUM('2023-24 Data'!$C$3:$D$254)),"",SUM('2023-24 Data'!$BK$3:$BK$254)/SUM('2023-24 Data'!$C$3:$D$254)) -> 0 | N69: 0
B70: Com focussed extended school facilities income | C70: I17 | D70: =IF(ISERROR(INDEX('2023-24 Data'!$B$3:$BP$254,MATCH($D$4,dfenums,0),MATCH(C70,'2023-24 Data'!$B$2:$BP$2,0))),"",INDEX('2023-24 Data'!$B$3:$BP$254,MATCH($D$4,dfenums,0),MATCH(C70,'2023-24 Data'!$B$2:$BP$2,0))) ->  | I70: =IF(ISERROR(IF(D4>0,SUMIF('2023-24 Data'!$M$3:$M$254,1,'2023-24 Data'!$BL$3:$BL$254)/(SUMIF('2023-24 Data'!$M$3:$M$254,1,'2023-24 Data'!$C$3:$C$254)+SUMIF('2023-24 Data'!$M$3:$M$254,1,'2023-24 Data'!$D$3:$D$254)),"")),"",IF(D4>0,SUMIF('2023-24 Data'!$M$3:$M$254,1,'2023-24 Data'!$BL$3:$BL$254)/(SUMIF('2023-24 Data'!$M$3:$M$254,1,'2023-24 Data'!$C$3:$C$254)+SUMIF('2023-24 Data'!$M$3:$M$254,1,'2023-24 Data'!$D$3:$D$254)),"")) ->  | M70: =IF(ISERROR(SUM('2023-24 Data'!$BL$3:$BL$254)/SUM('2023-24 Data'!$C$3:$D$254)),"",SUM('2023-24 Data'!$BL$3:$BL$254)/SUM('2023-24 Data'!$C$3:$D$254)) -> -15.67151846 | N70: 0.00251608671
B71: Additional Grant for Schools | C71: I18 | D71: =IF(ISERROR(INDEX('2023-24 Data'!$B$3:$BP$254,MATCH($D$4,dfenums,0),MATCH(C71,'2023-24 Data'!$B$2:$BP$2,0))),"",INDEX('2023-24 Data'!$B$3:$BP$254,MATCH($D$4,dfenums,0),MATCH(C71,'2023-24 Data'!$B$2:$BP$2,0))) ->  | I71: =IF(ISERROR(IF(D4>0,SUMIF('2023-24 Data'!$M$3:$M$254,1,'2023-24 Data'!$BM$3:$BM$254)/(SUMIF('2023-24 Data'!$M$3:$M$254,1,'2023-24 Data'!$C$3:$C$254)+SUMIF('2023-24 Data'!$M$3:$M$254,1,'2023-24 Data'!$D$3:$D$254)),"")),"",IF(D4>0,SUMIF('2023-24 Data'!$M$3:$M$254,1,'2023-24 Data'!$BM$3:$BM$254)/(SUMIF('2023-24 Data'!$M$3:$M$254,1,'2023-24 Data'!$C$3:$C$254)+SUMIF('2023-24 Data'!$M$3:$M$254,1,'2023-24 Data'!$D$3:$D$254)),"")) ->  | M71: =IF(ISERROR(SUM('2023-24 Data'!$BM$3:$BM$254)/SUM('2023-24 Data'!$C$3:$D$254)),"",SUM('2023-24 Data'!$BM$3:$BM$254)/SUM('2023-24 Data'!$C$3:$D$254)) -> -210.2665481 | N71: 0.03375862197
B72: Covid-19 furloughed Staff | C72: I18A | D72: =IF(ISERROR(INDEX('2023-24 Data'!$B$3:$BP$254,MATCH($D$4,dfenums,0),MATCH(C72,'2023-24 Data'!$B$2:$BP$2,0))),"",INDEX('2023-24 Data'!$B$3:$BP$254,MATCH($D$4,dfenums,0),MATCH(C72,'2023-24 Data'!$B$2:$BP$2,0))) ->  | E72: =IF(ISERROR(D72/($F$4+$G$4)),"",D72/($F$4+$G$4)) ->  | F72: =IF(ISERROR(D72/$D$75),"",D72/$D$75) ->  | I72: =IF(ISERROR(IF(D4>0,SUMIF('2023-24 Data'!$M$3:$M$254,1,'2023-24 Data'!$BN$3:$BN$254)/(SUMIF('2023-24 Data'!$M$3:$M$254,1,'2023-24 Data'!$C$3:$C$254)+SUMIF('2023-24 Data'!$M$3:$M$254,1,'2023-24 Data'!$D$3:$D$254)),"")),"",IF(D4>0,SUMIF('2023-24 Data'!$M$3:$M$254,1,'2023-24 Data'!$BN$3:$BN$254)/(SUMIF('2023-24 Data'!$M$3:$M$254,1,'2023-24 Data'!$C$3:$C$254)+SUMIF('2023-24 Data'!$M$3:$M$254,1,'2023-24 Data'!$D$3:$D$254)),"")) ->  | J72: =IF(ISERROR(I72/$I$75),"",I72/$I$75) ->  | M72: =IF(ISERROR(SUM('2023-24 Data'!$BN$3:$BN$254)/SUM('2023-24 Data'!$C$3:$D$254)),"",SUM('2023-24 Data'!$BN$3:$BN$254)/SUM('2023-24 Data'!$C$3:$D$254)) -> 0 | N72: =IF(ISERROR(M72/$M$75),"",M72/$M$75) -> 0
B73: Covid-19 any other Covid-19 related grant | C73: I18B | D73: =IF(ISERROR(INDEX('2023-24 Data'!$B$3:$BP$254,MATCH($D$4,dfenums,0),MATCH(C73,'2023-24 Data'!$B$2:$BP$2,0))),"",INDEX('2023-24 Data'!$B$3:$BP$254,MATCH($D$4,dfenums,0),MATCH(C73,'2023-24 Data'!$B$2:$BP$2,0))) ->  | E73: =IF(ISERROR(D73/($F$4+$G$4)),"",D73/($F$4+$G$4)) ->  | F73: =IF(ISERROR(D73/$D$75),"",D73/$D$75) ->  | I73: =IF(ISERROR(IF(D4>0,SUMIF('2023-24 Data'!$M$3:$M$254,1,'2023-24 Data'!$BO$3:$BO$254)/(SUMIF('2023-24 Data'!$M$3:$M$254,1,'2023-24 Data'!$C$3:$C$254)+SUMIF('2023-24 Data'!$M$3:$M$254,1,'2023-24 Data'!$D$3:$D$254)),"")),"",IF(D4>0,SUMIF('2023-24 Data'!$M$3:$M$254,1,'2023-24 Data'!$BO$3:$BO$254)/(SUMIF('2023-24 Data'!$M$3:$M$254,1,'2023-24 Data'!$C$3:$C$254)+SUMIF('2023-24 Data'!$M$3:$M$254,1,'2023-24 Data'!$D$3:$D$254)),"")) ->  | J73: =IF(ISERROR(I73/$I$75),"",I73/$I$75) ->  | M73: =IF(ISERROR(SUM('2023-24 Data'!$BO$3:$BO$254)/SUM('2023-24 Data'!$C$3:$D$254)),"",SUM('2023-24 Data'!$BO$3:$BO$254)/SUM('2023-24 Data'!$C$3:$D$254)) -> 0 | N73: =IF(ISERROR(M73/$M$75),"",M73/$M$75) -> 0
B74: Covid-19 £1bn package | C74: I18C | D74: =IF(ISERROR(INDEX('2023-24 Data'!$B$3:$BP$254,MATCH($D$4,dfenums,0),MATCH(C74,'2023-24 Data'!$B$2:$BP$2,0))),"",INDEX('2023-24 Data'!$B$3:$BP$254,MATCH($D$4,dfenums,0),MATCH(C74,'2023-24 Data'!$B$2:$BP$2,0))) ->  | I74: =IF(ISERROR(IF(D4>0,SUMIF('2023-24 Data'!$M$3:$M$254,1,'2023-24 Data'!$BP$3:$BP$254)/(SUMIF('2023-24 Data'!$M$3:$M$254,1,'2023-24 Data'!$C$3:$C$254)+SUMIF('2023-24 Data'!$M$3:$M$254,1,'2023-24 Data'!$D$3:$D$254)),"")),"",IF(D4>0,SUMIF('2023-24 Data'!$M$3:$M$254,1,'2023-24 Data'!$BP$3:$BP$254)/(SUMIF('2023-24 Data'!$M$3:$M$254,1,'2023-24 Data'!$C$3:$C$254)+SUMIF('2023-24 Data'!$M$3:$M$254,1,'2023-24 Data'!$D$3:$D$254)),"")) ->  | M74: =IF(ISERROR(SUM('2023-24 Data'!$BP$3:$BP$254)/SUM('2023-24 Data'!$C$3:$D$254)),"",SUM('2023-24 Data'!$BP$3:$BP$254)/SUM('2023-24 Data'!$C$3:$D$254)) -> -42.15442866 | N74: 0.006767959213
B75: Total Income (excluding reserves and high needs) | D75: =IF(ISERROR(SUM(D52:D74)),"",SUM(D52:D54)+SUM(D57:D74)) -> 0 | E75: =IF(ISERROR(SUM(E52:E74)),"",SUM(E52:E54)+SUM(E57:E74)) -> 0 | F75: =IF(ISERROR(SUM(F52:F74)),"",SUM(F52:F54)+SUM(F57:F74)) -> 0 | I75: =IF(ISERROR(SUM(I52:I74)),"",SUM(I52:I54)+SUM(I57:I74)) -> 0 | J75: =IF(ISERROR(SUM(J52:J74)),"",SUM(J52:J54)+SUM(J57:J74)) -> 0 | M75: =IF(ISERROR(SUM(M52:M74)),"",SUM(M52:M54)+SUM(M57:M74)) -> -6228.528768 | N75: =IF(ISERROR(SUM(N52:N74)),"",SUM(N52:N54)+SUM(N57:N74)) -> 1

Sheet 2023-24 Data (hidden)
B1: PFI School | C1: ="Autumn "&LEFT(Benchmarking!C1,4)-1&" Roll" -> Autumn 2022 Roll | D1: =Benchmarking!C1&" School Budget Templates" -> 2023-24 School Budget Templates | E1: KCC Finance & Procurement | G1: Self generating | N1: ="From "&Benchmarking!C1&" Checking Spreadsheet" -> From 2023-24 Checking Spreadsheet | AU1: Self generating | AV1: KCC Finance & Procurement All Negative figures | AW1: Self generating (HNOU, HNTU & HN3U) | AX1: Self generating (HNMT & HN3M) | AY1: =N1 -> From 2023-24 Checking Spreadsheet | BR1: ="From March 20"&RIGHT(Benchmarking!C1,2)&" Advances" -> From March 2024 Advances | BU1: Self generating | BV1: ="From March 20"&RIGHT(Benchmarking!C1,2)&" Advances" -> From March 2024 Advances | BX1: Self generating
A2: DFE | B2: SCHOOL | C2: NURSERY NUMS | D2: YR R-6 INC SRP | E2: SRP FTE | F2: HNP FTE | G2: NURSERY | H2: PHASE | I2: SIZE CLASS | J2: NURSERY SELECTA | K2: PHASE SELECTA | L2: SIZE SELECTA | M2: OVERALL SLECTA | N2: E01 | O2: E02 | P2: E03 | Q2: E04 | R2: E05 | S2: E06 | T2: E07 | U2: E08 | V2: E09 | W2: E10 | X2: E11 | Y2: E12 | Z2: E13 | AA2: E14 | AB2: E15 | AC2: E16 | AD2: E17 | AE2: E18 | AF2: E19 | AG2: E20 | AH2: E21 | AI2: E22 | AJ2: E23 | AK2: E24 | AL2: E25 | AM2: E26 | AN2: E27 | AO2: E28 | AP2: E28B | AQ2: E29 | AR2: E30 | AS2: E31 | AT2: E32 | AU2: Funds delegated by the LEA (excluding High Needs) | AV2: Notional SEN Budget | AW2: Specially Rescourced Provision (Unit) Funding | AX2: Funding for High Needs Pupils | AY2: I04 | AZ2: I05 | BA2: I06 | BB2: I07 | BC2: I08 | BD2: I08b | BE2: I09 | BF2: I10 | BG2: I11 | BH2: I12 | BI2: I13 | BJ2: I15 | BK2: I16 | BL2: I17 | BM2: I18 | BN2: I18A | BO2: I18B | BP2: I18C | BQ2: I01 + I03 | BR2: HNOU | BS2: HNTU | BT2: HN3U | BU2: AV Total | BV2: HNMT | BW2: HN3M | BX2: AW Total
A3: 2000 | B3: St Johns CE Primary School, Canterbury | C3: 28 | D3: 401 | E3: 0 | F3: 17 | G3: =IF(C3=0,"No","Yes") -> Yes | H3: Primary | I3: =IFERROR(VLOOKUP($D3,$D$256:$F$261,3,TRUE),0) -> 400-499 | J3: =IF(G3=Benchmarking!$I$4,1,0) -> 0 | K3: =IF(Benchmarking!$I$6="All",1,IF(Benchmarking!$I$6=H3,1,0)) -> 0 | L3: =SUBTOTAL(9,C3:K3) -> 446 | M3: =IF(SUM(J3:L3)=3,1,0) -> 0 | N3: 1307382.75 | O3: 0 | P3: 510084.61 | Q3: 77899.37 | R3: 118776.87 | S3: 0 | T3: 119145.66 | U3: 17354.94 | V3: 23424.37 | W3: 802 | X3: 10304.64 | Y3: 41832.55 | Z3: 8718.87 | AA3: 30064.66 | AB3: 7017.87 | AC3: 73692.58 | AD3: 24576 | AE3: 16868.1 | AF3: 106015.69 | AG3: 17403.37 | AH3: 0 | AI3: 14836.36 | AJ3: 15474.16 | AK3: 4389.8 | AL3: 117583.19 | AM3: 92831.97 | AN3: 144446.18 | AO3: 58235.09 | AP3: 0 | AQ3: 0 | AR3: 32865.51 | AS3: 0 | AT3: 0 | AU3: =BQ3-AV3-AW3-AX3 -> -1797701.7 | AV3: -536590.34 | AW3: =-BU3 -> 0 | AX3: =-BX3 -> -120505.18 | AY3: 0 | AZ3: -316872 | BA3: -47485.76 | BB3: -42908.78 | BC3: -35533.01 | BD3: -18409.77 | BE3: -2872.15 | BF3: 0 | BG3: -32673.15 | BH3: -6808.7 | BI3: -2463.5 | BJ3: 0 | BK3: 0 | BL3: 0 | BM3: -53951 | BN3: 0 | BO3: 0 | BP3: -51986.25 | BQ3: -2454797.22 | BR3: 0 | BS3: 0 | BT3: 0 | BU3: =SUM(BR3:BT3) -> 0 | BV3: 0 | BW3: 120505.18 | BX3: =SUM(BV3:BW3) -> 120505.18
A4: 2002 | B4: Repton Manor Primary School | C4: 0 | D4: 471 | E4: 0 | F4: 19 | G4: No | H4: Primary | I4: 400-499 | J4: =IF(G4=Benchmarking!$I$4,1,0) -> 0 | K4: =IF(Benchmarking!$I$6="All",1,IF(Benchmarking!$I$6=H4,1,0)) -> 0 | L4: =IF(Benchmarking!$I$8="All",1,IF(Benchmarking!$I$8=I4,1,0)) -> 0 | M4: 0 | N4: 1261384.13 | O4: 3267.44 | P4: 552586.25 | Q4: 28103.79 | R4: 147103.08 | S4: 0 | T4: 207121.76 | U4: 637.48 | V4: 6172 | W4: 942 | X4: 11958.72 | Y4: 19739.48 | Z4: 5228.66 | AA4: 48702.12 | AB4: 5149.53 | AC4: 67408.8 | AD4: 10650 | AE4: 17768.41 | AF4: 118389.9 | AG4: 26760.37 | AH4: 0 | AI4: 27585.51 | AJ4: 17635.59 | AK4: 23609.7 | AL4: 133728.36 | AM4: 44876 | AN4: 30474.57 | AO4: 24500.98 | AP4: 0 | AQ4: 0 | AR4: 0 | AS4: 0 | AT4: 0 | AU4: -1812488.7 | AV4: -337077.36 | AW4: 0 | AX4: -135211.09 | AY4: 0 | AZ4: -138730 | BA4: -23615 | BB4: -136455.84 | BC4: -17810 | BD4: -84921.11 | BE4: -51706.61 | BF4: 0 | BG4: 0 | BH4: -82262.52 | BI4: -14180.68 | BJ4: 0 | BK4: 0 | BL4: 0 | BM4: -77606 | BN4: 0 | BO4: 0 | BP4: -23326.67 | BQ4: -2284777.15 | BR4: 0 | BS4: 0 | BT4: 0 | BU4: 0 | BV4: 0 | BW4: 135211.09 | BX4: 135211.09
A5: 2065 | B5: Discovery School, The | C5: 0 | D5: 618 | E5: 0 | F5: 18.58333333 | G5: No | H5: Primary | I5: 500+ | J5: =IF(G5=Benchmarking!$I$4,1,0) -> 0 | K5: =IF(Benchmarking!$I$6="All",1,IF(Benchmarking!$I$6=H5,1,0)) -> 0 | L5: =IF(Benchmarking!$I$8="All",1,IF(Benchmarking!$I$8=I5,1,0)) -> 0 | M5: 0 | N5: 1673896.34 | O5: 0 | P5: 782782.89 | Q5: 83265.03 | R5: 154213.41 | S5: 0 | T5: 210989.53 | U5: 15824.31 | V5: 8036.25 | W5: 1236 | X5: 15464.51 | Y5: 22531.44 | Z5: 8371.65 | AA5: 21707.06 | AB5: 9049.56 | AC5: 51027.96 | AD5: 75264 | AE5: 21991.65 | AF5: 123073.06 | AG5: 25464.6 | AH5: 0 | AI5: 42945.86 | AJ5: 23315.22 | AK5: 21306.6 | AL5: 175734.66 | AM5: 22065.45 | AN5: 23331.19 | AO5: 62561.94 | AP5: 0 | AQ5: 0 | AR5: 0 | AS5: 0 | AT5: 0 | AU5: -2365042.21 | AV5: -502529.79 | AW5: 0 | AX5: -203809.97 | AY5: 0 | AZ5: -81035 | BA5: -43914.46 | BB5: -3997.47 | BC5: -24354.75 | BD5: -111725.83 | BE5: -80340.23 | BF5: 0 | BG5: -14195.25 | BH5: -64514.7 | BI5: -19923 | BJ5: 0 | BK5: 0 | BL5: 0 | BM5: -132409 | BN5: 0 | BO5: 0 | BP5: -11787.71 | BQ5: -3071381.97 | BR5: 0 | BS5: 0 | BT5: 0 | BU5: 0 | BV5: 0 | BW5: 203809.97 | BX5: 203809.97
A6: 2079 | B6: Woodlands Primary School | C6: 0 | D6: 640 | E6: 0 | F6: 10.25 | G6: No | H6: Primary | I6: 500+ | J6: =IF(G6=Benchmarking!$I$4,1,0) -> 0 | K6: =IF(Benchmarking!$I$6="All",1,IF(Benchmarking!$I$6=H6,1,0)) -> 0 | L6: =IF(Benchmarking!$I$8="All",1,IF(Benchmarking!$I$8=I6,1,0)) -> 0 | M6: 0 | N6: 1719014.15 | O6: 27159.09 | P6: 563292.88 | Q6: 50782.24 | R6: 122272.4 | S6: 0 | T6: 1600.74 | U6: 17051.04 | V6: 13914.73 | W6: 3933 | X6: 16249.68 | Y6: 48996.03 | Z6: 92885.24 | AA6: 94549.4 | AB6: 14060.17 | AC6: 69867.46 | AD6: 65024 | AE6: 59950.4 | AF6: 212065.59 | AG6: 31453.39 | AH6: 0 | AI6: 39138.26 | AJ6: 23910.44 | AK6: 15651.18 | AL6: 120050.62 | AM6: 22781.41 | AN6: 13419.85 | AO6: 42410 | AP6: 0 | AQ6: 0 | AR6: 94065 | AS6: 0 | AT6: 0 | AU6: -2476768.83 | AV6: -490201.26 | AW6: 0 | AX6: -94216.7 | AY6: 0 | AZ6: -189845 | BA6: -34858.86 | BB6: -2400 | BC6: -30417.98 | BD6: -15642.2 | BE6: 0 | BF6: 0 | BG6: -11073 | BH6: -89625.4 | BI6: -6098.9 | BJ6: 0 | BK6: 0 | BL6: 0 | BM6: -110583 | BN6: 0 | BO6: 0 | BP6: -30848.33 | BQ6: -3061186.79 | BR6: 0 | BS6: 0 | BT6: 0 | BU6: 0 | BV6: 0 | BW6: 94216.7 | BX6: 94216.7
A7: 2088 | B7: Crockenhill Primary School | C7: 0 | D7: 198 | E7: 0 | F7: 2.5 | G7: No | H7: Primary | I7: 100-199 | J7: =IF(G7=Benchmarking!$I$4,1,0) -> 0 | K7: =IF(Benchmarking!$I$6="All",1,IF(Benchmarking!$I$6=H7,1,0)) -> 0 | L7: =IF(Benchmarking!$I$8="All",1,IF(Benchmarking!$I$8=I7,1,0)) -> 0 | M7: 0 | N7: 642878.75 | O7: 4371.73 | P7: 100358 | Q7: 34381.95 | R7: 64239.36 | S7: 0 | T7: 46906.93 | U7: 4112.66 | V7: 1155 | W7: 4388.93 | X7: 5027.28 | Y7: 1594.13 | Z7: 1875.72 | AA7: 5415.7 | AB7: 6708.64 | AC7: 32764.51 | AD7: 24116 | AE7: 7707.29 | AF7: 62501.28 | AG7: 5658.91 | AH7: 0 | AI7: 14441.14 | AJ7: 7544.78 | AK7: 3917.22 | AL7: 47247.51 | AM7: 25798.04 | AN7: 25434.21 | AO7: 29185.3 | AP7: 0 | AQ7: 0 | AR7: 0 | AS7: 0 | AT7: 0 | AU7: -898063.22 | AV7: -138340.83 | AW7: 0 | AX7: -22187.26 | AY7: 0 | AZ7: -93895 | BA7: -14015.53 | BB7: 0 | BC7: -2999.92 | BD7: -42206.18 | BE7: 0 | BF7: 0 | BG7: -3052.57 | BH7: -24972.43 | BI7: -5423.94 | BJ7: 0 | BK7: 0 | BL7: 0 | BM7: -40926 | BN7: 0 | BO7: 0 | BP7: -9289.89 | BQ7: -1058591.31 | BR7: 0 | BS7: 0 | BT7: 0 | BU7: 0 | BV7: 0 | BW7: 22187.26 | BX7: 22187.26
A8: 2089 | B8: Anthony Roper Primary School, The | C8: 0 | D8: 304 | E8: 0 | F8: 1.833333333 | G8: No | H8: Primary | I8: 300-399 | J8: =IF(G8=Benchmarking!$I$4,1,0) -> 0 | K8: =IF(Benchmarking!$I$6="All",1,IF(Benchmarking!$I$6=H8,1,0)) -> 0 | L8: =IF(Benchmarking!$I$8="All",1,IF(Benchmarking!$I$8=I8,1,0)) -> 0 | M8: 0 | N8: 803375.76 | O8: 46309.61 | P8: 249998.1 | Q8: 9559.08 | R8: 70738.11 | S8: 0 | T8: 60919.46 | U8: 2852 | V8: 8521.5 | W8: 8497.67 | X8: 7718.64 | Y8: 11819.73 | Z8: 6612 | AA8: 25387.58 | AB8: 3878.69 | AC8: 42000.37 | AD8: 6604.8 | AE8: 24315.03 | AF8: 82732.93 | AG8: 11424.1 | AH8: 0 | AI8: 17043.32 | AJ8: 11583.95 | AK8: 28569.09 | AL8: 55445.47 | AM8: 23224 | AN8: 0 | AO8: 44839.19 | AP8: 0 | AQ8: 0 | AR8: 2582 | AS8: 0 | AT8: 0 | AU8: -1242735.83 | AV8: -142096.97 | AW8: 0 | AX8: -4608.39 | AY8: 0 | AZ8: -53770 | BA8: -25073.83 | BB8: -795.96 | BC8: -16671.04 | BD8: -3338.48 | BE8: 0 | BF8: 0 | BG8: -17160.81 | BH8: -30615.88 | BI8: -36389.39 | BJ8: 0 | BK8: 0 | BL8: 0 | BM8: -64837 | BN8: 0 | BO8: 0 | BP8: -5496.29 | BQ8: -1389441.19 | BR8: 0 | BS8: 0 | BT8: 0 | BU8: 0 | BV8: 0 | BW8: 4608.39 | BX8: 4608.39
A9: 2094 | B9: Cobham Primary School | C9: 0 | D9: 218 | E9: 0 | F9: 6.25 | G9: No | H9: Primary | I9: 200-299 | J9: =IF(G9=Benchmarking!$I$4,1,0) -> 0 | K9: =IF(Benchmarking!$I$6="All",1,IF(Benchmarking!$I$6=H9,1,0)) -> 0 | L9: =IF(Benchmarking!$I$8="All",1,IF(Benchmarking!$I$8=I9,1,0)) -> 0 | M9: 0 | N9: 587885.26 | O9: 0 | P9: 300111.95 | Q9: 22137.42 | R9: 40949.05 | S9: 0 | T9: 15369.66 | U9: 5303.4 | V9: 7711.78 | W9: 1561.24 | X9: 5535 | Y9: 6276.73 | Z9: 19766.46 | AA9: 3478.7 | AB9: 100 | AC9: 29348.53 | AD9: 17216 | AE9: 9796.7 | AF9: 62431.41 | AG9: 7437.33 | AH9: 0 | AI9: 11972.41 | AJ9: 8144.44 | AK9: 1870.66 | AL9: 36315.65 | AM9: 0 | AN9: 30916.15 | AO9: 21814.91 | AP9: 0 | AQ9: 0 | AR9: 0 | AS9: 0 | AT9: 0 | AU9: -907145.11 | AV9: -102497.72 | AW9: 0 | AX9: -34722.6 | AY9: 0 | AZ9: -35550 | BA9: -9835 | BB9: -1460.42 | BC9: -1905 | BD9: -14963.76 | BE9: 0 | BF9: -1320 | BG9: -12258.08 | BH9: -27780.9 | BI9: -27451.47 | BJ9: 0 | BK9: 0 | BL9: 0 | BM9: -43278 | BN9: 0 | BO9: 0 | BP9: -4131 | BQ9: -1044365.43 | BR9: 0 | BS9: 0 | BT9: 0 | BU9: 0 | BV9: 0 | BW9: 34722.6 | BX9: 34722.6
A10: 2095 | B10: Cecil Road Primary School | C10: 53 | D10: 373 | E10: 0 | F10: 18.08333333 | G10: Yes | H10: Primary | I10: 300-399 | J10: =IF(G10=Benchmarking!$I$4,1,0) -> 0 | K10: =IF(Benchmarking!$I$6="All",1,IF(Benchmarking!$I$6=H10,1,0)) -> 0 | L10: =IF(Benchmarking!$I$8="All",1,IF(Benchmarking!$I$8=I10,1,0)) -> 0 | M10: 0 | N10: 1173699.28 | O10: 0 | P10: 737585.3 | Q10: 43785.96 | R10: 94092.83 | S10: 0 | T10: 18401.69 | U10: 1232.2 | V10: 15061.78 | W10: 14220.79 | X10: 9733.44 | Y10: 14557.79 | Z10: 906.36 | AA10: 43549.35 | AB10: 7562.01 | AC10: 46672.27 | AD10: 34048 | AE10: 10288.27 | AF10: 83335.32 | AG10: 12774.93 | AH10: 0 | AI10: 21637.92 | AJ10: 14903.24 | AK10: 10751.29 | AL10: 67031.06 | AM10: 10211.12 | AN10: 19224.53 | AO10: 29023.68 | AP10: 0 | AQ10: 0 | AR10: 0 | AS10: 0 | AT10: 0 | AU10: -1785382.59 | AV10: -251288.5 | AW10: 0 | AX10: -130250.17 | AY10: 0 | AZ10: -93205 | BA10: -18959.86 | BB10: -26184.13 | BC10: -47487.5 | BD10: -24159.85 | BE10: 0 | BF10: -10360 | BG10: -3728.57 | BH10: -15082.15 | BI10: -8516.64 | BJ10: 0 | BK10: 0 | BL10: 0 | BM10: -70812 | BN10: 0 | BO10: 0 | BP10: -13413.83 | BQ10: -2166921.26 | BR10: 0 | BS10: 0 | BT10: 0 | BU10: 0 | BV10: 0 | BW10: 130250.17 | BX10: 130250.17
A11: 2109 | B11: Higham Primary School | C11: 0 | D11: 207 | E11: 0 | F11: 7.416666667 | G11: No | H11: Primary | I11: 200-299 | J11: =IF(G11=Benchmarking!$I$4,1,0) -> 0 | K11: =IF(Benchmarking!$I$6="All",1,IF(Benchmarking!$I$6=H11,1,0)) -> 0 | L11: =IF(Benchmarking!$I$8="All",1,IF(Benchmarking!$I$8=I11,1,0)) -> 0 | M11: 0 | N11: 597218.38 | O11: 4178.79 | P11: 209993.79 | Q11: 59353.08 | R11: 85759.89 | S11: 39762.25 | T11: 42456.37 | U11: 4863.19 | V11: 5265.5 | W11: 5585.12 | X11: 6773.76 | Y11: 5954.71 | Z11: 4212.83 | AA11: 3112.77 | AB11: 5170.95 | AC11: 33288.16 | AD11: 22330 | AE11: 4186.42 | AF11: 66812.09 | AG11: 10773.78 | AH11: 0 | AI11: 8656.71 | AJ11: 6215.52 | AK11: 2755.57 | AL11: 22487.71 | AM11: 19798 | AN11: 1330 | AO11: 16843.75 | AP11: 0 | AQ11: 0 | AR11: 0 | AS11: 0 | AT11: 0 | AU11: -876825.29 | AV11: -103199.27 | AW11: 0 | AX11: -58021.04 | AY11: 0 | AZ11: -51175 | BA11: -9918 | BB11: 0 | BC11: -1794 | BD11: -36959.7 | BE11: -22370.39 | BF11: 0 | BG11: -11848.89 | BH11: -26256.67 | BI11: -20913.65 | BJ11: 0 | BK11: 0 | BL11: 0 | BM11: -55893 | BN11: 0 | BO11: 0 | BP11: -2703.05 | BQ11: -1038045.6 | BR11: 0 | BS11: 0 | BT11: 0 | BU11: 0 | BV11: 0 | BW11: 58021.04 | BX11: 58021.04
A12: 2116 | B12: Lawn Primary School | C12: 19 | D12: 195 | E12: 0 | F12: 5.666666667 | G12: Yes | H12: Primary | I12: 100-199 | J12: =IF(G12=Benchmarking!$I$4,1,0) -> 0 | K12: =IF(Benchmarking!$I$6="All",1,IF(Benchmarking!$I$6=H12,1,0)) -> 0 | L12: =IF(Benchmarking!$I$8="All",1,IF(Benchmarking!$I$8=I12,1,0)) -> 0 | M12: 0 | N12: 699051.57 | O12: 0 | P12: 383475.29 | Q12: 67176.84 | R12: 78783.93 | S12: 60438.18 | T12: 83576.19 | U12: 1143.16 | V12: 13234.66 | W12: 390 | X12: 5043.48 | Y12: 4547.89 | Z12: 4549.6 | AA12: 1545.2 | AB12: 2254.22 | AC12: 37142.11 | AD12: 20459 | AE12: 9411.98 | AF12: 73754.39 | AG12: 5987.96 | AH12: 0 | AI12: 21269.95 | AJ12: 7654.8 | AK12: 1487.45 | AL12: 28494.96 | AM12: 0 | AN12: 5812.5 | AO12: 23316.03 | AP12: 0 | AQ12: 0 | AR12: 2922.41 | AS12: 0 | AT12: 0 | AU12: -997980.28 | AV12: -278290.93 | AW12: 0 | AX12: -40302.76 | AY12: 0 | AZ12: -158340 | BA12: -11922 | BB12: -24794.58 | BC12: 0 | BD12: -25371.19 | BE12: -13105.17 | BF12: 0 | BG12: 0 | BH12: -6384.91 | BI12: 0 | BJ12: 0 | BK12: 0 | BL12: 0 | BM12: -36277 | BN12: 0 | BO12: 0 | BP12: -11073.79 | BQ12: -1316573.97 | BR12: 0 | BS12: 0 | BT12: 0 | BU12: 0 | BV12: 0 | BW12: 40302.76 | BX12: 40302.76
A13: 2120 | B13: Bean Primary School | C13: 0 | D13: 183 | E13: 0 | F13: 3.583333333 | G13: No | H13: Infant | I13: 100-199 | J13: =IF(G13=Benchmarking!$I$4,1,0) -> 0 | K13: =IF(Benchmarking!$I$6="All",1,IF(Benchmarking!$I$6=H13,1,0)) -> 0 | L13: =IF(Benchmarking!$I$8="All",1,IF(Benchmarking!$I$8=I13,1,0)) -> 0 | M13: 0 | N13: 547273.3 | O13: 0 | P13: 182237.93 | Q13: 32844.68 | R13: 57617.13 | S13: 0 | T13: 25657.08 | U13: 3334.33 | V13: 4388.45 | W13: 379.8 | X13: 4646.4 | Y13: 9205.17 | Z13: 12526.78 | AA13: 20099.51 | AB13: 2895.69 | AC13: 19215.14 | AD13: 16717 | AE13: 10858.14 | AF13: 73652.67 | AG13: 23972.63 | AH13: 0 | AI13: 23783.01 | AJ13: 6973.21 | AK13: 1428.13 | AL13: 54754.73 | AM13: 562 | AN13: 13128.56 | AO13: 18713.68 | AP13: 0 | AQ13: 0 | AR13: 41258.66 | AS13: 0 | AT13: 0 | AU13: -824622.85 | AV13: -124485.26 | AW13: 0 | AX13: -46103.89 | AY13: 0 | AZ13: -58581 | BA13: -9493 | BB13: -4209.13 | BC13: -3650 | BD13: -26284.04 | BE13: 0 | BF13: 0 | BG13: 0 | BH13: -22409.03 | BI13: 0 | BJ13: 0 | BK13: 0 | BL13: 0 | BM13: -46001 | BN13: 0 | BO13: 0 | BP13: -9685.83 | BQ13: -995212 | BR13: 0 | BS13: 0 | BT13: 0 | BU13: 0 | BV13: 0 | BW13: 46103.89 | BX13: 46103.89
A14: 2128 | B14: Capel Primary School | C14: 0 | D14: 206 | E14: 0 | F14: 5.25 | G14: No | H14: Primary | I14: 200-299 | J14: =IF(G14=Benchmarking!$I$4,1,0) -> 0 | K14: =IF(Benchmarking!$I$6="All",1,IF(Benchmarking!$I$6=H14,1,0)) -> 0 | L14: =IF(Benchmarking!$I$8="All",1,IF(Benchmarking!$I$8=I14,1,0)) -> 0 | M14: 0 | N14: 527541.48 | O14: 0 | P14: 228866.21 | Q14: 37974.12 | R14: 74617.57 | S14: 38282.32 | T14: 62680.46 | U14: 3991.14 | V14: 5764.78 | W14: 412 | X14: 5230.32 | Y14: 8028.3 | Z14: 4185.22 | AA14: 3368.53 | AB14: 1397.08 | AC14: 28609.96 | AD14: 23827 | AE14: 8952.45 | AF14: 65723.49 | AG14: 16626.95 | AH14: 0 | AI14: 10371.25 | AJ14: 7696.12 | AK14: 2988.18 | AL14: 27378.69 | AM14: 5817.84 | AN14: 24070.88 | AO14: 13350.75 | AP14: 0 | AQ14: 0 | AR14: 0 | AS14: 0 | AT14: 0 | AU14: -879010.87 | AV14: -90644.52 | AW14: 0 | AX14: -42120.22 | AY14: 0 | AZ14: -49470 | BA14: -10679.93 | BB14: -440.93 | BC14: -150 | BD14: -49363.42 | BE14: -16031.85 | BF14: -28689.26 | BG14: 0 | BH14: -13200.52 | BI14: -11534.05 | BJ14: 0 | BK14: 0 | BL14: 0 | BM14: -49248 | BN14: 0 | BO14: 0 | BP14: -2141.16 | BQ14: -1011775.61 | BR14: 0 | BS14: 0 | BT14: 0 | BU14: 0 | BV14: 0 | BW14: 42120.22 | BX14: 42120.22
A15: 2130 | B15: Dunton Green Primary School | C15: 0 | D15: 184 | E15: 0 | F15: 7.333333333 | G15: No | H15: Primary | I15: 100-199 | J15: =IF(G15=Benchmarking!$I$4,1,0) -> 0 | K15: =IF(Benchmarking!$I$6="All",1,IF(Benchmarking!$I$6=H15,1,0)) -> 0 | L15: =IF(Benchmarking!$I$8="All",1,IF(Benchmarking!$I$8=I15,1,0)) -> 0 | M15: 0 | N15: 533601.96 | O15: 0 | P15: 232118.02 | Q15: 34673.84 | R15: 55333.83 | S15: 0 | T15: 0 | U15: 3883.96 | V15: 6064 | W15: 30833.21 | X15: 4671.84 | Y15: 36346.43 | Z15: 12620.36 | AA15: 19250.98 | AB15: 381.69 | AC15: 28116.93 | AD15: 24576 | AE15: 11440.59 | AF15: 71092.43 | AG15: 10966.18 | AH15: 0 | AI15: 11375.49 | AJ15: 7011.35 | AK15: 15978.58 | AL15: 45543.14 | AM15: 1635.21 | AN15: 13085.32 | AO15: 49214.56 | AP15: 0 | AQ15: 0 | AR15: 0 | AS15: 0 | AT15: 0 | AU15: -861592.87 | AV15: -108600.49 | AW15: 0 | AX15: -44190.42 | AY15: 0 | AZ15: -87635 | BA15: -11971.06 | BB15: -15135.55 | BC15: -10596 | BD15: -2758.75 | BE15: -7367.98 | BF15: -3360 | BG15: -6712.23 | BH15: -19353.18 | BI15: -2509.45 | BJ15: 0 | BK15: 0 | BL15: 0 | BM15: -44618 | BN15: 0 | BO15: 0 | BP15: -14525.83 | BQ15: -1014383.78 | BR15: 0 | BS15: 0 | BT15: 0 | BU15: 0 | BV15: 0 | BW15: 44190.42 | BX15: 44190.42
A16: 2132 | B16: Hadlow Primary School | C16: 1 | D16: 186 | E16: 0 | F16: 8.666666667 | G16: Yes | H16: Primary | I16: 100-199 | J16: =IF(G16=Benchmarking!$I$4,1,0) -> 0 | K16: =IF(Benchmarking!$I$6="All",1,IF(Benchmarking!$I$6=H16,1,0)) -> 0 | L16: =IF(Benchmarking!$I$8="All",1,IF(Benchmarking!$I$8=I16,1,0)) -> 0 | M16: 0 | N16: 618521.42 | O16: 2034.44 | P16: 274617.14 | Q16: 42619.5 | R16: 46529.09 | S16: 0 | T16: 13743.43 | U16: 4157.11 | V16: 2040.6 | W16: 4247 | X16: 4722.6 | Y16: 3983.53 | Z16: 6102.64 | AA16: 6262.68 | AB16: 6456.91 | AC16: 37083.25 | AD16: 24326 | AE16: 3200.6 | AF16: 101579.09 | AG16: 6820.24 | AH16: 0 | AI16: 19247.79 | AJ16: 6948.96 | AK16: 4653.34 | AL16: 52448.84 | AM16: 1476.74 | AN16: 4916 | AO16: 19825.79 | AP16: 0 | AQ16: 0 | AR16: 0 | AS16: 0 | AT16: 0 | AU16: -838625.03 | AV16: -160994.68 | AW16: 0 | AX16: -86012.17 | AY16: 0 | AZ16: -102545 | BA16: -23186.71 | BB16: -31450.01 | BC16: -11945.47 | BD16: -14709 | BE16: 0 | BF16: 0 | BG16: 0 | BH16: -16110.99 | BI16: -2533.67 | BJ16: 0 | BK16: 0 | BL16: 0 | BM16: -36399 | BN16: 0 | BO16: 0 | BP16: -14220.96 | BQ16: -1085631.88 | BR16: 0 | BS16: 0 | BT16: 0 | BU16: 0 | BV16: 0 | BW16: 86012.17 | BX16: 86012.17
A17: 2136 | B17: Kemsing Primary School | C17: 0 | D17: 180 | E17: 0 | F17: 6.25 | G17: No | H17: Primary | I17: 100-199 | J17: =IF(G17=Benchmarking!$I$4,1,0) -> 0 | K17: =IF(Benchmarking!$I$6="All",1,IF(Benchmarking!$I$6=H17,1,0)) -> 0 | L17: =IF(Benchmarking!$I$8="All",1,IF(Benchmarking!$I$8=I17,1,0)) -> 0 | M17: 0 | N17: 484779.29 | O17: 0 | P17: 185010.77 | Q17: 31739.5 | R17: 69197.52 | S17: 0 | T17: 52614.31 | U17: 38070.7 | V17: 3522.14 | W17: 373.57 | X17: 4570.2 | Y17: 1807.2 | Z17: 8264.64 | AA17: 23876.37 | AB17: 5240.97 | AC17: 25684.29 | AD17: 21956 | AE17: 11746.52 | AF17: 30628.88 | AG17: 3213.54 | AH17: 0 | AI17: 19852.23 | AJ17: 6858.89 | AK17: 11547.64 | AL17: 38544.21 | AM17: 5068.97 | AN17: 22154.18 | AO17: 26979.03 | AP17: 0 | AQ17: 0 | AR17: 0 | AS17: 0 | AT17: 0 | AU17: -812804.81 | AV17: -79283.59 | AW17: 0 | AX17: -40617.45 | AY17: 0 | AZ17: -33465 | BA17: -15980.98 | BB17: -841.9 | BC17: -15439.59 | BD17: -17825.18 | BE17: 0 | BF17: 0 | BG17: -4903.29 | BH17: -8083 | BI17: -30521.88 | BJ17: 0 | BK17: 0 | BL17: 0 | BM17: -46244 | BN17: 0 | BO17: 0 | BP17: -1862.93 | BQ17: -932705.85 | BR17: 0 | BS17: 0 | BT17: 0 | BU17: 0 | BV17: 0 | BW17: 40617.45 | BX17: 40617.45
A18: 2137 | B18: Leigh Primary School | C18: 0 | D18: 161 | E18: 0 | F18: 7.25 | G18: No | H18: Primary | I18: 100-199 | J18: =IF(G18=Benchmarking!$I$4,1,0) -> 0 | K18: =IF(Benchmarking!$I$6="All",1,IF(Benchmarking!$I$6=H18,1,0)) -> 0 | L18: =IF(Benchmarking!$I$8="All",1,IF(Benchmarking!$I$8=I18,1,0)) -> 0 | M18: 0 | N18: 486845.56 | O18: 18927.37 | P18: 224746.16 | Q18: 443.23 | R18: 47582.56 | S18: 550 | T18: 35863.51 | U18: 4272.8 | V18: 9141.49 | W18: 334.14 | X18: 6268.71 | Y18: 8064.75 | Z18: 2596.53 | AA18: 25352.23 | AB18: 4138.3 | AC18: 16162 | AD18: 12200 | AE18: 3210.38 | AF18: 81871.69 | AG18: 7308.7 | AH18: 0 | AI18: 11196.44 | AJ18: 6134.86 | AK18: 2881.41 | AL18: 25589.5 | AM18: 10200.57 | AN18: 16966.23 | AO18: 17447.12 | AP18: 0 | AQ18: 0 | AR18: 0 | AS18: 0 | AT18: 0 | AU18: -750651.41 | AV18: -78097.44 | AW18: 0 | AX18: -74143.49 | AY18: 0 | AZ18: -52695 | BA18: -17143.36 | BB18: -4159.92 | BC18: -807.5 | BD18: -15163.82 | BE18: 0 | BF18: 0 | BG18: -13801.97 | BH18: -23953.25 | BI18: -13204.09 | BJ18: 0 | BK18: 0 | BL18: 0 | BM18: -39878 | BN18: 0 | BO18: 0 | BP18: -7466.05 | BQ18: -902892.34 | BR18: 0 | BS18: 0 | BT18: 0 | BU18: 0 | BV18: 0 | BW18: 74143.49 | BX18: 74143.49
A19: 2138 | B19: Otford Primary School | C19: 0 | D19: 338 | E19: 0 | F19: 5.916666667 | G19: No | H19: Primary | I19: 300-399 | J19: =IF(G19=Benchmarking!$I$4,1,0) -> 0 | K19: =IF(Benchmarking!$I$6="All",1,IF(Benchmarking!$I$6=H19,1,0)) -> 0 | L19: =IF(Benchmarking!$I$8="All",1,IF(Benchmarking!$I$8=I19,1,0)) -> 0 | M19: 0 | N19: 1029143.46 | O19: 33143.11 | P19: 201892.8 | Q19: 35104.52 | R19: 73012.49 | S19: 0 | T19: 9506.36 | U19: 2313.26 | V19: 1707.5 | W19: 7239.07 | X19: 8581.8 | Y19: 60676.76 | Z19: 8029.23 | AA19: 51994.24 | AB19: 8225.09 | AC19: 60140.78 | AD19: 29440 | AE19: 23340.46 | AF19: 114841.17 | AG19: 8925.08 | AH19: 0 | AI19: 17944.84 | AJ19: 12879.43 | AK19: 0 | AL19: 66769.74 | AM19: 10480.78 | AN19: 9936.34 | AO19: 24298.04 | AP19: 0 | AQ19: 0 | AR19: 0 | AS19: 0 | AT19: 0 | AU19: -1400979.94 | AV19: -177318.05 | AW19: 0 | AX19: -31562.63 | AY19: 0 | AZ19: -65095 | BA19: -47164.73 | BB19: 0 | BC19: -36234.09 | BD19: 0 | BE19: 0 | BF19: 0 | BG19: -21889.67 | BH19: -15692.8 | BI19: -38222.73 | BJ19: 0 | BK19: 0 | BL19: 0 | BM19: -70334 | BN19: 0 | BO19: 0 | BP19: -4086.76 | BQ19: -1609860.62 | BR19: 0 | BS19: 0 | BT19: 0 | BU19: 0 | BV19: 0 | BW19: 31562.63 | BX19: 31562.63
A20: 2139 | B20: Pembury School | C20: 0 | D20: 400 | E20: 0 | F20: 4.916666667 | G20: No | H20: Primary | I20: 400-499 | J20: =IF(G20=Benchmarking!$I$4,1,0) -> 0 | K20: =IF(Benchmarking!$I$6="All",1,IF(Benchmarking!$I$6=H20,1,0)) -> 0 | L20: =IF(Benchmarking!$I$8="All",1,IF(Benchmarking!$I$8=I20,1,0)) -> 0 | M20: 0 | N20: 947453.14 | O20: 48795.35 | P20: 348878.98 | Q20: 23978.3 | R20: 67105.53 | S20: 0 | T20: 37309.59 | U20: 5645.72 | V20: 9319.76 | W20: 14782.67 | X20: 10156.08 | Y20: 31435.2 | Z20: 22134.32 | AA20: 36693.35 | AB20: 9606 | AC20: 59173.18 | AD20: 47104 | AE20: 28381.52 | AF20: 134465.08 | AG20: 26228.25 | AH20: 0 | AI20: 11231.52 | AJ20: 14944.04 | AK20: 351.64 | AL20: 67513.5 | AM20: 113823.93 | AN20: 38159.63 | AO20: 34602.25 | AP20: 0 | AQ20: 0 | AR20: 37084.39 | AS20: 0 | AT20: 0 | AU20: -1579805.48 | AV20: -277726.52 | AW20: 0 | AX20: -41465.8 | AY20: 0 | AZ20: -70585.64 | BA20: -19267.86 | BB20: -4325.09 | BC20: -22818.41 | BD20: -4943.37 | BE20: 0 | BF20: -2565 | BG20: -14424.1 | BH20: -54822.7 | BI20: -34426.89 | BJ20: 0 | BK20: 0 | BL20: 0 | BM20: -83292 | BN20: 0 | BO20: 0 | BP20: -11112.11 | BQ20: -1898997.8 | BR20: 0 | BS20: 0 | BT20: 0 | BU20: 0 | BV20: 0 | BW20: 41465.8 | BX20: 41465.8
A21: 2142 | B21: Sandhurst Primary School | C21: 0 | D21: 153 | E21: 0 | F21: 7.166666667 | G21: No | H21: Primary | I21: 100-199 | J21: =IF(G21=Benchmarking!$I$4,1,0) -> 0 | K21: =IF(Benchmarking!$I$6="All",1,IF(Benchmarking!$I$6=H21,1,0)) -> 0 | L21: =IF(Benchmarking!$I$8="All",1,IF(Benchmarking!$I$8=I21,1,0)) -> 0 | M21: 0 | N21: 440336.83 | O21: 0 | P21: 208187.23 | Q21: 13844.18 | R21: 43838.65 | S21: 0 | T21: 26442.24 | U21: 5966.99 | V21: 4110.78 | W21: 3056.89 | X21: 3884.64 | Y21: 7285.5 | Z21: 5363.91 | AA21: 19051.37 | AB21: 4995.09 | AC21: 33547.09 | AD21: 25488.51 | AE21: 7348.12 | AF21: 50528.99 | AG21: 5764.15 | AH21: 0 | AI21: 10635.64 | AJ21: 5716.08 | AK21: 4753.29 | AL21: 40265.2 | AM21: 0 | AN21: 22747.45 | AO21: 21851.4 | AP21: 0 | AQ21: 0 | AR21: 66087 | AS21: 0 | AT21: 0 | AU21: -718321.88 | AV21: -79316.49 | AW21: 0 | AX21: -65356.42 | AY21: 0 | AZ21: -52380 | BA21: -15649.32 | BB21: -495 | BC21: 0 | BD21: -31059.57 | BE21: -552.59 | BF21: 0 | BG21: -22790 | BH21: -8229.25 | BI21: -7289.1 | BJ21: 0 | BK21: 0 | BL21: 0 | BM21: -38120 | BN21: 0 | BO21: 0 | BP21: -3211.88 | BQ21: -862994.79 | BR21: 0 | BS21: 0 | BT21: 0 | BU21: 0 | BV21: 0 | BW21: 65356.42 | BX21: 65356.42
A22: 2147 | B22: Weald Community Primary School | C22: 0 | D22: 121 | E22: 0 | F22: 2.083333333 | G22: No | H22: Primary | I22: 100-199 | J22: =IF(G22=Benchmarking!$I$4,1,0) -> 0 | K22: =IF(Benchmarking!$I$6="All",1,IF(Benchmarking!$I$6=H22,1,0)) -> 0 | L22: =IF(Benchmarking!$I$8="All",1,IF(Benchmarking!$I$8=I22,1,0)) -> 0 | M22: 0 | N22: 441552.71 | O22: 0 | P22: 121052.66 | Q22: 22216.71 | R22: 43702.09 | S22: 0 | T22: 0 | U22: 3111.44 | V22: 2685.2 | W22: 2302.68 | X22: 3242.16 | Y22: 1024.25 | Z22: 4526.22 | AA22: 9124.19 | AB22: 5326.6 | AC22: 18095.49 | AD22: 15220 | AE22: 3183.05 | AF22: 38292.04 | AG22: 5208.71 | AH22: 0 | AI22: 12836.74 | AJ22: 5290.66 | AK22: 2319.18 | AL22: 20211.48 | AM22: 842.07 | AN22: 7490.11 | AO22: 8888.69 | AP22: 0 | AQ22: 0 | AR22: 0 | AS22: 0 | AT22: 0 | AU22: -611016.6 | AV22: -46388.67 | AW22: 0 | AX22: -21260.93 | AY22: 0 | AZ22: -20370 | BA22: -8202.53 | BB22: -105.07 | BC22: -1731.5 | BD22: -16041.97 | BE22: 0 | BF22: -1200 | BG22: 0 | BH22: -14958.69 | BI22: -15958.93 | BJ22: 0 | BK22: 0 | BL22: 0 | BM22: -34864.07 | BN22: 0 | BO22: 0 | BP22: 0 | BQ22: -678666.2 | BR22: 0 | BS22: 0 | BT22: 0 | BU22: 0 | BV22: 2382.03 | BW22: 18878.9 | BX22: 21260.93
A23: 2148 | B23: Shoreham Village School | C23: 0 | D23: 86 | E23: 0 | F23: 4.833333333 | G23: No | H23: Primary | I23: 0-99 | J23: =IF(G23=Benchmarking!$I$4,1,0) -> 0 | K23: =IF(Benchmarking!$I$6="All",1,IF(Benchmarking!$I$6=H23,1,0)) -> 0 | L23: =IF(Benchmarking!$I$8="All",1,IF(Benchmarking!$I$8=I23,1,0)) -> 0 | M23: 0 | N23: 392251.09 | O23: 0 | P23: 98198.71 | Q23: 9410.81 | R23: 38924.25 | S23: 0 | T23: 34101.65 | U23: 2740.92 | V23: 6398.65 | W23: 178.48 | X23: 2332.52 | Y23: 5660.71 | Z23: 3643.05 | AA23: 14371.65 | AB23: 1773.54 | AC23: 27593.35 | AD23: 16211.26 | AE23: 5047.63 | AF23: 32484.73 | AG23: 8819.63 | AH23: 0 | AI23: 7275.19 | AJ23: 3521.99 | AK23: 5695.92 | AL23: 17364.01 | AM23: 0 | AN23: 0 | AO23: 12036.89 | AP23: 0 | AQ23: 0 | AR23: 0 | AS23: 0 | AT23: 0 | AU23: -518139.31 | AV23: -50675.61 | AW23: 0 | AX23: -25809.48 | AY23: 0 | AZ23: -32010 | BA23: -9585.18 | BB23: -6100 | BC23: -3635.36 | BD23: -32187.39 | BE23: 0 | BF23: 0 | BG23: 0 | BH23: -10943.3 | BI23: -16094.76 | BJ23: 0 | BK23: 0 | BL23: 0 | BM23: -27980 | BN23: 0 | BO23: 0 | BP23: -4829.78 | BQ23: -594624.4 | BR23: 0 | BS23: 0 | BT23: 0 | BU23: 0 | BV23: 4506.6 | BW23: 21302.88 | BX23: 25809.48
A24: 2155 | B24: Slade Primary School | C24: 0 | D24: 421 | E24: 8.583333333 | F24: 24.33333333 | G24: No | H24: Primary | I24: 400-499 | J24: =IF(G24=Benchmarking!$I$4,1,0) -> 0 | K24: =IF(Benchmarking!$I$6="All",1,IF(Benchmarking!$I$6=H24,1,0)) -> 0 | L24: =IF(Benchmarking!$I$8="All",1,IF(Benchmarking!$I$8=I24,1,0)) -> 0 | M24: 0 | N24: 1228112.6 | O24: 12324.68 | P24: 663349.53 | Q24: 47237.95 | R24: 132579.79 | S24: 0 | T24: 75511.77 | U24: 10908.34 | V24: 12333.75 | W24: 12894.13 | X24: 10689.24 | Y24: 43099.61 | Z24: 18732.83 | AA24: 47150.06 | AB24: 6159.3 | AC24: 60380.41 | AD24: 32512 | AE24: 8692.13 | AF24: 101950.77 | AG24: 43050.72 | AH24: 0 | AI24: 19121.79 | AJ24: 15728.6 | AK24: 116.41 | AL24: 108062.74 | AM24: 11558.5 | AN24: 51616.89 | AO24: 26705.93 | AP24: 0 | AQ24: 0 | AR24: 0 | AS24: 0 | AT24: 0 | AU24: -1682991.71 | AV24: -293350.5 | AW24: -166288.63 | AX24: -230823.29 | AY24: 0 | AZ24: -90493 | BA24: -22734.86 | BB24: -13398.59 | BC24: 0 | BD24: -59875.88 | BE24: -44706.53 | BF24: 0 | BG24: -1520 | BH24: -39618.32 | BI24: -11210.69 | BJ24: 0 | BK24: 0 | BL24: 0 | BM24: -83452 | BN24: 0 | BO24: 0 | BP24: -9081.48 | BQ24: -2373454.13 | BR24: 0 | BS24: 54000 | BT24: 112288.63 | BU24: 166288.63 | BV24: 0 | BW24: 230823.29 | BX24: 230823.29
A25: 2156 | B25: Sussex Road Community Primary School | C25: 0 | D25: 420 | E25: 0 | F25: 8.166666667 | G25: No | H25: Primary | I25: 400-499 | J25: =IF(G25=Benchmarking!$I$4,1,0) -> 0 | K25: =IF(Benchmarking!$I$6="All",1,IF(Benchmarking!$I$6=H25,1,0)) -> 0 | L25: =IF(Benchmarking!$I$8="All",1,IF(Benchmarking!$I$8=I25,1,0)) -> 0 | M25: 0 | N25: 1194823.78 | O25: 9181.84 | P25: 340959.85 | Q25: 24217.31 | R25: 94997.33 | S25: 0 | T25: 23932.59 | U25: 9426.57 | V25: 7792.54 | W25: 10394.64 | X25: 10663.8 | Y25: 63883.67 | Z25: 14067.78 | AA25: 39955 | AB25: 3608.6 | AC25: 44733.94 | AD25: 57932 | AE25: 13134.82 | AF25: 103737.06 | AG25: 18958.85 | AH25: 0 | AI25: 13997.59 | AJ25: 15691.2 | AK25: 0 | AL25: 70154.65 | AM25: 8436.87 | AN25: 39662.18 | AO25: 25896.86 | AP25: 0 | AQ25: 0 | AR25: 15695.79 | AS25: 0 | AT25: 0 | AU25: -1667373.38 | AV25: -299878.52 | AW25: 0 | AX25: -55036.91 | AY25: 0 | AZ25: -91575 | BA25: -35918.86 | BB25: 0 | BC25: -10327 | BD25: -1914.03 | BE25: 0 | BF25: 0 | BG25: -12944.5 | BH25: 0 | BI25: -19499.49 | BJ25: 0 | BK25: 0 | BL25: 0 | BM25: -78400 | BN25: 0 | BO25: 0 | BP25: -12841.42 | BQ25: -2022288.81 | BR25: 0 | BS25: 0 | BT25: 0 | BU25: 0 | BV25: 0 | BW25: 55036.91 | BX25: 55036.91
A26: 2161 | B26: Boughton Monchelsea Primary School | C26: 0 | D26: 204 | E26: 0 | F26: 17.83333333 | G26: No | H26: Primary | I26: 200-299 | J26: =IF(G26=Benchmarking!$I$4,1,0) -> 0 | K26: =IF(Benchmarking!$I$6="All",1,IF(Benchmarking!$I$6=H26,1,0)) -> 0 | L26: =IF(Benchmarking!$I$8="All",1,IF(Benchmarking!$I$8=I26,1,0)) -> 0 | M26: 0 | N26: 564544.86 | O26: 3064.13 | P26: 338218.45 | Q26: 27076.87 | R26: 67664.01 | S26: 0 | T26: 48689.81 | U26: 5673.45 | V26: 6697.2 | W26: 408 | X26: 5179.56 | Y26: 31407.56 | Z26: 7145.59 | AA26: 32294.61 | AB26: 1830.11 | AC26: 48760.46 | AD26: 22580 | AE26: 11903.43 | AF26: 53195.06 | AG26: 16854.61 | AH26: 0 | AI26: 13201.01 | AJ26: 7621.44 | AK26: 6736.92 | AL26: 42509.73 | AM26: 20360.82 | AN26: 24327.6 | AO26: 10282.02 | AP26: 0 | AQ26: 0 | AR26: 24203.4 | AS26: 0 | AT26: 0 | AU26: -936468.89 | AV26: -112767.36 | AW26: 0 | AX26: -189381.37 | AY26: 0 | AZ26: -60350 | BA26: -10731.93 | BB26: 0 | BC26: -51465.26 | BD26: -25167.09 | BE26: 0 | BF26: 0 | BG26: -1326.18 | BH26: -17973.24 | BI26: -5211.17 | BJ26: 0 | BK26: 0 | BL26: 0 | BM26: -52796 | BN26: 0 | BO26: 0 | BP26: -5970.92 | BQ26: -1238617.62 | BR26: 0 | BS26: 0 | BT26: 0 | BU26: 0 | BV26: 0 | BW26: 189381.37 | BX26: 189381.37
A27: 2163 | B27: East Farleigh Primary School | C27: 0 | D27: 207 | E27: 0 | F27: 17.33333333 | G27: No | H27: Primary | I27: 200-299 | J27: =IF(G27=Benchmarking!$I$4,1,0) -> 0 | K27: =IF(Benchmarking!$I$6="All",1,IF(Benchmarking!$I$6=H27,1,0)) -> 0 | L27: =IF(Benchmarking!$I$8="All",1,IF(Benchmarking!$I$8=I27,1,0)) -> 0 | M27: 0 | N27: 559645.66 | O27: 4741.05 | P27: 296547.83 | Q27: 41471.78 | R27: 51056.71 | S27: 0 | T27: 9050.2 | U27: 0 | V27: 8187.94 | W27: 414 | X27: 5255.76 | Y27: 15553.02 | Z27: 2666.95 | AA27: 16436.38 | AB27: 5120.06 | AC27: 20003.86 | AD27: 16717 | AE27: 12778.12 | AF27: 90734.95 | AG27: 10923.16 | AH27: 0 | AI27: 3329.83 | AJ27: 7733.52 | AK27: 0 | AL27: 40812.15 | AM27: 18442.5 | AN27: 133864.04 | AO27: 33908.38 | AP27: 0 | AQ27: 0 | AR27: 8000 | AS27: 0 | AT27: 0 | AU27: -934461.04 | AV27: -99730.42 | AW27: 0 | AX27: -151683.56 | AY27: 0 | AZ27: -46875 | BA27: -13498.93 | BB27: -7753.36 | BC27: -395 | BD27: -12511.34 | BE27: 0 | BF27: -995.14 | BG27: 0 | BH27: -20026.47 | BI27: -10341.02 | BJ27: 0 | BK27: 0 | BL27: 0 | BM27: -48970 | BN27: 0 | BO27: 0 | BP27: -3081.05 | BQ27: -1185875.02 | BR27: 0 | BS27: 0 | BT27: 0 | BU27: 0 | BV27: 0 | BW27: 151683.56 | BX27: 151683.56
A28: 2164 | B28: East Peckham Primary School | C28: 0 | D28: 170 | E28: 0 | F28: 6.25 | G28: No | H28: Primary | I28: 100-199 | J28: =IF(G28=Benchmarking!$I$4,1,0) -> 0 | K28: =IF(Benchmarking!$I$6="All",1,IF(Benchmarking!$I$6=H28,1,0)) -> 0 | L28: =IF(Benchmarking!$I$8="All",1,IF(Benchmarking!$I$8=I28,1,0)) -> 0 | M28: 0 | N28: 497680.35 | O28: 20562.8 | P28: 219933.38 | Q28: 16574.47 | R28: 50044.76 | S28: 0 | T28: 0 | U28: 3128.19 | V28: 4137.6 | W28: 5490.64 | X28: 4316.28 | Y28: 9468.29 | Z28: 4633.32 | AA28: 27050.87 | AB28: 22658.52 | AC28: 19442.64 | AD28: 20334.25 | AE28: 5271.23 | AF28: 27680.7 | AG28: 16274.92 | AH28: 0 | AI28: 16007.39 | AJ28: 6351.16 | AK28: 2477.76 | AL28: 35325.93 | AM28: 0 | AN28: 2786.58 | AO28: 17491.73 | AP28: 0 | AQ28: 0 | AR28: 0 | AS28: 0 | AT28: 0 | AU28: -756100.78 | AV28: -94195.57 | AW28: 0 | AX28: -53871.8 | AY28: 0 | AZ28: -39285 | BA28: -13405.51 | BB28: -6458.67 | BC28: -494.3 | BD28: -11951.2 | BE28: -2705 | BF28: -5550 | BG28: 0 | BH28: -6084.5 | BI28: -10940.64 | BJ28: 0 | BK28: 0 | BL28: 0 | BM28: -49962 | BN28: 0 | BO28: 0 | BP28: -6458.12 | BQ28: -904168.15 | BR28: 0 | BS28: 0 | BT28: 0 | BU28: 0 | BV28: 0 | BW28: 53871.8 | BX28: 53871.8
A29: 2165 | B29: Headcorn Primary School | C29: 0 | D29: 386 | E29: 0 | F29: 12.5 | G29: No | H29: Primary | I29: 300-399 | J29: =IF(G29=Benchmarking!$I$4,1,0) -> 0 | K29: =IF(Benchmarking!$I$6="All",1,IF(Benchmarking!$I$6=H29,1,0)) -> 0 | L29: =IF(Benchmarking!$I$8="All",1,IF(Benchmarking!$I$8=I29,1,0)) -> 0 | M29: 0 | N29: 1078373.58 | O29: 0 | P29: 500681.24 | Q29: 57268.93 | R29: 107376.91 | S29: 0 | T29: 90003.94 | U29: 11449.09 | V29: 9786.71 | W29: 6133 | X29: 9800.52 | Y29: 12609.86 | Z29: 20648.59 | AA29: 36089.93 | AB29: 10547.03 | AC29: 44080.64 | AD29: 53760 | AE29: 10015.28 | AF29: 83548.61 | AG29: 9486.85 | AH29: 0 | AI29: 24916.14 | AJ29: 14420.92 | AK29: 9408.07 | AL29: 81977.51 | AM29: 0 | AN29: 16310 | AO29: 18377.76 | AP29: 0 | AQ29: 0 | AR29: 0 | AS29: 0 | AT29: 0 | AU29: -1595293.59 | AV29: -249866.08 | AW29: 0 | AX29: -95847.36 | AY29: 0 | AZ29: -116195 | BA29: -21162.65 | BB29: -2407 | BC29: -2407.5 | BD29: -61089.18 | BE29: 0 | BF29: -7200 | BG29: -7814.84 | BH29: -12828.9 | BI29: -14423.25 | BJ29: 0 | BK29: 0 | BL29: 0 | BM29: -76999 | BN29: 0 | BO29: 0 | BP29: -17358.96 | BQ29: -1941007.03 | BR29: 0 | BS29: 0 | BT29: 0 | BU29: 0 | BV29: 0 | BW29: 95847.36 | BX29: 95847.36
A30: 2166 | B30: Hollingbourne Primary School | C30: 0 | D30: 98 | E30: 0 | F30: 6.333333333 | G30: No | H30: Primary | I30: 0-99 | J30: =IF(G30=Benchmarking!$I$4,1,0) -> 0 | K30: =IF(Benchmarking!$I$6="All",1,IF(Benchmarking!$I$6=H30,1,0)) -> 0 | L30: =IF(Benchmarking!$I$8="All",1,IF(Benchmarking!$I$8=I30,1,0)) -> 0 | M30: 0 | N30: 344628.57 | O30: 0 | P30: 117638.34 | Q30: 16134.48 | R30: 29593.15 | S30: 0 | T30: 3860.03 | U30: 2418.24 | V30: 3155 | W30: 3193.03 | X30: 2488.2 | Y30: 87307.44 | Z30: 7184.83 | AA30: 18148.75 | AB30: 949.6 | AC30: 15331.38 | AD30: 13723 | AE30: 5138.57 | AF30: 38044.84 | AG30: 18737.94 | AH30: 0 | AI30: 9985.05 | AJ30: 3661.24 | AK30: 8321.15 | AL30: 18757.67 | AM30: 0 | AN30: 0 | AO30: 10717.77 | AP30: 0 | AQ30: 0 | AR30: 0 | AS30: 0 | AT30: 0 | AU30: -541641.34 | AV30: -63383.46 | AW30: 0 | AX30: -67240.6 | AY30: -4500 | AZ30: -38525 | BA30: -5790 | BB30: -4317.47 | BC30: 0 | BD30: -3967.14 | BE30: 0 | BF30: -340 | BG30: -3219.76 | BH30: -16501.55 | BI30: -1337.91 | BJ30: 0 | BK30: 0 | BL30: 0 | BM30: -30819 | BN30: 0 | BO30: 0 | BP30: -3501.38 | BQ30: -672265.4 | BR30: 0 | BS30: 0 | BT30: 0 | BU30: 0 | BV30: 0 | BW30: 67240.6 | BX30: 67240.6
A31: 2167 | B31: Ightham Primary School | C31: 0 | D31: 209 | E31: 0 | F31: 8.416666667 | G31: No | H31: Primary | I31: 200-299 | J31: =IF(G31=Benchmarking!$I$4,1,0) -> 0 | K31: =IF(Benchmarking!$I$6="All",1,IF(Benchmarking!$I$6=H31,1,0)) -> 0 | L31: =IF(Benchmarking!$I$8="All",1,IF(Benchmarking!$I$8=I31,1,0)) -> 0 | M31: 0 | N31: 603603.95 | O31: 3621.49 | P31: 219985.42 | Q31: 19842.39 | R31: 46479.36 | S31: 0 | T31: 60429.94 | U31: 452 | V31: 2633.45 | W31: 418 | X31: 11701.27 | Y31: 17539.75 | Z31: 4324 | AA31: 19874.31 | AB31: 1187.74 | AC31: 25172.15 | AD31: 22444.71 | AE31: 7621.18 | AF31: 90664.44 | AG31: 7945.1 | AH31: 0 | AI31: 18675.49 | AJ31: 7808.2 | AK31: 10890.26 | AL31: 37345.18 | AM31: 3597.22 | AN31: 13451.17 | AO31: 28792.42 | AP31: 0 | AQ31: 0 | AR31: 0 | AS31: 0 | AT31: 0 | AU31: -884061.97 | AV31: -95914.31 | AW31: 0 | AX31: -67069.71 | AY31: 0 | AZ31: -20305 | BA31: -12349.93 | BB31: 0 | BC31: 0 | BD31: -68332.67 | BE31: 0 | BF31: -3413.22 | BG31: 0 | BH31: -60215.91 | BI31: -28766.15 | BJ31: 0 | BK31: 0 | BL31: 0 | BM31: -58269 | BN31: 0 | BO31: 0 | BP31: -3108.12 | BQ31: -1047045.99 | BR31: 0 | BS31: 0 | BT31: 0 | BU31: 0 | BV31: 0 | BW31: 67069.71 | BX31: 67069.71
A32: 2168 | B32: Lenham Primary School | C32: 0 | D32: 211 | E32: 0 | F32: 7.583333333 | G32: No | H32: Primary | I32: 200-299 | J32: =IF(G32=Benchmarking!$I$4,1,0) -> 0 | K32: =IF(Benchmarking!$I$6="All",1,IF(Benchmarking!$I$6=H32,1,0)) -> 0 | L32: =IF(Benchmarking!$I$8="All",1,IF(Benchmarking!$I$8=I32,1,0)) -> 0 | M32: 0 | N32: 613991.06 | O32: 420.37 | P32: 203510.63 | Q32: 29701.02 | R32: 57248.21 | S32: 0 | T32: 11799.41 | U32: 4088.85 | V32: 5151.49 | W32: 3978 | X32: 5357.36 | Y32: 4897.28 | Z32: 3480 | AA32: 20971 | AB32: 4646.04 | AC32: 32900.2 | AD32: 18837 | AE32: 8445.26 | AF32: 45092.95 | AG32: 18476.81 | AH32: 0 | AI32: 17666.7 | AJ32: 7573.53 | AK32: 2556.57 | AL32: 47019.55 | AM32: 29837.75 | AN32: 25122.74 | AO32: 40006.23 | AP32: 0 | AQ32: 0 | AR32: 16000 | AS32: 0 | AT32: 0 | AU32: -900268.11 | AV32: -121276.85 | AW32: 0 | AX32: -55686.66 | AY32: 0 | AZ32: -73980 | BA32: -14659.58 | BB32: -720 | BC32: -21435.57 | BD32: -12846.69 | BE32: -38.8 | BF32: 0 | BG32: 0 | BH32: -14961.52 | BI32: -5264.02 | BJ32: 0 | BK32: 0 | BL32: 0 | BM32: -52693 | BN32: 0 | BO32: 0 | BP32: -4624.95 | BQ32: -1077231.62 | BR32: 0 | BS32: 0 | BT32: 0 | BU32: 0 | BV32: 0 | BW32: 55686.66 | BX32: 55686.66
A33: 2169 | B33: Platts Heath Primary School | C33: 0 | D33: 62 | E33: 0 | F33: 7.333333333 | G33: No | H33: Primary | I33: 0-99 | J33: =IF(G33=Benchmarking!$I$4,1,0) -> 0 | K33: =IF(Benchmarking!$I$6="All",1,IF(Benchmarking!$I$6=H33,1,0)) -> 0 | L33: =IF(Benchmarking!$I$8="All",1,IF(Benchmarking!$I$8=I33,1,0)) -> 0 | M33: 0 | N33: 107852.19 | O33: 0 | P33: 139645.12 | Q33: 6815.22 | R33: 25907.39 | S33: 0 | T33: 3068.52 | U33: 1388.04 | V33: 1733.79 | W33: 3839.23 | X33: 1574.16 | Y33: 2103.53 | Z33: 2219.1 | AA33: 711.89 | AB33: 1354.65 | AC33: 13993.12 | AD33: 2345 | AE33: 5494.71 | AF33: 15677.01 | AG33: 4594.81 | AH33: 0 | AI33: 6916.2 | AJ33: 2316.28 | AK33: 165814.45 | AL33: 16329.23 | AM33: 895 | AN33: 7830.76 | AO33: 11069.1 | AP33: 0 | AQ33: 0 | AR33: 0 | AS33: 0 | AT33: 0 | AU33: -387103.5 | AV33: -48657.3 | AW33: 0 | AX33: -61610.31 | AY33: 0 | AZ33: -28650 | BA33: -8408.58 | BB33: -4120 | BC33: 0 | BD33: -4200.87 | BE33: -876.36 | BF33: -1000 | BG33: 0 | BH33: -5734.5 | BI33: -1677.49 | BJ33: 0 | BK33: 0 | BL33: 0 | BM33: -21248 | BN33: 0 | BO33: 0 | BP33: -1707.62 | BQ33: -497371.11 | BR33: 0 | BS33: 0 | BT33: 0 | BU33: 0 | BV33: 8034.2 | BW33: 53576.11 | BX33: 61610.31
A34: 2171 | B34: Brunswick House Primary School | C34: 0 | D34: 420 | E34: 0 | F34: 29.25 | G34: No | H34: Primary | I34: 400-499 | J34: =IF(G34=Benchmarking!$I$4,1,0) -> 0 | K34: =IF(Benchmarking!$I$6="All",1,IF(Benchmarking!$I$6=H34,1,0)) -> 0 | L34: =IF(Benchmarking!$I$8="All",1,IF(Benchmarking!$I$8=I34,1,0)) -> 0 | M34: 0 | N34: 1106267.61 | O34: 12566.87 | P34: 607533.08 | Q34: 42757.05 | R34: 115786.44 | S34: 0 | T34: 39290.33 | U34: 9565.35 | V34: 16912.49 | W34: 14517.29 | X34: 10663.8 | Y34: 29020.91 | Z34: 11192.69 | AA34: 50884.27 | AB34: 8268.3 | AC34: 42994.74 | AD34: 74240 | AE34: 28601.38 | AF34: 107465.22 | AG34: 27289.65 | AH34: 0 | AI34: 37976.91 | AJ34: 15691.2 | AK34: 7707.98 | AL34: 89571 | AM34: 14357.36 | AN34: 69654.83 | AO34: 38668.2 | AP34: 0 | AQ34: 0 | AR34: 67627 | AS34: 0 | AT34: 0 | AU34: -1785618.23 | AV34: -272681.86 | AW34: 0 | AX34: -271843.77 | AY34: 0 | AZ34: -166315 | BA34: -29883.95 | BB34: -2340 | BC34: -7554.26 | BD34: -91472.6 | BE34: 0 | BF34: -3940.95 | BG34: -7632 | BH34: -34447.23 | BI34: -651.74 | BJ34: 0 | BK34: 0 | BL34: 0 | BM34: -65573 | BN34: 0 | BO34: 0 | BP34: -11183.66 | BQ34: -2330143.86 | BR34: 0 | BS34: 0 | BT34: 0 | BU34: 0 | BV34: 0 | BW34: 271843.77 | BX34: 271843.77
A35: 2175 | B35: North Borough Junior School | C35: 0 | D35: 348 | E35: 0 | F35: 14.41666667 | G35: No | H35: Primary | I35: 300-399 | J35: =IF(G35=Benchmarking!$I$4,1,0) -> 0 | K35: =IF(Benchmarking!$I$6="All",1,IF(Benchmarking!$I$6=H35,1,0)) -> 0 | L35: =IF(Benchmarking!$I$8="All",1,IF(Benchmarking!$I$8=I35,1,0)) -> 0 | M35: 0 | N35: 998636.4 | O35: 0 | P35: 431724.97 | Q35: 25200.89 | R35: 88618.3 | S35: 0 | T35: 84795.13 | U35: 14821.72 | V35: 9327.8 | W35: 4811 | X35: 8835.72 | Y35: 8633.42 | Z35: 9507 | AA35: 20684.63 | AB35: 5741.7 | AC35: 45897.69 | AD35: 25860.61 | AE35: 11013.04 | AF35: 133949.2 | AG35: 17330.08 | AH35: 0 | AI35: 16855.12 | AJ35: 13001.28 | AK35: 18180.38 | AL35: 68543.26 | AM35: 89771.32 | AN35: 68097 | AO35: 30964.51 | AP35: 0 | AQ35: 0 | AR35: 0 | AS35: 0 | AT35: 0 | AU35: -1415806.63 | AV35: -243002.7 | AW35: 0 | AX35: -125733.18 | AY35: -1500 | AZ35: -153195 | BA35: -49968.7 | BB35: -21189.28 | BC35: 0 | BD35: -114270.85 | BE35: -35487.69 | BF35: -2700 | BG35: -22255.81 | BH35: -26930.9 | BI35: 0 | BJ35: 0 | BK35: 0 | BL35: 0 | BM35: -19430 | BN35: 0 | BO35: 0 | BP35: -19236.55 | BQ35: -1784542.51 | BR35: 0 | BS35: 0 | BT35: 0 | BU35: 0 | BV35: 0 | BW35: 125733.18 | BX35: 125733.18
A36: 2176 | B36: Park Way Primary School | C36: 0 | D36: 309 | E36: 0 | F36: 3.75 | G36: No | H36: Primary | I36: 300-399 | J36: =IF(G36=Benchmarking!$I$4,1,0) -> 0 | K36: =IF(Benchmarking!$I$6="All",1,IF(Benchmarking!$I$6=H36,1,0)) -> 0 | L36: =IF(Benchmarking!$I$8="All",1,IF(Benchmarking!$I$8=I36,1,0)) -> 0 | M36: 0 | N36: 955860.46 | O36: 906.29 | P36: 281859.4 | Q36: 61841.71 | R36: 88180.86 | S36: 0 | T36: 46255.73 | U36: 6343.27 | V36: 25438.01 | W36: 618 | X36: 7845.48 | Y36: 2303.45 | Z36: 4383.49 | AA36: 4000.45 | AB36: 2801.56 | AC36: 34076.94 | AD36: 38314.25 | AE36: 22431.45 | AF36: 64687.07 | AG36: 21808.77 | AH36: 0 | AI36: 16465.37 | AJ36: 11544.24 | AK36: 5995.49 | AL36: 66127.58 | AM36: 27293.01 | AN36: 35664.97 | AO36: 27886.65 | AP36: 0 | AQ36: 0 | AR36: 6837.01 | AS36: 0 | AT36: 0 | AU36: -1286472.6 | AV36: -276343.04 | AW36: 0 | AX36: -36302.84 | AY36: 0 | AZ36: -122839 | BA36: -16017.93 | BB36: -3156.24 | BC36: -10939.97 | BD36: -12383.61 | BE36: -23.54 | BF36: 0 | BG36: 0 | BH36: 0 | BI36: -4070.95 | BJ36: 0 | BK36: 0 | BL36: 0 | BM36: -54283 | BN36: 0 | BO36: 0 | BP36: -21541.26 | BQ36: -1599118.48 | BR36: 0 | BS36: 0 | BT36: 0 | BU36: 0 | BV36: 0 | BW36: 36302.84 | BX36: 36302.84
A37: 2185 | B37: Mereworth Community Primary School | C37: 0 | D37: 203 | E37: 0 | F37: 9.583333333 | G37: No | H37: Primary | I37: 200-299 | J37: =IF(G37=Benchmarking!$I$4,1,0) -> 0 | K37: =IF(Benchmarking!$I$6="All",1,IF(Benchmarking!$I$6=H37,1,0)) -> 0 | L37: =IF(Benchmarking!$I$8="All",1,IF(Benchmarking!$I$8=I37,1,0)) -> 0 | M37: 0 | N37: 528988.83 | O37: 0 | P37: 232286.34 | Q37: 34546.71 | R37: 70977.72 | S37: 0 | T37: 45558.35 | U37: 5856.98 | V37: 4569.15 | W37: 6114 | X37: 5154.12 | Y37: 30054.01 | Z37: 12980.97 | AA37: 2303.46 | AB37: 2984.13 | AC37: 32732.59 | AD37: 26368 | AE37: 12184.22 | AF37: 91280.39 | AG37: 33234.16 | AH37: 0 | AI37: 21416.7 | AJ37: 7584.04 | AK37: 11947.79 | AL37: 50123.08 | AM37: 2700 | AN37: 49192.82 | AO37: 13993.25 | AP37: 0 | AQ37: 0 | AR37: 0 | AS37: 0 | AT37: 0 | AU37: -897523.59 | AV37: -82995.38 | AW37: 0 | AX37: -90907.56 | AY37: 0 | AZ37: -51620 | BA37: -20657.88 | BB37: -3652.59 | BC37: -1658.74 | BD37: -63674.96 | BE37: -305.2 | BF37: 0 | BG37: -5039.15 | BH37: -31155.53 | BI37: -34082.54 | BJ37: 0 | BK37: 0 | BL37: 0 | BM37: -52754 | BN37: 0 | BO37: 0 | BP37: -8167.58 | BQ37: -1071426.53 | BR37: 0 | BS37: 0 | BT37: 0 | BU37: 0 | BV37: 0 | BW37: 90907.56 | BX37: 90907.56
A38: 2187 | B38: Offham Primary School | C38: 0 | D38: 209 | E38: 0 | F38: 7.666666667 | G38: No | H38: Junior | I38: 200-299 | J38: =IF(G38=Benchmarking!$I$4,1,0) -> 0 | K38: =IF(Benchmarking!$I$6="All",1,IF(Benchmarking!$I$6=H38,1,0)) -> 0 | L38: =IF(Benchmarking!$I$8="All",1,IF(Benchmarking!$I$8=I38,1,0)) -> 0 | M38: 0 | N38: 639878.26 | O38: 0 | P38: 224815.16 | Q38: 34971.31 | R38: 50589.51 | S38: 41011.03 | T38: 65450.83 | U38: 6122.81 | V38: 7704.05 | W38: 418 | X38: 5476.56 | Y38: 5276.84 | Z38: 3075.78 | AA38: 2912.92 | AB38: 1224.72 | AC38: 41479.64 | AD38: 28155.34 | AE38: 9670.03 | AF38: 53001.08 | AG38: 19929.87 | AH38: 0 | AI38: 25755.38 | AJ38: 8488.24 | AK38: 15580.43 | AL38: 27237.5 | AM38: 1060 | AN38: 14468.04 | AO38: 79010.45 | AP38: 0 | AQ38: 0 | AR38: 0 | AS38: 0 | AT38: 0 | AU38: -901184.8 | AV38: -95782.49 | AW38: 0 | AX38: -48206.45 | AY38: 0 | AZ38: -19610 | BA38: -10899.86 | BB38: -6520 | BC38: -3430 | BD38: -91718.79 | BE38: -21930.2 | BF38: 0 | BG38: -83662.1 | BH38: -23655.71 | BI38: -10819.04 | BJ38: 0 | BK38: 0 | BL38: 0 | BM38: -56698 | BN38: 0 | BO38: 0 | BP38: -2312.76 | BQ38: -1045173.74 | BR38: 0 | BS38: 0 | BT38: 0 | BU38: 0 | BV38: 0 | BW38: 48206.45 | BX38: 48206.45
A39: 2188 | B39: Plaxtol Primary School | C39: 0 | D39: 101 | E39: 0 | F39: 1.166666667 | G39: No | H39: Primary | I39: 100-199 | J39: =IF(G39=Benchmarking!$I$4,1,0) -> 0 | K39: =IF(Benchmarking!$I$6="All",1,IF(Benchmarking!$I$6=H39,1,0)) -> 0 | L39: =IF(Benchmarking!$I$8="All",1,IF(Benchmarking!$I$8=I39,1,0)) -> 0 | M39: 0 | N39: 320041.15 | O39: 13110.91 | P39: 101555.26 | Q39: 963.72 | R39: 29100.63 | S39: 0 | T39: 6774.75 | U39: 3648.66 | V39: 4918 | W39: 2577.13 | X39: 2564.4 | Y39: 2195.87 | Z39: 8322.15 | AA39: 13672.12 | AB39: 1346.23 | AC39: 11306.08 | AD39: 15219.5 | AE39: 4677.13 | AF39: 40911.86 | AG39: 5821.82 | AH39: 0 | AI39: 8976.85 | AJ39: 3773.32 | AK39: 6556.75 | AL39: 16909.12 | AM39: 10111.96 | AN39: 24083.35 | AO39: 13272.32 | AP39: 0 | AQ39: 0 | AR39: 9979 | AS39: 0 | AT39: 0 | AU39: -531472.83 | AV39: -41858.32 | AW39: 0 | AX39: -13285.68 | AY39: 0 | AZ39: -17460 | BA39: -6757 | BB39: 0 | BC39: -799.31 | BD39: -11990.59 | BE39: 0 | BF39: -6800 | BG39: 0 | BH39: -12366.7 | BI39: -6655.93 | BJ39: 0 | BK39: 0 | BL39: 0 | BM39: -31126 | BN39: 0 | BO39: 0 | BP39: -2676.12 | BQ39: -586616.83 | BR39: 0 | BS39: 0 | BT39: 0 | BU39: 0 | BV39: 1814.16 | BW39: 11471.52 | BX39: 13285.68
A40: 2189 | B40: Ryarsh Primary School | C40: 0 | D40: 209 | E40: 0 | F40: 13 | G40: No | H40: Primary | I40: 200-299 | J40: =IF(G40=Benchmarking!$I$4,1,0) -> 0 | K40: =IF(Benchmarking!$I$6="All",1,IF(Benchmarking!$I$6=H40,1,0)) -> 0 | L40: =IF(Benchmarking!$I$8="All",1,IF(Benchmarking!$I$8=I40,1,0)) -> 0 | M40: 0 | N40: 555522.85 | O40: 0 | P40: 349718.14 | Q40: 36017.77 | R40: 53152.61 | S40: 0 | T40: 47673.29 | U40: 5219.5 | V40: 5499.94 | W40: 418 | X40: 5306.52 | Y40: 10229.15 | Z40: 5412.43 | AA40: 1716.02 | AB40: 3663.15 | AC40: 22520.98 | AD40: 17964 | AE40: 7626.61 | AF40: 58242.32 | AG40: 9170.74 | AH40: 0 | AI40: 14394.05 | AJ40: 7808.2 | AK40: 36457.97 | AL40: 34009.65 | AM40: 0 | AN40: 4626.67 | AO40: 23719.45 | AP40: 0 | AQ40: 0 | AR40: 0 | AS40: 0 | AT40: 0 | AU40: -912760.8 | AV40: -92834.31 | AW40: 0 | AX40: -105285.25 | AY40: 0 | AZ40: -32078 | BA40: -9542 | BB40: 0 | BC40: 0 | BD40: -38372.12 | BE40: -1528.56 | BF40: 0 | BG40: 0 | BH40: -20848.18 | BI40: -26734.6 | BJ40: 0 | BK40: 0 | BL40: 0 | BM40: -45127 | BN40: 0 | BO40: 0 | BP40: -2112.26 | BQ40: -1110880.36 | BR40: 0 | BS40: 0 | BT40: 0 | BU40: 0 | BV40: 0 | BW40: 105285.25 | BX40: 105285.25
A41: 2190 | B41: Shipbourne School | C41: 0 | D41: 60 | E41: 0 | F41: 7.333333333 | G41: No | H41: Primary | I41: 0-99 | J41: =IF(G41=Benchmarking!$I$4,1,0) -> 0 | K41: =IF(Benchmarking!$I$6="All",1,IF(Benchmarking!$I$6=H41,1,0)) -> 0 | L41: =IF(Benchmarking!$I$8="All",1,IF(Benchmarking!$I$8=I41,1,0)) -> 0 | M41: 0 | N41: 242449.99 | O41: 0 | P41: 111980.34 | Q41: 0 | R41: 28051.04 | S41: 0 | T41: 0 | U41: 809.72 | V41: 2655.4 | W41: 2707.33 | X41: 1523.4 | Y41: 2049.21 | Z41: 2442.49 | AA41: 12639.36 | AB41: 1127.95 | AC41: 10623.52 | AD41: 6737 | AE41: 1598.38 | AF41: 51734.52 | AG41: 18687.6 | AH41: 0 | AI41: 5029.66 | AJ41: 2241.6 | AK41: 2097.47 | AL41: 11873.39 | AM41: 769 | AN41: 1551.67 | AO41: 9299.82 | AP41: 0 | AQ41: 0 | AR41: 0 | AS41: 0 | AT41: 0 | AU41: -365398.44 | AV41: -35057.3 | AW41: 0 | AX41: -80117.66 | AY41: 0 | AZ41: -16005 | BA41: -10614.3 | BB41: -385 | BC41: 0 | BD41: -3048.62 | BE41: 0 | BF41: 0 | BG41: 0 | BH41: -8574.77 | BI41: -8000 | BJ41: 0 | BK41: 0 | BL41: 0 | BM41: -27625 | BN41: 0 | BO41: 0 | BP41: -3108.12 | BQ41: -480573.4 | BR41: 0 | BS41: 0 | BT41: 0 | BU41: 0 | BV41: 17668.1 | BW41: 62449.56 | BX41: 80117.66
A42: 2192 | B42: Staplehurst School | C42: 0 | D42: 404 | E42: 0 | F42: 13.33333333 | G42: No | H42: Primary | I42: 400-499 | J42: =IF(G42=Benchmarking!$I$4,1,0) -> 0 | K42: =IF(Benchmarking!$I$6="All",1,IF(Benchmarking!$I$6=H42,1,0)) -> 0 | L42: =IF(Benchmarking!$I$8="All",1,IF(Benchmarking!$I$8=I42,1,0)) -> 0 | M42: 0 | N42: 1055531.44 | O42: 480 | P42: 452353.9 | Q42: 32424.32 | R42: 122245.31 | S42: 0 | T42: 96433.49 | U42: 10986.54 | V42: 13268.95 | W42: 8244.95 | X42: 8479.92 | Y42: 24279.88 | Z42: 5098.64 | AA42: 54972.91 | AB42: 7091.51 | AC42: 67671.2 | AD42: 39936 | AE42: 16048.79 | AF42: 104502.34 | AG42: 25013.18 | AH42: 0 | AI42: 18443.2 | AJ42: 16870.96 | AK42: 7263.85 | AL42: 88206.75 | AM42: 17600.35 | AN42: 71868.69 | AO42: 32741.21 | AP42: 0 | AQ42: 977.95 | AR42: 0 | AS42: 0 | AT42: 0 | AU42: -1611592.59 | AV42: -262363.51 | AW42: 0 | AX42: -156694.81 | AY42: 0 | AZ42: -120385 | BA42: -53446.99 | BB42: 0 | BC42: -7421.94 | BD42: -53267.13 | BE42: -26372.26 | BF42: 0 | BG42: -13500.38 | BH42: -19333 | BI42: -4228.7 | BJ42: 0 | BK42: 0 | BL42: 0 | BM42: -89288 | BN42: 0 | BO42: 0 | BP42: -8403.28 | BQ42: -2030650.91 | BR42: 0 | BS42: 0 | BT42: 0 | BU42: 0 | BV42: 0 | BW42: 156694.81 | BX42: 156694.81
A43: 2193 | B43: Sutton Valence Primary School | C43: 0 | D43: 207 | E43: 0 | F43: 6.5 | G43: No | H43: Primary | I43: 200-299 | J43: =IF(G43=Benchmarking!$I$4,1,0) -> 0 | K43: =IF(Benchmarking!$I$6="All",1,IF(Benchmarking!$I$6=H43,1,0)) -> 0 | L43: =IF(Benchmarking!$I$8="All",1,IF(Benchmarking!$I$8=I43,1,0)) -> 0 | M43: 0 | N43: 524369.22 | O43: 0 | P43: 159762.14 | Q43: 15985.84 | R43: 103213.34 | S43: 29030.06 | T43: 23703.23 | U43: 9056.87 | V43: 7660.81 | W43: 414 | X43: 5255.76 | Y43: 99000.31 | Z43: 22000.98 | AA43: 20641.73 | AB43: 1884.51 | AC43: 30589.35 | AD43: 19835 | AE43: 7129.32 | AF43: 69788.69 | AG43: 10133.17 | AH43: 0 | AI43: 19474.43 | AJ43: 7733.52 | AK43: 2177.93 | AL43: 39843.22 | AM43: 53196.9 | AN43: 11031.28 | AO43: 14583.88 | AP43: 0 | AQ43: 0 | AR43: 0 | AS43: 0 | AT43: 0 | AU43: -900237.52 | AV43: -107052.4 | AW43: 0 | AX43: -39033.04 | AY43: 0 | AZ43: -67625 | BA43: -18177.58 | BB43: -5300 | BC43: -1931 | BD43: -52317.98 | BE43: -32063.34 | BF43: 0 | BG43: -5987.87 | BH43: -20999.68 | BI43: -9081.4 | BJ43: 0 | BK43: 0 | BL43: 0 | BM43: -50973 | BN43: 0 | BO43: 0 | BP43: -8484.39 | BQ43: -1046322.96 | BR43: 0 | BS43: 0 | BT43: 0 | BU43: 0 | BV43: 0 | BW43: 39033.04 | BX43: 39033.04
A44: 2226 | B44: Eastling Primary School | C44: 0 | D44: 104 | E44: 0 | F44: 5.5 | G44: No | H44: Primary | I44: 100-199 | J44: =IF(G44=Benchmarking!$I$4,1,0) -> 0 | K44: =IF(Benchmarking!$I$6="All",1,IF(Benchmarking!$I$6=H44,1,0)) -> 0 | L44: =IF(Benchmarking!$I$8="All",1,IF(Benchmarking!$I$8=I44,1,0)) -> 0 | M44: 0 | N44: 385376.12 | O44: 20102.49 | P44: 116942.78 | Q44: 24814.68 | R44: 43551.98 | S44: 0 | T44: 10217.67 | U44: 2409.41 | V44: 6570 | W44: 3544.2 | X44: 2810.52 | Y44: 5102.16 | Z44: 1496.53 | AA44: 2150.31 | AB44: 2922.06 | AC44: 17698.39 | AD44: 14222 | AE44: 7977.48 | AF44: 45518.66 | AG44: 8876.39 | AH44: 0 | AI44: 10103.5 | AJ44: 4565.44 | AK44: 3214.65 | AL44: 19839.92 | AM44: 0 | AN44: 4208.04 | AO44: 13870.12 | AP44: 0 | AQ44: 0 | AR44: 1397.45 | AS44: 0 | AT44: 0 | AU44: -557003.19 | AV44: -59713.72 | AW44: 0 | AX44: -45091.13 | AY44: 0 | AZ44: -24355 | BA44: -28653.9 | BB44: -4299 | BC44: -8395.15 | BD44: 0 | BE44: 0 | BF44: 0 | BG44: -2572.33 | BH44: -8444.5 | BI44: -7180.28 | BJ44: 0 | BK44: 0 | BL44: 0 | BM44: -30261 | BN44: 0 | BO44: 0 | BP44: -1517.28 | BQ44: -661808.04 | BR44: 0 | BS44: 0 | BT44: 0 | BU44: 0 | BV44: 157.74 | BW44: 44933.39 | BX44: 45091.13
A45: 2227 | B45: Ethelbert Road Primary School | C45: 0 | D45: 210 | E45: 0 | F45: 6.166666667 | G45: No | H45: Primary | I45: 200-299 | J45: =IF(G45=Benchmarking!$I$4,1,0) -> 0 | K45: =IF(Benchmarking!$I$6="All",1,IF(Benchmarking!$I$6=H45,1,0)) -> 0 | L45: =IF(Benchmarking!$I$8="All",1,IF(Benchmarking!$I$8=I45,1,0)) -> 0 | M45: 0 | N45: 594129.64 | O45: 5936.23 | P45: 217462.23 | Q45: 23170.46 | R45: 48993.31 | S45: 0 | T45: 45300.36 | U45: 4649.04 | V45: 5330.5 | W45: 420 | X45: 5502 | Y45: 3567.03 | Z45: 3345.65 | AA45: 2277.13 | AB45: 2100.38 | AC45: 9601.01 | AD45: 11477 | AE45: 4992.07 | AF45: 60603.41 | AG45: 4687.17 | AH45: 0 | AI45: 13305.42 | AJ45: 8525.64 | AK45: 6906.1 | AL45: 34464.37 | AM45: 0 | AN45: 5691.16 | AO45: 40286.3 | AP45: 0 | AQ45: 0 | AR45: 7551.43 | AS45: 0 | AT45: 0 | AU45: -869438.59 | AV45: -93655.41 | AW45: 0 | AX45: -57278.54 | AY45: 0 | AZ45: -35550 | BA45: -13586.58 | BB45: -26783 | BC45: -250 | BD45: -28795.11 | BE45: 0 | BF45: 0 | BG45: -8961.44 | BH45: -16150 | BI45: -3118 | BJ45: 0 | BK45: 0 | BL45: 0 | BM45: -55885 | BN45: 0 | BO45: 0 | BP45: -1672.6 | BQ45: -1020372.54 | BR45: 0 | BS45: 0 | BT45: 0 | BU45: 0 | BV45: 0 | BW45: 57278.54 | BX45: 57278.54
A46: 2228 | B46: Davington Primary School | C46: 0 | D46: 409 | E46: 0 | F46: 5.166666667 | G46: No | H46: Primary | I46: 400-499 | J46: =IF(G46=Benchmarking!$I$4,1,0) -> 0 | K46: =IF(Benchmarking!$I$6="All",1,IF(Benchmarking!$I$6=H46,1,0)) -> 0 | L46: =IF(Benchmarking!$I$8="All",1,IF(Benchmarking!$I$8=I46,1,0)) -> 0 | M46: 0 | N46: 1178734.58 | O46: 41035.09 | P46: 442347.06 | Q46: 31599 | R46: 93304.96 | S46: 64989.93 | T46: 101319.82 | U46: 10133.58 | V46: 10198.96 | W46: 8353.34 | X46: 10639.56 | Y46: 37140.03 | Z46: 20168.59 | AA46: 39400.88 | AB46: 9221.17 | AC46: 70007.79 | AD46: 39424 | AE46: 18308.43 | AF46: 109735.42 | AG46: 16990.79 | AH46: 0 | AI46: 27084.96 | AJ46: 16300.28 | AK46: 15106.02 | AL46: 92873.19 | AM46: 9244 | AN46: 14329.44 | AO46: 15733 | AP46: 0 | AQ46: 0 | AR46: 0 | AS46: 0 | AT46: 0 | AU46: -1624455.93 | AV46: -286761.9 | AW46: 0 | AX46: -48028.59 | AY46: 0 | AZ46: -125780 | BA46: -29799.88 | BB46: -1800 | BC46: -3353.31 | BD46: -114807.64 | BE46: -89166.27 | BF46: -7920 | BG46: -6657.97 | BH46: -34649 | BI46: -3887.89 | BJ46: 0 | BK46: 0 | BL46: 0 | BM46: -83077 | BN46: 0 | BO46: 0 | BP46: -20470.21 | BQ46: -1959246.42 | BR46: 0 | BS46: 0 | BT46: 0 | BU46: 0 | BV46: 0 | BW46: 48028.59 | BX46: 48028.59
A47: 2231 | B47: Lower Halstow School | C47: 0 | D47: 186 | E47: 0 | F47: 15.33333333 | G47: No | H47: Primary | I47: 100-199 | J47: =IF(G47=Benchmarking!$I$4,1,0) -> 0 | K47: =IF(Benchmarking!$I$6="All",1,IF(Benchmarking!$I$6=H47,1,0)) -> 0 | L47: =IF(Benchmarking!$I$8="All",1,IF(Benchmarking!$I$8=I47,1,0)) -> 0 | M47: 0 | N47: 543053.67 | O47: 0 | P47: 299514.44 | Q47: 18916.31 | R47: 59877.12 | S47: 0 | T47: 0 | U47: 3982.68 | V47: 8663.99 | W47: 11371.24 | X47: 4807.56 | Y47: 66950.61 | Z47: 17018.17 | AA47: 11286.07 | AB47: 3406.48 | AC47: 16132.78 | AD47: 20833 | AE47: 6894.86 | AF47: 70036.71 | AG47: 10906.17 | AH47: 0 | AI47: 15316.59 | AJ47: 7288.92 | AK47: 0 | AL47: 27172.57 | AM47: 32519.56 | AN47: 0 | AO47: 23664.5 | AP47: 0 | AQ47: 0 | AR47: 0 | AS47: 0 | AT47: 0 | AU47: -848783.4 | AV47: -96624.99 | AW47: 0 | AX47: -108294.07 | AY47: 0 | AZ47: -35905.95 | BA47: -11176.79 | BB47: -69313.59 | BC47: -2224.54 | BD47: -627.55 | BE47: 0 | BF47: -16704 | BG47: 0 | BH47: -13893.58 | BI47: -32281.6 | BJ47: 0 | BK47: 0 | BL47: 0 | BM47: -49959 | BN47: 0 | BO47: 0 | BP47: -4905.42 | BQ47: -1053702.46 | BR47: 0 | BS47: 0 | BT47: 0 | BU47: 0 | BV47: 0 | BW47: 108294.07 | BX47: 108294.07
A48: 2239 | B48: Rodmersham Primary School | C48: 0 | D48: 113 | E48: 0 | F48: 8.75 | G48: No | H48: Primary | I48: 100-199 | J48: =IF(G48=Benchmarking!$I$4,1,0) -> 0 | K48: =IF(Benchmarking!$I$6="All",1,IF(Benchmarking!$I$6=H48,1,0)) -> 0 | L48: =IF(Benchmarking!$I$8="All",1,IF(Benchmarking!$I$8=I48,1,0)) -> 0 | M48: 0 | N48: 377930.33 | O48: 0 | P48: 175820.72 | Q48: 7025.06 | R48: 19090.21 | S48: 0 | T48: 20228.16 | U48: 3604.83 | V48: 5410.72 | W48: 226 | X48: 2954.16 | Y48: 5829.09 | Z48: 6188.24 | AA48: 735.78 | AB48: 621.37 | AC48: 5045.77 | AD48: 3498.73 | AE48: 24548.49 | AF48: 40633.62 | AG48: 13061.89 | AH48: 0 | AI48: 12417.15 | AJ48: 4561.72 | AK48: 2465.68 | AL48: 25299.92 | AM48: 0 | AN48: 18648.66 | AO48: 7334.53 | AP48: 0 | AQ48: 0 | AR48: 0 | AS48: 0 | AT48: 0 | AU48: -555783.26 | AV48: -47319.1 | AW48: 0 | AX48: -112167.86 | AY48: 0 | AZ48: -6895 | BA48: -5510 | BB48: -720 | BC48: 0 | BD48: -8812.99 | BE48: -2190.11 | BF48: 0 | BG48: -33186.52 | BH48: -11618.06 | BI48: -1996.81 | BJ48: 0 | BK48: 0 | BL48: 0 | BM48: -35541 | BN48: 0 | BO48: 0 | BP48: -2038.7 | BQ48: -715270.22 | BR48: 0 | BS48: 0 | BT48: 0 | BU48: 0 | BV48: 10461.33 | BW48: 101706.53 | BX48: 112167.86
A49: 2245 | B49: Rose Street School | C49: 16 | D49: 390 | E49: 0 | F49: 15 | G49: Yes | H49: Primary | I49: 300-399 | J49: =IF(G49=Benchmarking!$I$4,1,0) -> 0 | K49: =IF(Benchmarking!$I$6="All",1,IF(Benchmarking!$I$6=H49,1,0)) -> 0 | L49: =IF(Benchmarking!$I$8="All",1,IF(Benchmarking!$I$8=I49,1,0)) -> 0 | M49: 0 | N49: 1117740.37 | O49: 0 | P49: 567069.64 | Q49: 131396.81 | R49: 191912.12 | S49: 0 | T49: 131563.6 | U49: 8839.37 | V49: 18692.6 | W49: 780 | X49: 10012.2 | Y49: 28002.2 | Z49: 5930.3 | AA49: 10191.5 | AB49: 7678.26 | AC49: 64845.29 | AD49: 79872 | AE49: 12665.91 | AF49: 148408.05 | AG49: 33146.08 | AH49: 0 | AI49: 17428.58 | AJ49: 15010.44 | AK49: 560 | AL49: 102545.74 | AM49: 131311 | AN49: 23273.28 | AO49: 49909.11 | AP49: 0 | AQ49: 0 | AR49: 15000 | AS49: 0 | AT49: 0 | AU49: -1813340.37 | AV49: -548911.48 | AW49: 0 | AX49: -104830.23 | AY49: 0 | AZ49: -355445.46 | BA49: -34855.93 | BB49: -1700 | BC49: 0 | BD49: -8684.22 | BE49: 0 | BF49: 0 | BG49: -8029.08 | BH49: -5250 | BI49: -3866.2 | BJ49: 0 | BK49: 0 | BL49: 0 | BM49: -36982 | BN49: 0 | BO49: 0 | BP49: -24520.96 | BQ49: -2467082.08 | BR49: 0 | BS49: 0 | BT49: 0 | BU49: 0 | BV49: 0 | BW49: 104830.23 | BX49: 104830.23
A50: 2254 | B50: Canterbury Road Primary School | C50: 0 | D50: 207 | E50: 0 | F50: 10.16666667 | G50: No | H50: Primary | I50: 200-299 | J50: =IF(G50=Benchmarking!$I$4,1,0) -> 0 | K50: =IF(Benchmarking!$I$6="All",1,IF(Benchmarking!$I$6=H50,1,0)) -> 0 | L50: =IF(Benchmarking!$I$8="All",1,IF(Benchmarking!$I$8=I50,1,0)) -> 0 | M50: 0 | N50: 598281.75 | O50: 0 | P50: 303465.87 | Q50: 41209.15 | R50: 74615.18 | S50: 0 | T50: 49153.68 | U50: 15763.37 | V50: 4204.5 | W50: 492.7 | X50: 4615.4 | Y50: 40236.74 | Z50: 6765.82 | AA50: 6189.8 | AB50: 1906.1 | AC50: 24973.19 | AD50: 29952 | AE50: 12704.62 | AF50: 67752.88 | AG50: 19748.19 | AH50: 0 | AI50: 13224.85 | AJ50: 8073.48 | AK50: 0 | AL50: 40652.1 | AM50: 7039.6 | AN50: 944.04 | AO50: 32675.54 | AP50: 0 | AQ50: 0 | AR50: 0 | AS50: 0 | AT50: 0 | AU50: -908867.03 | AV50: -200528.62 | AW50: 0 | AX50: -54674.59 | AY50: 0 | AZ50: -101460 | BA50: -11676.93 | BB50: -6550 | BC50: 0 | BD50: -10189.6 | BE50: 0 | BF50: -7080 | BG50: -516.12 | BH50: -10583.5 | BI50: -2252.69 | BJ50: 0 | BK50: 0 | BL50: 0 | BM50: -32976 | BN50: 0 | BO50: 0 | BP50: -6384.17 | BQ50: -1164070.24 | BR50: 0 | BS50: 0 | BT50: 0 | BU50: 0 | BV50: 0 | BW50: 54674.59 | BX50: 54674.59
A51: 2258 | B51: Blean Primary School | C51: 0 | D51: 430 | E51: 0 | F51: 13.41666667 | G51: No | H51: Primary | I51: 400-499 | J51: =IF(G51=Benchmarking!$I$4,1,0) -> 0 | K51: =IF(Benchmarking!$I$6="All",1,IF(Benchmarking!$I$6=H51,1,0)) -> 0 | L51: =IF(Benchmarking!$I$8="All",1,IF(Benchmarking!$I$8=I51,1,0)) -> 0 | M51: 0 | N51: 1108065.8 | O51: 0 | P51: 571021.11 | Q51: 120153.59 | R51: 141389.95 | S51: 0 | T51: 116610.3 | U51: 13095.54 | V51: 10414.99 | W51: 19920.92 | X51: 10917.72 | Y51: 6599.99 | Z51: 4914.54 | AA51: 2677.65 | AB51: 9132.27 | AC51: 62478.34 | AD51: 37632 | AE51: 20371.87 | AF51: 105078.3 | AG51: 8702.64 | AH51: 0 | AI51: 14110.61 | AJ51: 16064.84 | AK51: 21701.85 | AL51: 72303.74 | AM51: 2581.8 | AN51: 11532.05 | AO51: 36915.13 | AP51: 0 | AQ51: 0 | AR51: 25547.17 | AS51: 0 | AT51: 0 | AU51: -1667475.21 | AV51: -316654.88 | AW51: 0 | AX51: -94878.73 | AY51: 0 | AZ51: -56700 | BA51: -18825.93 | BB51: -18234.03 | BC51: -10242.5 | BD51: -185830.62 | BE51: 0 | BF51: -5230 | BG51: -20188 | BH51: -29444.59 | BI51: -14925.34 | BJ51: 0 | BK51: 0 | BL51: 0 | BM51: -96514 | BN51: 0 | BO51: 0 | BP51: -9084.38 | BQ51: -2079008.82 | BR51: 0 | BS51: 0 | BT51: 0 | BU51: 0 | BV51: 0 | BW51: 94878.73 | BX51: 94878.73
A52: 2263 | B52: Herne Bay Infant and Nursery School | C52: 29 | D52: 266 | E52: 0 | F52: 9.25 | G52: Yes | H52: Primary | I52: 200-299 | J52: =IF(G52=Benchmarking!$I$4,1,0) -> 0 | K52: =IF(Benchmarking!$I$6="All",1,IF(Benchmarking!$I$6=H52,1,0)) -> 0 | L52: =IF(Benchmarking!$I$8="All",1,IF(Benchmarking!$I$8=I52,1,0)) -> 0 | M52: 0 | N52: 775854.86 | O52: 34035.95 | P52: 441234.82 | Q52: 56338.43 | R52: 79720.31 | S52: 0 | T52: 52172.35 | U52: 10037.9 | V52: 9034.23 | W52: 7868.78 | X52: 6924.36 | Y52: 12835.55 | Z52: 2018.92 | AA52: 32144.37 | AB52: 3147.35 | AC52: 35624.92 | AD52: 18363.2 | AE52: 9799.8 | AF52: 30781.42 | AG52: 17994.37 | AH52: 0 | AI52: 23080.85 | AJ52: 10536.16 | AK52: 2382.98 | AL52: 93331.8 | AM52: 0 | AN52: 32098.62 | AO52: 31745.5 | AP52: 0 | AQ52: 0 | AR52: 51462.71 | AS52: 0 | AT52: 0 | AU52: -1266146.43 | AV52: -236185.65 | AW52: 0 | AX52: -102486.01 | AY52: 0 | AZ52: -138005 | BA52: -22372.65 | BB52: -1450 | BC52: 0 | BD52: -23572.59 | BE52: -4750 | BF52: -7020 | BG52: -457.87 | BH52: -1884.5 | BI52: -5287.03 | BJ52: 0 | BK52: 0 | BL52: 0 | BM52: -79638 | BN52: 0 | BO52: 0 | BP52: -9900.54 | BQ52: -1604818.09 | BR52: 0 | BS52: 0 | BT52: 0 | BU52: 0 | BV52: 0 | BW52: 102486.01 | BX52: 102486.01
A53: 2265 | B53: Hoath Primary School | C53: 0 | D53: 103 | E53: 0 | F53: 4.416666667 | G53: No | H53: Primary | I53: 100-199 | J53: =IF(G53=Benchmarking!$I$4,1,0) -> 0 | K53: =IF(Benchmarking!$I$6="All",1,IF(Benchmarking!$I$6=H53,1,0)) -> 0 | L53: =IF(Benchmarking!$I$8="All",1,IF(Benchmarking!$I$8=I53,1,0)) -> 0 | M53: 0 | N53: 283938.15 | O53: 2182.63 | P53: 159268.53 | Q53: 7654.62 | R53: 37051.57 | S53: 0 | T53: 3778.52 | U53: 2262.01 | V53: 3482.82 | W53: 4933.19 | X53: 2785.08 | Y53: 1903.94 | Z53: 4349.59 | AA53: 7042.9 | AB53: 6562.09 | AC53: 11458.15 | AD53: 16498 | AE53: 3744.89 | AF53: 27359.83 | AG53: 7082.3 | AH53: 0 | AI53: 13261.5 | AJ53: 4528.04 | AK53: 636.87 | AL53: 18616.82 | AM53: 0 | AN53: 67838.73 | AO53: 15639.71 | AP53: 0 | AQ53: 0 | AR53: 0 | AS53: 0 | AT53: 0 | AU53: -509080.53 | AV53: -62406.43 | AW53: 0 | AX53: -38333.27 | AY53: 0 | AZ53: -29795 | BA53: -5584 | BB53: -5432.97 | BC53: 0 | BD53: -35986.94 | BE53: -2.58 | BF53: 0 | BG53: 0 | BH53: -8903.5 | BI53: -2000 | BJ53: 0 | BK53: 0 | BL53: 0 | BM53: -32894 | BN53: 0 | BO53: 0 | BP53: -2503.16 | BQ53: -609820.23 | BR53: 0 | BS53: 0 | BT53: 0 | BU53: 0 | BV53: 0 | BW53: 38333.27 | BX53: 38333.27
A54: 2268 | B54: Westmeads Community Infant School | C54: 1 | D54: 150 | E54: 0 | F54: 15.41666667 | G54: Yes | H54: Primary | I54: 100-199 | J54: =IF(G54=Benchmarking!$I$4,1,0) -> 0 | K54: =IF(Benchmarking!$I$6="All",1,IF(Benchmarking!$I$6=H54,1,0)) -> 0 | L54: =IF(Benchmarking!$I$8="All",1,IF(Benchmarking!$I$8=I54,1,0)) -> 0 | M54: 0 | N54: 481362.59 | O54: 0 | P54: 155771.77 | Q54: 49300.64 | R54: 47668.17 | S54: 40797.27 | T54: 62702.23 | U54: 4153.76 | V54: 6771.34 | W54: 300 | X54: 753.84 | Y54: 15008.47 | Z54: 11711.85 | AA54: 2640.4 | AB54: 1548.78 | AC54: 24957.84 | AD54: 19711 | AE54: 4581.84 | AF54: 36402.45 | AG54: 9438.31 | AH54: 0 | AI54: 10709.48 | AJ54: 5979.24 | AK54: 130.75 | AL54: 18848.93 | AM54: 0 | AN54: 9737 | AO54: 46387.54 | AP54: 0 | AQ54: 0 | AR54: 0 | AS54: 0 | AT54: 0 | AU54: -727508.82 | AV54: -82517.78 | AW54: 0 | AX54: -84062.13 | AY54: 0 | AZ54: -42615 | BA54: -20361.36 | BB54: -21984.77 | BC54: -0.49 | BD54: -42241.85 | BE54: 0 | BF54: 0 | BG54: 0 | BH54: -3562.31 | BI54: -4247.32 | BJ54: 0 | BK54: 0 | BL54: 0 | BM54: -73514 | BN54: 0 | BO54: 0 | BP54: -6478.76 | BQ54: -894088.73 | BR54: 0 | BS54: 0 | BT54: 0 | BU54: 0 | BV54: 0 | BW54: 84062.13 | BX54: 84062.13
A55: 2269 | B55: Whitstable Junior School | C55: 0 | D55: 231 | E55: 0 | F55: 15.33333333 | G55: No | H55: Primary | I55: 200-299 | J55: =IF(G55=Benchmarking!$I$4,1,0) -> 0 | K55: =IF(Benchmarking!$I$6="All",1,IF(Benchmarking!$I$6=H55,1,0)) -> 0 | L55: =IF(Benchmarking!$I$8="All",1,IF(Benchmarking!$I$8=I55,1,0)) -> 0 | M55: 0 | N55: 691452.01 | O55: 0 | P55: 356072.27 | Q55: 54449.04 | R55: 61264.39 | S55: 0 | T55: 0 | U55: 733.81 | V55: 5350.69 | W55: 4825.6 | X55: 6035.16 | Y55: 11871.64 | Z55: 528.99 | AA55: 3587.59 | AB55: 2884.68 | AC55: 38738.55 | AD55: 4465.17 | AE55: 8013.5 | AF55: 81244.97 | AG55: 3395 | AH55: 0 | AI55: 15394.87 | AJ55: 9310.2 | AK55: 334.4 | AL55: 23458.79 | AM55: 14332.45 | AN55: 22827.01 | AO55: 38670.75 | AP55: 0 | AQ55: 1067.3 | AR55: 45316.16 | AS55: 0 | AT55: 0 | AU55: -996005.61 | AV55: -152513.25 | AW55: 0 | AX55: -154038.22 | AY55: 0 | AZ55: -112715 | BA55: -19552.25 | BB55: -4327.18 | BC55: -45315.44 | BD55: -733.66 | BE55: 0 | BF55: -495 | BG55: -4071.71 | BH55: -30421.5 | BI55: -7776.92 | BJ55: 0 | BK55: 0 | BL55: 0 | BM55: -18408 | BN55: 0 | BO55: 0 | BP55: -18446.46 | BQ55: -1302557.08 | BR55: 0 | BS55: 0 | BT55: 0 | BU55: 0 | BV55: 0 | BW55: 154038.22 | BX55: 154038.22
A56: 2270 | B56: Aldington Primary School | C56: 0 | D56: 191 | E56: 0 | F56: 3 | G56: No | H56: Primary | I56: 100-199 | J56: =IF(G56=Benchmarking!$I$4,1,0) -> 0 | K56: =IF(Benchmarking!$I$6="All",1,IF(Benchmarking!$I$6=H56,1,0)) -> 0 | L56: =IF(Benchmarking!$I$8="All",1,IF(Benchmarking!$I$8=I56,1,0)) -> 0 | M56: 0 | N56: 490781.83 | O56: 0 | P56: 227070.61 | Q56: 10461.67 | R56: 46057.09 | S56: 0 | T56: 16439.14 | U56: 3403.6 | V56: 5134.06 | W56: 1992 | X56: 4849.44 | Y56: 8577.88 | Z56: 7251.56 | AA56: 15976.16 | AB56: 3930.14 | AC56: 14313.44 | AD56: 29952 | AE56: 5086.38 | AF56: 45224.32 | AG56: 10849.74 | AH56: 0 | AI56: 10955.19 | AJ56: 7135.72 | AK56: 2417.22 | AL56: 33985.12 | AM56: 22359 | AN56: 17589.76 | AO56: 28649.37 | AP56: 0 | AQ56: 0 | AR56: 0 | AS56: 0 | AT56: 0 | AU56: -825578.85 | AV56: -87189.63 | AW56: 0 | AX56: -17786.64 | AY56: 0 | AZ56: -42328 | BA56: -11473.93 | BB56: -12455.2 | BC56: -11696.12 | BD56: 0 | BE56: 0 | BF56: 0 | BG56: 0 | BH56: -11986.45 | BI56: -8466.09 | BJ56: 0 | BK56: 0 | BL56: 0 | BM56: -46051.66 | BN56: 0 | BO56: 0 | BP56: -6036.66 | BQ56: -930555.12 | BR56: 0 | BS56: 0 | BT56: 0 | BU56: 0 | BV56: 0 | BW56: 17786.64 | BX56: 17786.64
A57: 2275 | B57: Victoria Road Primary School | C57: 0 | D57: 211 | E57: 0 | F57: 11.58333333 | G57: No | H57: Primary | I57: 200-299 | J57: =IF(G57=Benchmarking!$I$4,1,0) -> 0 | K57: =IF(Benchmarking!$I$6="All",1,IF(Benchmarking!$I$6=H57,1,0)) -> 0 | L57: =IF(Benchmarking!$I$8="All",1,IF(Benchmarking!$I$8=I57,1,0)) -> 0 | M57: 0 | N57: 558880.54 | O57: 2024.27 | P57: 299700.21 | Q57: 22995.93 | R57: 97543.82 | S57: 0 | T57: 55145.28 | U57: 10663.42 | V57: 12442 | W57: 3935.65 | X57: 928.44 | Y57: 14533.98 | Z57: 2091.74 | AA57: 18169.29 | AB57: 0 | AC57: 14547.59 | AD57: 15095 | AE57: 5263.54 | AF57: 57820.5 | AG57: 5504.28 | AH57: 0 | AI57: 21990.86 | AJ57: 7883 | AK57: 1397.69 | AL57: 57495.05 | AM57: 3401 | AN57: 32116.03 | AO57: 30783.28 | AP57: 0 | AQ57: 0 | AR57: 21454.95 | AS57: 0 | AT57: 0 | AU57: -911399.09 | AV57: -139253.63 | AW57: 0 | AX57: -74957.5 | AY57: 0 | AZ57: -85754 | BA57: -13941.93 | BB57: -9009.13 | BC57: 0 | BD57: -19749.53 | BE57: -13449.4 | BF57: -600 | BG57: -4705.51 | BH57: -27211.3 | BI57: -2899.86 | BJ57: 0 | BK57: 0 | BL57: 0 | BM57: -49518 | BN57: 0 | BO57: 0 | BP57: -12212.72 | BQ57: -1125610.22 | BR57: 0 | BS57: 0 | BT57: 0 | BU57: 0 | BV57: 0 | BW57: 74957.5 | BX57: 74957.5
A58: 2276 | B58: Willesborough Infant School | C58: 0 | D58: 344 | E58: 0 | F58: 5.75 | G58: No | H58: Infant | I58: 300-399 | J58: =IF(G58=Benchmarking!$I$4,1,0) -> 0 | K58: =IF(Benchmarking!$I$6="All",1,IF(Benchmarking!$I$6=H58,1,0)) -> 0 | L58: =IF(Benchmarking!$I$8="All",1,IF(Benchmarking!$I$8=I58,1,0)) -> 0 | M58: 0 | N58: 978289.73 | O58: 3288.45 | P58: 404719.66 | Q58: 57948.3 | R58: 88884.71 | S58: 0 | T58: 139094.28 | U58: 2261.56 | V58: 6996.19 | W58: 688 | X58: 8734.08 | Y58: 4537.57 | Z58: 8565 | AA58: 4683.2 | AB58: 14286.59 | AC58: 49450.12 | AD58: 23079 | AE58: 16339.25 | AF58: 38140.9 | AG58: 5093.88 | AH58: 0 | AI58: 17299.88 | AJ58: 12966.7 | AK58: 5360.12 | AL58: 133912.55 | AM58: 2830 | AN58: 45213.87 | AO58: 19328.18 | AP58: 0 | AQ58: 0 | AR58: 0 | AS58: 0 | AT58: 0 | AU58: -1366513.73 | AV58: -220960.54 | AW58: 0 | AX58: -42381.51 | AY58: 0 | AZ58: -76550 | BA58: -27675.44 | BB58: 0 | BC58: 0 | BD58: -197538.25 | BE58: 0 | BF58: 0 | BG58: -13406.68 | BH58: -3079.39 | BI58: -3759.89 | BJ58: 0 | BK58: 0 | BL58: 0 | BM58: -137333 | BN58: 0 | BO58: 0 | BP58: -4943.43 | BQ58: -1629855.78 | BR58: 0 | BS58: 0 | BT58: 0 | BU58: 0 | BV58: 0 | BW58: 42381.51 | BX58: 42381.51
A59: 2278 | B59: Bethersden Primary School | C59: 0 | D59: 135 | E59: 0 | F59: 6 | G59: No | H59: Primary | I59: 100-199 | J59: =IF(G59=Benchmarking!$I$4,1,0) -> 0 | K59: =IF(Benchmarking!$I$6="All",1,IF(Benchmarking!$I$6=H59,1,0)) -> 0 | L59: =IF(Benchmarking!$I$8="All",1,IF(Benchmarking!$I$8=I59,1,0)) -> 0 | M59: 0 | N59: 500965.07 | O59: 3060.06 | P59: 187094.58 | Q59: 9186.16 | R59: 44127.85 | S59: 0 | T59: 17349.79 | U59: 3902.23 | V59: 3431 | W59: 2420.27 | X59: 3427.68 | Y59: 9155.72 | Z59: 3676.56 | AA59: 15975.51 | AB59: 1484.65 | AC59: 17221.62 | AD59: 10978 | AE59: 3996.95 | AF59: 28717.77 | AG59: 5022.05 | AH59: 0 | AI59: 11943.8 | AJ59: 5043.6 | AK59: 1640.25 | AL59: 32150.71 | AM59: 22979.1 | AN59: 20464.12 | AO59: 17406.38 | AP59: 0 | AQ59: 0 | AR59: 8182.06 | AS59: 0 | AT59: 0 | AU59: -651408.01 | AV59: -67574.59 | AW59: 0 | AX59: -53408.7 | AY59: 0 | AZ59: -50270 | BA59: -8521.93 | BB59: -27030 | BC59: 0 | BD59: -10541.05 | BE59: -8224.85 | BF59: 0 | BG59: -46032.53 | BH59: -8437.21 | BI59: -9684.44 | BJ59: 0 | BK59: 0 | BL59: 0 | BM59: -37908 | BN59: 0 | BO59: 0 | BP59: -3478.28 | BQ59: -772391.3 | BR59: 0 | BS59: 0 | BT59: 0 | BU59: 0 | BV59: 0 | BW59: 53408.7 | BX59: 53408.7
A60: 2279 | B60: Brook Community Primary School | C60: 0 | D60: 75 | E60: 0 | F60: 5.833333333 | G60: No | H60: Infant | I60: 0-99 | J60: =IF(G60=Benchmarking!$I$4,1,0) -> 0 | K60: =IF(Benchmarking!$I$6="All",1,IF(Benchmarking!$I$6=H60,1,0)) -> 0 | L60: =IF(Benchmarking!$I$8="All",1,IF(Benchmarking!$I$8=I60,1,0)) -> 0 | M60: 0 | N60: 302339.75 | O60: 0 | P60: 137286.17 | Q60: 225.29 | R60: 40110.42 | S60: 0 | T60: 12853.01 | U60: 687.84 | V60: 4026.5 | W60: 150 | X60: 1904.28 | Y60: 7502.61 | Z60: 2152.65 | AA60: 73.98 | AB60: 1450.7 | AC60: 10200.87 | AD60: 8608 | AE60: 3805.98 | AF60: 20911.3 | AG60: 9765.23 | AH60: 0 | AI60: 7030.07 | AJ60: 2802 | AK60: 2382.68 | AL60: 13510.48 | AM60: 1969 | AN60: 14424.76 | AO60: 17554.52 | AP60: 0 | AQ60: 0 | AR60: 57.65 | AS60: 0 | AT60: 0 | AU60: -460206.33 | AV60: -30351.2 | AW60: 0 | AX60: -37975.18 | AY60: 0 | AZ60: -19190 | BA60: -4420 | BB60: -4987.02 | BC60: 0 | BD60: -13376.1 | BE60: -6058.07 | BF60: 0 | BG60: 0 | BH60: -5152 | BI60: -2567.87 | BJ60: 0 | BK60: 0 | BL60: 0 | BM60: -25899 | BN60: 0 | BO60: 0 | BP60: -2415.06 | BQ60: -528532.71 | BR60: 0 | BS60: 0 | BT60: 0 | BU60: 0 | BV60: 17047.83 | BW60: 20927.35 | BX60: 37975.18
A61: 2280 | B61: Challock Primary School | C61: 0 | D61: 207 | E61: 0 | F61: 6.416666667 | G61: No | H61: Junior | I61: 200-299 | J61: =IF(G61=Benchmarking!$I$4,1,0) -> 0 | K61: =IF(Benchmarking!$I$6="All",1,IF(Benchmarking!$I$6=H61,1,0)) -> 0 | L61: =IF(Benchmarking!$I$8="All",1,IF(Benchmarking!$I$8=I61,1,0)) -> 0 | M61: 0 | N61: 606733.16 | O61: 2687.23 | P61: 206401.6 | Q61: 29207.08 | R61: 63344.45 | S61: 0 | T61: 24393.35 | U61: 60 | V61: 4894.44 | W61: 4947.72 | X61: 5255.76 | Y61: 8874.4 | Z61: 9352.59 | AA61: 11225.55 | AB61: 4777.46 | AC61: 21826.93 | AD61: 19711 | AE61: 7107.04 | AF61: 55251.93 | AG61: 11221.86 | AH61: 0 | AI61: 10931.29 | AJ61: 7733.52 | AK61: 4729.39 | AL61: 41575.71 | AM61: 0 | AN61: 23017.5 | AO61: 13387.84 | AP61: 0 | AQ61: 0 | AR61: 0 | AS61: 0 | AT61: 0 | AU61: -871199.01 | AV61: -90830.07 | AW61: 0 | AX61: -36590.68 | AY61: 0 | AZ61: -29010 | BA61: -13539.58 | BB61: -1559.71 | BC61: 0 | BD61: -7655.89 | BE61: -156 | BF61: -9026.09 | BG61: 0 | BH61: -32031.27 | BI61: -1632.32 | BJ61: 0 | BK61: 0 | BL61: 0 | BM61: -52081 | BN61: 0 | BO61: 0 | BP61: -2280.45 | BQ61: -998619.76 | BR61: 0 | BS61: 0 | BT61: 0 | BU61: 0 | BV61: 0 | BW61: 36590.68 | BX61: 36590.68
A62: 2282 | B62: Great Chart Primary School | C62: 0 | D62: 422 | E62: 0 | F62: 21.41666667 | G62: =IF(C62=0,"No","Yes") -> No | H62: Primary | I62: 400-499 | J62: =IF(G62=Benchmarking!$I$4,1,0) -> 0 | K62: =IF(Benchmarking!$I$6="All",1,IF(Benchmarking!$I$6=H62,1,0)) -> 0 | L62: =IF(Benchmarking!$I$8="All",1,IF(Benchmarking!$I$8=I62,1,0)) -> 0 | M62: =IF(SUM(J62:L62)=3,1,0) -> 0 | N62: 1154761.39 | O62: 6485.15 | P62: 615606.04 | Q62: 107491.83 | R62: 127513.89 | S62: 0 | T62: 38136.91 | U62: 10080.55 | V62: 6453.01 | W62: 7059.08 | X62: 1856.76 | Y62: 10894.03 | Z62: 5213.17 | AA62: 3273.39 | AB62: 6210 | AC62: 32328.25 | AD62: 38656 | AE62: 15086.92 | AF62: 61533.24 | AG62: 23327.57 | AH62: 0 | AI62: 28956.21 | AJ62: 15765.88 | AK62: 2044.32 | AL62: 125767.7 | AM62: 358 | AN62: 38326.8 | AO62: 16058.68 | AP62: 0 | AQ62: 0 | AR62: 0 | AS62: 0 | AT62: 0 | AU62: =BQ62-AV62-AW62-AX62 -> -1678094.22 | AV62: -287727.48 | AW62: =-BU62 -> 0 | AX62: =-BX62 -> -170290.81 | AY62: 0 | AZ62: -122089.5 | BA62: -18784 | BB62: -3660 | BC62: -6565 | BD62: -37660.8 | BE62: -44515.83 | BF62: -691.2 | BG62: 0 | BH62: -16934.47 | BI62: -19623.94 | BJ62: 0 | BK62: 0 | BL62: 0 | BM62: -87837 | BN62: 0 | BO62: 0 | BP62: -19767.91 | BQ62: -2136112.51 | BR62: 0 | BS62: 0 | BT62: 0 | BU62: =SUM(BR62:BT62) -> 0 | BV62: 0 | BW62: 170290.81 | BX62: =SUM(BV62:BW62) -> 170290.81
A63: 2285 | B63: Mersham Primary School | C63: 0 | D63: 177 | E63: 0 | F63: 4.666666667 | G63: No | H63: Primary | I63: 100-199 | J63: =IF(G63=Benchmarking!$I$4,1,0) -> 0 | K63: =IF(Benchmarking!$I$6="All",1,IF(Benchmarking!$I$6=H63,1,0)) -> 0 | L63: =IF(Benchmarking!$I$8="All",1,IF(Benchmarking!$I$8=I63,1,0)) -> 0 | M63: 0 | N63: 495946.08 | O63: 1213.64 | P63: 167564.47 | Q63: 26751.1 | R63: 60459.02 | S63: 0 | T63: 17935.62 | U63: 1197.95 | V63: 3964.3 | W63: 2180.66 | X63: 4494 | Y63: 6355.75 | Z63: 3856.3 | AA63: 13957.78 | AB63: 1627.33 | AC63: 24837.13 | AD63: 7859 | AE63: 9015.32 | AF63: 49198.21 | AG63: 10314.47 | AH63: 0 | AI63: 11612.76 | AJ63: 6612.72 | AK63: 1352.5 | AL63: 43097.54 | AM63: 36449.88 | AN63: 34872.75 | AO63: 13119.02 | AP63: 0 | AQ63: 0 | AR63: 0 | AS63: 0 | AT63: 0 | AU63: -760549.1 | AV63: -93237.34 | AW63: 0 | AX63: -31374.45 | AY63: 0 | AZ63: -42195 | BA63: -20937.62 | BB63: 0 | BC63: -150 | BD63: -45510.79 | BE63: -11611.35 | BF63: 0 | BG63: -7812.83 | BH63: -26199.8 | BI63: -6773.72 | BJ63: 0 | BK63: 0 | BL63: 0 | BM63: -35284 | BN63: 0 | BO63: 0 | BP63: -2756 | BQ63: -885160.89 | BR63: 0 | BS63: 0 | BT63: 0 | BU63: 0 | BV63: 0 | BW63: 31374.45 | BX63: 31374.45
A64: 2289 | B64: Smeeth Community Primary School | C64: 0 | D64: 123 | E64: 0 | F64: 3.75 | G64: No | H64: Primary | I64: 100-199 | J64: =IF(G64=Benchmarking!$I$4,1,0) -> 0 | K64: =IF(Benchmarking!$I$6="All",1,IF(Benchmarking!$I$6=H64,1,0)) -> 0 | L64: =IF(Benchmarking!$I$8="All",1,IF(Benchmarking!$I$8=I64,1,0)) -> 0 | M64: 0 | N64: 359247.49 | O64: 688.73 | P64: 86197.73 | Q64: 11331.87 | R64: 43477.52 | S64: 0 | T64: 22492.26 | U64: 822.48 | V64: 2600 | W64: 2554.82 | X64: 3123 | Y64: 7014.29 | Z64: 7065.91 | AA64: 14486 | AB64: 2493.9 | AC64: 22947.31 | AD64: 14845 | AE64: 5314.46 | AF64: 29466.59 | AG64: 14020.86 | AH64: 0 | AI64: 4593.05 | AJ64: 4595.28 | AK64: 2142.47 | AL64: 20511.12 | AM64: 11465.84 | AN64: 21865.64 | AO64: 16768.07 | AP64: 0 | AQ64: 0 | AR64: 0 | AS64: 0 | AT64: 0 | AU64: -572497.29 | AV64: -41628.35 | AW64: 0 | AX64: -21472.34 | AY64: 0 | AZ64: -22900 | BA64: -6812 | BB64: -720 | BC64: -5250 | BD64: -8995.45 | BE64: -30 | BF64: 0 | BG64: -400 | BH64: -12392 | BI64: -2216.65 | BJ64: 0 | BK64: 0 | BL64: 0 | BM64: -34694 | BN64: 0 | BO64: 0 | BP64: -2413.96 | BQ64: -635597.98 | BR64: 0 | BS64: 0 | BT64: 0 | BU64: 0 | BV64: 6430.2 | BW64: 15042.14 | BX64: 21472.34
A65: 2298 | B65: Hawkinge Primary School | C65: 0 | D65: 400 | E65: 0 | F65: 10.08333333 | G65: No | H65: Infant | I65: 400-499 | J65: =IF(G65=Benchmarking!$I$4,1,0) -> 0 | K65: =IF(Benchmarking!$I$6="All",1,IF(Benchmarking!$I$6=H65,1,0)) -> 0 | L65: =IF(Benchmarking!$I$8="All",1,IF(Benchmarking!$I$8=I65,1,0)) -> 0 | M65: 0 | N65: 1080981.23 | O65: 11084.75 | P65: 458514.14 | Q65: 24233.87 | R65: 58848.94 | S65: 0 | T65: 60999.96 | U65: 3503.32 | V65: 12316.3 | W65: 4299 | X65: 10156.08 | Y65: 29794.14 | Z65: 17160.47 | AA65: 32360.32 | AB65: 5375.59 | AC65: 65511.85 | AD65: 8243 | AE65: 10000 | AF65: 155526.43 | AG65: 21020.2 | AH65: 0 | AI65: 17540.42 | AJ65: 14944.04 | AK65: 0 | AL65: 96517.54 | AM65: 0 | AN65: 0 | AO65: 33416.08 | AP65: 0 | AQ65: 0 | AR65: 0 | AS65: 0 | AT65: 0 | AU65: -1560032.8 | AV65: -264507.6 | AW65: 0 | AX65: -105703.52 | AY65: 0 | AZ65: -135168.88 | BA65: -18084 | BB65: -7136.39 | BC65: 0 | BD65: -9431.5 | BE65: -22415.22 | BF65: 0 | BG65: -15638.8 | BH65: -12935 | BI65: 0 | BJ65: 0 | BK65: 0 | BL65: 0 | BM65: -82771 | BN65: 0 | BO65: 0 | BP65: -7983.46 | BQ65: -1930243.92 | BR65: 0 | BS65: 0 | BT65: 0 | BU65: 0 | BV65: 0 | BW65: 105703.52 | BX65: 105703.52
A66: 2300 | B66: Sellindge Primary School | C66: 0 | D66: 141 | E66: 0 | F66: 8.25 | G66: No | H66: Primary | I66: 100-199 | J66: =IF(G66=Benchmarking!$I$4,1,0) -> 0 | K66: =IF(Benchmarking!$I$6="All",1,IF(Benchmarking!$I$6=H66,1,0)) -> 0 | L66: =IF(Benchmarking!$I$8="All",1,IF(Benchmarking!$I$8=I66,1,0)) -> 0 | M66: 0 | N66: 518262.18 | O66: 0 | P66: 165355.72 | Q66: 24509.77 | R66: 39234.35 | S66: 0 | T66: 18802.77 | U66: 3585.83 | V66: 1929.97 | W66: 1733.77 | X66: 3579.96 | Y66: 2957.03 | Z66: 2640 | AA66: 11720.15 | AB66: 2465.08 | AC66: 29051.08 | AD66: 17216 | AE66: 3545.48 | AF66: 42825.12 | AG66: 19717.98 | AH66: 0 | AI66: 14209.89 | AJ66: 5267.76 | AK66: 5811.81 | AL66: 50837.4 | AM66: 9260 | AN66: 18161.71 | AO66: 10988.96 | AP66: 0 | AQ66: 0 | AR66: 0 | AS66: 0 | AT66: 0 | AU66: -701242.77 | AV66: -59081.98 | AW66: 0 | AX66: -54413.32 | AY66: 0 | AZ66: -30215 | BA66: -17163.95 | BB66: -2600.25 | BC66: -2655.8 | BD66: -32792.34 | BE66: -11570.74 | BF66: -700 | BG66: 0 | BH66: -10188.63 | BI66: -6036.97 | BJ66: 0 | BK66: 0 | BL66: 0 | BM66: -47629 | BN66: 0 | BO66: 0 | BP66: -3032.82 | BQ66: -814738.07 | BR66: 0 | BS66: 0 | BT66: 0 | BU66: 0 | BV66: 665.55 | BW66: 53747.77 | BX66: 54413.32
A67: 2312 | B67: River Primary School | C67: 0 | D67: 410 | E67: 9.5 | F67: 10.33333333 | G67: No | H67: Primary | I67: =IFERROR(VLOOKUP($D67,$D$256:$F$261,3,TRUE),0) -> 400-499 | J67: =IF(G67=Benchmarking!$I$4,1,0) -> 0 | K67: =IF(Benchmarking!$I$6="All",1,IF(Benchmarking!$I$6=H67,1,0)) -> 0 | L67: =IF(Benchmarking!$I$8="All",1,IF(Benchmarking!$I$8=I67,1,0)) -> 0 | M67: 0 | N67: 1210588.2 | O67: 18163.91 | P67: 485302.84 | Q67: 36563.23 | R67: 118491.08 | S67: 0 | T67: 23088.37 | U67: 9251.71 | V67: 9782.71 | W67: 834.14 | X67: 10409.88 | Y67: 28939.55 | Z67: 9330.7 | AA67: 44639.26 | AB67: 8418.87 | AC67: 41228.46 | AD67: 47136.5 | AE67: 9616.84 | AF67: 110069.57 | AG67: 25689.86 | AH67: 0 | AI67: 15207.83 | AJ67: 15317.56 | AK67: 16835.64 | AL67: 76857.6 | AM67: 6438.5 | AN67: 24703.01 | AO67: 33979.06 | AP67: 0 | AQ67: 0 | AR67: 10000 | AS67: 0 | AT67: 0 | AU67: -1633821.24 | AV67: -276753.12 | AW67: -133736.18 | AX67: -102986.31 | AY67: 0 | AZ67: -114045 | BA67: -22944.1 | BB67: -300 | BC67: -1826.25 | BD67: -26811.24 | BE67: 0 | BF67: -2396.32 | BG67: 0 | BH67: -36989.55 | BI67: -9473.75 | BJ67: 0 | BK67: 0 | BL67: 0 | BM67: -70306.2 | BN67: 0 | BO67: 0 | BP67: -13144.74 | BQ67: -2147296.85 | BR67: 8000 | BS67: 72000 | BT67: 53736.18 | BU67: 133736.18 | BV67: 0 | BW67: 102986.31 | BX67: 102986.31
A68: 2318 | B68: Langdon Primary School | C68: 0 | D68: 84 | E68: 0 | F68: 3.083333333 | G68: No | H68: Primary | I68: 0-99 | J68: =IF(G68=Benchmarking!$I$4,1,0) -> 0 | K68: =IF(Benchmarking!$I$6="All",1,IF(Benchmarking!$I$6=H68,1,0)) -> 0 | L68: =IF(Benchmarking!$I$8="All",1,IF(Benchmarking!$I$8=I68,1,0)) -> 0 | M68: 0 | N68: 373173.54 | O68: 8362.78 | P68: 95197.05 | Q68: 26087.28 | R68: 30280.34 | S68: 0 | T68: 11319.24 | U68: 3122.15 | V68: 5442.33 | W68: 2181.93 | X68: 3569.42 | Y68: 4567.85 | Z68: 2409.32 | AA68: 1212 | AB68: 1462.58 | AC68: 5406.45 | AD68: 4990 | AE68: 11483.76 | AF68: 18574.34 | AG68: 4649.52 | AH68: 0 | AI68: 9742.48 | AJ68: 3818.28 | AK68: 4290.86 | AL68: 18979.82 | AM68: 0 | AN68: 8395.79 | AO68: 14370.62 | AP68: 0 | AQ68: 0 | AR68: 17484.75 | AS68: 0 | AT68: 0 | AU68: -482552.39 | AV68: -53028.22 | AW68: 0 | AX68: -24037.56 | AY68: 0 | AZ68: -27555 | BA68: -18242.88 | BB68: -4720 | BC68: 0 | BD68: -12736 | BE68: -131.28 | BF68: -1847.08 | BG68: -1332 | BH68: -3137.44 | BI68: -976.82 | BJ68: 0 | BK68: 0 | BL68: 0 | BM68: -32579 | BN68: 0 | BO68: 0 | BP68: -4281.88 | BQ68: -559618.17 | BR68: 0 | BS68: 0 | BT68: 0 | BU68: 0 | BV68: 1568.7 | BW68: 22468.86 | BX68: 24037.56
A69: 2320 | B69: Eythorne Elvington Community Primary School | C69: 0 | D69: 102 | E69: 0 | F69: 7.75 | G69: No | H69: Primary | I69: 100-199 | J69: =IF(G69=Benchmarking!$I$4,1,0) -> 0 | K69: =IF(Benchmarking!$I$6="All",1,IF(Benchmarking!$I$6=H69,1,0)) -> 0 | L69: =IF(Benchmarking!$I$8="All",1,IF(Benchmarking!$I$8=I69,1,0)) -> 0 | M69: 0 | N69: 397079.76 | O69: 7745.28 | P69: 165373.52 | Q69: 33770.45 | R69: 72137.27 | S69: 0 | T69: 11091.72 | U69: 5214.17 | V69: 7974.58 | W69: 1857 | X69: 2589.84 | Y69: 12621.2 | Z69: 6682.41 | AA69: 1925.25 | AB69: 3369.09 | AC69: 29789.81 | AD69: 17340 | AE69: 6080.3 | AF69: 41658.24 | AG69: 3900.84 | AH69: 0 | AI69: 21336.98 | AJ69: 3810.72 | AK69: 4646.74 | AL69: 32779.37 | AM69: 1042.25 | AN69: 30234.78 | AO69: 12440.36 | AP69: 0 | AQ69: 0 | AR69: 6334.98 | AS69: 0 | AT69: 0 | AU69: -573888.48 | AV69: -82415.51 | AW69: 0 | AX69: -73071.92 | AY69: 0 | AZ69: -77440 | BA69: -7110 | BB69: -1809.2 | BC69: 0 | BD69: -78625.04 | BE69: 0 | BF69: -10041.35 | BG69: 0 | BH69: -11819 | BI69: -2851.83 | BJ69: 0 | BK69: 0 | BL69: 0 | BM69: -26562 | BN69: 0 | BO69: 0 | BP69: -15817.4 | BQ69: -729375.91 | BR69: 0 | BS69: 0 | BT69: 0 | BU69: 0 | BV69: 0 | BW69: 73071.92 | BX69: 73071.92
A70: 2321 | B70: Lydden Primary School | C70: 0 | D70: 76 | E70: 0 | F70: 4.416666667 | G70: No | H70: Primary | I70: 0-99 | J70: =IF(G70=Benchmarking!$I$4,1,0) -> 0 | K70: =IF(Benchmarking!$I$6="All",1,IF(Benchmarking!$I$6=H70,1,0)) -> 0 | L70: =IF(Benchmarking!$I$8="All",1,IF(Benchmarking!$I$8=I70,1,0)) -> 0 | M70: 0 | N70: 313463.76 | O70: 3159.45 | P70: 109096.3 | Q70: 9580.06 | R70: 30449.73 | S70: 0 | T70: 20314.34 | U70: 2285.51 | V70: 1262.6 | W70: 152 | X70: 1929.72 | Y70: 18529.08 | Z70: 8678.31 | AA70: 9864.14 | AB70: 1144.03 | AC70: 12654.28 | AD70: 12974 | AE70: 3947.3 | AF70: 35850.38 | AG70: 15295.52 | AH70: 0 | AI70: 7466.57 | AJ70: 2839.4 | AK70: 1681.8 | AL70: 15239.43 | AM70: 0 | AN70: 48 | AO70: 11069.73 | AP70: 0 | AQ70: 0 | AR70: 32150.47 | AS70: 0 | AT70: 0 | AU70: -431479.6 | AV70: -43924.38 | AW70: 0 | AX70: -38842.4 | AY70: 0 | AZ70: -12715 | BA70: -5221 | BB70: 0 | BC70: -225.86 | BD70: -15362.06 | BE70: 0 | BF70: -6351.48 | BG70: 0 | BH70: -6050.51 | BI70: -1087.8 | BJ70: 0 | BK70: 0 | BL70: 0 | BM70: -28642 | BN70: 0 | BO70: 0 | BP70: -3013.64 | BQ70: -514246.38 | BR70: 0 | BS70: 0 | BT70: 0 | BU70: 0 | BV70: 6698 | BW70: 32144.4 | BX70: 38842.4
A71: 2322 | B71: Preston Primary School | C71: 0 | D71: 115 | E71: 0 | F71: 3.5 | G71: No | H71: Primary | I71: 100-199 | J71: =IF(G71=Benchmarking!$I$4,1,0) -> 0 | K71: =IF(Benchmarking!$I$6="All",1,IF(Benchmarking!$I$6=H71,1,0)) -> 0 | L71: =IF(Benchmarking!$I$8="All",1,IF(Benchmarking!$I$8=I71,1,0)) -> 0 | M71: 0 | N71: 376926.31 | O71: 4842.48 | P71: 162815.02 | Q71: 3140.04 | R71: 33708.63 | S71: 0 | T71: 23021.73 | U71: 3344.65 | V71: 4039.42 | W71: 230 | X71: 2919.84 | Y71: 9214.14 | Z71: 11188.3 | AA71: 18917.65 | AB71: 2386.74 | AC71: 13983.77 | AD71: 17964 | AE71: 5819.44 | AF71: 61381.44 | AG71: 13436.62 | AH71: 0 | AI71: 5025.35 | AJ71: 4573.54 | AK71: 1137.1 | AL71: 21114.73 | AM71: 0 | AN71: 390 | AO71: 8649.68 | AP71: 0 | AQ71: 0 | AR71: 0 | AS71: 0 | AT71: 0 | AU71: -572179.09 | AV71: -51590.98 | AW71: 0 | AX71: -20018.8 | AY71: 0 | AZ71: -25050 | BA71: -6918.93 | BB71: -2325.68 | BC71: 0 | BD71: -25234.33 | BE71: 0 | BF71: 0 | BG71: -13519.5 | BH71: -18626.51 | BI71: -4810.72 | BJ71: 0 | BK71: 0 | BL71: 0 | BM71: -35022 | BN71: 0 | BO71: 0 | BP71: -4086.26 | BQ71: -643788.87 | BR71: 0 | BS71: 0 | BT71: 0 | BU71: 0 | BV71: 2382.72 | BW71: 17636.08 | BX71: 20018.8
A72: 2326 | B72: Wingham Primary School | C72: 0 | D72: 195 | E72: 0 | F72: 9.166666667 | G72: No | H72: Primary | I72: 100-199 | J72: =IF(G72=Benchmarking!$I$4,1,0) -> 0 | K72: =IF(Benchmarking!$I$6="All",1,IF(Benchmarking!$I$6=H72,1,0)) -> 0 | L72: =IF(Benchmarking!$I$8="All",1,IF(Benchmarking!$I$8=I72,1,0)) -> 0 | M72: 0 | N72: 566927.85 | O72: 7016.24 | P72: 247956.34 | Q72: 10728.79 | R72: 54672.36 | S72: 0 | T72: 48982.88 | U72: 6453.42 | V72: 3251.17 | W72: 390 | X72: 4951.08 | Y72: 15212.91 | Z72: 5222.73 | AA72: 33283.93 | AB72: 3268.98 | AC72: 28839.78 | AD72: 31232 | AE72: 8832.87 | AF72: 65684.86 | AG72: 33313.26 | AH72: 0 | AI72: 3420.15 | AJ72: 7720.34 | AK72: 5001.58 | AL72: 36110.14 | AM72: 0 | AN72: 450 | AO72: 11445.74 | AP72: 0 | AQ72: 0 | AR72: 0 | AS72: 0 | AT72: 0 | AU72: -864431.37 | AV72: -90111.85 | AW72: 0 | AX72: -83713.79 | AY72: 0 | AZ72: -53115 | BA72: -9395 | BB72: -5265.59 | BC72: -20.1 | BD72: -61367.55 | BE72: 0 | BF72: 0 | BG72: -3073.52 | BH72: -17300.69 | BI72: -3299.2 | BJ72: 0 | BK72: 0 | BL72: 0 | BM72: -43883 | BN72: 0 | BO72: 0 | BP72: -8421.46 | BQ72: -1038257.01 | BR72: 0 | BS72: 0 | BT72: 0 | BU72: 0 | BV72: 0 | BW72: 83713.79 | BX72: 83713.79
A73: 2328 | B73: St Mildreds Primary Infant School | C73: 0 | D73: 270 | E73: 0 | F73: 14.16666667 | G73: No | H73: Primary | I73: 200-299 | J73: =IF(G73=Benchmarking!$I$4,1,0) -> 0 | K73: =IF(Benchmarking!$I$6="All",1,IF(Benchmarking!$I$6=H73,1,0)) -> 0 | L73: =IF(Benchmarking!$I$8="All",1,IF(Benchmarking!$I$8=I73,1,0)) -> 0 | M73: 0 | N73: 700478.69 | O73: 0 | P73: 387955.82 | Q73: 76105.53 | R73: 88502.24 | S73: 48526.66 | T73: 51143.31 | U73: 1622.93 | V73: 9048.88 | W73: 5950.68 | X73: 6855.36 | Y73: 21927.72 | Z73: 997.86 | AA73: 2519.98 | AB73: 2193 | AC73: 25606.28 | AD73: 24950 | AE73: 8425.97 | AF73: 49864.93 | AG73: 10853.17 | AH73: 0 | AI73: 32711.85 | AJ73: 10087.2 | AK73: 4309.17 | AL73: 84326.98 | AM73: 14971.81 | AN73: 4727.08 | AO73: 45977.09 | AP73: 0 | AQ73: 0 | AR73: 7590 | AS73: 0 | AT73: 0 | AU73: -1123832.73 | AV73: -190424.37 | AW73: 0 | AX73: -70200.38 | AY73: 0 | AZ73: -88375 | BA73: -26057.44 | BB73: -24647.14 | BC73: -1176.31 | BD73: -43930.6 | BE73: -2505.7 | BF73: 0 | BG73: -3443.17 | BH73: -1906.91 | BI73: -11790.56 | BJ73: 0 | BK73: 0 | BL73: 0 | BM73: -102084 | BN73: 0 | BO73: 0 | BP73: -13998.12 | BQ73: -1384457.48 | BR73: 0 | BS73: 0 | BT73: 0 | BU73: 0 | BV73: 0 | BW73: 70200.38 | BX73: 70200.38
A74: 2329 | B74: Callis Grange Nursery & Infant School | C74: 16 | D74: 258 | E74: 0 | F74: 3.583333333 | G74: Yes | H74: Primary | I74: 200-299 | J74: =IF(G74=Benchmarking!$I$4,1,0) -> 0 | K74: =IF(Benchmarking!$I$6="All",1,IF(Benchmarking!$I$6=H74,1,0)) -> 0 | L74: =IF(Benchmarking!$I$8="All",1,IF(Benchmarking!$I$8=I74,1,0)) -> 0 | M74: 0 | N74: 744584.63 | O74: 0 | P74: 301746.17 | Q74: 42362.73 | R74: 82124.62 | S74: 0 | T74: 36533.45 | U74: 5776.46 | V74: 3769.39 | W74: 6087.45 | X74: 6665.04 | Y74: 10590.53 | Z74: 3503.68 | AA74: 54789.25 | AB74: 5937.22 | AC74: 32984.3 | AD74: 49664 | AE74: 11517.16 | AF74: 29009.53 | AG74: 19438.31 | AH74: 0 | AI74: 22351.53 | AJ74: 10096.44 | AK74: 878.26 | AL74: 88562.2 | AM74: 0 | AN74: 7621.96 | AO74: 45749.79 | AP74: 0 | AQ74: 0 | AR74: 35000 | AS74: 0 | AT74: 0 | AU74: -1188485.54 | AV74: -164985.36 | AW74: 0 | AX74: -32554.73 | AY74: 0 | AZ74: -106057 | BA74: -20823.65 | BB74: -6015.05 | BC74: -1001.84 | BD74: -26537.58 | BE74: 0 | BF74: 0 | BG74: -5549.36 | BH74: 0 | BI74: 0 | BJ74: 0 | BK74: 0 | BL74: 0 | BM74: -80041 | BN74: 0 | BO74: 0 | BP74: -14389.25 | BQ74: -1386025.63 | BR74: 0 | BS74: 0 | BT74: 0 | BU74: 0 | BV74: 0 | BW74: 32554.73 | BX74: 32554.73
A75: 2337 | B75: St Crispins Community Primary Infant School | C75: 0 | D75: 253 | E75: 0 | F75: 9.083333333 | G75: No | H75: Primary | I75: 200-299 | J75: =IF(G75=Benchmarking!$I$4,1,0) -> 0 | K75: =IF(Benchmarking!$I$6="All",1,IF(Benchmarking!$I$6=H75,1,0)) -> 0 | L75: =IF(Benchmarking!$I$8="All",1,IF(Benchmarking!$I$8=I75,1,0)) -> 0 | M75: 0 | N75: 709004.53 | O75: 12359.12 | P75: 324817.75 | Q75: 55875.41 | R75: 78542.15 | S75: 0 | T75: 107900.18 | U75: 6427.8 | V75: 7311.08 | W75: 5393.14 | X75: 8157.72 | Y75: 17262.65 | Z75: 2383.96 | AA75: 2165.21 | AB75: 1665.07 | AC75: 41335.33 | AD75: 23097.46 | AE75: 17875.34 | AF75: 45292.84 | AG75: 14878.37 | AH75: 0 | AI75: 14583.65 | AJ75: 9452.12 | AK75: 13255.3 | AL75: 76466.8 | AM75: 29583.06 | AN75: 6050 | AO75: 27963.17 | AP75: 0 | AQ75: 0 | AR75: 10000 | AS75: 0 | AT75: 0 | AU75: -1059890.1 | AV75: -185575.16 | AW75: 0 | AX75: -94417.95 | AY75: 0 | AZ75: -104530 | BA75: -18769.65 | BB75: -2090 | BC75: 0 | BD75: -38991.69 | BE75: -1257.12 | BF75: -10086.03 | BG75: -13740.24 | BH75: -522 | BI75: -4723.8 | BJ75: 0 | BK75: 0 | BL75: 0 | BM75: -68658 | BN75: 0 | BO75: 0 | BP75: -16176.56 | BQ75: -1339883.21 | BR75: 0 | BS75: 0 | BT75: 0 | BU75: 0 | BV75: 0 | BW75: 94417.95 | BX75: 94417.95
A76: 2340 | B76: Ellington Infant School | C76: 0 | D76: 125 | E76: 0 | F76: 9 | G76: No | H76: Primary | I76: 100-199 | J76: =IF(G76=Benchmarking!$I$4,1,0) -> 0 | K76: =IF(Benchmarking!$I$6="All",1,IF(Benchmarking!$I$6=H76,1,0)) -> 0 | L76: =IF(Benchmarking!$I$8="All",1,IF(Benchmarking!$I$8=I76,1,0)) -> 0 | M76: 0 | N76: 450033.81 | O76: 0 | P76: 211932.58 | Q76: 46593.96 | R76: 68210.71 | S76: 0 | T76: 48378.16 | U76: 3418.49 | V76: 2264.25 | W76: 12553.4 | X76: 2967.96 | Y76: 5313.62 | Z76: 2410.24 | AA76: 3383.86 | AB76: 4309.72 | AC76: 24485.24 | AD76: 19336.25 | AE76: 2650.08 | AF76: 20453.15 | AG76: 4650.64 | AH76: 0 | AI76: 8526.2 | AJ76: 4527.29 | AK76: 19747.75 | AL76: 59744.73 | AM76: 0 | AN76: 19769.64 | AO76: 13034.58 | AP76: 0 | AQ76: 0 | AR76: 0 | AS76: 0 | AT76: 0 | AU76: -614512.14 | AV76: -149175.56 | AW76: 0 | AX76: -101624.13 | AY76: 0 | AZ76: -82880 | BA76: -12718.93 | BB76: 0 | BC76: -2525 | BD76: -35165.44 | BE76: -753.1 | BF76: -1600 | BG76: 0 | BH76: -1855.99 | BI76: 0 | BJ76: 0 | BK76: 0 | BL76: 0 | BM76: -45097 | BN76: 0 | BO76: 0 | BP76: -11712.93 | BQ76: -865311.83 | BR76: 0 | BS76: 0 | BT76: 0 | BU76: 0 | BV76: 0 | BW76: 101624.13 | BX76: 101624.13
A77: 2345 | B77: Priory Infant School | C77: 0 | D77: 159 | E77: 0 | F77: 14.16666667 | G77: No | H77: Primary | I77: 100-199 | J77: =IF(G77=Benchmarking!$I$4,1,0) -> 0 | K77: =IF(Benchmarking!$I$6="All",1,IF(Benchmarking!$I$6=H77,1,0)) -> 0 | L77: =IF(Benchmarking!$I$8="All",1,IF(Benchmarking!$I$8=I77,1,0)) -> 0 | M77: 0 | N77: 487596.52 | O77: 734.2 | P77: 287651.65 | Q77: 53785.94 | R77: 39785.89 | S77: 0 | T77: 88836.93 | U77: 5576.78 | V77: 4739.92 | W77: 318 | X77: 4037.04 | Y77: 3731.25 | Z77: 5575.44 | AA77: 734.36 | AB77: 2428.42 | AC77: 25518.54 | AD77: 30976 | AE77: 10217.08 | AF77: 22738.14 | AG77: 4694.14 | AH77: 0 | AI77: 15946.61 | AJ77: 5940.24 | AK77: 10323.93 | AL77: 54872.23 | AM77: 5919.62 | AN77: 4530.8 | AO77: 30729.6 | AP77: 0 | AQ77: 0 | AR77: 2152 | AS77: 0 | AT77: 0 | AU77: -751526.32 | AV77: -158062.81 | AW77: 0 | AX77: -75829.06 | AY77: 0 | AZ77: -77220 | BA77: -17445.65 | BB77: 0 | BC77: 0 | BD77: -16932.52 | BE77: 0 | BF77: -8083.79 | BG77: 0 | BH77: 0 | BI77: -8622.76 | BJ77: 0 | BK77: 0 | BL77: 0 | BM77: -53855 | BN77: 0 | BO77: 0 | BP77: -11537.71 | BQ77: -985418.19 | BR77: 0 | BS77: 0 | BT77: 0 | BU77: 0 | BV77: 0 | BW77: 75829.06 | BX77: 75829.06
A78: 2431 | B78: Shears Green Junior School | C78: 0 | D78: 484 | E78: 0 | F78: 11.5 | G78: No | H78: Primary | I78: 400-499 | J78: =IF(G78=Benchmarking!$I$4,1,0) -> 0 | K78: =IF(Benchmarking!$I$6="All",1,IF(Benchmarking!$I$6=H78,1,0)) -> 0 | L78: =IF(Benchmarking!$I$8="All",1,IF(Benchmarking!$I$8=I78,1,0)) -> 0 | M78: 0 | N78: 1261704.72 | O78: 9208.52 | P78: 567649.34 | Q78: 58134.55 | R78: 134678.59 | S78: 48625.9 | T78: 120351.91 | U78: 695.8 | V78: 16511.88 | W78: 23489 | X78: 12288.84 | Y78: 19860.58 | Z78: 7681.44 | AA78: 51238.62 | AB78: 12161.57 | AC78: 47857.11 | AD78: 21760 | AE78: 10045.44 | AF78: 123322.8 | AG78: 10878.17 | AH78: 0 | AI78: 17211.98 | AJ78: 18082.28 | AK78: 2146.27 | AL78: 33493.56 | AM78: 0 | AN78: 34426.84 | AO78: 31000.46 | AP78: 0 | AQ78: 0 | AR78: 0 | AS78: 0 | AT78: 0 | AU78: -1893963.1 | AV78: -328068.95 | AW78: 0 | AX78: -77481.32 | AY78: 0 | AZ78: -193647.68 | BA78: -25899.86 | BB78: -4672.18 | BC78: -4890.35 | BD78: -30832.36 | BE78: -57725.99 | BF78: -16360 | BG78: -7148.46 | BH78: -18144.48 | BI78: -9371.88 | BJ78: 0 | BK78: 0 | BL78: 0 | BM78: -20793 | BN78: 0 | BO78: 0 | BP78: -33215.42 | BQ78: -2299513.37 | BR78: 0 | BS78: 0 | BT78: 0 | BU78: 0 | BV78: 0 | BW78: 77481.32 | BX78: 77481.32
A79: 2434 | B79: West Minster Primary School | C79: 39 | D79: 462 | E79: 15 | F79: 23 | G79: Yes | H79: Primary | I79: 400-499 | J79: =IF(G79=Benchmarking!$I$4,1,0) -> 0 | K79: =IF(Benchmarking!$I$6="All",1,IF(Benchmarking!$I$6=H79,1,0)) -> 0 | L79: =IF(Benchmarking!$I$8="All",1,IF(Benchmarking!$I$8=I79,1,0)) -> 0 | M79: 0 | N79: 1416854.53 | O79: 0 | P79: 812694.79 | Q79: 134325.41 | R79: 200091.3 | S79: 0 | T79: 148428.92 | U79: 10743.24 | V79: 22592.31 | W79: 924 | X79: 11934 | Y79: 98514.96 | Z79: 2998.82 | AA79: 17566.81 | AB79: 5172 | AC79: 75634.81 | AD79: 80384 | AE79: 24031.24 | AF79: 124241.36 | AG79: 30905.79 | AH79: 0 | AI79: 24173.73 | AJ79: 18075.48 | AK79: 560 | AL79: 131409.45 | AM79: 96927.84 | AN79: 15090.77 | AO79: 87408.27 | AP79: 0 | AQ79: 0 | AR79: 0 | AS79: 0 | AT79: 0 | AU79: -2158707.01 | AV79: -561616.17 | AW79: -207768.16 | AX79: -149662.89 | AY79: 0 | AZ79: -401999 | BA79: -30431.86 | BB79: -700 | BC79: -350 | BD79: -20405.01 | BE79: 0 | BF79: 0 | BG79: -2361.34 | BH79: -5010 | BI79: -3793.72 | BJ79: 0 | BK79: 0 | BL79: 0 | BM79: -35710 | BN79: 0 | BO79: 0 | BP79: -29273.83 | BQ79: -3077754.23 | BR79: 32000 | BS79: 114000 | BT79: 61768.16 | BU79: 207768.16 | BV79: 0 | BW79: 149662.89 | BX79: 149662.89
A80: 2454 | B80: Aycliffe Community Primary School | C80: 0 | D80: 89 | E80: 0 | F80: 11.83333333 | G80: No | H80: Primary | I80: 0-99 | J80: =IF(G80=Benchmarking!$I$4,1,0) -> 0 | K80: =IF(Benchmarking!$I$6="All",1,IF(Benchmarking!$I$6=H80,1,0)) -> 0 | L80: =IF(Benchmarking!$I$8="All",1,IF(Benchmarking!$I$8=I80,1,0)) -> 0 | M80: 0 | N80: 381298.56 | O80: 9056.54 | P80: 246559.4 | Q80: 26716.49 | R80: 54813.54 | S80: 0 | T80: 10770.59 | U80: 24021.7 | V80: 3796.4 | W80: 5982.01 | X80: 2259.72 | Y80: 9221.84 | Z80: 5240.73 | AA80: 2374.12 | AB80: 1180.55 | AC80: 30466.34 | AD80: 24451 | AE80: 4871.45 | AF80: 23323.84 | AG80: 11742.82 | AH80: 0 | AI80: 5179.03 | AJ80: 3325 | AK80: 3129.52 | AL80: 24068.35 | AM80: 534 | AN80: 20531.1 | AO80: 15140.14 | AP80: 0 | AQ80: 0 | AR80: 16165.27 | AS80: 0 | AT80: 0 | AU80: -537014.75 | AV80: -112948.03 | AW80: 0 | AX80: -110423.27 | AY80: 0 | AZ80: -82890 | BA80: -9906.33 | BB80: -8152.08 | BC80: -12.5 | BD80: -25755.85 | BE80: 0 | BF80: -11585.42 | BG80: 0 | BH80: -7513.5 | BI80: -840.94 | BJ80: 0 | BK80: 0 | BL80: 0 | BM80: -24475 | BN80: 0 | BO80: 0 | BP80: -5152.22 | BQ80: -760386.05 | BR80: 0 | BS80: 0 | BT80: 0 | BU80: 0 | BV80: 0 | BW80: 110423.27 | BX80: 110423.27
A81: 2459 | B81: Riverhead Infant School | C81: 0 | D81: 265 | E81: 0 | F81: 5.666666667 | G81: No | H81: Primary | I81: 200-299 | J81: =IF(G81=Benchmarking!$I$4,1,0) -> 0 | K81: =IF(Benchmarking!$I$6="All",1,IF(Benchmarking!$I$6=H81,1,0)) -> 0 | L81: =IF(Benchmarking!$I$8="All",1,IF(Benchmarking!$I$8=I81,1,0)) -> 0 | M81: 0 | N81: 769042.32 | O81: 0 | P81: 355376.89 | Q81: 12930.5 | R81: 107359.4 | S81: 42778.29 | T81: 138434.58 | U81: 8008.97 | V81: 9934.64 | W81: 549.98 | X81: 6728.4 | Y81: 5727.33 | Z81: 2727.49 | AA81: 39633.13 | AB81: 4704.84 | AC81: 30119.61 | AD81: 44544 | AE81: 11633.77 | AF81: 28646.34 | AG81: 9317.93 | AH81: 0 | AI81: 12046.2 | AJ81: 10097.85 | AK81: 23119.88 | AL81: 78516.28 | AM81: 14900 | AN81: 16817 | AO81: 25826.69 | AP81: 0 | AQ81: 0 | AR81: 0 | AS81: 0 | AT81: 0 | AU81: -1131070.38 | AV81: -117018.32 | AW81: 0 | AX81: -55497.67 | AY81: 0 | AZ81: -17415 | BA81: -15006.65 | BB81: -2245.94 | BC81: -8931 | BD81: -222663.36 | BE81: -1244.2 | BF81: 0 | BG81: 0 | BH81: 0 | BI81: -34854.82 | BJ81: 0 | BK81: 0 | BL81: 0 | BM81: -138156 | BN81: 0 | BO81: 0 | BP81: -1548.26 | BQ81: -1303586.37 | BR81: 0 | BS81: 0 | BT81: 0 | BU81: 0 | BV81: 0 | BW81: 55497.67 | BX81: 55497.67
A82: 2465 | B82: Claremont Primary School | C82: 0 | D82: 438 | E82: 0 | F82: 9.416666667 | G82: No | H82: Primary | I82: 400-499 | J82: =IF(G82=Benchmarking!$I$4,1,0) -> 0 | K82: =IF(Benchmarking!$I$6="All",1,IF(Benchmarking!$I$6=H82,1,0)) -> 0 | L82: =IF(Benchmarking!$I$8="All",1,IF(Benchmarking!$I$8=I82,1,0)) -> 0 | M82: 0 | N82: 1205113.02 | O82: 6616.4 | P82: 411722 | Q82: 50859.47 | R82: 129471.68 | S82: 0 | T82: 47472.99 | U82: 13822.98 | V82: 6450.44 | W82: 8919.31 | X82: 11120.88 | Y82: 19181.03 | Z82: 15996.12 | AA82: 32955.7 | AB82: 21468.03 | AC82: 39818.8 | AD82: 38656 | AE82: 15707 | AF82: 116809.34 | AG82: 12152.77 | AH82: 0 | AI82: 19267.73 | AJ82: 16363.68 | AK82: 242.01 | AL82: 82654.34 | AM82: 35218.3 | AN82: 25445.09 | AO82: 67360.59 | AP82: 0 | AQ82: 0 | AR82: 19678.55 | AS82: 0 | AT82: 0 | AU82: -1681846.02 | AV82: -333047.23 | AW82: 0 | AX82: -91634.17 | AY82: 0 | AZ82: -29035 | BA82: -30152.23 | BB82: -53459.02 | BC82: -9552.2 | BD82: -37465.21 | BE82: 0 | BF82: -3655.6 | BG82: 0 | BH82: -50183.79 | BI82: -51780.73 | BJ82: 0 | BK82: 0 | BL82: 0 | BM82: -96246 | BN82: 0 | BO82: 0 | BP82: -4281.88 | BQ82: -2106527.42 | BR82: 0 | BS82: 0 | BT82: 0 | BU82: 0 | BV82: 0 | BW82: 91634.17 | BX82: 91634.17
A83: 2471 | B83: Whitfield Aspen School | C83: 0 | D83: 577 | E83: 171 | F83: 17.25 | G83: No | H83: Infant | I83: 500+ | J83: =IF(G83=Benchmarking!$I$4,1,0) -> 0 | K83: =IF(Benchmarking!$I$6="All",1,IF(Benchmarking!$I$6=H83,1,0)) -> 0 | L83: =IF(Benchmarking!$I$8="All",1,IF(Benchmarking!$I$8=I83,1,0)) -> 0 | M83: 0 | N83: 2620527.25 | O83: 155063.61 | P83: 2360746.32 | Q83: 196374.96 | R83: 253540.81 | S83: 0 | T83: 79207.89 | U83: 53163.53 | V83: 15003.83 | W83: 1154 | X83: 15079.44 | Y83: 37027.16 | Z83: 5906.02 | AA83: 5430.75 | AB83: 15732.57 | AC83: 152326.98 | AD83: 194048 | AE83: 33787.16 | AF83: 326093.85 | AG83: 26488.49 | AH83: 0 | AI83: 24125.72 | AJ83: 23274.32 | AK83: 6742.15 | AL83: 123391.39 | AM83: 268671.86 | AN83: 19938.11 | AO83: 65043.27 | AP83: 0 | AQ83: 0 | AR83: 20834.48 | AS83: 0 | AT83: 0 | AU83: -2740076.37 | AV83: -539180.08 | AW83: -2666579.26 | AX83: -172654.73 | AY83: 0 | AZ83: -302275 | BA83: -36473.72 | BB83: -60350.04 | BC83: -1415 | BD83: -460668.89 | BE83: -1829.36 | BF83: 0 | BG83: -25593.16 | BH83: -18792.1 | BI83: -15857.06 | BJ83: 0 | BK83: 0 | BL83: 0 | BM83: -70720 | BN83: 0 | BO83: 0 | BP83: -93630.05 | BQ83: -6118490.44 | BR83: 7000 | BS83: 917500 | BT83: 1742079.26 | BU83: 2666579.26 | BV83: 0 | BW83: 172654.73 | BX83: 172654.73
A84: 2474 | B84: St Pauls Infant School, Maidstone | C84: 0 | D84: 260 | E84: 0 | F84: 15.33333333 | G84: No | H84: Infant | I84: 200-299 | J84: =IF(G84=Benchmarking!$I$4,1,0) -> 0 | K84: =IF(Benchmarking!$I$6="All",1,IF(Benchmarking!$I$6=H84,1,0)) -> 0 | L84: =IF(Benchmarking!$I$8="All",1,IF(Benchmarking!$I$8=I84,1,0)) -> 0 | M84: 0 | N84: 811195.41 | O84: 0 | P84: 285398.97 | Q84: 19248.12 | R84: 83707.15 | S84: 0 | T84: 49620.44 | U84: 20645.83 | V84: 7310.56 | W84: 7544.51 | X84: 6601.32 | Y84: 19148.32 | Z84: 7706.11 | AA84: 22277.17 | AB84: 4889.21 | AC84: 28860.02 | AD84: 13198.55 | AE84: 11733.13 | AF84: 57920.76 | AG84: 15932.13 | AH84: 0 | AI84: 15528.41 | AJ84: 9713.56 | AK84: 6351.99 | AL84: 86453.7 | AM84: 18519.31 | AN84: 22733.63 | AO84: 42371.16 | AP84: 0 | AQ84: 0 | AR84: 4000 | AS84: 0 | AT84: 0 | AU84: -1076864.95 | AV84: -230980.23 | AW84: 0 | AX84: -127258.36 | AY84: -1875 | AZ84: -124025 | BA84: -20538.23 | BB84: -605.2 | BC84: -550 | BD84: -2930.2 | BE84: -436 | BF84: 0 | BG84: -12722.42 | BH84: -1460 | BI84: 0 | BJ84: 0 | BK84: 0 | BL84: 0 | BM84: -89923 | BN84: 0 | BO84: 0 | BP84: -8669.67 | BQ84: -1435103.54 | BR84: 0 | BS84: 0 | BT84: 0 | BU84: 0 | BV84: 0 | BW84: 127258.36 | BX84: 127258.36
A85: 2482 | B85: Langton Green Primary School | C85: 0 | D85: 411 | E85: 0 | F85: 14.25 | G85: No | H85: Infant | I85: 400-499 | J85: =IF(G85=Benchmarking!$I$4,1,0) -> 0 | K85: =IF(Benchmarking!$I$6="All",1,IF(Benchmarking!$I$6=H85,1,0)) -> 0 | L85: =IF(Benchmarking!$I$8="All",1,IF(Benchmarking!$I$8=I85,1,0)) -> 0 | M85: 0 | N85: 1137164.59 | O85: 5630.95 | P85: 341576.81 | Q85: 34304.64 | R85: 110159.09 | S85: 0 | T85: 71990.06 | U85: 10497.77 | V85: 8773 | W85: 8598.36 | X85: 10435.32 | Y85: 95540.36 | Z85: 8574.49 | AA85: 30281.08 | AB85: 2847.01 | AC85: 26912.65 | AD85: 44544 | AE85: 13266.24 | AF85: 119444.6 | AG85: 26761.99 | AH85: 0 | AI85: 20802.79 | AJ85: 15354.96 | AK85: 0 | AL85: 85889.37 | AM85: 8908.47 | AN85: 43913.73 | AO85: 24176.2 | AP85: 0 | AQ85: 0 | AR85: 0 | AS85: 0 | AT85: 0 | AU85: -1605682.44 | AV85: -301033.18 | AW85: 0 | AX85: -127155.39 | AY85: 0 | AZ85: -41750 | BA85: -32705.6 | BB85: -52269.16 | BC85: -2780 | BD85: -951.17 | BE85: 0 | BF85: 0 | BG85: 0 | BH85: 0 | BI85: -79779.87 | BJ85: 0 | BK85: 0 | BL85: 0 | BM85: -89317 | BN85: 0 | BO85: 0 | BP85: -3901.06 | BQ85: -2033871.01 | BR85: 0 | BS85: 0 | BT85: 0 | BU85: 0 | BV85: 0 | BW85: 127155.39 | BX85: 127155.39
A86: 2490 | B86: Bishops Down Primary School | C86: 19 | D86: 205 | E86: 5.5 | F86: 6.416666667 | G86: Yes | H86: Infant | I86: 200-299 | J86: =IF(G86=Benchmarking!$I$4,1,0) -> 0 | K86: =IF(Benchmarking!$I$6="All",1,IF(Benchmarking!$I$6=H86,1,0)) -> 0 | L86: =IF(Benchmarking!$I$8="All",1,IF(Benchmarking!$I$8=I86,1,0)) -> 0 | M86: 0 | N86: 614372.11 | O86: 0 | P86: 346342.65 | Q86: 32671.68 | R86: 87030.75 | S86: 0 | T86: 137567.32 | U86: 6703.14 | V86: 10220.86 | W86: 10897.14 | X86: 5284.2 | Y86: 4508.47 | Z86: 22635.03 | AA86: 26583.57 | AB86: 12059.83 | AC86: 41244.79 | AD86: 34816 | AE86: 22933.42 | AF86: 49799.07 | AG86: 13958.78 | AH86: 0 | AI86: 17448.3 | AJ86: 7975.64 | AK86: 10679.86 | AL86: 39837.36 | AM86: 63356.25 | AN86: 6756.48 | AO86: 41891.57 | AP86: 0 | AQ86: 0 | AR86: 0 | AS86: 0 | AT86: 0 | AU86: -989712.35 | AV86: -107962.18 | AW86: -120430.07 | AX86: -62941.41 | AY86: 0 | AZ86: -37450 | BA86: -31229.83 | BB86: -5902.87 | BC86: -8698.23 | BD86: -172172.48 | BE86: 0 | BF86: -10498 | BG86: -6250.35 | BH86: -13145.76 | BI86: -9171.46 | BJ86: 0 | BK86: 0 | BL86: 0 | BM86: -49115 | BN86: 0 | BO86: 0 | BP86: -3488.69 | BQ86: -1281046.01 | BR86: 4000 | BS86: 42000 | BT86: 74430.07 | BU86: 120430.07 | BV86: 0 | BW86: 62941.41 | BX86: 62941.41
A87: 2509 | B87: Singlewell Primary School | C87: 0 | D87: 393 | E87: 0 | F87: 5.083333333 | G87: No | H87: Infant | I87: 300-399 | J87: =IF(G87=Benchmarking!$I$4,1,0) -> 0 | K87: =IF(Benchmarking!$I$6="All",1,IF(Benchmarking!$I$6=H87,1,0)) -> 0 | L87: =IF(Benchmarking!$I$8="All",1,IF(Benchmarking!$I$8=I87,1,0)) -> 0 | M87: 0 | N87: 1268879.32 | O87: 7142.21 | P87: 326607.3 | Q87: 54207.32 | R87: 108155.66 | S87: 0 | T87: 83728.65 | U87: 7882.25 | V87: 6662.54 | W87: 12801.36 | X87: 9978.24 | Y87: 10226.05 | Z87: 7060.86 | AA87: 34202.42 | AB87: 4451.26 | AC87: 37042.01 | AD87: 51712 | AE87: 19969.25 | AF87: 50739.05 | AG87: 18701.37 | AH87: 0 | AI87: 6366.68 | AJ87: 14682.48 | AK87: 2486.49 | AL87: 65267.86 | AM87: 1547 | AN87: 38025.04 | AO87: 25962.9 | AP87: 0 | AQ87: 0 | AR87: 0 | AS87: 0 | AT87: 0 | AU87: -1583703.66 | AV87: -256714.73 | AW87: 0 | AX87: -32602.21 | AY87: 0 | AZ87: -114945 | BA87: -20556 | BB87: -1440 | BC87: 0 | BD87: -71254.62 | BE87: 0 | BF87: -3510 | BG87: -9565.76 | BH87: -6620.6 | BI87: -13413.08 | BJ87: 0 | BK87: 0 | BL87: 0 | BM87: -75892 | BN87: 0 | BO87: 0 | BP87: -19516.26 | BQ87: -1873020.6 | BR87: 0 | BS87: 0 | BT87: 0 | BU87: 0 | BV87: 0 | BW87: 32602.21 | BX87: 32602.21
A88: 2510 | B88: Cheriton Primary School | C88: 0 | D88: 382 | E88: 0 | F88: 13.08333333 | G88: No | H88: Junior | I88: 300-399 | J88: =IF(G88=Benchmarking!$I$4,1,0) -> 0 | K88: =IF(Benchmarking!$I$6="All",1,IF(Benchmarking!$I$6=H88,1,0)) -> 0 | L88: =IF(Benchmarking!$I$8="All",1,IF(Benchmarking!$I$8=I88,1,0)) -> 0 | M88: 0 | N88: 1191237.81 | O88: 12926.89 | P88: 421009.43 | Q88: 72966.34 | R88: 65363.19 | S88: 0 | T88: 83334.47 | U88: 459.2 | V88: 6313.83 | W88: 764 | X88: 17429.9 | Y88: 24289.21 | Z88: 7945.02 | AA88: 4886.83 | AB88: 15806.03 | AC88: 36727.47 | AD88: 8909 | AE88: 33422.16 | AF88: 75559.52 | AG88: 24315.19 | AH88: 0 | AI88: 10099.61 | AJ88: 14271.56 | AK88: 45708.93 | AL88: 95333.97 | AM88: 14393.08 | AN88: 36780.19 | AO88: 36110.14 | AP88: 0 | AQ88: 0 | AR88: 23774 | AS88: 0 | AT88: 0 | AU88: -1517561.04 | AV88: -261023.9 | AW88: 0 | AX88: -132558.16 | AY88: 0 | AZ88: -179855 | BA88: -29509.23 | BB88: 0 | BC88: -200 | BD88: -27611.62 | BE88: -27551.6 | BF88: 0 | BG88: -5808.63 | BH88: -18353.62 | BI88: -1647 | BJ88: 0 | BK88: 0 | BL88: 0 | BM88: -74506 | BN88: 0 | BO88: 0 | BP88: -39520.28 | BQ88: -1911143.1 | BR88: 0 | BS88: 0 | BT88: 0 | BU88: 0 | BV88: 0 | BW88: 132558.16 | BX88: 132558.16
A89: 2514 | B89: Brookfield Infant School | C89: 0 | D89: 180 | E89: 0 | F89: 3.833333333 | G89: No | H89: Primary | I89: 100-199 | J89: =IF(G89=Benchmarking!$I$4,1,0) -> 0 | K89: =IF(Benchmarking!$I$6="All",1,IF(Benchmarking!$I$6=H89,1,0)) -> 0 | L89: =IF(Benchmarking!$I$8="All",1,IF(Benchmarking!$I$8=I89,1,0)) -> 0 | M89: 0 | N89: 458433.13 | O89: 0 | P89: 288227.66 | Q89: 12374.21 | R89: 51675.72 | S89: 82821.52 | T89: 35434.09 | U89: 6660.49 | V89: 7189.94 | W89: 4022.96 | X89: 7738.2 | Y89: 5898.36 | Z89: 6067.66 | AA89: 27084.58 | AB89: 1808.08 | AC89: 22628.95 | AD89: 20210 | AE89: 6293.98 | AF89: 41963.7 | AG89: 11099.93 | AH89: 0 | AI89: 13645.94 | AJ89: 3556.8 | AK89: 80171.2 | AL89: 59296.2 | AM89: 2388.6 | AN89: 6431.5 | AO89: 15414.11 | AP89: 0 | AQ89: 0 | AR89: 0 | AS89: 0 | AT89: 0 | AU89: -785971.8 | AV89: -110870.45 | AW89: 0 | AX89: -32090.75 | AY89: 0 | AZ89: -51240 | BA89: -9818.93 | BB89: -2100 | BC89: -500 | BD89: -105295.44 | BE89: -58863.09 | BF89: 0 | BG89: 0 | BH89: -3831.5 | BI89: -29905.64 | BJ89: 0 | BK89: 0 | BL89: 0 | BM89: -84712 | BN89: 0 | BO89: 0 | BP89: -7784.17 | BQ89: -928933 | BR89: 0 | BS89: 0 | BT89: 0 | BU89: 0 | BV89: 0 | BW89: 32090.75 | BX89: 32090.75
A90: 2519 | B90: Vigo Village School | C90: 0 | D90: 144 | E90: 0 | F90: 3.25 | G90: No | H90: Primary | I90: 100-199 | J90: =IF(G90=Benchmarking!$I$4,1,0) -> 0 | K90: =IF(Benchmarking!$I$6="All",1,IF(Benchmarking!$I$6=H90,1,0)) -> 0 | L90: =IF(Benchmarking!$I$8="All",1,IF(Benchmarking!$I$8=I90,1,0)) -> 0 | M90: 0 | N90: 400902.05 | O90: 0 | P90: 126602.25 | Q90: 36474.8 | R90: 50435.89 | S90: 0 | T90: 42402.81 | U90: 2502.71 | V90: 4728 | W90: 288 | X90: 3656.16 | Y90: 23441.65 | Z90: 10174.76 | AA90: 4207.51 | AB90: 3900 | AC90: 32585.11 | AD90: 22081 | AE90: 1950.96 | AF90: 29505.13 | AG90: 16985.03 | AH90: 0 | AI90: 18019.61 | AJ90: 5379.84 | AK90: 0 | AL90: 21523.49 | AM90: 2248.48 | AN90: 1929 | AO90: 22626.37 | AP90: 0 | AQ90: 0 | AR90: 0 | AS90: 0 | AT90: 0 | AU90: -663307.58 | AV90: -69234.74 | AW90: 0 | AX90: -19965.19 | AY90: 0 | AZ90: -35085 | BA90: -15768.65 | BB90: -10091.63 | BC90: -472.74 | BD90: -26716.4 | BE90: 0 | BF90: 0 | BG90: 0 | BH90: -3867.5 | BI90: -4924.57 | BJ90: 0 | BK90: 0 | BL90: 0 | BM90: -30714 | BN90: 0 | BO90: 0 | BP90: -2008.21 | BQ90: -752507.51 | BR90: 0 | BS90: 0 | BT90: 0 | BU90: 0 | BV90: 0 | BW90: 19965.19 | BX90: 19965.19
A91: 2520 | B91: Madginford Primary School | C91: 0 | D91: 635 | E91: 0 | F91: 21.25 | G91: No | H91: Infant | I91: 500+ | J91: =IF(G91=Benchmarking!$I$4,1,0) -> 0 | K91: =IF(Benchmarking!$I$6="All",1,IF(Benchmarking!$I$6=H91,1,0)) -> 0 | L91: =IF(Benchmarking!$I$8="All",1,IF(Benchmarking!$I$8=I91,1,0)) -> 0 | M91: 0 | N91: 1803853.35 | O91: 0 | P91: 693579.18 | Q91: 100232.85 | R91: 90755.02 | S91: 80910.14 | T91: 173503.16 | U91: 14272.72 | V91: 7495.7 | W91: 19616.91 | X91: 16207.68 | Y91: 15636.24 | Z91: 17099.72 | AA91: 10750.16 | AB91: 11903.57 | AC91: 61750.07 | AD91: 60928 | AE91: 11465.11 | AF91: 228176.34 | AG91: 22823.97 | AH91: 0 | AI91: 27275.11 | AJ91: 24063.64 | AK91: 18331.71 | AL91: 72129.32 | AM91: 64356.88 | AN91: 21498.59 | AO91: 31979.32 | AP91: 0 | AQ91: 0 | AR91: 4714 | AS91: 0 | AT91: 0 | AU91: -2412215.25 | AV91: -518301.75 | AW91: 0 | AX91: -147915.35 | AY91: 0 | AZ91: -96065 | BA91: -53361.81 | BB91: -1044.14 | BC91: -2800.5 | BD91: -109640.84 | BE91: -33018.9 | BF91: -20250 | BG91: -14479.26 | BH91: -67711 | BI91: -10202.46 | BJ91: 0 | BK91: 0 | BL91: 0 | BM91: -89394 | BN91: 0 | BO91: 0 | BP91: -6274.62 | BQ91: -3078432.35 | BR91: 0 | BS91: 0 | BT91: 0 | BU91: 0 | BV91: 0 | BW91: 147915.35 | BX91: 147915.35
A92: 2524 | B92: Palmarsh Primary School | C92: 0 | D92: 196 | E92: 0 | F92: 5.083333333 | G92: No | H92: Primary | I92: 100-199 | J92: =IF(G92=Benchmarking!$I$4,1,0) -> 0 | K92: =IF(Benchmarking!$I$6="All",1,IF(Benchmarking!$I$6=H92,1,0)) -> 0 | L92: =IF(Benchmarking!$I$8="All",1,IF(Benchmarking!$I$8=I92,1,0)) -> 0 | M92: 0 | N92: 542387.81 | O92: 0 | P92: 247879.31 | Q92: 18926.91 | R92: 35268.27 | S92: 0 | T92: 63193.15 | U92: 3863.73 | V92: 3474 | W92: 2180.02 | X92: 4976.52 | Y92: 17330.53 | Z92: 2696.63 | AA92: 1356.87 | AB92: 4739.87 | AC92: 53404.14 | AD92: 16218 | AE92: 14437.97 | AF92: 109635.62 | AG92: 9338.19 | AH92: 0 | AI92: 20671.56 | AJ92: 7322.6 | AK92: 23532.05 | AL92: 42649.73 | AM92: 3533.54 | AN92: 523 | AO92: 30483.97 | AP92: 0 | AQ92: 0 | AR92: 4624.04 | AS92: 0 | AT92: 0 | AU92: -864198.21 | AV92: -132891.71 | AW92: 0 | AX92: -56177.55 | AY92: 0 | AZ92: -88410 | BA92: -10407 | BB92: -1370 | BC92: -5613.42 | BD92: -23505.95 | BE92: -384.03 | BF92: 0 | BG92: 0 | BH92: -5971.86 | BI92: -4379.01 | BJ92: 0 | BK92: 0 | BL92: 0 | BM92: -50480 | BN92: 0 | BO92: 0 | BP92: -11845.88 | BQ92: -1053267.47 | BR92: 0 | BS92: 0 | BT92: 0 | BU92: 0 | BV92: 0 | BW92: 56177.55 | BX92: 56177.55
A93: 2525 | B93: Painters Ash Primary School | C93: 0 | D93: 401 | E93: 0 | F93: 5.5 | G93: No | H93: Primary | I93: 400-499 | J93: =IF(G93=Benchmarking!$I$4,1,0) -> 0 | K93: =IF(Benchmarking!$I$6="All",1,IF(Benchmarking!$I$6=H93,1,0)) -> 0 | L93: =IF(Benchmarking!$I$8="All",1,IF(Benchmarking!$I$8=I93,1,0)) -> 0 | M93: 0 | N93: 1140867.82 | O93: 12319.27 | P93: 357909.84 | Q93: 49873.56 | R93: 94759.69 | S93: 0 | T93: 89270.13 | U93: 468 | V93: 13063.03 | W93: 10240 | X93: 10181.4 | Y93: 24580.99 | Z93: 11000.03 | AA93: 30628.76 | AB93: 16458.32 | AC93: 34581.28 | AD93: 41728 | AE93: 14389.42 | AF93: 104455.35 | AG93: 6840.84 | AH93: 0 | AI93: 28448.34 | AJ93: 14981.32 | AK93: 2638.76 | AL93: 80801.8 | AM93: 8898.4 | AN93: 18683.64 | AO93: 29285.56 | AP93: 0 | AQ93: 0 | AR93: 0 | AS93: 0 | AT93: 0 | AU93: -1606063.67 | AV93: -275405.79 | AW93: 0 | AX93: -46216.62 | AY93: 0 | AZ93: -143390 | BA93: -23547.86 | BB93: -1440 | BC93: -510 | BD93: -34892.32 | BE93: 0 | BF93: -3096 | BG93: -14505.27 | BH93: -39498.55 | BI93: -4696.4 | BJ93: 0 | BK93: 0 | BL93: 0 | BM93: -70344 | BN93: 0 | BO93: 0 | BP93: -22723.76 | BQ93: -1927686.08 | BR93: 0 | BS93: 0 | BT93: 0 | BU93: 0 | BV93: 0 | BW93: 46216.62 | BX93: 46216.62
A94: 2530 | B94: Tunbury Primary School | C94: 0 | D94: 584 | E94: 0 | F94: 5.5 | G94: No | H94: Infant | I94: 500+ | J94: =IF(G94=Benchmarking!$I$4,1,0) -> 0 | K94: =IF(Benchmarking!$I$6="All",1,IF(Benchmarking!$I$6=H94,1,0)) -> 0 | L94: =IF(Benchmarking!$I$8="All",1,IF(Benchmarking!$I$8=I94,1,0)) -> 0 | M94: 0 | N94: 1521264.11 | O94: 0 | P94: 633853.55 | Q94: 96052.33 | R94: 85962.6 | S94: 0 | T94: 49218.21 | U94: 12349.79 | V94: 12689.73 | W94: 1168 | X94: 14827.68 | Y94: 61620.42 | Z94: 30022.18 | AA94: 4492.44 | AB94: 14660.57 | AC94: 59194.39 | AD94: 46336 | AE94: 18467.21 | AF94: 127619.57 | AG94: 16404.55 | AH94: 0 | AI94: 42805.56 | AJ94: 21818.2 | AK94: 1139.92 | AL94: 91192.14 | AM94: 71057.95 | AN94: 47846.71 | AO94: 40139.9 | AP94: 0 | AQ94: 0 | AR94: 0 | AS94: 0 | AT94: 0 | AU94: -2225684.37 | AV94: -472046.35 | AW94: 0 | AX94: -42956.64 | AY94: 0 | AZ94: -68929 | BA94: -32854.86 | BB94: -1703 | BC94: -3831.82 | BD94: -4169.5 | BE94: 0 | BF94: 0 | BG94: -40425.78 | BH94: -27770.01 | BI94: -13190.5 | BJ94: 0 | BK94: 0 | BL94: 0 | BM94: -96596 | BN94: 0 | BO94: 0 | BP94: -8655.06 | BQ94: -2740687.36 | BR94: 0 | BS94: 0 | BT94: 0 | BU94: 0 | BV94: 0 | BW94: 42956.64 | BX94: 42956.64
A95: 2532 | B95: St Margarets-at-Cliffe Primary School | C95: 0 | D95: 193 | E95: 0 | F95: 8.25 | G95: No | H95: Primary | I95: 100-199 | J95: =IF(G95=Benchmarking!$I$4,1,0) -> 0 | K95: =IF(Benchmarking!$I$6="All",1,IF(Benchmarking!$I$6=H95,1,0)) -> 0 | L95: =IF(Benchmarking!$I$8="All",1,IF(Benchmarking!$I$8=I95,1,0)) -> 0 | M95: 0 | N95: 567015.98 | O95: 5422.58 | P95: 239664.67 | Q95: 39044.4 | R95: 82786.7 | S95: 0 | T95: 44983.94 | U95: 6254.61 | V95: 5596.96 | W95: 6167.17 | X95: 4900.32 | Y95: 9325.97 | Z95: 8515.12 | AA95: 2852.66 | AB95: 7552.4 | AC95: 29139.82 | AD95: 18713 | AE95: 7127.4 | AF95: 47428.48 | AG95: 11411.22 | AH95: 0 | AI95: 36139.21 | AJ95: 7210.52 | AK95: 6974.25 | AL95: 32454.35 | AM95: 8806.04 | AN95: 24154.75 | AO95: 18176.35 | AP95: 0 | AQ95: 0 | AR95: 0 | AS95: 0 | AT95: 0 | AU95: -836767.54 | AV95: -78405.68 | AW95: 0 | AX95: -86008.12 | AY95: 0 | AZ95: -30895 | BA95: -23214.53 | BB95: 0 | BC95: 0 | BD95: -118073.65 | BE95: 0 | BF95: 0 | BG95: -8084.94 | BH95: -32461.95 | BI95: -851.41 | BJ95: 0 | BK95: 0 | BL95: 0 | BM95: -51909 | BN95: 0 | BO95: 0 | BP95: -2022.09 | BQ95: -1001181.34 | BR95: 0 | BS95: 0 | BT95: 0 | BU95: 0 | BV95: 0 | BW95: 86008.12 | BX95: 86008.12
A96: 2539 | B96: Stocks Green Primary School | C96: 0 | D96: 216 | E96: 0 | F96: 7.583333333 | G96: No | H96: Primary | I96: 200-299 | J96: =IF(G96=Benchmarking!$I$4,1,0) -> 0 | K96: =IF(Benchmarking!$I$6="All",1,IF(Benchmarking!$I$6=H96,1,0)) -> 0 | L96: =IF(Benchmarking!$I$8="All",1,IF(Benchmarking!$I$8=I96,1,0)) -> 0 | M96: 0 | N96: 531160.1 | O96: 6795.44 | P96: 208248.25 | Q96: 35236.59 | R96: 65490.15 | S96: 0 | T96: 31917.04 | U96: 7668.86 | V96: 11722.15 | W96: 5555.2 | X96: 5484.24 | Y96: 14203.33 | Z96: 15985.55 | AA96: 22268.22 | AB96: 7385.91 | AC96: 36065.16 | AD96: 23204 | AE96: 15415.28 | AF96: 70544.18 | AG96: 13780.87 | AH96: 0 | AI96: 22680.79 | AJ96: 8069.76 | AK96: 219.19 | AL96: 54452.11 | AM96: 2552.55 | AN96: 7786.66 | AO96: 14932.53 | AP96: 0 | AQ96: 0 | AR96: 0 | AS96: 0 | AT96: 0 | AU96: -901346.84 | AV96: -102762.97 | AW96: 0 | AX96: -58761.59 | AY96: 0 | AZ96: -19565 | BA96: -23107.6 | BB96: -281.16 | BC96: -8061.5 | BD96: -19499.21 | BE96: -16599.76 | BF96: 0 | BG96: 0 | BH96: -30131.92 | BI96: -2731.29 | BJ96: 0 | BK96: 0 | BL96: 0 | BM96: -53557 | BN96: 0 | BO96: 0 | BP96: -2076.79 | BQ96: -1062871.4 | BR96: 0 | BS96: 0 | BT96: 0 | BU96: 0 | BV96: 0 | BW96: 58761.59 | BX96: 58761.59
A97: 2545 | B97: Sandgate Primary School | C97: 0 | D97: 419 | E97: 0 | F97: 6.166666667 | G97: No | H97: Primary | I97: 400-499 | J97: =IF(G97=Benchmarking!$I$4,1,0) -> 0 | K97: =IF(Benchmarking!$I$6="All",1,IF(Benchmarking!$I$6=H97,1,0)) -> 0 | L97: =IF(Benchmarking!$I$8="All",1,IF(Benchmarking!$I$8=I97,1,0)) -> 0 | M97: 0 | N97: 1213384.65 | O97: 35354.86 | P97: 418422.51 | Q97: 64237.94 | R97: 108660.71 | S97: 0 | T97: 54124.12 | U97: 12298.63 | V97: 2776.99 | W97: 838 | X97: 10638.36 | Y97: 5594.41 | Z97: 8582.05 | AA97: 2937.69 | AB97: 6988.04 | AC97: 55599.59 | AD97: 46592 | AE97: 19192.36 | AF97: 116136.14 | AG97: 17055.21 | AH97: 0 | AI97: 29819.61 | AJ97: 15653.8 | AK97: 14370.37 | AL97: 127785.96 | AM97: 7227.33 | AN97: 17315 | AO97: 24724.35 | AP97: 0 | AQ97: 0 | AR97: 6090 | AS97: 0 | AT97: 0 | AU97: -1642677.43 | AV97: -299485.57 | AW97: 0 | AX97: -66144.62 | AY97: 0 | AZ97: -82910 | BA97: -22610.93 | BB97: -250 | BC97: -17985.72 | BD97: -61160.14 | BE97: -42817.08 | BF97: 0 | BG97: -26375.59 | BH97: -39959.38 | BI97: -2413.62 | BJ97: 0 | BK97: 0 | BL97: 0 | BM97: -86411 | BN97: 0 | BO97: 0 | BP97: -12088.76 | BQ97: -2008307.62 | BR97: 0 | BS97: 0 | BT97: 0 | BU97: 0 | BV97: 0 | BW97: 66144.62 | BX97: 66144.62
A98: 2552 | B98: Sandling Primary School | C98: 0 | D98: 420 | E98: 0 | F98: 6.25 | G98: No | H98: Primary | I98: 400-499 | J98: =IF(G98=Benchmarking!$I$4,1,0) -> 0 | K98: =IF(Benchmarking!$I$6="All",1,IF(Benchmarking!$I$6=H98,1,0)) -> 0 | L98: =IF(Benchmarking!$I$8="All",1,IF(Benchmarking!$I$8=I98,1,0)) -> 0 | M98: 0 | N98: 913323.08 | O98: 33162.57 | P98: 454340.68 | Q98: 29987.35 | R98: 104538.39 | S98: 0 | T98: 46737.31 | U98: 11722.63 | V98: 8373.31 | W98: 5220.48 | X98: 10663.8 | Y98: 16339.83 | Z98: 10604.58 | AA98: 30247.15 | AB98: 2601.55 | AC98: 36126.8 | AD98: 31232 | AE98: 10195.19 | AF98: 87456.52 | AG98: 45091.27 | AH98: 0 | AI98: 19431.07 | AJ98: 15691.2 | AK98: 0 | AL98: 64555.71 | AM98: 36267.61 | AN98: 28349.49 | AO98: 22739.5 | AP98: 0 | AQ98: 0 | AR98: 316617.67 | AS98: 0 | AT98: 0 | AU98: -1618778.41 | AV98: -310445.59 | AW98: 0 | AX98: -70315.15 | AY98: 0 | AZ98: -35950 | BA98: -21786.93 | BB98: -2492.4 | BC98: -9846 | BD98: -9590.82 | BE98: 0 | BF98: -2000 | BG98: -5001.09 | BH98: 0 | BI98: -12127.6 | BJ98: 0 | BK98: 0 | BL98: 0 | BM98: -82872 | BN98: 0 | BO98: 0 | BP98: -5743.55 | BQ98: -1999539.15 | BR98: 0 | BS98: 0 | BT98: 0 | BU98: 0 | BV98: 0 | BW98: 70315.15 | BX98: 70315.15
A99: 2559 | B99: Capel-le-Ferne Primary School | C99: 0 | D99: 178 | E99: 0 | F99: 8.083333333 | G99: No | H99: Infant | I99: 100-199 | J99: =IF(G99=Benchmarking!$I$4,1,0) -> 0 | K99: =IF(Benchmarking!$I$6="All",1,IF(Benchmarking!$I$6=H99,1,0)) -> 0 | L99: =IF(Benchmarking!$I$8="All",1,IF(Benchmarking!$I$8=I99,1,0)) -> 0 | M99: 0 | N99: 572023.49 | O99: 250.69 | P99: 200030.71 | Q99: 38983.15 | R99: 55682.07 | S99: 0 | T99: 22201.51 | U99: 4642.95 | V99: 5605.88 | W99: 356 | X99: 4949.18 | Y99: 2427.08 | Z99: 5051.97 | AA99: 1312.01 | AB99: 6049.33 | AC99: 23101.01 | AD99: 19336 | AE99: 10722.01 | AF99: 37730.73 | AG99: 14119.16 | AH99: 0 | AI99: 13491.98 | AJ99: 7007.02 | AK99: 1465.97 | AL99: 40956.25 | AM99: 3797.5 | AN99: 22624.14 | AO99: 20031.54 | AP99: 0 | AQ99: 0 | AR99: 0 | AS99: 0 | AT99: 0 | AU99: -785525.37 | AV99: -105370.42 | AW99: 0 | AX99: -63632.52 | AY99: 0 | AZ99: -70495 | BA99: -9200 | BB99: -2879.28 | BC99: -2684.11 | BD99: -3301.91 | BE99: -14876.63 | BF99: 0 | BG99: -3752.76 | BH99: -13991.9 | BI99: -7828.64 | BJ99: 0 | BK99: 0 | BL99: 0 | BM99: -32031 | BN99: 0 | BO99: 0 | BP99: -7943.12 | BQ99: -954528.31 | BR99: 0 | BS99: 0 | BT99: 0 | BU99: 0 | BV99: 0 | BW99: 63632.52 | BX99: 63632.52
A100: 2562 | B100: Lunsford Primary School | C100: 0 | D100: 209 | E100: 0 | F100: 2 | G100: No | H100: Primary | I100: 200-299 | J100: =IF(G100=Benchmarking!$I$4,1,0) -> 0 | K100: =IF(Benchmarking!$I$6="All",1,IF(Benchmarking!$I$6=H100,1,0)) -> 0 | L100: =IF(Benchmarking!$I$8="All",1,IF(Benchmarking!$I$8=I100,1,0)) -> 0 | M100: 0 | N100: 598212.94 | O100: 10420.61 | P100: 190357.29 | Q100: 24637.6 | R100: 70611.65 | S100: 0 | T100: 5762.2 | U100: 787.12 | V100: 6331.92 | W100: 6110.71 | X100: 5340.85 | Y100: 5066.94 | Z100: 4787.01 | AA100: 18036.51 | AB100: 3176.14 | AC100: 20373.23 | AD100: 19087 | AE100: 5234.52 | AF100: 58940.82 | AG100: 8517.86 | AH100: 0 | AI100: 18549.14 | AJ100: 8107.98 | AK100: 1792.11 | AL100: 37935.16 | AM100: 0 | AN100: 34494 | AO100: 19199.54 | AP100: 0 | AQ100: 0 | AR100: 0 | AS100: 0 | AT100: 0 | AU100: -880780.15 | AV100: -118296.23 | AW100: 0 | AX100: -9409.63 | AY100: 0 | AZ100: -56745 | BA100: -18224.18 | BB100: -4698.88 | BC100: -60 | BD100: -3782.26 | BE100: 0 | BF100: -2508 | BG100: 0 | BH100: -27306.31 | BI100: -12716.79 | BJ100: 0 | BK100: 0 | BL100: 0 | BM100: -48171 | BN100: 0 | BO100: 0 | BP100: -9118.93 | BQ100: -1008486.01 | BR100: 0 | BS100: 0 | BT100: 0 | BU100: 0 | BV100: 0 | BW100: 9409.63 | BX100: 9409.63
A101: 2574 | B101: Downs View Infant School | C101: 0 | D101: 255 | E101: 0 | F101: 7.666666667 | G101: No | H101: Primary | I101: 200-299 | J101: =IF(G101=Benchmarking!$I$4,1,0) -> 0 | K101: =IF(Benchmarking!$I$6="All",1,IF(Benchmarking!$I$6=H101,1,0)) -> 0 | L101: =IF(Benchmarking!$I$8="All",1,IF(Benchmarking!$I$8=I101,1,0)) -> 0 | M101: 0 | N101: 668400.02 | O101: 4654.55 | P101: 287047.57 | Q101: 43473.54 | R101: 68692.36 | S101: 0 | T101: 106614.12 | U101: 8948.69 | V101: 6668.94 | W101: 510 | X101: 6474.48 | Y101: 10090.1 | Z101: 3270.07 | AA101: 4727.01 | AB101: 4493.56 | AC101: 48781.52 | AD101: 27648 | AE101: 8500.76 | AF101: 29068.63 | AG101: 11328.77 | AH101: 0 | AI101: 15945.48 | AJ101: 9526.8 | AK101: 1512.44 | AL101: 87161.6 | AM101: 0 | AN101: 17441.08 | AO101: 20192.53 | AP101: 0 | AQ101: 0 | AR101: 0 | AS101: 0 | AT101: 0 | AU101: -1053653.86 | AV101: -145601.88 | AW101: 0 | AX101: -61363.08 | AY101: 0 | AZ101: -58205.1 | BA101: -15901.86 | BB101: -2973.75 | BC101: -8566 | BD101: -24039.76 | BE101: -272.8 | BF101: 0 | BG101: 0 | BH101: -3425.9 | BI101: -16455.45 | BJ101: 0 | BK101: 0 | BL101: 0 | BM101: -108310 | BN101: 0 | BO101: 0 | BP101: -2377.66 | BQ101: -1260618.82 | BR101: 0 | BS101: 0 | BT101: 0 | BU101: 0 | BV101: 0 | BW101: 61363.08 | BX101: 61363.08
A102: 2578 | B102: Kingswood Primary School | C102: 0 | D102: 129 | E102: 0 | F102: 6.833333333 | G102: No | H102: Primary | I102: 100-199 | J102: =IF(G102=Benchmarking!$I$4,1,0) -> 0 | K102: =IF(Benchmarking!$I$6="All",1,IF(Benchmarking!$I$6=H102,1,0)) -> 0 | L102: =IF(Benchmarking!$I$8="All",1,IF(Benchmarking!$I$8=I102,1,0)) -> 0 | M102: 0 | N102: 979543.84 | O102: 0 | P102: 102079.12 | Q102: 49644.16 | R102: 48414.98 | S102: 0 | T102: 34755.55 | U102: 2226.12 | V102: 1033.76 | W102: 3797.38 | X102: 3360.24 | Y102: 7004.65 | Z102: 11454.32 | AA102: 2423.98 | AB102: 2128.1 | AC102: 20222.74 | AD102: 16093 | AE102: 6972.32 | AF102: 12847.37 | AG102: 5423.98 | AH102: 0 | AI102: 12007.07 | AJ102: 5159.4 | AK102: 328448.35 | AL102: 23194.86 | AM102: 716 | AN102: 10487.91 | AO102: 12375.42 | AP102: 0 | AQ102: 0 | AR102: 0 | AS102: 0 | AT102: 0 | AU102: -620523.25 | AV102: -61804.24 | AW102: 0 | AX102: -53518.01 | AY102: 0 | AZ102: -35621 | BA102: -7284.93 | BB102: -3744 | BC102: 0 | BD102: -902146.24 | BE102: -1605.88 | BF102: 0 | BG102: -4303.09 | BH102: -5857.98 | BI102: -1072.25 | BJ102: 0 | BK102: 0 | BL102: 0 | BM102: -34980 | BN102: 0 | BO102: 0 | BP102: -1988 | BQ102: -735845.5 | BR102: 0 | BS102: 0 | BT102: 0 | BU102: 0 | BV102: 0 | BW102: 53518.01 | BX102: 53518.01
A103: 2586 | B103: Senacre Wood Primary School | C103: 0 | D103: 210 | E103: 0 | F103: 5.833333333 | G103: No | H103: Primary | I103: 200-299 | J103: =IF(G103=Benchmarking!$I$4,1,0) -> 0 | K103: =IF(Benchmarking!$I$6="All",1,IF(Benchmarking!$I$6=H103,1,0)) -> 0 | L103: =IF(Benchmarking!$I$8="All",1,IF(Benchmarking!$I$8=I103,1,0)) -> 0 | M103: 0 | N103: 666121.9 | O103: 18700.18 | P103: 259739.9 | Q103: 19199.34 | R103: 62402.94 | S103: 0 | T103: 43564.46 | U103: 5227.66 | V103: 4619.4 | W103: 4950.71 | X103: 5331.96 | Y103: 11515.44 | Z103: 16237.09 | AA103: 16489.37 | AB103: 2196.26 | AC103: 23553.06 | AD103: 19211.5 | AE103: 6291.51 | AF103: 50939.96 | AG103: 25883.24 | AH103: 0 | AI103: 12390.3 | AJ103: 7845.6 | AK103: 4799.12 | AL103: 52367.72 | AM103: 2814 | AN103: 21621.04 | AO103: 37298.35 | AP103: 0 | AQ103: 0 | AR103: 4540 | AS103: 0 | AT103: 0 | AU103: -911183.16 | AV103: -173764.61 | AW103: 0 | AX103: -52255.87 | AY103: 0 | AZ103: -102995 | BA103: -14342.65 | BB103: 0 | BC103: 0 | BD103: -30233.84 | BE103: -32 | BF103: -480 | BG103: -8916.18 | BH103: -11698.41 | BI103: -1014.74 | BJ103: 0 | BK103: 0 | BL103: 0 | BM103: -45431 | BN103: 0 | BO103: 0 | BP103: -15825.43 | BQ103: -1137203.64 | BR103: 0 | BS103: 0 | BT103: 0 | BU103: 0 | BV103: 0 | BW103: 52255.87 | BX103: 52255.87
A104: 2603 | B104: Bromstone Primary School | C104: 0 | D104: 406 | E104: 34.16666667 | F104: 11.66666667 | G104: No | H104: Primary | I104: 400-499 | J104: =IF(G104=Benchmarking!$I$4,1,0) -> 0 | K104: =IF(Benchmarking!$I$6="All",1,IF(Benchmarking!$I$6=H104,1,0)) -> 0 | L104: =IF(Benchmarking!$I$8="All",1,IF(Benchmarking!$I$8=I104,1,0)) -> 0 | M104: 0 | N104: 1163744.62 | O104: 0 | P104: 902882.16 | Q104: 91792.87 | R104: 167657.79 | S104: 76703.18 | T104: 50788.79 | U104: 688.19 | V104: 13344.99 | W104: 812 | X104: 10478.4 | Y104: 46466.93 | Z104: 14294.59 | AA104: 42487.97 | AB104: 23210.87 | AC104: 56360.79 | AD104: 45056 | AE104: 17276.56 | AF104: 53184.92 | AG104: 34085.87 | AH104: 0 | AI104: 56767.04 | AJ104: 15848.12 | AK104: 33996.59 | AL104: 93407.82 | AM104: 4105.88 | AN104: 886 | AO104: 130121.52 | AP104: 0 | AQ104: 0 | AR104: 87552.77 | AS104: 0 | AT104: 0 | AU104: -1762125.84 | AV104: -391107.31 | AW104: -395554.14 | AX104: -66436.08 | AY104: 0 | AZ104: -241800 | BA104: -27745.58 | BB104: -83960.08 | BC104: 0 | BD104: -34036.02 | BE104: -20760 | BF104: 0 | BG104: 0 | BH104: -17232.65 | BI104: -5992.28 | BJ104: 0 | BK104: 0 | BL104: 0 | BM104: -65176 | BN104: 0 | BO104: 0 | BP104: -47652.35 | BQ104: -2615223.37 | BR104: 0 | BS104: 120000 | BT104: 275554.14 | BU104: 395554.14 | BV104: 0 | BW104: 66436.08 | BX104: 66436.08
A105: 2607 | B105: Parkside Community Primary School | C105: 0 | D105: 164 | E105: 0 | F105: 8.916666667 | G105: No | H105: Primary | I105: 100-199 | J105: =IF(G105=Benchmarking!$I$4,1,0) -> 0 | K105: =IF(Benchmarking!$I$6="All",1,IF(Benchmarking!$I$6=H105,1,0)) -> 0 | L105: =IF(Benchmarking!$I$8="All",1,IF(Benchmarking!$I$8=I105,1,0)) -> 0 | M105: 0 | N105: 577662.95 | O105: 0 | P105: 217412.91 | Q105: 70781.95 | R105: 33722.29 | S105: 0 | T105: 5013.53 | U105: 952.43 | V105: 7418.09 | W105: 4289.24 | X105: 4248.96 | Y105: 14093.17 | Z105: 21349.74 | AA105: 1956.15 | AB105: 5699.29 | AC105: 55883.7 | AD105: 19461 | AE105: 19946.86 | AF105: 65206.63 | AG105: 11817.52 | AH105: 0 | AI105: 19863.07 | AJ105: 6467.08 | AK105: 9281.32 | AL105: 51549.58 | AM105: 17606.93 | AN105: 32830.03 | AO105: 32827.01 | AP105: 0 | AQ105: 0 | AR105: 122447.52 | AS105: 0 | AT105: 0 | AU105: -814889.11 | AV105: -271090.21 | AW105: 0 | AX105: -63057.38 | AY105: -15750 | AZ105: -180420 | BA105: -13557.93 | BB105: -2824 | BC105: -27400 | BD105: -4266.63 | BE105: -1032.23 | BF105: -4200 | BG105: -5383.51 | BH105: -550 | BI105: -100 | BJ105: 0 | BK105: 0 | BL105: 0 | BM105: -26958 | BN105: 0 | BO105: 0 | BP105: -14181.04 | BQ105: -1149036.7 | BR105: 0 | BS105: 0 | BT105: 0 | BU105: 0 | BV105: 0 | BW105: 63057.38 | BX105: 63057.38
A106: 2615 | B106: High Firs Primary School | C106: 0 | D106: 195 | E106: 0 | F106: 4 | G106: No | H106: Primary | I106: 100-199 | J106: =IF(G106=Benchmarking!$I$4,1,0) -> 0 | K106: =IF(Benchmarking!$I$6="All",1,IF(Benchmarking!$I$6=H106,1,0)) -> 0 | L106: =IF(Benchmarking!$I$8="All",1,IF(Benchmarking!$I$8=I106,1,0)) -> 0 | M106: 0 | N106: 587761.27 | O106: 10662.18 | P106: 232151.41 | Q106: 31962.77 | R106: 59421.25 | S106: 0 | T106: 27168.63 | U106: 6192.3 | V106: 4406 | W106: 9246.92 | X106: 4951.08 | Y106: 4015.84 | Z106: 3798.84 | AA106: 11911.72 | AB106: 1543.6 | AC106: 16399.41 | AD106: 24950 | AE106: 8228.61 | AF106: 62493.7 | AG106: 5668.82 | AH106: 0 | AI106: 18210.02 | AJ106: 7430.47 | AK106: 1784.17 | AL106: 34029 | AM106: 3530 | AN106: 27623.43 | AO106: 31404.5 | AP106: 0 | AQ106: 729.13 | AR106: 3848.87 | AS106: 0 | AT106: 0 | AU106: -869613.59 | AV106: -142336.21 | AW106: 0 | AX106: -31325.45 | AY106: 0 | AZ106: -39030 | BA106: -16320.18 | BB106: -2368 | BC106: -5852.09 | BD106: -2019.47 | BE106: 0 | BF106: -2340 | BG106: -527.88 | BH106: -23478.09 | BI106: -9250.41 | BJ106: 0 | BK106: 0 | BL106: 0 | BM106: -42440 | BN106: 0 | BO106: 0 | BP106: -7562.93 | BQ106: -1043275.25 | BR106: 0 | BS106: 0 | BT106: 0 | BU106: 0 | BV106: 0 | BW106: 31325.45 | BX106: 31325.45
A107: 2627 | B107: Sandwich Junior School | C107: 0 | D107: 202 | E107: 0 | F107: 13.58333333 | G107: No | H107: Primary | I107: 200-299 | J107: =IF(G107=Benchmarking!$I$4,1,0) -> 0 | K107: =IF(Benchmarking!$I$6="All",1,IF(Benchmarking!$I$6=H107,1,0)) -> 0 | L107: =IF(Benchmarking!$I$8="All",1,IF(Benchmarking!$I$8=I107,1,0)) -> 0 | M107: 0 | N107: 590565.77 | O107: 0 | P107: 310617.89 | Q107: 39982.35 | R107: 52633.23 | S107: 0 | T107: 26060.2 | U107: 5374.74 | V107: 3923.3 | W107: 6827.77 | X107: 5128.8 | Y107: 24983.1 | Z107: 4763.85 | AA107: 4988.23 | AB107: 4596.69 | AC107: 23526.58 | AD107: 28160 | AE107: 4417.14 | AF107: 50373.43 | AG107: 14052.61 | AH107: 0 | AI107: 12070.06 | AJ107: 7546.76 | AK107: 3534.99 | AL107: 22089.56 | AM107: 17395.29 | AN107: 11583.3 | AO107: 29167.35 | AP107: 0 | AQ107: 0 | AR107: 0 | AS107: 0 | AT107: 0 | AU107: -913818.36 | AV107: -114682.94 | AW107: 0 | AX107: -108582.62 | AY107: 0 | AZ107: -73925 | BA107: -20691.3 | BB107: -4995.5 | BC107: -13414.38 | BD107: -5977.38 | BE107: 0 | BF107: -1440 | BG107: -23115.99 | BH107: -3960.88 | BI107: -7449.05 | BJ107: 0 | BK107: 0 | BL107: 0 | BM107: -18108 | BN107: 0 | BO107: 0 | BP107: -12300.41 | BQ107: -1137083.92 | BR107: 0 | BS107: 0 | BT107: 0 | BU107: 0 | BV107: 0 | BW107: 108582.62 | BX107: 108582.62
A108: 2632 | B108: Sevenoaks Primary School | C108: 0 | D108: 592 | E108: 0 | F108: 16.83333333 | G108: No | H108: Primary | I108: 500+ | J108: =IF(G108=Benchmarking!$I$4,1,0) -> 0 | K108: =IF(Benchmarking!$I$6="All",1,IF(Benchmarking!$I$6=H108,1,0)) -> 0 | L108: =IF(Benchmarking!$I$8="All",1,IF(Benchmarking!$I$8=I108,1,0)) -> 0 | M108: 0 | N108: 1721681.83 | O108: 0 | P108: 716553.12 | Q108: 53435.4 | R108: 180525.31 | S108: 0 | T108: 74480.76 | U108: 701.25 | V108: 15200.25 | W108: 1228.64 | X108: 15030.93 | Y108: 33448.2 | Z108: 16941.05 | AA108: 60672.51 | AB108: 20246.6 | AC108: 119060.04 | AD108: 75264 | AE108: 17862.89 | AF108: 152294.01 | AG108: 23812.32 | AH108: 0 | AI108: 72083.08 | AJ108: 22558.17 | AK108: 12053.44 | AL108: 167140.94 | AM108: 21335.51 | AN108: 3783.83 | AO108: 46930.59 | AP108: 0 | AQ108: 0 | AR108: 0 | AS108: 0 | AT108: 0 | AU108: -2385860.19 | AV108: -380543.57 | AW108: 0 | AX108: -118614.19 | AY108: -2625 | AZ108: -133100 | BA108: -101806.18 | BB108: -3910 | BC108: -29351.75 | BD108: -105258.14 | BE108: -72088.02 | BF108: 0 | BG108: 0 | BH108: -73802.78 | BI108: -36795.16 | BJ108: 0 | BK108: 0 | BL108: 0 | BM108: -103212 | BN108: 0 | BO108: 0 | BP108: -21155.92 | BQ108: -2885017.95 | BR108: 0 | BS108: 0 | BT108: 0 | BU108: 0 | BV108: 0 | BW108: 118614.19 | BX108: 118614.19
A109: 2643 | B109: Swalecliffe Community Primary School | C109: 0 | D109: 573 | E109: 0 | F109: 23.83333333 | G109: No | H109: Primary | I109: 500+ | J109: =IF(G109=Benchmarking!$I$4,1,0) -> 0 | K109: =IF(Benchmarking!$I$6="All",1,IF(Benchmarking!$I$6=H109,1,0)) -> 0 | L109: =IF(Benchmarking!$I$8="All",1,IF(Benchmarking!$I$8=I109,1,0)) -> 0 | M109: 0 | N109: 1656247.83 | O109: 75507.92 | P109: 573270.42 | Q109: 121156.58 | R109: 218009.9 | S109: 98531.87 | T109: 70924.55 | U109: 5198.95 | V109: 5370.74 | W109: 1146 | X109: 14633.4 | Y109: 29065.49 | Z109: 9436.57 | AA109: 12108.47 | AB109: 16258.55 | AC109: 86477.46 | AD109: 11981 | AE109: 26291.89 | AF109: 66422.57 | AG109: 16661.66 | AH109: 0 | AI109: 32265.22 | AJ109: 21747.24 | AK109: 43881.27 | AL109: 91962.97 | AM109: 0 | AN109: 5994.08 | AO109: 76442.4 | AP109: 0 | AQ109: 0 | AR109: 4531 | AS109: 0 | AT109: 0 | AU109: -2221260.92 | AV109: -436674.22 | AW109: 0 | AX109: -145383.29 | AY109: 0 | AZ109: -154495 | BA109: -36066.88 | BB109: -46282.19 | BC109: -14980 | BD109: -140489.64 | BE109: -57428.09 | BF109: 0 | BG109: -410.64 | BH109: -29577.28 | BI109: -16565.64 | BJ109: 0 | BK109: 0 | BL109: 0 | BM109: -101679 | BN109: 0 | BO109: 0 | BP109: -31122.05 | BQ109: -2803318.43 | BR109: 0 | BS109: 0 | BT109: 0 | BU109: 0 | BV109: 0 | BW109: 145383.29 | BX109: 145383.29
A110: 2648 | B110: Aylesham Primary School | C110: 0 | D110: 392 | E110: 0 | F110: 9.5 | G110: No | H110: Primary | I110: 300-399 | J110: =IF(G110=Benchmarking!$I$4,1,0) -> 0 | K110: =IF(Benchmarking!$I$6="All",1,IF(Benchmarking!$I$6=H110,1,0)) -> 0 | L110: =IF(Benchmarking!$I$8="All",1,IF(Benchmarking!$I$8=I110,1,0)) -> 0 | M110: 0 | N110: 1178335.63 | O110: 3031.92 | P110: 537857.4 | Q110: 32671.68 | R110: 123301.66 | S110: 0 | T110: 108607.14 | U110: 10195.54 | V110: 14981.85 | W110: 784 | X110: 10635.58 | Y110: 23838.82 | Z110: 12034.64 | AA110: 37519.19 | AB110: 10946.52 | AC110: 60708.99 | AD110: 31395.55 | AE110: 12101.08 | AF110: 106151.49 | AG110: 19665.02 | AH110: 0 | AI110: 32579.59 | AJ110: 15118.41 | AK110: 9541.14 | AL110: 118265.47 | AM110: 5126 | AN110: 47154.38 | AO110: 19478.59 | AP110: 0 | AQ110: 0 | AR110: 0 | AS110: 0 | AT110: 0 | AU110: -1610697.25 | AV110: -336590.15 | AW110: 0 | AX110: -90613.2 | AY110: 0 | AZ110: -234320 | BA110: -24196.93 | BB110: -5045.73 | BC110: 0 | BD110: -52766.76 | BE110: -15299.42 | BF110: 0 | BG110: 0 | BH110: -22736.6 | BI110: -2752.57 | BJ110: 0 | BK110: 0 | BL110: 0 | BM110: -60674.24 | BN110: 0 | BO110: 0 | BP110: -33666.3 | BQ110: -2037900.6 | BR110: 0 | BS110: 0 | BT110: 0 | BU110: 0 | BV110: 0 | BW110: 90613.2 | BX110: 90613.2
A111: 2651 | B111: Broadwater Down Primary School | C111: 0 | D111: 153 | E111: 0 | F111: 16 | G111: No | H111: Primary | I111: 100-199 | J111: =IF(G111=Benchmarking!$I$4,1,0) -> 0 | K111: =IF(Benchmarking!$I$6="All",1,IF(Benchmarking!$I$6=H111,1,0)) -> 0 | L111: =IF(Benchmarking!$I$8="All",1,IF(Benchmarking!$I$8=I111,1,0)) -> 0 | M111: 0 | N111: 508748.36 | O111: 4514.55 | P111: 162843.38 | Q111: 14225.28 | R111: 38387.67 | S111: 0 | T111: 45201.07 | U111: 3391.98 | V111: 1186.5 | W111: 7427.42 | X111: 3884.65 | Y111: 12301.65 | Z111: 6475 | AA111: 21675.67 | AB111: 1177.07 | AC111: 18129.81 | AD111: 19336.25 | AE111: 11728.96 | AF111: 42673.5 | AG111: 7622.64 | AH111: 0 | AI111: 18530.37 | AJ111: 5716.08 | AK111: 2102.82 | AL111: 33873.02 | AM111: 64347.77 | AN111: 70203.52 | AO111: 29190.34 | AP111: 0 | AQ111: 0 | AR111: 0 | AS111: 0 | AT111: 0 | AU111: -754896.4 | AV111: -146799.34 | AW111: 0 | AX111: -120483.7 | AY111: 0 | AZ111: -80325 | BA111: -61880.75 | BB111: 0 | BC111: -2814 | BD111: -10652.03 | BE111: 0 | BF111: -2160 | BG111: -7156.1 | BH111: -7644.32 | BI111: -988.68 | BJ111: 0 | BK111: 0 | BL111: 0 | BM111: -30472 | BN111: 0 | BO111: 0 | BP111: -11270.39 | BQ111: -1022179.44 | BR111: 0 | BS111: 0 | BT111: 0 | BU111: 0 | BV111: 0 | BW111: 120483.7 | BX111: 120483.7
A112: 2653 | B112: West Borough Primary School | C112: 40 | D112: 450 | E112: 0 | F112: 13.91666667 | G112: Yes | H112: Primary | I112: 400-499 | J112: =IF(G112=Benchmarking!$I$4,1,0) -> 0 | K112: =IF(Benchmarking!$I$6="All",1,IF(Benchmarking!$I$6=H112,1,0)) -> 0 | L112: =IF(Benchmarking!$I$8="All",1,IF(Benchmarking!$I$8=I112,1,0)) -> 0 | M112: 0 | N112: 1412027.92 | O112: 28985.16 | P112: 580855.27 | Q112: 74910.91 | R112: 108714.2 | S112: 0 | T112: 106372.33 | U112: 11829.82 | V112: 12275.54 | W112: 900 | X112: 11789.16 | Y112: 19261.12 | Z112: 13496.48 | AA112: 6652.48 | AB112: 6700 | AC112: 60556.23 | AD112: 68608 | AE112: 17825.91 | AF112: 109548.92 | AG112: 24315.49 | AH112: 0 | AI112: 32262.31 | AJ112: 18589.01 | AK112: 23986.34 | AL112: 90157.86 | AM112: 10215.34 | AN112: 47031.86 | AO112: 20320.49 | AP112: 0 | AQ112: 0 | AR112: 116.41 | AS112: 0 | AT112: 0 | AU112: -1995831.64 | AV112: -307721.53 | AW112: 0 | AX112: -86191.83 | AY112: 0 | AZ112: -146570 | BA112: -24548.93 | BB112: -19543.97 | BC112: -4912.54 | BD112: -137546.2 | BE112: 0 | BF112: 0 | BG112: -8615.29 | BH112: -47600.93 | BI112: -15605.07 | BJ112: 0 | BK112: 0 | BL112: 0 | BM112: -77379 | BN112: 0 | BO112: 0 | BP112: -25347.29 | BQ112: -2389745 | BR112: 0 | BS112: 0 | BT112: 0 | BU112: 0 | BV112: 0 | BW112: 86191.83 | BX112: 86191.83
A113: 2662 | B113: Long Mead Community Primary School | C113: 14 | D113: 115 | E113: 0 | F113: 8 | G113: Yes | H113: Infant | I113: 100-199 | J113: =IF(G113=Benchmarking!$I$4,1,0) -> 0 | K113: =IF(Benchmarking!$I$6="All",1,IF(Benchmarking!$I$6=H113,1,0)) -> 0 | L113: =IF(Benchmarking!$I$8="All",1,IF(Benchmarking!$I$8=I113,1,0)) -> 0 | M113: 0 | N113: 392081.2 | O113: 0 | P113: 207197.09 | Q113: 9409.77 | R113: 46343.7 | S113: 4341.18 | T113: 8211.01 | U113: 336.3 | V113: 3289.7 | W113: 230 | X113: 3048.84 | Y113: 8888.67 | Z113: 5765.23 | AA113: 25851 | AB113: 4772.8 | AC113: 22109.86 | AD113: 18463 | AE113: 2336.33 | AF113: 28913.69 | AG113: 16761.06 | AH113: 0 | AI113: 9110.74 | AJ113: 4812.44 | AK113: 5506.39 | AL113: 31987.85 | AM113: 8034.28 | AN113: 21021.95 | AO113: 37857.74 | AP113: 0 | AQ113: 0 | AR113: 0 | AS113: 0 | AT113: 0 | AU113: -631303.02 | AV113: -142417.37 | AW113: 0 | AX113: -65291.91 | AY113: 0 | AZ113: -106555 | BA113: -11869.58 | BB113: -13907.94 | BC113: 0 | BD113: -15028.77 | BE113: -216.22 | BF113: 0 | BG113: -4943.47 | BH113: -9403.7 | BI113: -1294.42 | BJ113: 0 | BK113: 0 | BL113: 0 | BM113: -27204 | BN113: 0 | BO113: 0 | BP113: -12123.36 | BQ113: -839012.3 | BR113: 0 | BS113: 0 | BT113: 0 | BU113: 0 | BV113: 0 | BW113: 65291.91 | BX113: 65291.91
A114: 2674 | B114: Kings Farm Primary School | C114: 55 | D114: 376 | E114: 12.91666667 | F114: 10.08333333 | G114: Yes | H114: Primary | I114: 300-399 | J114: =IF(G114=Benchmarking!$I$4,1,0) -> 0 | K114: =IF(Benchmarking!$I$6="All",1,IF(Benchmarking!$I$6=H114,1,0)) -> 0 | L114: =IF(Benchmarking!$I$8="All",1,IF(Benchmarking!$I$8=I114,1,0)) -> 0 | M114: 0 | N114: 1605891.09 | O114: 0 | P114: 686764.48 | Q114: 50491.78 | R114: 99014.04 | S114: 75997.2 | T114: 0 | U114: 9466.25 | V114: 24129.24 | W114: 752 | X114: 9775.44 | Y114: 18557.96 | Z114: 7974.33 | AA114: 54524.86 | AB114: 15645.75 | AC114: 52972.3 | AD114: 43264 | AE114: 10767.43 | AF114: 146949.27 | AG114: 10712.99 | AH114: 0 | AI114: 19856.53 | AJ114: 14962.52 | AK114: 65055.39 | AL114: 66458.87 | AM114: 0.33 | AN114: 94840.69 | AO114: 84982.01 | AP114: 0 | AQ114: 0 | AR114: 9009 | AS114: 0 | AT114: 0 | AU114: -1850207.7 | AV114: -533710.4 | AW114: -187194.52 | AX114: -86451.83 | AY114: -4500 | AZ114: -308340 | BA114: -32065.72 | BB114: -5626.02 | BC114: -750.3 | BD114: -104358.46 | BE114: -17721.52 | BF114: 0 | BG114: -5534.58 | BH114: -12927.79 | BI114: -4162.44 | BJ114: 0 | BK114: 0 | BL114: 0 | BM114: -59668 | BN114: 0 | BO114: 0 | BP114: -54516.16 | BQ114: -2657564.45 | BR114: 4000 | BS114: 72000 | BT114: 111194.52 | BU114: 187194.52 | BV114: 0 | BW114: 86451.83 | BX114: 86451.83
A115: 2680 | B115: Kings Hill School | C115: 47 | D115: 420 | E115: 0 | F115: 17.58333333 | G115: Yes | H115: Primary | I115: 400-499 | J115: =IF(G115=Benchmarking!$I$4,1,0) -> 0 | K115: =IF(Benchmarking!$I$6="All",1,IF(Benchmarking!$I$6=H115,1,0)) -> 0 | L115: =IF(Benchmarking!$I$8="All",1,IF(Benchmarking!$I$8=I115,1,0)) -> 0 | M115: 0 | N115: 1214423.29 | O115: 2425.74 | P115: 619952.28 | Q115: 52885.39 | R115: 152357.94 | S115: 0 | T115: 136981.37 | U115: 19362.82 | V115: 11584.41 | W115: 840 | X115: 10919.04 | Y115: 17178.8 | Z115: 10699.85 | AA115: 54284.15 | AB115: 7144.9 | AC115: 61767.76 | AD115: 52224 | AE115: 15028.44 | AF115: 144172.85 | AG115: 24296.66 | AH115: 0 | AI115: 32421.34 | AJ115: 16712.04 | AK115: 23070.66 | AL115: 72735.11 | AM115: 6075.2 | AN115: 38055.04 | AO115: 29516.28 | AP115: 0 | AQ115: 1771.99 | AR115: 12820.05 | AS115: 0 | AT115: 0 | AU115: -1878299.71 | AV115: -302419.81 | AW115: 0 | AX115: -149019.35 | AY115: 0 | AZ115: -80600 | BA115: -18744.93 | BB115: -1829.86 | BC115: -12538.43 | BD115: -58664.89 | BE115: -1589.2 | BF115: 0 | BG115: 0 | BH115: -114854.07 | BI115: -8837.11 | BJ115: 0 | BK115: 0 | BL115: 0 | BM115: -82876 | BN115: 0 | BO115: 0 | BP115: -5250.59 | BQ115: -2329738.87 | BR115: 0 | BS115: 0 | BT115: 0 | BU115: 0 | BV115: 0 | BW115: 149019.35 | BX115: 149019.35
A116: 2682 | B116: New Ash Green Primary School | C116: 0 | D116: 413 | E116: 0 | F116: 13.25 | G116: No | H116: Primary | I116: 400-499 | J116: =IF(G116=Benchmarking!$I$4,1,0) -> 0 | K116: =IF(Benchmarking!$I$6="All",1,IF(Benchmarking!$I$6=H116,1,0)) -> 0 | L116: =IF(Benchmarking!$I$8="All",1,IF(Benchmarking!$I$8=I116,1,0)) -> 0 | M116: 0 | N116: 1058723.31 | O116: 7849.22 | P116: 448390.81 | Q116: 56043.18 | R116: 99990.61 | S116: 0 | T116: 107142.24 | U116: 8005.39 | V116: 5352.55 | W116: 857.14 | X116: 10486.08 | Y116: 17014.71 | Z116: 16696.78 | AA116: 41042.73 | AB116: 12091.97 | AC116: 61852.85 | AD116: 33792 | AE116: 22853.64 | AF116: 74266.87 | AG116: 6754.83 | AH116: 0 | AI116: 27076.87 | AJ116: 15737.31 | AK116: 4262.14 | AL116: 61843.97 | AM116: 11094.06 | AN116: 12619.03 | AO116: 61690.43 | AP116: 0 | AQ116: 0 | AR116: 0 | AS116: 0 | AT116: 0 | AU116: -1678767.29 | AV116: -231106.33 | AW116: 0 | AX116: -123296.65 | AY116: 0 | AZ116: -100835 | BA116: -22774.06 | BB116: -14084.49 | BC116: -18412.11 | BD116: -15997.93 | BE116: 0 | BF116: 0 | BG116: -3170.59 | BH116: -34567.97 | BI116: 0 | BJ116: 0 | BK116: 0 | BL116: 0 | BM116: -72796 | BN116: 0 | BO116: 0 | BP116: -7231.1 | BQ116: -2033170.27 | BR116: 0 | BS116: 0 | BT116: 0 | BU116: 0 | BV116: 0 | BW116: 123296.65 | BX116: 123296.65
A117: 2689 | B117: Craylands School, The | C117: 0 | D117: 412 | E117: 0 | F117: 13.33333333 | G117: No | H117: Infant | I117: 400-499 | J117: =IF(G117=Benchmarking!$I$4,1,0) -> 0 | K117: =IF(Benchmarking!$I$6="All",1,IF(Benchmarking!$I$6=H117,1,0)) -> 0 | L117: =IF(Benchmarking!$I$8="All",1,IF(Benchmarking!$I$8=I117,1,0)) -> 0 | M117: 0 | N117: 1135915.72 | O117: 19870.02 | P117: 601599.72 | Q117: 15829.34 | R117: 57171.36 | S117: 0 | T117: 62624.25 | U117: 8174.33 | V117: 6225.73 | W117: 7216.84 | X117: 10295.88 | Y117: 49013.45714 | Z117: 6291.385347 | AA117: 21829.78 | AB117: 5314.167062 | AC117: 11025.63 | AD117: 61952 | AE117: 2857.9 | AF117: 77466.35 | AG117: 4374.78 | AH117: 0 | AI117: 43938.33 | AJ117: 48593.47876 | AK117: 237659.4287 | AL117: 482.43 | AM117: 22725.73 | AN117: 24663.64 | AO117: 75161.69303 | AP117: 0 | AQ117: 0 | AR117: 0 | AS117: 0 | AT117: 0 | AU117: -1825852.06 | AV117: -310640.03 | AW117: 0 | AX117: -94792.22 | AY117: 0 | AZ117: -159327 | BA117: -19888 | BB117: -8725.38 | BC117: 0 | BD117: -1404 | BE117: 0 | BF117: 0 | BG117: 0 | BH117: -450 | BI117: -51027.49 | BJ117: 0 | BK117: 0 | BL117: 0 | BM117: -78273 | BN117: 0 | BO117: 0 | BP117: -13830.2 | BQ117: -2231284.31 | BR117: 0 | BS117: 0 | BT117: 0 | BU117: 0 | BV117: 0 | BW117: 94792.22 | BX117: 94792.22
A118: 3010 | B118: St Pauls CEP School | C118: 0 | D118: 109 | E118: 0 | F118: 6.25 | G118: No | H118: Infant | I118: 100-199 | J118: =IF(G118=Benchmarking!$I$4,1,0) -> 0 | K118: =IF(Benchmarking!$I$6="All",1,IF(Benchmarking!$I$6=H118,1,0)) -> 0 | L118: =IF(Benchmarking!$I$8="All",1,IF(Benchmarking!$I$8=I118,1,0)) -> 0 | M118: 0 | N118: 383716.73 | O118: 0 | P118: 146580.84 | Q118: 22581.56 | R118: 88235.17 | S118: 0 | T118: 0 | U118: 2504.59 | V118: 7183 | W118: 226.22 | X118: 2852.5 | Y118: 11249.43 | Z118: 7953.92 | AA118: 2802.64 | AB118: 8285.35 | AC118: 13906.86 | AD118: 13429 | AE118: 1509.48 | AF118: 50012.65 | AG118: 11667.3 | AH118: 0 | AI118: 19417.28 | AJ118: 4493.46 | AK118: 2158.43 | AL118: 18502.29 | AM118: 0 | AN118: 29382.92 | AO118: 10823.45 | AP118: 0 | AQ118: 0 | AR118: 0 | AS118: 0 | AT118: 0 | AU118: -551623.03 | AV118: -47325.51 | AW118: 0 | AX118: -47124.65 | AY118: 0 | AZ118: -27325 | BA118: -8600 | BB118: -2754.35 | BC118: -500 | BD118: -114315.51 | BE118: 0 | BF118: 0 | BG118: -1292.12 | BH118: -19012 | BI118: -1612 | BJ118: 0 | BK118: 0 | BL118: 0 | BM118: -35507 | BN118: 0 | BO118: 0 | BP118: -3710.62 | BQ118: -646073.19 | BR118: 0 | BS118: 0 | BT118: 0 | BU118: 0 | BV118: 7921.5 | BW118: 39203.15 | BX118: 47124.65
A119: 3015 | B119: Fawkham CEP School | C119: 0 | D119: 104 | E119: 0 | F119: 2.583333333 | G119: No | H119: Junior | I119: 100-199 | J119: =IF(G119=Benchmarking!$I$4,1,0) -> 0 | K119: =IF(Benchmarking!$I$6="All",1,IF(Benchmarking!$I$6=H119,1,0)) -> 0 | L119: =IF(Benchmarking!$I$8="All",1,IF(Benchmarking!$I$8=I119,1,0)) -> 0 | M119: 0 | N119: 375818.95 | O119: 0 | P119: 75364.26 | Q119: 1431.33 | R119: 37287.58 | S119: 0 | T119: 4954.73 | U119: 3135.82 | V119: 6438.6 | W119: 215.84 | X119: 2640.48 | Y119: 3000.25 | Z119: 4365.73 | AA119: 14544.07 | AB119: 327.32 | AC119: 12606.48 | AD119: 21083 | AE119: 2968.78 | AF119: 37227.06 | AG119: 3444.4 | AH119: 0 | AI119: 21129.73 | AJ119: 3962.88 | AK119: 133.53 | AL119: 19735.5 | AM119: 0 | AN119: 3473.62 | AO119: 14452.41 | AP119: 0 | AQ119: 0 | AR119: 0 | AS119: 0 | AT119: 0 | AU119: -532033.51 | AV119: -41999.26 | AW119: 0 | AX119: -14010.9 | AY119: 0 | AZ119: -10880 | BA119: -8795.53 | BB119: -451.89 | BC119: 0 | BD119: -78.92 | BE119: 0 | BF119: 0 | BG119: 0 | BH119: 0 | BI119: -30745.41 | BJ119: 0 | BK119: 0 | BL119: 0 | BM119: -29265 | BN119: 0 | BO119: 0 | BP119: -2506.26 | BQ119: -588043.67 | BR119: 0 | BS119: 0 | BT119: 0 | BU119: 0 | BV119: 4350.29 | BW119: 9660.61 | BX119: 14010.9
A120: 3022 | B120: Benenden CEP School | C120: 0 | D120: 210 | E120: 0 | F120: 7.416666667 | G120: No | H120: Primary | I120: 200-299 | J120: =IF(G120=Benchmarking!$I$4,1,0) -> 0 | K120: =IF(Benchmarking!$I$6="All",1,IF(Benchmarking!$I$6=H120,1,0)) -> 0 | L120: =IF(Benchmarking!$I$8="All",1,IF(Benchmarking!$I$8=I120,1,0)) -> 0 | M120: 0 | N120: 538651.98 | O120: 7405.64 | P120: 235832.03 | Q120: 10471.39 | R120: 77234.32 | S120: 0 | T120: 24502.95 | U120: 5511.21 | V120: 3148.97 | W120: 4688.7 | X120: 5416.92 | Y120: 6717.07 | Z120: 4494.06 | AA120: 23856.64 | AB120: 4076.33 | AC120: 25931.73 | AD120: 34431 | AE120: 7254.17 | AF120: 68792.79 | AG120: 15554.16 | AH120: 0 | AI120: 15324.23 | AJ120: 8185.56 | AK120: 3034.34 | AL120: 66676.89 | AM120: 0 | AN120: 24946.1 | AO120: 18584.67 | AP120: 0 | AQ120: 0 | AR120: 22537.55 | AS120: 0 | AT120: 0 | AU120: -910279.02 | AV120: -88934.36 | AW120: 0 | AX120: -50426.12 | AY120: 0 | AZ120: -37450 | BA120: -19879.23 | BB120: -14152.22 | BC120: -350 | BD120: -49290.21 | BE120: -22842.9 | BF120: 0 | BG120: -10524.19 | BH120: -25518.1 | BI120: -23960.4 | BJ120: 0 | BK120: 0 | BL120: 0 | BM120: -53487 | BN120: 0 | BO120: 0 | BP120: -5851.45 | BQ120: -1049639.5 | BR120: 0 | BS120: 0 | BT120: 0 | BU120: 0 | BV120: 0 | BW120: 50426.12 | BX120: 50426.12
A121: 3023 | B121: Bidborough CEP School | C121: 0 | D121: 206 | E121: 0 | F121: 5.083333333 | G121: No | H121: Primary | I121: 200-299 | J121: =IF(G121=Benchmarking!$I$4,1,0) -> 0 | K121: =IF(Benchmarking!$I$6="All",1,IF(Benchmarking!$I$6=H121,1,0)) -> 0 | L121: =IF(Benchmarking!$I$8="All",1,IF(Benchmarking!$I$8=I121,1,0)) -> 0 | M121: 0 | N121: 566847.18 | O121: 27546.62 | P121: 215297.88 | Q121: 19571.06 | R121: 42208.71 | S121: 0 | T121: 4426.8 | U121: 4032.58 | V121: 11868.26 | W121: 412 | X121: 5230.32 | Y121: 6092.5 | Z121: 2989.48 | AA121: 22896.54 | AB121: 1398.65 | AC121: 23885.38 | AD121: 14970 | AE121: 4904.66 | AF121: 48371.97 | AG121: 5852.92 | AH121: 0 | AI121: 12538.65 | AJ121: 7696.12 | AK121: 0 | AL121: 42582.61 | AM121: 22315.59 | AN121: 17539.65 | AO121: 25212.72 | AP121: 0 | AQ121: 0 | AR121: 114874.54 | AS121: 0 | AT121: 0 | AU121: -858422.78 | AV121: -89944.22 | AW121: 0 | AX121: -45989.39 | AY121: 0 | AZ121: -23525 | BA121: -10196.93 | BB121: -73329.29 | BC121: -4631 | BD121: -32838.24 | BE121: -487.5 | BF121: 0 | BG121: -12371.66 | BH121: 0 | BI121: -7925.56 | BJ121: 0 | BK121: 0 | BL121: 0 | BM121: -51495 | BN121: 0 | BO121: 0 | BP121: -1807.88 | BQ121: -994356.39 | BR121: 0 | BS121: 0 | BT121: 0 | BU121: 0 | BV121: 0 | BW121: 45989.39 | BX121: 45989.39
A122: 3027 | B122: Cranbrook CEP School | C122: 0 | D122: 203 | E122: 0 | F122: 12.16666667 | G122: No | H122: Primary | I122: 200-299 | J122: =IF(G122=Benchmarking!$I$4,1,0) -> 0 | K122: =IF(Benchmarking!$I$6="All",1,IF(Benchmarking!$I$6=H122,1,0)) -> 0 | L122: =IF(Benchmarking!$I$8="All",1,IF(Benchmarking!$I$8=I122,1,0)) -> 0 | M122: 0 | N122: 538480.02 | O122: 0 | P122: 334865.4 | Q122: 16703.23 | R122: 70882.81 | S122: 0 | T122: 69000.31 | U122: 4694.26 | V122: 5567 | W122: 4080.05 | X122: 5154.12 | Y122: 54662.11 | Z122: 7070.59 | AA122: 19805.4 | AB122: 2306.27 | AC122: 46952.49 | AD122: 26112 | AE122: 14232.4 | AF122: 85051.86 | AG122: 6104.77 | AH122: 0 | AI122: 16397.03 | AJ122: 7584.04 | AK122: 0 | AL122: 47308.32 | AM122: 2194.8 | AN122: 7713.55 | AO122: 24429.16 | AP122: 0 | AQ122: 0 | AR122: 0 | AS122: 0 | AT122: 0 | AU122: -916769.19 | AV122: -133772.13 | AW122: 0 | AX122: -129926.68 | AY122: 0 | AZ122: -109200 | BA122: -14444.65 | BB122: -9101.8 | BC122: -8343.5 | BD122: -14005.67 | BE122: 0 | BF122: 0 | BG122: -2672.06 | BH122: -12690.23 | BI122: -4408.93 | BJ122: 0 | BK122: 0 | BL122: 0 | BM122: -44247 | BN122: 0 | BO122: 0 | BP122: -16372.65 | BQ122: -1180468 | BR122: 0 | BS122: 0 | BT122: 0 | BU122: 0 | BV122: 0 | BW122: 129926.68 | BX122: 129926.68
A123: 3029 | B123: Goudhurst & Kilndown CEP School | C123: 0 | D123: 212 | E123: 0 | F123: 9.25 | G123: =IF(C123=0,"No","Yes") -> No | H123: Primary | I123: 200-299 | J123: =IF(G123=Benchmarking!$I$4,1,0) -> 0 | K123: =IF(Benchmarking!$I$6="All",1,IF(Benchmarking!$I$6=H123,1,0)) -> 0 | L123: =IF(Benchmarking!$I$8="All",1,IF(Benchmarking!$I$8=I123,1,0)) -> 0 | M123: =IF(SUM(J123:L123)=3,1,0) -> 0 | N123: 634361.05 | O123: 19695.48 | P123: 243911.57 | Q123: 8466.63 | R123: 69055.77 | S123: 0 | T123: 4572.61 | U123: 4848.17 | V123: 7006.5 | W123: 5940.27 | X123: 5467.68 | Y123: 8293.03 | Z123: 6348.84 | AA123: 25717.46 | AB123: 2302.22 | AC123: 35319.03 | AD123: 28268.75 | AE123: 5536.59 | AF123: 69543.02 | AG123: 10310.41 | AH123: 0 | AI123: 20591.25 | AJ123: 8260.36 | AK123: 2450.17 | AL123: 41169.18 | AM123: 1796.34 | AN123: 37765.81 | AO123: 24857.41 | AP123: 0 | AQ123: 0 | AR123: 143186 | AS123: 0 | AT123: 0 | AU123: =BQ123-AV123-AW123-AX123 -> -923088.78 | AV123: -88140.95 | AW123: =-BU123 -> 0 | AX123: =-BX123 -> -72602.39 | AY123: 0 | AZ123: -51955 | BA123: -10177 | BB123: -22075.04 | BC123: -3375 | BD123: -122607.34 | BE123: -779 | BF123: -736 | BG123: -16904.69 | BH123: -24408.99 | BI123: -18160.94 | BJ123: 0 | BK123: 0 | BL123: 0 | BM123: -50798 | BN123: 0 | BO123: 0 | BP123: -7390 | BQ123: -1083832.12 | BR123: 0 | BS123: 0 | BT123: 0 | BU123: =SUM(BR123:BT123) -> 0 | BV123: 0 | BW123: 72602.39 | BX123: =SUM(BV123:BW123) -> 72602.39
A124: 3032 | B124: Hawkhurst CEP School | C124: 0 | D124: 182 | E124: 0 | F124: 5.333333333 | G124: No | H124: Primary | I124: 100-199 | J124: =IF(G124=Benchmarking!$I$4,1,0) -> 0 | K124: =IF(Benchmarking!$I$6="All",1,IF(Benchmarking!$I$6=H124,1,0)) -> 0 | L124: =IF(Benchmarking!$I$8="All",1,IF(Benchmarking!$I$8=I124,1,0)) -> 0 | M124: 0 | N124: 570436.69 | O124: 9568.83 | P124: 241349.66 | Q124: 14247.19 | R124: 62120.41 | S124: 0 | T124: 46629.92 | U124: 4180 | V124: 5133.45 | W124: 9967.58 | X124: 4620.96 | Y124: 12756.31 | Z124: 4906.08 | AA124: 20889.32 | AB124: 1637.07 | AC124: 20565.2 | AD124: 34560 | AE124: 9222.76 | AF124: 47086.6 | AG124: 7455.11 | AH124: 0 | AI124: 12018.57 | AJ124: 6799.48 | AK124: 4021.43 | AL124: 33678.85 | AM124: 1090.14 | AN124: 18939.14 | AO124: 22690.39 | AP124: 0 | AQ124: 0 | AR124: 38104.27 | AS124: 0 | AT124: 0 | AU124: -837573.66 | AV124: -104238.58 | AW124: 0 | AX124: -55824.6 | AY124: 0 | AZ124: -114055 | BA124: -20190.23 | BB124: -441 | BC124: -1370.13 | BD124: -12939.13 | BE124: 0 | BF124: -1440 | BG124: 0 | BH124: -17362.4 | BI124: -5188.9 | BJ124: 0 | BK124: 0 | BL124: 0 | BM124: -35078 | BN124: 0 | BO124: 0 | BP124: -6723.5 | BQ124: -997636.84 | BR124: 0 | BS124: 0 | BT124: 0 | BU124: 0 | BV124: 0 | BW124: 55824.6 | BX124: 55824.6
A125: 3033 | B125: Hildenborough CEP School | C125: 0 | D125: 188 | E125: 0 | F125: 4.416666667 | G125: No | H125: Primary | I125: 100-199 | J125: =IF(G125=Benchmarking!$I$4,1,0) -> 0 | K125: =IF(Benchmarking!$I$6="All",1,IF(Benchmarking!$I$6=H125,1,0)) -> 0 | L125: =IF(Benchmarking!$I$8="All",1,IF(Benchmarking!$I$8=I125,1,0)) -> 0 | M125: 0 | N125: 527446.63 | O125: 20156.97 | P125: 176069.21 | Q125: 27497.18 | R125: 30733.19 | S125: 0 | T125: 10972.31 | U125: 5302.36 | V125: 2531.54 | W125: 2990.55 | X125: 4773.24 | Y125: 32962.65 | Z125: 8182.86 | AA125: 24568.17 | AB125: 1302.19 | AC125: 12250.95 | AD125: 22580 | AE125: 13298.73 | AF125: 61500.62 | AG125: 11238.23 | AH125: 0 | AI125: 17718.89 | AJ125: 7023.64 | AK125: 0 | AL125: 42162.11 | AM125: 0 | AN125: 2477.82 | AO125: 22757.2 | AP125: 0 | AQ125: 0 | AR125: 0 | AS125: 0 | AT125: 0 | AU125: -805892.13 | AV125: -71119.41 | AW125: 0 | AX125: -37887.72 | AY125: 0 | AZ125: -23700 | BA125: -15193.58 | BB125: -228.56 | BC125: -18920.06 | BD125: -6107.11 | BE125: 0 | BF125: -450 | BG125: -7664.32 | BH125: -39128.36 | BI125: -2291.68 | BJ125: 0 | BK125: 0 | BL125: 0 | BM125: -46835 | BN125: 0 | BO125: 0 | BP125: -3439.59 | BQ125: -914899.26 | BR125: 0 | BS125: 0 | BT125: 0 | BU125: 0 | BV125: 0 | BW125: 37887.72 | BX125: 37887.72
A126: 3034 | B126: Lamberhurst St Marys CEP School | C126: 0 | D126: 204 | E126: 0 | F126: 3.833333333 | G126: No | H126: Primary | I126: 200-299 | J126: =IF(G126=Benchmarking!$I$4,1,0) -> 0 | K126: =IF(Benchmarking!$I$6="All",1,IF(Benchmarking!$I$6=H126,1,0)) -> 0 | L126: =IF(Benchmarking!$I$8="All",1,IF(Benchmarking!$I$8=I126,1,0)) -> 0 | M126: 0 | N126: 660795.65 | O126: 3947.87 | P126: 173223.12 | Q126: 29449.86 | R126: 36678.12 | S126: 0 | T126: 23967.38 | U126: 4318 | V126: 5473.36 | W126: 5849.6 | X126: 5179.56 | Y126: 3584.56 | Z126: 918.22 | AA126: 1664.21 | AB126: 3585.77 | AC126: 26233.5 | AD126: 32224 | AE126: 3572.48 | AF126: 62397.37 | AG126: 16022.76 | AH126: 0 | AI126: 15480.43 | AJ126: 7621.44 | AK126: 4832.92 | AL126: 35505.5 | AM126: 0 | AN126: 5499.99 | AO126: 18334.78 | AP126: 0 | AQ126: 0 | AR126: 33184.21 | AS126: 0 | AT126: 0 | AU126: -880709.47 | AV126: -76435.31 | AW126: 0 | AX126: -36325.9 | AY126: 0 | AZ126: -24285 | BA126: -36984.41 | BB126: 0 | BC126: -52 | BD126: -84614.08 | BE126: 0 | BF126: 0 | BG126: 0 | BH126: -12350 | BI126: -22526.21 | BJ126: 0 | BK126: 0 | BL126: 0 | BM126: -55272 | BN126: 0 | BO126: 0 | BP126: -4030 | BQ126: -993470.68 | BR126: 0 | BS126: 0 | BT126: 0 | BU126: 0 | BV126: 0 | BW126: 36325.9 | BX126: 36325.9
A127: 3037 | B127: St Johns CEP School, Sevenoaks | C127: 0 | D127: 201 | E127: 0 | F127: 4 | G127: No | H127: Primary | I127: 200-299 | J127: =IF(G127=Benchmarking!$I$4,1,0) -> 0 | K127: =IF(Benchmarking!$I$6="All",1,IF(Benchmarking!$I$6=H127,1,0)) -> 0 | L127: =IF(Benchmarking!$I$8="All",1,IF(Benchmarking!$I$8=I127,1,0)) -> 0 | M127: 0 | N127: 544344.71 | O127: 17288.85 | P127: 191766.12 | Q127: 53688.68 | R127: 67009.55 | S127: 0 | T127: 41151.98 | U127: 3917.41 | V127: 4432.49 | W127: 6187.2 | X127: 5188.32 | Y127: 2971.72 | Z127: 2584.32 | AA127: 456.07 | AB127: 6879.17 | AC127: 33195.62 | AD127: 24950 | AE127: 9417.42 | AF127: 54876.33 | AG127: 12473.67 | AH127: 0 | AI127: 7746.59 | AJ127: 7999.06 | AK127: 6246.7 | AL127: 32827.59 | AM127: 29995.42 | AN127: 9622.71 | AO127: 18667.16 | AP127: 0 | AQ127: 0 | AR127: 0 | AS127: 0 | AT127: 0 | AU127: -886558.09 | AV127: -79459.5 | AW127: 0 | AX127: -36937.94 | AY127: 0 | AZ127: -31630 | BA127: -15819.18 | BB127: -5277.1 | BC127: -2202.23 | BD127: -55252 | BE127: 0 | BF127: -9218.5 | BG127: 0 | BH127: -27680.54 | BI127: -8333.57 | BJ127: 0 | BK127: 0 | BL127: 0 | BM127: -47433 | BN127: 0 | BO127: 0 | BP127: -2028.05 | BQ127: -1002955.53 | BR127: 0 | BS127: 0 | BT127: 0 | BU127: 0 | BV127: 0 | BW127: 36937.94 | BX127: 36937.94
A128: 3042 | B128: Speldhurst CEP School | C128: 0 | D128: 210 | E128: 0 | F128: 4 | G128: No | H128: Primary | I128: 200-299 | J128: =IF(G128=Benchmarking!$I$4,1,0) -> 0 | K128: =IF(Benchmarking!$I$6="All",1,IF(Benchmarking!$I$6=H128,1,0)) -> 0 | L128: =IF(Benchmarking!$I$8="All",1,IF(Benchmarking!$I$8=I128,1,0)) -> 0 | M128: 0 | N128: 540906.26 | O128: 10034.91 | P128: 187027.95 | Q128: 12694.89 | R128: 55763.48 | S128: 0 | T128: 28192.12 | U128: 484 | V128: 6576.97 | W128: 9565.27 | X128: 5331.96 | Y128: 5077.68 | Z128: 4629.53 | AA128: 13992.66 | AB128: 4664.22 | AC128: 22237.85 | AD128: 3840 | AE128: 5549.86 | AF128: 61592.18 | AG128: 21248.57 | AH128: 0 | AI128: 16436.26 | AJ128: 7845.6 | AK128: 134.91 | AL128: 44665.01 | AM128: 28398.09 | AN128: 23936.64 | AO128: 14741.08 | AP128: 0 | AQ128: 2922.39 | AR128: 64668.36 | AS128: 0 | AT128: 0 | AU128: -863475.18 | AV128: -93952.31 | AW128: 0 | AX128: -33255.74 | AY128: 0 | AZ128: -25810 | BA128: -28596.53 | BB128: -1179.41 | BC128: -5919.86 | BD128: -8310.68 | BE128: 0 | BF128: -22995 | BG128: -3935.54 | BH128: -20876.59 | BI128: -8074.99 | BJ128: 0 | BK128: 0 | BL128: 0 | BM128: -55931.69 | BN128: 0 | BO128: 0 | BP128: -1738.88 | BQ128: -990683.23 | BR128: 0 | BS128: 0 | BT128: 0 | BU128: 0 | BV128: 0 | BW128: 33255.74 | BX128: 33255.74
A129: 3043 | B129: Sundridge & Brasted CEP School | C129: 0 | D129: 58 | E129: 0 | F129: 6.666666667 | G129: No | H129: Primary | I129: 0-99 | J129: =IF(G129=Benchmarking!$I$4,1,0) -> 0 | K129: =IF(Benchmarking!$I$6="All",1,IF(Benchmarking!$I$6=H129,1,0)) -> 0 | L129: =IF(Benchmarking!$I$8="All",1,IF(Benchmarking!$I$8=I129,1,0)) -> 0 | M129: 0 | N129: 262203.84 | O129: 0 | P129: 118993.38 | Q129: 8127.75 | R129: 40511.75 | S129: 0 | T129: 7113.74 | U129: 7595.2 | V129: 3367.63 | W129: 2569.54 | X129: 1472.64 | Y129: 3585.22 | Z129: 15.32 | AA129: 11816.28 | AB129: 2578.54 | AC129: 11913.71 | AD129: 7485 | AE129: 4100.43 | AF129: 35672.73 | AG129: 2700.02 | AH129: 0 | AI129: 6207.18 | AJ129: 2210.13 | AK129: 3083.42 | AL129: 17523.05 | AM129: 23780.17 | AN129: 14219.98 | AO129: 20789.22 | AP129: 0 | AQ129: 0 | AR129: 0 | AS129: 0 | AT129: 0 | AU129: -426578.61 | AV129: -45011.45 | AW129: 0 | AX129: -70902.8 | AY129: 0 | AZ129: -32010 | BA129: -4273 | BB129: -500 | BC129: 0 | BD129: -7652.71 | BE129: -40 | BF129: -146.31 | BG129: -2672.4 | BH129: -7232 | BI129: -4650.1 | BJ129: 0 | BK129: 0 | BL129: 0 | BM129: -22987 | BN129: 0 | BO129: 0 | BP129: -2228.16 | BQ129: -542492.86 | BR129: 0 | BS129: 0 | BT129: 0 | BU129: 0 | BV129: 9618.07 | BW129: 61284.73 | BX129: 70902.8
A130: 3050 | B130: St Johns CEP School, Tunbridge Wells | C130: 0 | D130: 629 | E130: 0 | F130: 9.5 | G130: No | H130: Primary | I130: 500+ | J130: =IF(G130=Benchmarking!$I$4,1,0) -> 0 | K130: =IF(Benchmarking!$I$6="All",1,IF(Benchmarking!$I$6=H130,1,0)) -> 0 | L130: =IF(Benchmarking!$I$8="All",1,IF(Benchmarking!$I$8=I130,1,0)) -> 0 | M130: 0 | N130: 1692894.12 | O130: 65197.94 | P130: 550288.88 | Q130: 59057.84 | R130: 160215.21 | S130: 0 | T130: 92398.02 | U130: 10754.97 | V130: 12334.72 | W130: 7534.93 | X130: 16055.4 | Y130: 63828.43 | Z130: 15832.29 | AA130: 57817.9 | AB130: 19719.58 | AC130: 54674.04 | AD130: 79872 | AE130: 21139.22 | AF130: 103833.49 | AG130: 42553.54 | AH130: 0 | AI130: 42530.32 | AJ130: 23839.48 | AK130: 28345.16 | AL130: 128989.33 | AM130: 26476.5 | AN130: 25644.38 | AO130: 39776.15 | AP130: 0 | AQ130: 0 | AR130: 54150 | AS130: 0 | AT130: 0 | AU130: -2428957.5 | AV130: -503528.93 | AW130: 0 | AX130: -112381.1 | AY130: 0 | AZ130: -117450 | BA130: -52115.55 | BB130: -3668.23 | BC130: -13945.55 | BD130: -38052.68 | BE130: -10000 | BF130: -5688 | BG130: -2706.33 | BH130: -54981.08 | BI130: -17555.21 | BJ130: 0 | BK130: 0 | BL130: 0 | BM130: -126319 | BN130: 0 | BO130: 0 | BP130: -18460 | BQ130: -3044867.53 | BR130: 0 | BS130: 0 | BT130: 0 | BU130: 0 | BV130: 0 | BW130: 112381.1 | BX130: 112381.1
A131: 3052 | B131: St Marks CEP School, Tunbridge Wells | C131: 0 | D131: 349 | E131: 0 | F131: 12.08333333 | G131: No | H131: Primary | I131: =IFERROR(VLOOKUP($D131,$D$256:$F$261,3,TRUE),0) -> 300-399 | J131: =IF(G131=Benchmarking!$I$4,1,0) -> 0 | K131: =IF(Benchmarking!$I$6="All",1,IF(Benchmarking!$I$6=H131,1,0)) -> 0 | L131: =IF(Benchmarking!$I$8="All",1,IF(Benchmarking!$I$8=I131,1,0)) -> 0 | M131: 0 | N131: 975781.38 | O131: 0 | P131: 362967.78 | Q131: 37518.62 | R131: 97846.13 | S131: 0 | T131: 33435.99 | U131: 6991.12 | V131: 11338.59 | W131: 8317.81 | X131: 8861.16 | Y131: 24695.18 | Z131: 7451.69 | AA131: 42852.27 | AB131: 287.48 | AC131: 49898.17 | AD131: 57344 | AE131: 22133.55 | AF131: 103447.27 | AG131: 7813.1 | AH131: 0 | AI131: 22360.47 | AJ131: 13038.68 | AK131: 9291.17 | AL131: 68008.61 | AM131: 90040.24 | AN131: 25725.02 | AO131: 29905.99 | AP131: 0 | AQ131: 0 | AR131: 52911.93 | AS131: 0 | AT131: 0 | AU131: -1444325 | AV131: -216675.21 | AW131: 0 | AX131: -64720.86 | AY131: 0 | AZ131: -120340 | BA131: -18084.86 | BB131: -10804.61 | BC131: -13558.52 | BD131: -72178.83 | BE131: -54.9 | BF131: 0 | BG131: -1612.73 | BH131: -34326.39 | BI131: -17970.39 | BJ131: 0 | BK131: 0 | BL131: 0 | BM131: -68109 | BN131: 0 | BO131: 0 | BP131: -21011.45 | BQ131: -1725721.07 | BR131: 0 | BS131: 0 | BT131: 0 | BU131: 0 | BV131: 0 | BW131: 64720.86 | BX131: 64720.86
A132: 3053 | B132: St Peters CEP School, Tunbridge Wells | C132: 0 | D132: 212 | E132: 0 | F132: 5.416666667 | G132: No | H132: Primary | I132: 200-299 | J132: =IF(G132=Benchmarking!$I$4,1,0) -> 0 | K132: =IF(Benchmarking!$I$6="All",1,IF(Benchmarking!$I$6=H132,1,0)) -> 0 | L132: =IF(Benchmarking!$I$8="All",1,IF(Benchmarking!$I$8=I132,1,0)) -> 0 | M132: 0 | N132: 596349.74 | O132: 0 | P132: 175205.48 | Q132: 13432.42 | R132: 65867.23 | S132: 0 | T132: 1440.88 | U132: 3762.44 | V132: 6448 | W132: 7517.28 | X132: 5382.6 | Y132: 3275.21 | Z132: 8842.81 | AA132: 19334.81 | AB132: 1083.64 | AC132: 35412.22 | AD132: 36677 | AE132: 14631.99 | AF132: 71359.28 | AG132: 4450.46 | AH132: 0 | AI132: 21103.32 | AJ132: 7920.28 | AK132: 729.81 | AL132: 44038.89 | AM132: 97123.66 | AN132: 38386.75 | AO132: 21772.63 | AP132: 0 | AQ132: 0 | AR132: 0 | AS132: 0 | AT132: 0 | AU132: -908571.2 | AV132: -93291.08 | AW132: 0 | AX132: -66565.18 | AY132: 0 | AZ132: -42485 | BA132: -9822 | BB132: -4584.4 | BC132: -9904.49 | BD132: -4361.42 | BE132: -15 | BF132: -14490 | BG132: -3702.71 | BH132: -25067.14 | BI132: -10837.85 | BJ132: 0 | BK132: 0 | BL132: 0 | BM132: -52263 | BN132: 0 | BO132: 0 | BP132: -6973.93 | BQ132: -1068427.46 | BR132: 0 | BS132: 0 | BT132: 0 | BU132: 0 | BV132: 0 | BW132: 66565.18 | BX132: 66565.18
A133: 3054 | B133: Crockham Hill CEP School | C133: 0 | D133: 138 | E133: 0 | F133: 6.083333333 | G133: No | H133: Primary | I133: 100-199 | J133: =IF(G133=Benchmarking!$I$4,1,0) -> 0 | K133: =IF(Benchmarking!$I$6="All",1,IF(Benchmarking!$I$6=H133,1,0)) -> 0 | L133: =IF(Benchmarking!$I$8="All",1,IF(Benchmarking!$I$8=I133,1,0)) -> 0 | M133: 0 | N133: 463055.26 | O133: 4791.96 | P133: 131168.04 | Q133: 20385.49 | R133: 15461.65 | S133: 0 | T133: 0 | U133: 3263.56 | V133: 7178.47 | W133: 3695.83 | X133: 3503.88 | Y133: 7461.75 | Z133: 3418.08 | AA133: 10664.29 | AB133: 1079.66 | AC133: 13388.64 | AD133: 20658.6 | AE133: 21941.39 | AF133: 53894.53 | AG133: 13716.77 | AH133: 0 | AI133: 8452.23 | AJ133: 5258.48 | AK133: 0 | AL133: 19275.85 | AM133: 1672.72 | AN133: 8918.02 | AO133: 35840.82 | AP133: 0 | AQ133: 0 | AR133: 0 | AS133: 0 | AT133: 0 | AU133: -684775.39 | AV133: -45412.15 | AW133: 0 | AX133: -40079.33 | AY133: 0 | AZ133: -15797.82 | BA133: -8369.53 | BB133: -720 | BC133: -9030 | BD133: -14272.77 | BE133: 0 | BF133: 0 | BG133: 0 | BH133: -20284.4 | BI133: -10267.43 | BJ133: 0 | BK133: 0 | BL133: 0 | BM133: -43995 | BN133: 0 | BO133: 0 | BP133: -1889.76 | BQ133: -770266.87 | BR133: 0 | BS133: 0 | BT133: 0 | BU133: 0 | BV133: 8509.9 | BW133: 31569.43 | BX133: 40079.33
A134: 3055 | B134: Churchill CEP School, Westerham | C134: 0 | D134: 205 | E134: 0 | F134: 6.333333333 | G134: No | H134: Primary | I134: 200-299 | J134: =IF(G134=Benchmarking!$I$4,1,0) -> 0 | K134: =IF(Benchmarking!$I$6="All",1,IF(Benchmarking!$I$6=H134,1,0)) -> 0 | L134: =IF(Benchmarking!$I$8="All",1,IF(Benchmarking!$I$8=I134,1,0)) -> 0 | M134: 0 | N134: 676716.06 | O134: 4355.16 | P134: 265372.86 | Q134: 29312.59 | R134: 78154.91 | S134: 0 | T134: 44995.53 | U134: 5644.58 | V134: 6824 | W134: 6116.88 | X134: 5205 | Y134: 3362.91 | Z134: 8815.17 | AA134: 30301.58 | AB134: 5374.17 | AC134: 69934.1 | AD134: 31714.8 | AE134: 7101.55 | AF134: 47517.03 | AG134: 5779.68 | AH134: 0 | AI134: 17791.97 | AJ134: 7811.56 | AK134: 7816.52 | AL134: 47441.09 | AM134: 64876.7 | AN134: 8157.37 | AO134: 17867.36 | AP134: 0 | AQ134: 0 | AR134: 0 | AS134: 0 | AT134: 0 | AU134: -934333.21 | AV134: -137082.19 | AW134: 0 | AX134: -49874.77 | AY134: 0 | AZ134: -83735 | BA134: -17859.3 | BB134: -5242.41 | BC134: -21268.44 | BD134: -43507.02 | BE134: 0 | BF134: -5525 | BG134: -2325.12 | BH134: -23010.72 | BI134: -5851.18 | BJ134: 0 | BK134: 0 | BL134: 0 | BM134: -41862 | BN134: 0 | BO134: 0 | BP134: -6718.29 | BQ134: -1121290.17 | BR134: 0 | BS134: 0 | BT134: 0 | BU134: 0 | BV134: 0 | BW134: 49874.77 | BX134: 49874.77
A135: 3057 | B135: St Peters CEP School, Aylesford | C135: 0 | D135: 193 | E135: 0 | F135: 6.416666667 | G135: No | H135: Primary | I135: 100-199 | J135: =IF(G135=Benchmarking!$I$4,1,0) -> 0 | K135: =IF(Benchmarking!$I$6="All",1,IF(Benchmarking!$I$6=H135,1,0)) -> 0 | L135: =IF(Benchmarking!$I$8="All",1,IF(Benchmarking!$I$8=I135,1,0)) -> 0 | M135: 0 | N135: 547996.07 | O135: 4426.81 | P135: 216893.97 | Q135: 15548.64 | R135: 68441.03 | S135: 0 | T135: 22434.1 | U135: 4434.04 | V135: 8381.79 | W135: 4972.47 | X135: 5093.54 | Y135: 7617.78 | Z135: 7950.21 | AA135: 19909 | AB135: 2786.82 | AC135: 19882.43 | AD135: 16342 | AE135: 14940.27 | AF135: 49375.52 | AG135: 22498.87 | AH135: 0 | AI135: 12824.63 | AJ135: 8956.69 | AK135: 0 | AL135: 38281.55 | AM135: 1074 | AN135: 13980 | AO135: 13921.6 | AP135: 0 | AQ135: 0 | AR135: 0 | AS135: 0 | AT135: 0 | AU135: -833282.28 | AV135: -95437.17 | AW135: 0 | AX135: -54715.6 | AY135: 0 | AZ135: -54605 | BA135: -9230 | BB135: 0 | BC135: -9405 | BD135: -3747.53 | BE135: 0 | BF135: 0 | BG135: -2221.74 | BH135: -23315.96 | BI135: -216.63 | BJ135: 0 | BK135: 0 | BL135: 0 | BM135: -44790 | BN135: 0 | BO135: 0 | BP135: -7198.94 | BQ135: -983435.05 | BR135: 0 | BS135: 0 | BT135: 0 | BU135: 0 | BV135: 0 | BW135: 54715.6 | BX135: 54715.6
A136: 3061 | B136: Bredhurst CEP School | C136: 0 | D136: 127 | E136: 0 | F136: 0.4166666667 | G136: No | H136: Primary | I136: 100-199 | J136: =IF(G136=Benchmarking!$I$4,1,0) -> 0 | K136: =IF(Benchmarking!$I$6="All",1,IF(Benchmarking!$I$6=H136,1,0)) -> 0 | L136: =IF(Benchmarking!$I$8="All",1,IF(Benchmarking!$I$8=I136,1,0)) -> 0 | M136: 0 | N136: 401043.85 | O136: 0 | P136: 145465.27 | Q136: 28420.08 | R136: 38463.84 | S136: 0 | T136: 4397.53 | U136: 2952.92 | V136: 3647 | W136: 1626 | X136: 558.84 | Y136: 588.02 | Z136: 3030.84 | AA136: 3214.6 | AB136: 3080.21 | AC136: 14002.5 | AD136: 17502.42 | AE136: 2691.31 | AF136: 40927.74 | AG136: 3400 | AH136: 0 | AI136: 7655.04 | AJ136: 4744.76 | AK136: 4197.21 | AL136: 30856.1 | AM136: 0 | AN136: 2194.08 | AO136: 16237.39 | AP136: 0 | AQ136: 0 | AR136: 0 | AS136: 0 | AT136: 0 | AU136: -591478.59 | AV136: -42871.57 | AW136: 0 | AX136: -2389.05 | AY136: 0 | AZ136: -22835 | BA136: -9939 | BB136: -1902.47 | BC136: -575 | BD136: -11403.35 | BE136: -7663.18 | BF136: -196.15 | BG136: 0 | BH136: -13676.38 | BI136: -21209.51 | BJ136: 0 | BK136: 0 | BL136: 0 | BM136: -44680 | BN136: 0 | BO136: 0 | BP136: -2574.17 | BQ136: -636739.21 | BR136: 0 | BS136: 0 | BT136: 0 | BU136: 0 | BV136: 713.7 | BW136: 1675.35 | BX136: 2389.05
A137: 3062 | B137: Burham CEP School | C137: 0 | D137: 144 | E137: 0 | F137: 2.25 | G137: No | H137: Primary | I137: 100-199 | J137: =IF(G137=Benchmarking!$I$4,1,0) -> 0 | K137: =IF(Benchmarking!$I$6="All",1,IF(Benchmarking!$I$6=H137,1,0)) -> 0 | L137: =IF(Benchmarking!$I$8="All",1,IF(Benchmarking!$I$8=I137,1,0)) -> 0 | M137: 0 | N137: 405580.57 | O137: 1126.09 | P137: 103933.24 | Q137: 6879.51 | R137: 50925.22 | S137: 0 | T137: 34614.04 | U137: 3015.11 | V137: 5689.08 | W137: 288 | X137: 3656.16 | Y137: 8556.33 | Z137: 5436.43 | AA137: 19005.07 | AB137: 2159.3 | AC137: 20988.32 | AD137: 26101.36 | AE137: 6729.08 | AF137: 39317.33 | AG137: 3119.77 | AH137: 0 | AI137: 21195.27 | AJ137: 5379.84 | AK137: 3204.76 | AL137: 21959.63 | AM137: 28363.64 | AN137: 11239.34 | AO137: 42326.77 | AP137: 0 | AQ137: 0 | AR137: 0 | AS137: 0 | AT137: 0 | AU137: -661551.91 | AV137: -53225.54 | AW137: 0 | AX137: -21062.07 | AY137: 0 | AZ137: -17460 | BA137: -6907 | BB137: -1903 | BC137: 0 | BD137: -18353.29 | BE137: 0 | BF137: 0 | BG137: 0 | BH137: -8665.51 | BI137: -6760.18 | BJ137: 0 | BK137: 0 | BL137: 0 | BM137: -34166 | BN137: 0 | BO137: 0 | BP137: -1172.43 | BQ137: -735839.52 | BR137: 0 | BS137: 0 | BT137: 0 | BU137: 0 | BV137: 1298.35 | BW137: 19763.72 | BX137: 21062.07
A138: 3067 | B138: Harrietsham CEP School | C138: 0 | D138: 303 | E138: 0 | F138: 8.166666667 | G138: No | H138: Primary | I138: 300-399 | J138: =IF(G138=Benchmarking!$I$4,1,0) -> 0 | K138: =IF(Benchmarking!$I$6="All",1,IF(Benchmarking!$I$6=H138,1,0)) -> 0 | L138: =IF(Benchmarking!$I$8="All",1,IF(Benchmarking!$I$8=I138,1,0)) -> 0 | M138: 0 | N138: 915691.12 | O138: 2074.4 | P138: 280638.06 | Q138: 34627.78 | R138: 74385.34 | S138: 0 | T138: 50502.93 | U138: 6405.9 | V138: 9283.26 | W138: 7718 | X138: 7693.2 | Y138: 22550.97 | Z138: 5890.16 | AA138: 19476.85 | AB138: 1587.74 | AC138: 43033.86 | AD138: 39141.6 | AE138: 14275.87 | AF138: 69804.86 | AG138: 12158.62 | AH138: 0 | AI138: 19591.83 | AJ138: 11320.08 | AK138: 376.55 | AL138: 61402.41 | AM138: 46138.28 | AN138: 4899.2 | AO138: 96185.95 | AP138: 0 | AQ138: 0 | AR138: 0 | AS138: 0 | AT138: 0 | AU138: -1304221.08 | AV138: -164779.17 | AW138: 0 | AX138: -78447.19 | AY138: 0 | AZ138: -81055 | BA138: -19732.93 | BB138: -2250 | BC138: -5388.5 | BD138: -1546.93 | BE138: 0 | BF138: -1350 | BG138: -16261.76 | BH138: -23767.99 | BI138: -27073.75 | BJ138: 0 | BK138: 0 | BL138: 0 | BM138: -65926 | BN138: 0 | BO138: 0 | BP138: -9088.16 | BQ138: -1547447.44 | BR138: 0 | BS138: 0 | BT138: 0 | BU138: 0 | BV138: 0 | BW138: 78447.19 | BX138: 78447.19
A139: 3069 | B139: Leeds & Broomfield CEP School | C139: 0 | D139: 82 | E139: 0 | F139: 14.66666667 | G139: No | H139: Primary | I139: 0-99 | J139: =IF(G139=Benchmarking!$I$4,1,0) -> 0 | K139: =IF(Benchmarking!$I$6="All",1,IF(Benchmarking!$I$6=H139,1,0)) -> 0 | L139: =IF(Benchmarking!$I$8="All",1,IF(Benchmarking!$I$8=I139,1,0)) -> 0 | M139: 0 | N139: 189017.75 | O139: 537 | P139: 236371.38 | Q139: 11117.96 | R139: 25791.53 | S139: 0 | T139: 19773.8 | U139: 2588.78 | V139: 2092.5 | W139: 3379.12 | X139: 2082 | Y139: 4269.03 | Z139: 2070.84 | AA139: 474.35 | AB139: 3548.79 | AC139: 14347.18 | AD139: 5489 | AE139: 6794.53 | AF139: 13430.24 | AG139: 6838.34 | AH139: 0 | AI139: 10474.19 | AJ139: 3063.56 | AK139: 233538.64 | AL139: 21949.21 | AM139: 2864 | AN139: 25560.03 | AO139: 14056.15 | AP139: 0 | AQ139: 0 | AR139: 0 | AS139: 0 | AT139: 0 | AU139: -527901.03 | AV139: -59737.01 | AW139: 0 | AX139: -125234.93 | AY139: 0 | AZ139: -46206 | BA139: -4890 | BB139: -3020 | BC139: 0 | BD139: -22878.4 | BE139: -622.76 | BF139: 0 | BG139: -2167.26 | BH139: -3187.85 | BI139: -9079.89 | BJ139: 0 | BK139: 0 | BL139: 0 | BM139: -29530 | BN139: 0 | BO139: 0 | BP139: -2857.67 | BQ139: -712872.97 | BR139: 0 | BS139: 0 | BT139: 0 | BU139: 0 | BV139: 383.25 | BW139: 124851.68 | BX139: 125234.93
A140: 3072 | B140: St Michaels CEJ School, Maidstone | C140: 0 | D140: 177 | E140: 0 | F140: 3.416666667 | G140: No | H140: Primary | I140: 100-199 | J140: =IF(G140=Benchmarking!$I$4,1,0) -> 0 | K140: =IF(Benchmarking!$I$6="All",1,IF(Benchmarking!$I$6=H140,1,0)) -> 0 | L140: =IF(Benchmarking!$I$8="All",1,IF(Benchmarking!$I$8=I140,1,0)) -> 0 | M140: 0 | N140: 457119.63 | O140: 0 | P140: 198395.97 | Q140: 18736.83 | R140: 57122.46 | S140: 0 | T140: 24971.77 | U140: 3339.89 | V140: 3856.54 | W140: 354 | X140: 4494 | Y140: 7678.01 | Z140: 1280.78 | AA140: 16774.48 | AB140: 2806.71 | AC140: 13787.63 | AD140: 10230 | AE140: 6391.23 | AF140: 70044.99 | AG140: 9241.98 | AH140: 0 | AI140: 20692.95 | AJ140: 6612.72 | AK140: 9309.28 | AL140: 16533.98 | AM140: 0 | AN140: 4637.44 | AO140: 15143.29 | AP140: 0 | AQ140: 0 | AR140: 36141 | AS140: 0 | AT140: 0 | AU140: -764826.82 | AV140: -99580.56 | AW140: 0 | AX140: -19376.63 | AY140: 0 | AZ140: -51620 | BA140: -9916 | BB140: 0 | BC140: 0 | BD140: -14132.45 | BE140: 0 | BF140: 0 | BG140: -4835.72 | BH140: -10698.06 | BI140: -3510 | BJ140: 0 | BK140: 0 | BL140: 0 | BM140: -17780 | BN140: 0 | BO140: 0 | BP140: -3352.28 | BQ140: -883784.01 | BR140: 0 | BS140: 0 | BT140: 0 | BU140: 0 | BV140: 0 | BW140: 19376.63 | BX140: 19376.63
A141: 3073 | B141: St Michaels Infant School | C141: 0 | D141: 120 | E141: 0 | F141: 3.333333333 | G141: No | H141: Primary | I141: 100-199 | J141: =IF(G141=Benchmarking!$I$4,1,0) -> 0 | K141: =IF(Benchmarking!$I$6="All",1,IF(Benchmarking!$I$6=H141,1,0)) -> 0 | L141: =IF(Benchmarking!$I$8="All",1,IF(Benchmarking!$I$8=I141,1,0)) -> 0 | M141: 0 | N141: 368673.16 | O141: 0 | P141: 149981.51 | Q141: 17314.92 | R141: 34177.29 | S141: 0 | T141: 24107.26 | U141: 3859.98 | V141: 5532.13 | W141: 240 | X141: 3046.8 | Y141: 4084.08 | Z141: 1365.28 | AA141: 10796.28 | AB141: 1280.07 | AC141: 4936.44 | AD141: 10105 | AE141: 5113.01 | AF141: 48478.63 | AG141: 8276.81 | AH141: 0 | AI141: 15442.76 | AJ141: 4483.2 | AK141: 6571.5 | AL141: 48575.16 | AM141: 0 | AN141: 4294.36 | AO141: 14044.35 | AP141: 0 | AQ141: 0 | AR141: 0 | AS141: 0 | AT141: 0 | AU141: -559218.07 | AV141: -81410.31 | AW141: 0 | AX141: -23517.67 | AY141: 0 | AZ141: -31808.02 | BA141: -6228 | BB141: -1000 | BC141: 0 | BD141: -15581.61 | BE141: 0 | BF141: 0 | BG141: 0 | BH141: 0 | BI141: -2350 | BJ141: 0 | BK141: 0 | BL141: 0 | BM141: -57280 | BN141: 0 | BO141: 0 | BP141: -2259.42 | BQ141: -664146.05 | BR141: 0 | BS141: 0 | BT141: 0 | BU141: 0 | BV141: 0 | BW141: 23517.67 | BX141: 23517.67
A142: 3081 | B142: Thurnham CEI School | C142: 0 | D142: 270 | E142: 0 | F142: 5.5 | G142: No | H142: Primary | I142: 200-299 | J142: =IF(G142=Benchmarking!$I$4,1,0) -> 0 | K142: =IF(Benchmarking!$I$6="All",1,IF(Benchmarking!$I$6=H142,1,0)) -> 0 | L142: =IF(Benchmarking!$I$8="All",1,IF(Benchmarking!$I$8=I142,1,0)) -> 0 | M142: 0 | N142: 668577.84 | O142: 42544.65 | P142: 282577 | Q142: 30483.02 | R142: 72948.7 | S142: 0 | T142: 68323.35 | U142: 8347.39 | V142: 11365.04 | W142: 7817.77 | X142: 6855.36 | Y142: 25209.08 | Z142: 16079.62 | AA142: 14488.21 | AB142: 399.82 | AC142: 33103.14 | AD142: 26368 | AE142: 16463.89 | AF142: 37058.62 | AG142: 15815.91 | AH142: 0 | AI142: 19945.29 | AJ142: 10087.2 | AK142: 79.5 | AL142: 101164.62 | AM142: 3673 | AN142: 19609.9 | AO142: 18072.71 | AP142: 0 | AQ142: 0 | AR142: 867.76 | AS142: 0 | AT142: 0 | AU142: -1091161.49 | AV142: -160653.72 | AW142: 0 | AX142: -48424.72 | AY142: 0 | AZ142: -12670 | BA142: -14485.93 | BB142: -205 | BC142: 0 | BD142: -40884.65 | BE142: -9.2 | BF142: -1675 | BG142: -13521.23 | BH142: -7284.41 | BI142: -19209.57 | BJ142: 0 | BK142: 0 | BL142: 0 | BM142: -137832 | BN142: 0 | BO142: 0 | BP142: -2529.42 | BQ142: -1300239.93 | BR142: 0 | BS142: 0 | BT142: 0 | BU142: 0 | BV142: 0 | BW142: 48424.72 | BX142: 48424.72
A143: 3082 | B143: Trottiscliffe CEP School | C143: 0 | D143: 84 | E143: 0 | F143: 2.75 | G143: No | H143: Primary | I143: 0-99 | J143: =IF(G143=Benchmarking!$I$4,1,0) -> 0 | K143: =IF(Benchmarking!$I$6="All",1,IF(Benchmarking!$I$6=H143,1,0)) -> 0 | L143: =IF(Benchmarking!$I$8="All",1,IF(Benchmarking!$I$8=I143,1,0)) -> 0 | M143: 0 | N143: 310841.21 | O143: 0 | P143: 107849.6 | Q143: 0 | R143: 22464.95 | S143: 0 | T143: 386.97 | U143: 2211.92 | V143: 3745 | W143: 168 | X143: 2217.72 | Y143: 4285.25 | Z143: 2442.86 | AA143: 6627.69 | AB143: 6245.06 | AC143: 6475.76 | AD143: 6362 | AE143: 3618.49 | AF143: 39696.68 | AG143: 6197.17 | AH143: 0 | AI143: 8996.35 | AJ143: 3478.2 | AK143: 947.11 | AL143: 13373.59 | AM143: 0 | AN143: 15725.65 | AO143: 16746.37 | AP143: 0 | AQ143: 0 | AR143: 28196.9 | AS143: 0 | AT143: 0 | AU143: -471593.55 | AV143: -33992.41 | AW143: 0 | AX143: -31464.68 | AY143: 0 | AZ143: -15370 | BA143: -4497 | BB143: 0 | BC143: 0 | BD143: -3084.41 | BE143: 0 | BF143: 0 | BG143: 0 | BH143: -15983.35 | BI143: -355.6 | BJ143: 0 | BK143: 0 | BL143: 0 | BM143: -31602 | BN143: 0 | BO143: 0 | BP143: -1425.12 | BQ143: -537050.64 | BR143: 0 | BS143: 0 | BT143: 0 | BU143: 0 | BV143: 6501.9 | BW143: 24962.78 | BX143: 31464.68
A144: 3083 | B144: Ulcombe CEP School | C144: 0 | D144: 70 | E144: 0 | F144: 8.666666667 | G144: No | H144: Primary | I144: 0-99 | J144: =IF(G144=Benchmarking!$I$4,1,0) -> 0 | K144: =IF(Benchmarking!$I$6="All",1,IF(Benchmarking!$I$6=H144,1,0)) -> 0 | L144: =IF(Benchmarking!$I$8="All",1,IF(Benchmarking!$I$8=I144,1,0)) -> 0 | M144: 0 | N144: 159108.54 | O144: 16773.11 | P144: 98580.01 | Q144: 7376.11 | R144: 27495.44 | S144: 0 | T144: 5806.73 | U144: 2109.07 | V144: 1194.92 | W144: 3304.77 | X144: 1777.32 | Y144: 6497.48 | Z144: 3785.4 | AA144: 844.61 | AB144: 1896.09 | AC144: 11798.83 | AD144: 7236 | AE144: 9158.36 | AF144: 23100.32 | AG144: 7843.47 | AH144: 0 | AI144: 7780.86 | AJ144: 2615.24 | AK144: 200634.4 | AL144: 17758.86 | AM144: 3382.35 | AN144: 9451.38 | AO144: 16592.65 | AP144: 0 | AQ144: 0 | AR144: 33141.38 | AS144: 0 | AT144: 0 | AU144: -478451.17 | AV144: -72657.17 | AW144: 0 | AX144: -44929.54 | AY144: 0 | AZ144: -52380 | BA144: -5385 | BB144: -2520 | BC144: 0 | BD144: -8070.21 | BE144: 0 | BF144: 0 | BG144: 0 | BH144: -4892.28 | BI144: -1685.67 | BJ144: 0 | BK144: 0 | BL144: 0 | BM144: -20013 | BN144: 0 | BO144: 0 | BP144: -3776.71 | BQ144: -596037.88 | BR144: 0 | BS144: 0 | BT144: 0 | BU144: 0 | BV144: 0 | BW144: 44929.54 | BX144: 44929.54
A145: 3084 | B145: Wateringbury CEP School | C145: 0 | D145: 173 | E145: 0 | F145: 6.416666667 | G145: No | H145: Primary | I145: 100-199 | J145: =IF(G145=Benchmarking!$I$4,1,0) -> 0 | K145: =IF(Benchmarking!$I$6="All",1,IF(Benchmarking!$I$6=H145,1,0)) -> 0 | L145: =IF(Benchmarking!$I$8="All",1,IF(Benchmarking!$I$8=I145,1,0)) -> 0 | M145: 0 | N145: 473070.51 | O145: 5674.54 | P145: 165355.03 | Q145: 17365.13 | R145: 36914.32 | S145: 0 | T145: 15971.18 | U145: 620.26 | V145: 3604.02 | W145: 4533.59 | X145: 4392.48 | Y145: 6355.4 | Z145: 4762.71 | AA145: 27741.27 | AB145: 0 | AC145: 31160.87 | AD145: 4890 | AE145: 13861.79 | AF145: 49241.35 | AG145: 9607.17 | AH145: 0 | AI145: 13917.91 | AJ145: 6463.24 | AK145: 430 | AL145: 37725.45 | AM145: 25577.02 | AN145: 29712.35 | AO145: 32991.74 | AP145: 0 | AQ145: 0 | AR145: 3225.83 | AS145: 0 | AT145: 0 | AU145: -752226.63 | AV145: -77952.47 | AW145: 0 | AX145: -51937.19 | AY145: 0 | AZ145: -50165 | BA145: -16189.63 | BB145: -7032 | BC145: -623.29 | BD145: -3284.06 | BE145: -808 | BF145: 0 | BG145: 0 | BH145: -15488.1 | BI145: -11870.39 | BJ145: 0 | BK145: 0 | BL145: 0 | BM145: -38464 | BN145: 0 | BO145: 0 | BP145: -7971.05 | BQ145: -882116.29 | BR145: 0 | BS145: 0 | BT145: 0 | BU145: 0 | BV145: 0 | BW145: 51937.19 | BX145: 51937.19
A146: 3088 | B146: Wouldham, All Saints CE School | C146: 0 | D146: 403 | E146: 0 | F146: 5.333333333 | G146: No | H146: Junior | I146: 400-499 | J146: =IF(G146=Benchmarking!$I$4,1,0) -> 0 | K146: =IF(Benchmarking!$I$6="All",1,IF(Benchmarking!$I$6=H146,1,0)) -> 0 | L146: =IF(Benchmarking!$I$8="All",1,IF(Benchmarking!$I$8=I146,1,0)) -> 0 | M146: 0 | N146: 1113691.89 | O146: 16987.66 | P146: 464259.91 | Q146: 79215.55 | R146: 74530.05 | S146: 56783.42 | T146: 96857.7 | U146: 10034.64 | V146: 7134.62 | W146: 1980.16 | X146: 10572.12 | Y146: 6798.56 | Z146: 7224.78 | AA146: 5423.47 | AB146: 650 | AC146: 65086.18 | AD146: 91912.6 | AE146: 23135.16 | AF146: 88149.42 | AG146: 29242.6 | AH146: 0 | AI146: 23368.25 | AJ146: 17154.08 | AK146: 18100.1 | AL146: 46462.97 | AM146: 16469.43 | AN146: 51959.38 | AO146: 42063.57 | AP146: 0 | AQ146: 0 | AR146: 0 | AS146: 0 | AT146: 0 | AU146: -1655186.39 | AV146: -283369.98 | AW146: 0 | AX146: -57031.47 | AY146: 0 | AZ146: -96405 | BA146: -23516.93 | BB146: 0 | BC146: -17100.36 | BD146: -113346.86 | BE146: -26528.75 | BF146: 0 | BG146: -13988.17 | BH146: -24281.9 | BI146: -598 | BJ146: 0 | BK146: 0 | BL146: 0 | BM146: -83466 | BN146: 0 | BO146: 0 | BP146: -12349.43 | BQ146: -1995587.84 | BR146: 0 | BS146: 0 | BT146: 0 | BU146: 0 | BV146: 0 | BW146: 57031.47 | BX146: 57031.47
A147: 3089 | B147: St Georges CEP School, Wrotham | C147: 0 | D147: 201 | E147: 0 | F147: 4.25 | G147: No | H147: Primary | I147: 200-299 | J147: =IF(G147=Benchmarking!$I$4,1,0) -> 0 | K147: =IF(Benchmarking!$I$6="All",1,IF(Benchmarking!$I$6=H147,1,0)) -> 0 | L147: =IF(Benchmarking!$I$8="All",1,IF(Benchmarking!$I$8=I147,1,0)) -> 0 | M147: 0 | N147: 627744.55 | O147: 0 | P147: 166868.54 | Q147: 25546.06 | R147: 75720.09 | S147: 0 | T147: 31244.7 | U147: 3827.09 | V147: 6784.1 | W147: 402 | X147: 5103.36 | Y147: 5376.54 | Z147: 3647.5 | AA147: 20117.95 | AB147: 6508.15 | AC147: 17644.29 | AD147: 18214 | AE147: 3819.13 | AF147: 61135.52 | AG147: 6616.9 | AH147: 0 | AI147: 12042.23 | AJ147: 7509.36 | AK147: 6205.14 | AL147: 31866.41 | AM147: 0 | AN147: 19067.66 | AO147: 21647.17 | AP147: 0 | AQ147: 0 | AR147: 0 | AS147: 0 | AT147: 0 | AU147: -858208.4 | AV147: -99758.57 | AW147: 0 | AX147: -40606.92 | AY147: 0 | AZ147: -54910 | BA147: -11305 | BB147: -6077.53 | BC147: 0 | BD147: -7828.31 | BE147: 0 | BF147: 0 | BG147: 0 | BH147: 0 | BI147: -23175.15 | BJ147: 0 | BK147: 0 | BL147: 0 | BM147: -49542 | BN147: 0 | BO147: 0 | BP147: -9281.04 | BQ147: -998573.89 | BR147: 0 | BS147: 0 | BT147: 0 | BU147: 0 | BV147: 0 | BW147: 40606.92 | BX147: 40606.92
A148: 3090 | B148: St Margarets Collier Street School | C148: 0 | D148: 123 | E148: 0 | F148: 4.5 | G148: No | H148: Primary | I148: 100-199 | J148: =IF(G148=Benchmarking!$I$4,1,0) -> 0 | K148: =IF(Benchmarking!$I$6="All",1,IF(Benchmarking!$I$6=H148,1,0)) -> 0 | L148: =IF(Benchmarking!$I$8="All",1,IF(Benchmarking!$I$8=I148,1,0)) -> 0 | M148: 0 | N148: 379374.05 | O148: 4725.72 | P148: 143945.21 | Q148: 6853.81 | R148: 36371.94 | S148: 0 | T148: 16953.99 | U148: 2666.83 | V148: 3111.49 | W148: 3051.68 | X148: 3123 | Y148: 13619.03 | Z148: 5877.78 | AA148: 19641.36 | AB148: 3673.01 | AC148: 15908.57 | AD148: 16067.8 | AE148: 4777.7 | AF148: 36469.86 | AG148: 5518.76 | AH148: 0 | AI148: 9747.84 | AJ148: 4595.28 | AK148: 8188.86 | AL148: 20050.35 | AM148: 0 | AN148: 14669.5 | AO148: 9904.44 | AP148: 0 | AQ148: 0 | AR148: 27190 | AS148: 0 | AT148: 0 | AU148: -588857.48 | AV148: -63794.91 | AW148: 0 | AX148: -32957.17 | AY148: 0 | AZ148: -7275 | BA148: -9315.65 | BB148: -720 | BC148: -332.67 | BD148: -16271.36 | BE148: -451.29 | BF148: 0 | BG148: -5257.66 | BH148: -8662.96 | BI148: -9196.87 | BJ148: 0 | BK148: 0 | BL148: 0 | BM148: -38114.12 | BN148: 0 | BO148: 0 | BP148: -2049.5 | BQ148: -685609.56 | BR148: 0 | BS148: 0 | BT148: 0 | BU148: 0 | BV148: 0 | BW148: 32957.17 | BX148: 32957.17
A149: 3091 | B149: Laddingford St Marys CEP School | C149: 0 | D149: 83 | E149: 0 | F149: 5.416666667 | G149: No | H149: Primary | I149: 0-99 | J149: =IF(G149=Benchmarking!$I$4,1,0) -> 0 | K149: =IF(Benchmarking!$I$6="All",1,IF(Benchmarking!$I$6=H149,1,0)) -> 0 | L149: =IF(Benchmarking!$I$8="All",1,IF(Benchmarking!$I$8=I149,1,0)) -> 0 | M149: 0 | N149: 332399.21 | O149: 4064.79 | P149: 125097.35 | Q149: 1538.81 | R149: 29500.11 | S149: 0 | T149: 0 | U149: 2163.3 | V149: 1830 | W149: 166 | X149: 2107.32 | Y149: 2027.16 | Z149: 2801.99 | AA149: 12482.63 | AB149: 4674.62 | AC149: 9339.92 | AD149: 5501.47 | AE149: 10178.92 | AF149: 32402.08 | AG149: 11811.5 | AH149: 0 | AI149: 12295.98 | AJ149: 3100.84 | AK149: 286.72 | AL149: 22423.89 | AM149: 2815.64 | AN149: 17209.58 | AO149: 18093.88 | AP149: 0 | AQ149: 0 | AR149: 0 | AS149: 0 | AT149: 0 | AU149: -476269.39 | AV149: -59313.77 | AW149: 0 | AX149: -40767.55 | AY149: 0 | AZ149: -30555 | BA149: -4988 | BB149: -1968 | BC149: 0 | BD149: -9164.38 | BE149: -4921.18 | BF149: 0 | BG149: 0 | BH149: -5587.11 | BI149: -3800 | BJ149: 0 | BK149: 0 | BL149: 0 | BM149: -26231 | BN149: 0 | BO149: 0 | BP149: -4972.71 | BQ149: -576350.71 | BR149: 0 | BS149: 0 | BT149: 0 | BU149: 0 | BV149: 348.92 | BW149: 40418.63 | BX149: 40767.55
A150: 3092 | B150: Yalding, St Peter & St Paul CEP School | C150: 0 | D150: 172 | E150: 0 | F150: 2.416666667 | G150: No | H150: Primary | I150: 100-199 | J150: =IF(G150=Benchmarking!$I$4,1,0) -> 0 | K150: =IF(Benchmarking!$I$6="All",1,IF(Benchmarking!$I$6=H150,1,0)) -> 0 | L150: =IF(Benchmarking!$I$8="All",1,IF(Benchmarking!$I$8=I150,1,0)) -> 0 | M150: 0 | N150: 542315.48 | O150: 0 | P150: 140166.79 | Q150: 7206.85 | R150: 41249.04 | S150: 0 | T150: 25825.23 | U150: 998 | V150: 1741.5 | W150: 344 | X150: 4367.16 | Y150: 5841.52 | Z150: 3043.51 | AA150: 21008.11 | AB150: 1970.61 | AC150: 18454.01 | AD150: 14222 | AE150: 2875.13 | AF150: 50584.29 | AG150: 6203.26 | AH150: 0 | AI150: 11069.84 | AJ150: 6425.96 | AK150: 2089.93 | AL150: 19547.54 | AM150: 4040 | AN150: 7651 | AO150: 18587.48 | AP150: 0 | AQ150: 0 | AR150: 0 | AS150: 0 | AT150: 0 | AU150: -744330.15 | AV150: -71738.72 | AW150: 0 | AX150: -15636.55 | AY150: 0 | AZ150: -34325 | BA150: -13070 | BB150: 0 | BC150: 0 | BD150: -14502.52 | BE150: 0 | BF150: 0 | BG150: 0 | BH150: -24320.31 | BI150: 0 | BJ150: 0 | BK150: 0 | BL150: 0 | BM150: -38453 | BN150: 0 | BO150: 0 | BP150: -1522.96 | BQ150: -831705.42 | BR150: 0 | BS150: 0 | BT150: 0 | BU150: 0 | BV150: 0 | BW150: 15636.55 | BX150: 15636.55
A151: 3108 | B151: Ospringe CEP School | C151: 0 | D151: 210 | E151: 0 | F151: 10.58333333 | G151: No | H151: Primary | I151: 200-299 | J151: =IF(G151=Benchmarking!$I$4,1,0) -> 0 | K151: =IF(Benchmarking!$I$6="All",1,IF(Benchmarking!$I$6=H151,1,0)) -> 0 | L151: =IF(Benchmarking!$I$8="All",1,IF(Benchmarking!$I$8=I151,1,0)) -> 0 | M151: 0 | N151: 663734.05 | O151: 11134 | P151: 238923.43 | Q151: 24547.39 | R151: 88562.37 | S151: 15481.4 | T151: 44510.05 | U151: 4484.04 | V151: 4076.32 | W151: 3651.85 | X151: 5502 | Y151: 10717.95 | Z151: 8961.55 | AA151: 24102.49 | AB151: 5865.37 | AC151: 30478.96 | AD151: 23079 | AE151: 9185.3 | AF151: 73827.48 | AG151: 14791.46 | AH151: 0 | AI151: 20713.62 | AJ151: 8525.64 | AK151: 5420.46 | AL151: 55577.95 | AM151: 2864 | AN151: 787.5 | AO151: 26951.6 | AP151: 0 | AQ151: 0 | AR151: 0 | AS151: 0 | AT151: 0 | AU151: -913875.48 | AV151: -167646.61 | AW151: 0 | AX151: -72229.1 | AY151: 0 | AZ151: -107310 | BA151: -24052.88 | BB151: -2821 | BC151: -254 | BD151: -40112.71 | BE151: -12876.68 | BF151: -100 | BG151: 0 | BH151: -13997.5 | BI151: -3224.3 | BJ151: 0 | BK151: 0 | BL151: 0 | BM151: -45752 | BN151: 0 | BO151: 0 | BP151: -16772.5 | BQ151: -1153751.19 | BR151: 0 | BS151: 0 | BT151: 0 | BU151: 0 | BV151: 0 | BW151: 72229.1 | BX151: 72229.1
A152: 3109 | B152: Hernhill CEP School | C152: 0 | D152: 210 | E152: 0 | F152: 9.916666667 | G152: No | H152: Primary | I152: 200-299 | J152: =IF(G152=Benchmarking!$I$4,1,0) -> 0 | K152: =IF(Benchmarking!$I$6="All",1,IF(Benchmarking!$I$6=H152,1,0)) -> 0 | L152: =IF(Benchmarking!$I$8="All",1,IF(Benchmarking!$I$8=I152,1,0)) -> 0 | M152: 0 | N152: 619424.51 | O152: 5183.44 | P152: 315935.19 | Q152: 39103.04 | R152: 33508.48 | S152: 0 | T152: 17907.57 | U152: 4131.38 | V152: 4186.83 | W152: 2952.5 | X152: 5416.92 | Y152: 10187.43 | Z152: 6101.08 | AA152: 1001.77 | AB152: 4544.19 | AC152: 20113.62 | AD152: 31744 | AE152: 4586.63 | AF152: 59168.25 | AG152: 6260.33 | AH152: 0 | AI152: 14450.64 | AJ152: 8185.56 | AK152: 2843.99 | AL152: 39747.64 | AM152: 0 | AN152: 20751.57 | AO152: 19449.04 | AP152: 0 | AQ152: 0 | AR152: 0 | AS152: 0 | AT152: 0 | AU152: -909732.99 | AV152: -108956.09 | AW152: 0 | AX152: -86839.08 | AY152: 0 | AZ152: -53076.24 | BA152: -16360.3 | BB152: -6315 | BC152: 0 | BD152: -21878.28 | BE152: 0 | BF152: 0 | BG152: -1095.67 | BH152: -17995.85 | BI152: -824.79 | BJ152: 0 | BK152: 0 | BL152: 0 | BM152: -57505 | BN152: 0 | BO152: 0 | BP152: -2219.21 | BQ152: -1105528.16 | BR152: 0 | BS152: 0 | BT152: 0 | BU152: 0 | BV152: 0 | BW152: 86839.08 | BX152: 86839.08
A153: 3111 | B153: Newington CEP School | C153: 35 | D153: 205 | E153: 0 | F153: 12.66666667 | G153: Yes | H153: Primary | I153: 200-299 | J153: =IF(G153=Benchmarking!$I$4,1,0) -> 0 | K153: =IF(Benchmarking!$I$6="All",1,IF(Benchmarking!$I$6=H153,1,0)) -> 0 | L153: =IF(Benchmarking!$I$8="All",1,IF(Benchmarking!$I$8=I153,1,0)) -> 0 | M153: 0 | N153: 661430.9 | O153: 0 | P153: 418075.23 | Q153: 35075.25 | R153: 47578.1 | S153: 0 | T153: 0 | U153: 4276.97 | V153: 10985.18 | W153: 10408.12 | X153: 5374.92 | Y153: 61802.84 | Z153: 54383.55 | AA153: 6492.11 | AB153: 2201.37 | AC153: 24002.88 | AD153: 34048 | AE153: 7081.26 | AF153: 76660.89 | AG153: 9503.96 | AH153: 0 | AI153: 17084.61 | AJ153: 8338.76 | AK153: 0 | AL153: 42492.46 | AM153: 36768.72 | AN153: 0 | AO153: 36697.86 | AP153: 0 | AQ153: 0 | AR153: 0 | AS153: 0 | AT153: 0 | AU153: -1084039.23 | AV153: -165238.51 | AW153: 0 | AX153: -105802.95 | AY153: 0 | AZ153: -121100 | BA153: -17821 | BB153: -9437.71 | BC153: -17606.37 | BD153: -1335.4 | BE153: 0 | BF153: -7787.35 | BG153: 0 | BH153: -4368.58 | BI153: -2534.34 | BJ153: 0 | BK153: 0 | BL153: 0 | BM153: -46595 | BN153: 0 | BO153: 0 | BP153: -19123.2 | BQ153: -1355080.69 | BR153: 0 | BS153: 0 | BT153: 0 | BU153: 0 | BV153: 0 | BW153: 105802.95 | BX153: 105802.95
A154: 3117 | B154: Teynham Parochial CEP School | C154: 0 | D154: 200 | E154: 0 | F154: 2.333333333 | G154: No | H154: Primary | I154: 200-299 | J154: =IF(G154=Benchmarking!$I$4,1,0) -> 0 | K154: =IF(Benchmarking!$I$6="All",1,IF(Benchmarking!$I$6=H154,1,0)) -> 0 | L154: =IF(Benchmarking!$I$8="All",1,IF(Benchmarking!$I$8=I154,1,0)) -> 0 | M154: 0 | N154: 591565.93 | O154: 6030.92 | P154: 199638.57 | Q154: 34053.58 | R154: 43094.1 | S154: 0 | T154: 25698.98 | U154: 15096.51 | V154: 3940.85 | W154: 400 | X154: 5077.92 | Y154: 8139.14 | Z154: 9583.95 | AA154: 1554.63 | AB154: 0 | AC154: 37387.4 | AD154: 22080.75 | AE154: 14045.01 | AF154: 57219.78 | AG154: 10373.14 | AH154: 0 | AI154: 19455.86 | AJ154: 7471.96 | AK154: 8464.68 | AL154: 38515 | AM154: 20110.34 | AN154: 34078.5 | AO154: 40321.51 | AP154: 0 | AQ154: 0 | AR154: 8662 | AS154: 0 | AT154: 0 | AU154: -874354.83 | AV154: -162514.43 | AW154: 0 | AX154: -21428.59 | AY154: 0 | AZ154: -94575 | BA154: -10768 | BB154: -760 | BC154: -3300 | BD154: -18251.65 | BE154: -648.24 | BF154: 0 | BG154: -2604.54 | BH154: -11418.5 | BI154: -375 | BJ154: 0 | BK154: 0 | BL154: 0 | BM154: -35112 | BN154: 0 | BO154: 0 | BP154: -12396.26 | BQ154: -1058297.85 | BR154: 0 | BS154: 0 | BT154: 0 | BU154: 0 | BV154: 0 | BW154: 21428.59 | BX154: 21428.59
A155: 3120 | B155: Barham CEP School | C155: 0 | D155: 210 | E155: 0 | F155: 6 | G155: No | H155: Primary | I155: 200-299 | J155: =IF(G155=Benchmarking!$I$4,1,0) -> 0 | K155: =IF(Benchmarking!$I$6="All",1,IF(Benchmarking!$I$6=H155,1,0)) -> 0 | L155: =IF(Benchmarking!$I$8="All",1,IF(Benchmarking!$I$8=I155,1,0)) -> 0 | M155: 0 | N155: 599067.59 | O155: 7282.27 | P155: 195673.42 | Q155: 37527.99 | R155: 54658.95 | S155: 0 | T155: 24372.21 | U155: 4079.39 | V155: 4468 | W155: 7209.79 | X155: 924 | Y155: 10401.13 | Z155: 7073.71 | AA155: 3639.63 | AB155: 2220.57 | AC155: 30209.69 | AD155: 28672 | AE155: 5235.2 | AF155: 61754.33 | AG155: 11689 | AH155: 0 | AI155: 16211.67 | AJ155: 7845.6 | AK155: 1191.5 | AL155: 38039.76 | AM155: 0 | AN155: 17762.58 | AO155: 12085.38 | AP155: 0 | AQ155: 0 | AR155: 0 | AS155: 0 | AT155: 0 | AU155: -892971.75 | AV155: -97318.29 | AW155: 0 | AX155: -48874.45 | AY155: 0 | AZ155: -46495 | BA155: -16527.58 | BB155: -2820 | BC155: 0 | BD155: -3250.71 | BE155: 0 | BF155: -900 | BG155: 0 | BH155: 0 | BI155: -15411.21 | BJ155: 0 | BK155: 0 | BL155: 0 | BM155: -52159 | BN155: 0 | BO155: 0 | BP155: -6468.12 | BQ155: -1039164.49 | BR155: 0 | BS155: 0 | BT155: 0 | BU155: 0 | BV155: 0 | BW155: 48874.45 | BX155: 48874.45
A156: 3122 | B156: Bridge and Patrixbourne CEP School | C156: 0 | D156: 402 | E156: 0 | F156: 12.75 | G156: No | H156: Primary | I156: 400-499 | J156: =IF(G156=Benchmarking!$I$4,1,0) -> 0 | K156: =IF(Benchmarking!$I$6="All",1,IF(Benchmarking!$I$6=H156,1,0)) -> 0 | L156: =IF(Benchmarking!$I$8="All",1,IF(Benchmarking!$I$8=I156,1,0)) -> 0 | M156: 0 | N156: 1180019.61 | O156: 2075.15 | P156: 472060.85 | Q156: 55249.37 | R156: 94397.47 | S156: 69242.76 | T156: 79429.29 | U156: 9133 | V156: 6722.54 | W156: 804 | X156: 10376.88 | Y156: 9915.33 | Z156: 4942.84 | AA156: 5986.24 | AB156: 15843.87 | AC156: 37714.85 | AD156: 39168 | AE156: 10727.5 | AF156: 106749.15 | AG156: 8044.63 | AH156: 0 | AI156: 34899.69 | AJ156: 15698.76 | AK156: 16117.57 | AL156: 75149.2 | AM156: 0 | AN156: 18846.28 | AO156: 44607.94 | AP156: 0 | AQ156: 0 | AR156: 0 | AS156: 0 | AT156: 0 | AU156: -1558042.08 | AV156: -296813.92 | AW156: 0 | AX156: -78663.74 | AY156: 0 | AZ156: -17117 | BA156: -19365.93 | BB156: -3916.53 | BC156: -2673.5 | BD156: -161655.43 | BE156: -52174.02 | BF156: 0 | BG156: -11594.3 | BH156: -28904.06 | BI156: -10783.01 | BJ156: 0 | BK156: 0 | BL156: 0 | BM156: -91711 | BN156: 0 | BO156: 0 | BP156: -1864.88 | BQ156: -1933519.74 | BR156: 0 | BS156: 0 | BT156: 0 | BU156: 0 | BV156: 0 | BW156: 78663.74 | BX156: 78663.74
A157: 3123 | B157: Chislet CEP School | C157: 0 | D157: 96 | E157: 0 | F157: 4.916666667 | G157: No | H157: Junior | I157: 0-99 | J157: =IF(G157=Benchmarking!$I$4,1,0) -> 0 | K157: =IF(Benchmarking!$I$6="All",1,IF(Benchmarking!$I$6=H157,1,0)) -> 0 | L157: =IF(Benchmarking!$I$8="All",1,IF(Benchmarking!$I$8=I157,1,0)) -> 0 | M157: 0 | N157: 299826.28 | O157: 3467.65 | P157: 175005.45 | Q157: 764.26 | R157: 37966.84 | S157: 0 | T157: 5092.91 | U157: 2335.97 | V157: 1810 | W157: 2389.86 | X157: 2437.44 | Y157: 8380.34 | Z157: 1057.68 | AA157: 7538.32 | AB157: 3037.35 | AC157: 7159.48 | AD157: 6418 | AE157: 7964.06 | AF157: 30513.02 | AG157: 9458.68 | AH157: 0 | AI157: 10876.93 | AJ157: 3586.56 | AK157: 1795.68 | AL157: 13401.59 | AM157: 0 | AN157: 58850.02 | AO157: 13174.04 | AP157: 0 | AQ157: 0 | AR157: 28362.41 | AS157: 0 | AT157: 0 | AU157: -498099.64 | AV157: -58543.6 | AW157: 0 | AX157: -47044.38 | AY157: 0 | AZ157: -22525 | BA157: -5270 | BB157: -720 | BC157: 0 | BD157: -52526.22 | BE157: 0 | BF157: 0 | BG157: 0 | BH157: -4824.95 | BI157: -3205.12 | BJ157: 0 | BK157: 0 | BL157: 0 | BM157: -30923 | BN157: 0 | BO157: 0 | BP157: -1231.62 | BQ157: -603687.62 | BR157: 0 | BS157: 0 | BT157: 0 | BU157: 0 | BV157: 607 | BW157: 46437.38 | BX157: 47044.38
A158: 3126 | B158: Littlebourne CEP School | C158: 0 | D158: 98 | E158: 0 | F158: 0.8333333333 | G158: No | H158: Infant | I158: 0-99 | J158: =IF(G158=Benchmarking!$I$4,1,0) -> 0 | K158: =IF(Benchmarking!$I$6="All",1,IF(Benchmarking!$I$6=H158,1,0)) -> 0 | L158: =IF(Benchmarking!$I$8="All",1,IF(Benchmarking!$I$8=I158,1,0)) -> 0 | M158: 0 | N158: 354392.69 | O158: 1286.97 | P158: 119537.06 | Q158: 5295.79 | R158: 36061.7 | S158: 0 | T158: 3450.1 | U158: 2387.08 | V158: 1713 | W158: 1676.56 | X158: 2573.28 | Y158: 1147.95 | Z158: 5371.63 | AA158: 14879.77 | AB158: 2220.63 | AC158: 13522.03 | AD158: 11228 | AE158: 8278 | AF158: 33085.06 | AG158: 7614 | AH158: 0 | AI158: 5929.85 | AJ158: 4001.32 | AK158: 3359.43 | AL158: 19838.34 | AM158: 0 | AN158: 16956.55 | AO158: 24359.79 | AP158: 0 | AQ158: 0 | AR158: 0 | AS158: 0 | AT158: 0 | AU158: -490139.97 | AV158: -71623.28 | AW158: 0 | AX158: -2171.1 | AY158: 0 | AZ158: -39474.98 | BA158: -5683 | BB158: -2175 | BC158: 0 | BD158: -12848.76 | BE158: 0 | BF158: 0 | BG158: -406.8 | BH158: -8600 | BI158: -5770.12 | BJ158: 0 | BK158: 0 | BL158: 0 | BM158: -33142 | BN158: 0 | BO158: 0 | BP158: -2268.6 | BQ158: -563934.35 | BR158: 0 | BS158: 0 | BT158: 0 | BU158: 0 | BV158: 0 | BW158: 2171.1 | BX158: 2171.1
A159: 3129 | B159: St Alphege CEI School | C159: 24 | D159: 169 | E159: 0 | F159: 12.75 | G159: Yes | H159: Infant | I159: 100-199 | J159: =IF(G159=Benchmarking!$I$4,1,0) -> 0 | K159: =IF(Benchmarking!$I$6="All",1,IF(Benchmarking!$I$6=H159,1,0)) -> 0 | L159: =IF(Benchmarking!$I$8="All",1,IF(Benchmarking!$I$8=I159,1,0)) -> 0 | M159: 0 | N159: 503795.43 | O159: 0 | P159: 374913.38 | Q159: 49982.37 | R159: 95748.83 | S159: 0 | T159: 38616.93 | U159: 4780.85 | V159: 4554.74 | W159: 338 | X159: 4414.08 | Y159: 8600.29 | Z159: 330.14 | AA159: 4067.7 | AB159: 4723.16 | AC159: 29223.08 | AD159: 34560 | AE159: 11717.91 | AF159: 20091.02 | AG159: 4568.23 | AH159: 0 | AI159: 14392.68 | AJ159: 6806.6 | AK159: 2871.95 | AL159: 62830.62 | AM159: 0 | AN159: 80586.82 | AO159: 10735.99 | AP159: 0 | AQ159: 0 | AR159: 0 | AS159: 0 | AT159: 0 | AU159: -921752.21 | AV159: -108411.55 | AW159: 0 | AX159: -139812.66 | AY159: 0 | AZ159: -45475 | BA159: -12791.93 | BB159: -3395.97 | BC159: 0 | BD159: -65198.93 | BE159: -3263.68 | BF159: -38.5 | BG159: -3663.43 | BH159: -15213.72 | BI159: -5941.3 | BJ159: 0 | BK159: 0 | BL159: 0 | BM159: -79025 | BN159: 0 | BO159: 0 | BP159: -2880.09 | BQ159: -1169976.42 | BR159: 0 | BS159: 0 | BT159: 0 | BU159: 0 | BV159: 0 | BW159: 139812.66 | BX159: 139812.66
A160: 3130 | B160: Wickhambreaux CEP School | C160: 0 | D160: 118 | E160: 0 | F160: 5.083333333 | G160: No | H160: Primary | I160: 100-199 | J160: =IF(G160=Benchmarking!$I$4,1,0) -> 0 | K160: =IF(Benchmarking!$I$6="All",1,IF(Benchmarking!$I$6=H160,1,0)) -> 0 | L160: =IF(Benchmarking!$I$8="All",1,IF(Benchmarking!$I$8=I160,1,0)) -> 0 | M160: 0 | N160: 460885.45 | O160: 16597.17 | P160: 107612.04 | Q160: 0 | R160: 24692.57 | S160: 0 | T160: 15810.99 | U160: 3169.47 | V160: 2881.85 | W160: 3221.02 | X160: 2996.04 | Y160: 844.13 | Z160: 0 | AA160: 10141.46 | AB160: 386.33 | AC160: 9061.25 | AD160: 8733 | AE160: 6592.08 | AF160: 34446.53 | AG160: 5788.64 | AH160: 0 | AI160: 16912.05 | AJ160: 4408.52 | AK160: 1482.87 | AL160: 17703.43 | AM160: 0 | AN160: 17690.96 | AO160: 18445.04 | AP160: 0 | AQ160: 0 | AR160: 0 | AS160: 0 | AT160: 0 | AU160: -552753.18 | AV160: -43402.91 | AW160: 0 | AX160: -69379.1 | AY160: 0 | AZ160: -18915 | BA160: -6857.93 | BB160: -12823 | BC160: 0 | BD160: -16539.12 | BE160: -471 | BF160: 0 | BG160: 0 | BH160: -16678 | BI160: -9180 | BJ160: 0 | BK160: 0 | BL160: 0 | BM160: -35388 | BN160: 0 | BO160: 0 | BP160: -3310.62 | BQ160: -665535.19 | BR160: 0 | BS160: 0 | BT160: 0 | BU160: 0 | BV160: 8436.91 | BW160: 60942.19 | BX160: 69379.1
A161: 3136 | B161: Brabourne CEP School | C161: 0 | D161: 102 | E161: 0 | F161: 5.416666667 | G161: No | H161: Primary | I161: 100-199 | J161: =IF(G161=Benchmarking!$I$4,1,0) -> 0 | K161: =IF(Benchmarking!$I$6="All",1,IF(Benchmarking!$I$6=H161,1,0)) -> 0 | L161: =IF(Benchmarking!$I$8="All",1,IF(Benchmarking!$I$8=I161,1,0)) -> 0 | M161: 0 | N161: 333076.73 | O161: 7306.3 | P161: 126128.41 | Q161: 2391.25 | R161: 26006.88 | S161: 0 | T161: 0 | U161: 2966.6 | V161: 2395.5 | W161: 1629 | X161: 2589.84 | Y161: 5852.13 | Z161: 5888.14 | AA161: 13674.11 | AB161: 738.82 | AC161: 11608.06 | AD161: 5505 | AE161: 6396.96 | AF161: 26935.35 | AG161: 7877.17 | AH161: 0 | AI161: 12180.9 | AJ161: 3810.72 | AK161: 2964.85 | AL161: 21641 | AM161: 1841.31 | AN161: 25286.5 | AO161: 23988.86 | AP161: 0 | AQ161: 0 | AR161: 1537.26 | AS161: 0 | AT161: 0 | AU161: -516400.5 | AV161: -32682.14 | AW161: 0 | AX161: -50228.74 | AY161: 0 | AZ161: -16675 | BA161: -5362 | BB161: -720 | BC161: 0 | BD161: -27330.28 | BE161: -7.74 | BF161: 0 | BG161: 0 | BH161: -7841.4 | BI161: -12465 | BJ161: 0 | BK161: 0 | BL161: 0 | BM161: -35643 | BN161: 0 | BO161: 0 | BP161: -2787.96 | BQ161: -599311.38 | BR161: 0 | BS161: 0 | BT161: 0 | BU161: 0 | BV161: 12520.75 | BW161: 37707.99 | BX161: 50228.74
A162: 3137 | B162: Brookland CEP School | C162: 0 | D162: 87 | E162: 0 | F162: 4.166666667 | G162: No | H162: Primary | I162: 0-99 | J162: =IF(G162=Benchmarking!$I$4,1,0) -> 0 | K162: =IF(Benchmarking!$I$6="All",1,IF(Benchmarking!$I$6=H162,1,0)) -> 0 | L162: =IF(Benchmarking!$I$8="All",1,IF(Benchmarking!$I$8=I162,1,0)) -> 0 | M162: 0 | N162: 367325.36 | O162: 3446.35 | P162: 122199.88 | Q162: 3397.5 | R162: 43463.77 | S162: 0 | T162: 18104.05 | U162: 2507.92 | V162: 1910.4 | W162: 1595.78 | X162: 2382.96 | Y162: 1482.83 | Z162: 5346.51 | AA162: 14364.89 | AB162: 1841.83 | AC162: 6141.07 | AD162: 13772.4 | AE162: 8594.93 | AF162: 29114.98 | AG162: 3611.66 | AH162: 0 | AI162: 10063.46 | AJ162: 3250.32 | AK162: 432.36 | AL162: 21190.96 | AM162: 0 | AN162: 300 | AO162: 11276.43 | AP162: 0 | AQ162: 0 | AR162: 0 | AS162: 0 | AT162: 0 | AU162: -468114.09 | AV162: -58459.83 | AW162: 0 | AX162: -42002 | AY162: 0 | AZ162: -22413.05 | BA162: -4946 | BB162: -1244.14 | BC162: 0 | BD162: -27647.17 | BE162: -6706.72 | BF162: 0 | BG162: 0 | BH162: -5418 | BI162: -2780 | BJ162: 0 | BK162: 0 | BL162: 0 | BM162: -31028 | BN162: 0 | BO162: 0 | BP162: -3495.83 | BQ162: -568575.92 | BR162: 0 | BS162: 0 | BT162: 0 | BU162: 0 | BV162: 642 | BW162: 41360 | BX162: 42002
A163: 3138 | B163: Chilham, St Marys CEP School | C163: 0 | D163: 76 | E163: 0 | F163: 4.583333333 | G163: No | H163: Primary | I163: 0-99 | J163: =IF(G163=Benchmarking!$I$4,1,0) -> 0 | K163: =IF(Benchmarking!$I$6="All",1,IF(Benchmarking!$I$6=H163,1,0)) -> 0 | L163: =IF(Benchmarking!$I$8="All",1,IF(Benchmarking!$I$8=I163,1,0)) -> 0 | M163: 0 | N163: 347824.5 | O163: 0 | P163: 111885.75 | Q163: 13911.69 | R163: 45648.27 | S163: 0 | T163: 7487.29 | U163: 2241.43 | V163: 2435 | W163: 4451.21 | X163: 1929.72 | Y163: 3370.62 | Z163: 1434.39 | AA163: 14319.21 | AB163: 2736.03 | AC163: 30691.91 | AD163: 8358 | AE163: 18719.63 | AF163: 18023.2 | AG163: 8194.43 | AH163: 0 | AI163: 8516.99 | AJ163: 2839.4 | AK163: 637.31 | AL163: 20727.7 | AM163: 3229.98 | AN163: 19802.95 | AO163: 9914.89 | AP163: 0 | AQ163: 0 | AR163: 0 | AS163: 0 | AT163: 0 | AU163: -469928.94 | AV163: -37594.39 | AW163: 0 | AX163: -47173.35 | AY163: 0 | AZ163: -29795 | BA163: -11377.3 | BB163: -1060 | BC163: 0 | BD163: -7792.83 | BE163: -570.17 | BF163: -2438.9 | BG163: -5392 | BH163: -2931.68 | BI163: -25664.08 | BJ163: 0 | BK163: 0 | BL163: 0 | BM163: -30080 | BN163: 0 | BO163: 0 | BP163: -4652.19 | BQ163: -554696.68 | BR163: 0 | BS163: 0 | BT163: 0 | BU163: 0 | BV163: 10269.05 | BW163: 36904.3 | BX163: 47173.35
A164: 3139 | B164: High Halden CEP School | C164: 0 | D164: 100 | E164: 0 | F164: 8.166666667 | G164: No | H164: Primary | I164: 100-199 | J164: =IF(G164=Benchmarking!$I$4,1,0) -> 0 | K164: =IF(Benchmarking!$I$6="All",1,IF(Benchmarking!$I$6=H164,1,0)) -> 0 | L164: =IF(Benchmarking!$I$8="All",1,IF(Benchmarking!$I$8=I164,1,0)) -> 0 | M164: 0 | N164: 336607.34 | O164: 0 | P164: 151547.23 | Q164: 0 | R164: 38795.51 | S164: 0 | T164: 8798.93 | U164: 2668.37 | V164: 7329.55 | W164: 2197 | X164: 2731.41 | Y164: 9284.71 | Z164: 5845.8 | AA164: 10711.43 | AB164: 6813.96 | AC164: 18778.37 | AD164: 19087 | AE164: 6896.93 | AF164: 33725.6 | AG164: 10270.32 | AH164: 0 | AI164: 8415.67 | AJ164: 3869.37 | AK164: 4013.25 | AL164: 28199.27 | AM164: 7137.68 | AN164: 20086.96 | AO164: 10997.92 | AP164: 0 | AQ164: 0 | AR164: 0 | AS164: 0 | AT164: 0 | AU164: -547632.23 | AV164: -46431.83 | AW164: 0 | AX164: -73007.26 | AY164: 0 | AZ164: -23878 | BA164: -5645 | BB164: -4259.1 | BC164: 0 | BD164: -7307.65 | BE164: -11481.5 | BF164: 0 | BG164: 0 | BH164: -10434 | BI164: -8078.07 | BJ164: 0 | BK164: 0 | BL164: 0 | BM164: -35065 | BN164: 0 | BO164: 0 | BP164: -3975.42 | BQ164: -667071.32 | BR164: 0 | BS164: 0 | BT164: 0 | BU164: 0 | BV164: 11080.86 | BW164: 61926.4 | BX164: 73007.26
A165: 3145 | B165: Woodchurch CEP School | C165: 0 | D165: 166 | E165: 0 | F165: 10.08333333 | G165: No | H165: Primary | I165: 100-199 | J165: =IF(G165=Benchmarking!$I$4,1,0) -> 0 | K165: =IF(Benchmarking!$I$6="All",1,IF(Benchmarking!$I$6=H165,1,0)) -> 0 | L165: =IF(Benchmarking!$I$8="All",1,IF(Benchmarking!$I$8=I165,1,0)) -> 0 | M165: 0 | N165: 459020.78 | O165: 0 | P165: 252194.71 | Q165: 5523.36 | R165: 47706.07 | S165: 0 | T165: 16936.3 | U165: 4606.48 | V165: 3580 | W165: 332 | X165: 4214.76 | Y165: 11962.59 | Z165: 2053.32 | AA165: 15022.89 | AB165: 6154.27 | AC165: 12575.83 | AD165: 12226 | AE165: 6714.71 | AF165: 50651.43 | AG165: 5549.8 | AH165: 0 | AI165: 15200.85 | AJ165: 6201.8 | AK165: 5461.97 | AL165: 34376.5 | AM165: 60587.53 | AN165: 64165.41 | AO165: 15751.33 | AP165: 0 | AQ165: 0 | AR165: 0 | AS165: 0 | AT165: 0 | AU165: -758499.15 | AV165: -96946.92 | AW165: 0 | AX165: -84944.64 | AY165: 0 | AZ165: -73748 | BA165: -13131.58 | BB165: 0 | BC165: -676.48 | BD165: -8901.37 | BE165: 0 | BF165: 0 | BG165: -10454.62 | BH165: -12852.75 | BI165: -5991.05 | BJ165: 0 | BK165: 0 | BL165: 0 | BM165: -43234 | BN165: 0 | BO165: 0 | BP165: -10661.73 | BQ165: -940390.71 | BR165: 0 | BS165: 0 | BT165: 0 | BU165: 0 | BV165: 0 | BW165: 84944.64 | BX165: 84944.64
A166: 3146 | B166: Bodsham CEP School | C166: 0 | D166: 84 | E166: 0 | F166: 2.833333333 | G166: No | H166: Primary | I166: 0-99 | J166: =IF(G166=Benchmarking!$I$4,1,0) -> 0 | K166: =IF(Benchmarking!$I$6="All",1,IF(Benchmarking!$I$6=H166,1,0)) -> 0 | L166: =IF(Benchmarking!$I$8="All",1,IF(Benchmarking!$I$8=I166,1,0)) -> 0 | M166: 0 | N166: 318816.77 | O166: 5026.65 | P166: 100642.44 | Q166: 14047.56 | R166: 40094.41 | S166: 0 | T166: 6489.59 | U166: 2320.27 | V166: 1319 | W166: 4099.68 | X166: 2217.72 | Y166: 6371.04 | Z166: 1829.68 | AA166: 1505.34 | AB166: 2237.52 | AC166: 14596.38 | AD166: 6030 | AE166: 3773.33 | AF166: 19849.15 | AG166: 2771.38 | AH166: 0 | AI166: 11265.09 | AJ166: 3478.2 | AK166: 0 | AL166: 11754.66 | AM166: 1834.5 | AN166: 3649.29 | AO166: 10125.44 | AP166: 0 | AQ166: 0 | AR166: 0 | AS166: 0 | AT166: 0 | AU166: -476099.88 | AV166: -36177.78 | AW166: 0 | AX166: -27966.83 | AY166: 0 | AZ166: -7275 | BA166: -30606.55 | BB166: -720 | BC166: -100 | BD166: -3257.51 | BE166: -3407.79 | BF166: 0 | BG166: 0 | BH166: -4679.8 | BI166: -6166.58 | BJ166: 0 | BK166: 0 | BL166: 0 | BM166: -30083 | BN166: 0 | BO166: 0 | BP166: -1818.88 | BQ166: -540244.49 | BR166: 0 | BS166: 0 | BT166: 0 | BU166: 0 | BV166: 6749.68 | BW166: 21217.15 | BX166: 27966.83
A167: 3149 | B167: St Martins CEP School, Folkestone | C167: 0 | D167: 201 | E167: 0 | F167: 13.5 | G167: No | H167: Primary | I167: 200-299 | J167: =IF(G167=Benchmarking!$I$4,1,0) -> 0 | K167: =IF(Benchmarking!$I$6="All",1,IF(Benchmarking!$I$6=H167,1,0)) -> 0 | L167: =IF(Benchmarking!$I$8="All",1,IF(Benchmarking!$I$8=I167,1,0)) -> 0 | M167: 0 | N167: 630926.92 | O167: 0 | P167: 306413.06 | Q167: 21957.41 | R167: 46855.78 | S167: 0 | T167: 48581.21 | U167: 4146.67 | V167: 3340.66 | W167: 3546.67 | X167: 5103.36 | Y167: 14272.16 | Z167: 2200 | AA167: 20015.61 | AB167: 2688.44 | AC167: 18972.19 | AD167: 19511 | AE167: 9766.86 | AF167: 62505.38 | AG167: 5487.24 | AH167: 0 | AI167: 16901.51 | AJ167: 7509.36 | AK167: 1144.13 | AL167: 42625.88 | AM167: 0 | AN167: 1099.85 | AO167: 19970.19 | AP167: 0 | AQ167: 0 | AR167: 0 | AS167: 0 | AT167: 0 | AU167: -896585.22 | AV167: -108880.18 | AW167: 0 | AX167: -110432.65 | AY167: 0 | AZ167: -59380 | BA167: -10592.93 | BB167: -5474.47 | BC167: 0 | BD167: -10461.69 | BE167: -12324.65 | BF167: 0 | BG167: 0 | BH167: -21355.31 | BI167: -893.82 | BJ167: 0 | BK167: 0 | BL167: 0 | BM167: -46582 | BN167: 0 | BO167: 0 | BP167: -2372.03 | BQ167: -1115898.05 | BR167: 0 | BS167: 0 | BT167: 0 | BU167: 0 | BV167: 0 | BW167: 110432.65 | BX167: 110432.65
A168: 3150 | B168: St Peters CEP School, Folkestone | C168: 0 | D168: 102 | E168: 0 | F168: 10.41666667 | G168: No | H168: Primary | I168: 100-199 | J168: =IF(G168=Benchmarking!$I$4,1,0) -> 0 | K168: =IF(Benchmarking!$I$6="All",1,IF(Benchmarking!$I$6=H168,1,0)) -> 0 | L168: =IF(Benchmarking!$I$8="All",1,IF(Benchmarking!$I$8=I168,1,0)) -> 0 | M168: 0 | N168: 479946.77 | O168: 2083.17 | P168: 166237.17 | Q168: 26023.8 | R168: 29535.37 | S168: 0 | T168: 8390.81 | U168: 4315.77 | V168: 4773.09 | W168: 2835.87 | X168: 2589.84 | Y168: 5446 | Z168: 1690.6 | AA168: 7894.16 | AB168: 4370.75 | AC168: 16230.85 | AD168: 1639.38 | AE168: 36013.23 | AF168: 37186.84 | AG168: 6809.75 | AH168: 0 | AI168: 13352.68 | AJ168: 3810.72 | AK168: 7211.91 | AL168: 29247.84 | AM168: 11845.5 | AN168: 12283.8 | AO168: 11982.1 | AP168: 0 | AQ168: 0 | AR168: 0 | AS168: 0 | AT168: 0 | AU168: -545227.45 | AV168: -127351.23 | AW168: 0 | AX168: -78916.09 | AY168: 0 | AZ168: -61590 | BA168: -20023.6 | BB168: -200 | BC168: 0 | BD168: -37670.52 | BE168: 0 | BF168: -7668.05 | BG168: -385 | BH168: -12113.52 | BI168: -4180.95 | BJ168: 0 | BK168: 0 | BL168: 0 | BM168: -27841 | BN168: 0 | BO168: 0 | BP168: -10606.88 | BQ168: -751494.77 | BR168: 0 | BS168: 0 | BT168: 0 | BU168: 0 | BV168: 0 | BW168: 78916.09 | BX168: 78916.09
A169: 3153 | B169: Seabrook CEP School | C169: 0 | D169: 104 | E169: 0 | F169: 6 | G169: No | H169: Primary | I169: 100-199 | J169: =IF(G169=Benchmarking!$I$4,1,0) -> 0 | K169: =IF(Benchmarking!$I$6="All",1,IF(Benchmarking!$I$6=H169,1,0)) -> 0 | L169: =IF(Benchmarking!$I$8="All",1,IF(Benchmarking!$I$8=I169,1,0)) -> 0 | M169: 0 | N169: 333376.64 | O169: 0 | P169: 164079.3 | Q169: 6889.42 | R169: 25929.04 | S169: 0 | T169: 29354.22 | U169: 2462.36 | V169: 1313.34 | W169: 1860.82 | X169: 2640.48 | Y169: 5092.85 | Z169: 1800 | AA169: 9765.34 | AB169: 1602.53 | AC169: 16379.33 | AD169: 509 | AE169: 7177.4 | AF169: 34543.17 | AG169: 5092.84 | AH169: 0 | AI169: 5521.11 | AJ169: 3732.87 | AK169: 980.21 | AL169: 22875.06 | AM169: 0 | AN169: 3231 | AO169: 17231.76 | AP169: 0 | AQ169: 0 | AR169: 0 | AS169: 0 | AT169: 0 | AU169: -503244.1 | AV169: -56216.41 | AW169: 0 | AX169: -47651.43 | AY169: 0 | AZ169: -24100 | BA169: -7927 | BB169: -6470 | BC169: 0 | BD169: -4750.78 | BE169: 0 | BF169: 0 | BG169: 0 | BH169: -9593.91 | BI169: -3466.02 | BJ169: 0 | BK169: 0 | BL169: 0 | BM169: -35278 | BN169: 0 | BO169: 0 | BP169: -1355.45 | BQ169: -607111.94 | BR169: 0 | BS169: 0 | BT169: 0 | BU169: 0 | BV169: 2270.16 | BW169: 45381.27 | BX169: 47651.43
A170: 3154 | B170: Lyminge CEP School | C170: 0 | D170: 198 | E170: 0 | F170: 5.416666667 | G170: No | H170: Primary | I170: 100-199 | J170: =IF(G170=Benchmarking!$I$4,1,0) -> 0 | K170: =IF(Benchmarking!$I$6="All",1,IF(Benchmarking!$I$6=H170,1,0)) -> 0 | L170: =IF(Benchmarking!$I$8="All",1,IF(Benchmarking!$I$8=I170,1,0)) -> 0 | M170: 0 | N170: 526629.57 | O170: 0 | P170: 206859.45 | Q170: 39654.28 | R170: 54008.63 | S170: 0 | T170: 12525.23 | U170: 4077.27 | V170: 2172 | W170: 6460.81 | X170: 5027.28 | Y170: 13302.01 | Z170: 9228.49 | AA170: 1626.89 | AB170: 2235.96 | AC170: 21411.53 | AD170: 28160 | AE170: 6353.78 | AF170: 46486.55 | AG170: 12481.32 | AH170: 0 | AI170: 12441.85 | AJ170: 7397.28 | AK170: 3420.95 | AL170: 31747.56 | AM170: 0 | AN170: 14743.1 | AO170: 14984.57 | AP170: 0 | AQ170: 0 | AR170: 44908 | AS170: 0 | AT170: 0 | AU170: -844484.26 | AV170: -81105.53 | AW170: 0 | AX170: -32553.17 | AY170: 0 | AZ170: -23906 | BA170: -41547.19 | BB170: -5478.97 | BC170: -310 | BD170: -9337.41 | BE170: -15.48 | BF170: -480 | BG170: -4845.33 | BH170: -9411.7 | BI170: -46320.66 | BJ170: 0 | BK170: 0 | BL170: 0 | BM170: -47275 | BN170: 0 | BO170: 0 | BP170: -3550.43 | BQ170: -958142.96 | BR170: 0 | BS170: 0 | BT170: 0 | BU170: 0 | BV170: 0 | BW170: 32553.17 | BX170: 32553.17
A171: 3155 | B171: Lympne CEP School | C171: 0 | D171: 203 | E171: 0 | F171: 1.583333333 | G171: No | H171: Primary | I171: 200-299 | J171: =IF(G171=Benchmarking!$I$4,1,0) -> 0 | K171: =IF(Benchmarking!$I$6="All",1,IF(Benchmarking!$I$6=H171,1,0)) -> 0 | L171: =IF(Benchmarking!$I$8="All",1,IF(Benchmarking!$I$8=I171,1,0)) -> 0 | M171: 0 | N171: 504658.33 | O171: 0 | P171: 206730.6 | Q171: 16206.66 | R171: 64402.56 | S171: 0 | T171: 37110.5 | U171: 5080.93 | V171: 9574.74 | W171: 2437 | X171: 5674.12 | Y171: 6374.1 | Z171: 8249.6 | AA171: 14622.73 | AB171: 2179.13 | AC171: 22103.97 | AD171: 45824 | AE171: 11794.46 | AF171: 59735.32 | AG171: 19252.68 | AH171: 0 | AI171: 6143.99 | AJ171: 7584.04 | AK171: 1518.25 | AL171: 31006.23 | AM171: 9144 | AN171: 15346.43 | AO171: 27254.19 | AP171: 0 | AQ171: 0 | AR171: 1171.18 | AS171: 0 | AT171: 0 | AU171: -879584.35 | AV171: -86334.65 | AW171: 0 | AX171: -11333.42 | AY171: 0 | AZ171: -27105 | BA171: -15050.93 | BB171: -7065.36 | BC171: -100 | BD171: -26314.39 | BE171: -930 | BF171: -2080 | BG171: 0 | BH171: -9694.97 | BI171: -7263.27 | BJ171: 0 | BK171: 0 | BL171: 0 | BM171: -58714 | BN171: 0 | BO171: 0 | BP171: -3898.95 | BQ171: -977252.42 | BR171: 0 | BS171: 0 | BT171: 0 | BU171: 0 | BV171: 0 | BW171: 11333.42 | BX171: 11333.42
A172: 3158 | B172: Stelling Minnis CEP School | C172: 0 | D172: 85 | E172: 0 | F172: 7.333333333 | G172: No | H172: Primary | I172: 0-99 | J172: =IF(G172=Benchmarking!$I$4,1,0) -> 0 | K172: =IF(Benchmarking!$I$6="All",1,IF(Benchmarking!$I$6=H172,1,0)) -> 0 | L172: =IF(Benchmarking!$I$8="All",1,IF(Benchmarking!$I$8=I172,1,0)) -> 0 | M172: 0 | N172: 291190.28 | O172: 17543.24 | P172: 133505.81 | Q172: 2186.76 | R172: 47721.6 | S172: 0 | T172: 19695.53 | U172: 2147.2 | V172: 3898.5 | W172: 2915.62 | X172: 2158.2 | Y172: 9177.86 | Z172: 3023.6 | AA172: 14627.16 | AB172: 2850.59 | AC172: 23380.69 | AD172: 16211.26 | AE172: 2461.78 | AF172: 21436.9 | AG172: 8820.77 | AH172: 0 | AI172: 11025.39 | AJ172: 3380.54 | AK172: 2831.67 | AL172: 20244.25 | AM172: 8303.62 | AN172: 16245.3 | AO172: 13073.2 | AP172: 0 | AQ172: 0 | AR172: 0 | AS172: 0 | AT172: 0 | AU172: -506346.2 | AV172: -41273.96 | AW172: 0 | AX172: -80798.28 | AY172: 0 | AZ172: -21970 | BA172: -18478.88 | BB172: -720 | BC172: 0 | BD172: -18800.46 | BE172: -3295.87 | BF172: -360 | BG172: -4243.06 | BH172: -5260 | BI172: -8643.95 | BJ172: 0 | BK172: 0 | BL172: 0 | BM172: -31302 | BN172: 0 | BO172: 0 | BP172: -3730.63 | BQ172: -628418.44 | BR172: 0 | BS172: 0 | BT172: 0 | BU172: 0 | BV172: 12327.95 | BW172: 68470.33 | BX172: 80798.28
A173: 3159 | B173: Stowting CEP School | C173: 0 | D173: 106 | E173: 0 | F173: 5.666666667 | G173: No | H173: Primary | I173: 100-199 | J173: =IF(G173=Benchmarking!$I$4,1,0) -> 0 | K173: =IF(Benchmarking!$I$6="All",1,IF(Benchmarking!$I$6=H173,1,0)) -> 0 | L173: =IF(Benchmarking!$I$8="All",1,IF(Benchmarking!$I$8=I173,1,0)) -> 0 | M173: 0 | N173: 338239.38 | O173: 2550.49 | P173: 139351.5 | Q173: 6442.91 | R173: 31910.11 | S173: 0 | T173: 16832.14 | U173: 3397.95 | V173: 3985.91 | W173: 1812 | X173: 2776.32 | Y173: 4378.81 | Z173: 11450.13 | AA173: 14765.3 | AB173: 6232.72 | AC173: 15478.95 | AD173: 16067.8 | AE173: 4449.5 | AF173: 33312.87 | AG173: 5393.22 | AH173: 0 | AI173: 8532.83 | AJ173: 4300.16 | AK173: 1745.04 | AL173: 34581.77 | AM173: 0 | AN173: 27894.35 | AO173: 20453.93 | AP173: 0 | AQ173: 0 | AR173: 53246.57 | AS173: 0 | AT173: 0 | AU173: -547689.02 | AV173: -29548.92 | AW173: 0 | AX173: -72407.59 | AY173: 0 | AZ173: -25745 | BA173: -9026.65 | BB173: -3290 | BC173: -377.5 | BD173: -24261.69 | BE173: -7899.45 | BF173: 0 | BG173: 0 | BH173: -7631 | BI173: -16243.35 | BJ173: 0 | BK173: 0 | BL173: 0 | BM173: -36779 | BN173: 0 | BO173: 0 | BP173: -3511.05 | BQ173: -649645.53 | BR173: 0 | BS173: 0 | BT173: 0 | BU173: 0 | BV173: 16494.4 | BW173: 55913.19 | BX173: 72407.59
A174: 3160 | B174: Selsted CEP School | C174: 0 | D174: 101 | E174: 0 | F174: 2 | G174: No | H174: Primary | I174: 100-199 | J174: =IF(G174=Benchmarking!$I$4,1,0) -> 0 | K174: =IF(Benchmarking!$I$6="All",1,IF(Benchmarking!$I$6=H174,1,0)) -> 0 | L174: =IF(Benchmarking!$I$8="All",1,IF(Benchmarking!$I$8=I174,1,0)) -> 0 | M174: 0 | N174: 385099.92 | O174: 0 | P174: 92377.31 | Q174: 1172.53 | R174: 26587.16 | S174: 0 | T174: 0 | U174: 2109.4 | V174: 2638.19 | W174: 2761.57 | X174: 2120.04 | Y174: 711.07 | Z174: 3210 | AA174: 12002 | AB174: 3851.96 | AC174: 20345.2 | AD174: 10978 | AE174: 13342.5 | AF174: 40070.19 | AG174: 8685.97 | AH174: 0 | AI174: 6461.73 | AJ174: 5067.76 | AK174: 914.75 | AL174: 35474.32 | AM174: 0 | AN174: 1569 | AO174: 12109.57 | AP174: 0 | AQ174: 0 | AR174: 6470 | AS174: 0 | AT174: 0 | AU174: -525295.88 | AV174: -42531.02 | AW174: 0 | AX174: -19082.33 | AY174: 0 | AZ174: -18155 | BA174: -6664 | BB174: -5904.76 | BC174: -30 | BD174: -3061.07 | BE174: -10262.17 | BF174: -2700 | BG174: -1672.4 | BH174: -6626 | BI174: -3702.81 | BJ174: 0 | BK174: 0 | BL174: 0 | BM174: -36121 | BN174: 0 | BO174: 0 | BP174: -2568.12 | BQ174: -586909.23 | BR174: 0 | BS174: 0 | BT174: 0 | BU174: 0 | BV174: 3493.92 | BW174: 15588.41 | BX174: 19082.33
A175: 3167 | B175: Eastry CEP School | C175: 0 | D175: 171 | E175: 0 | F175: 11.75 | G175: No | H175: Primary | I175: 100-199 | J175: =IF(G175=Benchmarking!$I$4,1,0) -> 0 | K175: =IF(Benchmarking!$I$6="All",1,IF(Benchmarking!$I$6=H175,1,0)) -> 0 | L175: =IF(Benchmarking!$I$8="All",1,IF(Benchmarking!$I$8=I175,1,0)) -> 0 | M175: 0 | N175: 519525.99 | O175: 10288.99 | P175: 248363.73 | Q175: 45762.9 | R175: 69451.36 | S175: 0 | T175: 16121.98 | U175: 3707.15 | V175: 7361.53 | W175: 342 | X175: 752.4 | Y175: 2192.86 | Z175: 6214.49 | AA175: 2415.53 | AB175: 1553 | AC175: 22785.88 | AD175: 17465 | AE175: 4086.96 | AF175: 47636.24 | AG175: 8620.51 | AH175: 0 | AI175: 7570.17 | AJ175: 6388.56 | AK175: 1294.44 | AL175: 35724.05 | AM175: 10740 | AN175: 57769.65 | AO175: 12418.1 | AP175: 0 | AQ175: 0 | AR175: 0 | AS175: 0 | AT175: 0 | AU175: -794158.79 | AV175: -110381.17 | AW175: 0 | AX175: -84859.08 | AY175: 0 | AZ175: -77495 | BA175: -10103 | BB175: -720 | BC175: 0 | BD175: -5781.3 | BE175: 0 | BF175: 0 | BG175: 0 | BH175: -8266.7 | BI175: -2882.9 | BJ175: 0 | BK175: 0 | BL175: 0 | BM175: -37777 | BN175: 0 | BO175: 0 | BP175: -11626.45 | BQ175: -989399.04 | BR175: 0 | BS175: 0 | BT175: 0 | BU175: 0 | BV175: 0 | BW175: 84859.08 | BX175: 84859.08
A176: 3168 | B176: Goodnestone CEP School | C176: 0 | D176: 54 | E176: 0 | F176: 6.916666667 | G176: No | H176: Infant | I176: 0-99 | J176: =IF(G176=Benchmarking!$I$4,1,0) -> 0 | K176: =IF(Benchmarking!$I$6="All",1,IF(Benchmarking!$I$6=H176,1,0)) -> 0 | L176: =IF(Benchmarking!$I$8="All",1,IF(Benchmarking!$I$8=I176,1,0)) -> 0 | M176: 0 | N176: 265436.74 | O176: 0 | P176: 153469.79 | Q176: 146.12 | R176: 24413.73 | S176: 0 | T176: 26251.2 | U176: 2204.71 | V176: 6732 | W176: 3351.82 | X176: 1371.12 | Y176: 7211.71 | Z176: 3162.62 | AA176: 7469.91 | AB176: 1166.46 | AC176: 9707.75 | AD176: 3615.26 | AE176: 2743.27 | AF176: 11659.57 | AG176: 7223.86 | AH176: 0 | AI176: 12078.82 | AJ176: 2017.44 | AK176: 1423.79 | AL176: 12804.86 | AM176: 10488.65 | AN176: 2920 | AO176: 15399.95 | AP176: 0 | AQ176: 0 | AR176: 0 | AS176: 0 | AT176: 0 | AU176: -384104.39 | AV176: -46483.7 | AW176: 0 | AX176: -71555.11 | AY176: 0 | AZ176: -9805 | BA176: -3447 | BB176: -1810.08 | BC176: 0 | BD176: -4524.03 | BE176: -12.5 | BF176: -315 | BG176: -1689.93 | BH176: -4552 | BI176: -1203.74 | BJ176: 0 | BK176: 0 | BL176: 0 | BM176: -28579 | BN176: 0 | BO176: 0 | BP176: -1480.26 | BQ176: -502143.2 | BR176: 0 | BS176: 0 | BT176: 0 | BU176: 0 | BV176: 8560.64 | BW176: 62994.47 | BX176: 71555.11
A177: 3169 | B177: Guston CEP School | C177: 0 | D177: 155 | E177: 0 | F177: 5.833333333 | G177: No | H177: Primary | I177: 100-199 | J177: =IF(G177=Benchmarking!$I$4,1,0) -> 0 | K177: =IF(Benchmarking!$I$6="All",1,IF(Benchmarking!$I$6=H177,1,0)) -> 0 | L177: =IF(Benchmarking!$I$8="All",1,IF(Benchmarking!$I$8=I177,1,0)) -> 0 | M177: 0 | N177: 541498.54 | O177: 0 | P177: 231813.67 | Q177: 33509.2 | R177: 49098.84 | S177: 0 | T177: 0 | U177: 4090.28 | V177: 3370.33 | W177: 2183.16 | X177: 3935.4 | Y177: 6812.09 | Z177: 4044.56 | AA177: 2029.33 | AB177: 862.9 | AC177: 21287.03 | AD177: 19461 | AE177: 8825.17 | AF177: 26930.86 | AG177: 9471.32 | AH177: 0 | AI177: 6362.49 | AJ177: 5790.76 | AK177: 6951.5 | AL177: 31127.94 | AM177: 11183.91 | AN177: 16359.5 | AO177: 18806.31 | AP177: 0 | AQ177: 0 | AR177: 8000 | AS177: 0 | AT177: 0 | AU177: -716482.9 | AV177: -110160.04 | AW177: 0 | AX177: -45024.31 | AY177: 0 | AZ177: -47501.64 | BA177: -48073.36 | BB177: -43803.06 | BC177: -121.87 | BD177: -6001.23 | BE177: -405.04 | BF177: -200 | BG177: 0 | BH177: -9065.51 | BI177: -17185.85 | BJ177: 0 | BK177: 0 | BL177: 0 | BM177: -43965 | BN177: 0 | BO177: 0 | BP177: -4008.76 | BQ177: -871667.25 | BR177: 0 | BS177: 0 | BT177: 0 | BU177: 0 | BV177: 0 | BW177: 45024.31 | BX177: 45024.31
A178: 3171 | B178: Nonington CEP School | C178: 0 | D178: 38 | E178: 0 | F178: 6.5 | G178: No | H178: Primary | I178: 0-99 | J178: =IF(G178=Benchmarking!$I$4,1,0) -> 0 | K178: =IF(Benchmarking!$I$6="All",1,IF(Benchmarking!$I$6=H178,1,0)) -> 0 | L178: =IF(Benchmarking!$I$8="All",1,IF(Benchmarking!$I$8=I178,1,0)) -> 0 | M178: 0 | N178: 210109.26 | O178: 0 | P178: 105129.64 | Q178: 7291.49 | R178: 28133.75 | S178: 0 | T178: 9591.11 | U178: 1706.53 | V178: 7378.5 | W178: 3102.06 | X178: 964.8 | Y178: 6033.53 | Z178: 3070.14 | AA178: 1423.72 | AB178: 651.05 | AC178: 8603.76 | AD178: 8483 | AE178: 2937.39 | AF178: 18577.27 | AG178: 11127.59 | AH178: 0 | AI178: 7001.65 | AJ178: 1419.64 | AK178: 4509.35 | AL178: 14417.42 | AM178: 8188.47 | AN178: 2119 | AO178: 11452.89 | AP178: 0 | AQ178: 0 | AR178: 24850 | AS178: 0 | AT178: 0 | AU178: -307779.36 | AV178: -48124.51 | AW178: 0 | AX178: -71992.42 | AY178: 0 | AZ178: -30555 | BA178: -5423.93 | BB178: -6580.29 | BC178: 0 | BD178: -987.56 | BE178: 0 | BF178: -1860 | BG178: -150 | BH178: -1867.1 | BI178: -154.2 | BJ178: 0 | BK178: 0 | BL178: 0 | BM178: -20594 | BN178: 0 | BO178: 0 | BP178: -1714.12 | BQ178: -427896.29 | BR178: 0 | BS178: 0 | BT178: 0 | BU178: 0 | BV178: 7026.16 | BW178: 64966.26 | BX178: 71992.42
A179: 3175 | B179: Shepherdswell CEP School | C179: 0 | D179: 205 | E179: 0 | F179: 5.75 | G179: No | H179: Primary | I179: 200-299 | J179: =IF(G179=Benchmarking!$I$4,1,0) -> 0 | K179: =IF(Benchmarking!$I$6="All",1,IF(Benchmarking!$I$6=H179,1,0)) -> 0 | L179: =IF(Benchmarking!$I$8="All",1,IF(Benchmarking!$I$8=I179,1,0)) -> 0 | M179: 0 | N179: 589686.16 | O179: 1582.31 | P179: 204301.3 | Q179: 49391.54 | R179: 69962.27 | S179: 0 | T179: 27226.53 | U179: 3697.38 | V179: 2201.98 | W179: 410 | X179: 4913.87 | Y179: 15752.82 | Z179: 13513.08 | AA179: 3697.92 | AB179: 4550.52 | AC179: 22549.69 | AD179: 27136 | AE179: 8172.2 | AF179: 55321.45 | AG179: 12259.65 | AH179: 0 | AI179: 10267.08 | AJ179: 7658.84 | AK179: 8862.58 | AL179: 43182.31 | AM179: 112 | AN179: 14595.51 | AO179: 19606.9 | AP179: 0 | AQ179: 0 | AR179: 75004 | AS179: 0 | AT179: 0 | AU179: -872996.65 | AV179: -84177.35 | AW179: 0 | AX179: -52259.7 | AY179: 0 | AZ179: -43765 | BA179: -14228.65 | BB179: -7501.42 | BC179: -60 | BD179: -65194.68 | BE179: 0 | BF179: -2162.18 | BG179: -3557.65 | BH179: -16837 | BI179: -27362.22 | BJ179: 0 | BK179: 0 | BL179: 0 | BM179: -51894 | BN179: 0 | BO179: 0 | BP179: -5857.5 | BQ179: -1009433.7 | BR179: 0 | BS179: 0 | BT179: 0 | BU179: 0 | BV179: 0 | BW179: 52259.7 | BX179: 52259.7
A180: 3178 | B180: Birchington CEP School | C180: 0 | D180: 475 | E180: 0 | F180: 10.91666667 | G180: No | H180: Primary | I180: 400-499 | J180: =IF(G180=Benchmarking!$I$4,1,0) -> 0 | K180: =IF(Benchmarking!$I$6="All",1,IF(Benchmarking!$I$6=H180,1,0)) -> 0 | L180: =IF(Benchmarking!$I$8="All",1,IF(Benchmarking!$I$8=I180,1,0)) -> 0 | M180: 0 | N180: 1238090.07 | O180: 2430 | P180: 481184.38 | Q180: 70396.89 | R180: 139977.49 | S180: 0 | T180: 79555.34 | U180: 8256.05 | V180: 10269.9 | W180: 10541 | X180: 12134.09 | Y180: 24375.99 | Z180: 8833.18 | AA180: 65515.63 | AB180: 12262.94 | AC180: 83222.23 | AD180: 81408 | AE180: 18401.45 | AF180: 94789.56 | AG180: 59302.45 | AH180: 0 | AI180: 16229.88 | AJ180: 18425.96 | AK180: 1505.66 | AL180: 77870.01 | AM180: 314.22 | AN180: 99079.11 | AO180: 38161.45 | AP180: 0 | AQ180: 0 | AR180: 0 | AS180: 0 | AT180: 0 | AU180: -1915146.61 | AV180: -327364.97 | AW180: 0 | AX180: -83693.17 | AY180: 0 | AZ180: -181700 | BA180: -39359.74 | BB180: -28540.46 | BC180: -27003.2 | BD180: -29058.17 | BE180: 0 | BF180: 0 | BG180: -7377.5 | BH180: -15417.56 | BI180: -14711.06 | BJ180: 0 | BK180: 0 | BL180: 0 | BM180: -73003 | BN180: 0 | BO180: 0 | BP180: -11864.42 | BQ180: -2326204.75 | BR180: 0 | BS180: 0 | BT180: 0 | BU180: 0 | BV180: 0 | BW180: 83693.17 | BX180: 83693.17
A181: 3179 | B181: Holy Trinity & St Johns CEP School | C181: 0 | D181: 399 | E181: 11.08333333 | F181: 18.08333333 | G181: No | H181: Primary | I181: 300-399 | J181: =IF(G181=Benchmarking!$I$4,1,0) -> 0 | K181: =IF(Benchmarking!$I$6="All",1,IF(Benchmarking!$I$6=H181,1,0)) -> 0 | L181: =IF(Benchmarking!$I$8="All",1,IF(Benchmarking!$I$8=I181,1,0)) -> 0 | M181: 0 | N181: 1395057.04 | O181: 149.72 | P181: 983393.38 | Q181: 55034.68 | R181: 129049.72 | S181: 0 | T181: 0 | U181: 18432.4 | V181: 15373 | W181: 13237.93 | X181: 10300.68 | Y181: 50862.35 | Z181: 15583.88 | AA181: 48226.16 | AB181: 6048 | AC181: 46174.82 | AD181: 36273.28 | AE181: 10976.61 | AF181: 117973.17 | AG181: 8459.11 | AH181: 0 | AI181: 25101.74 | AJ181: 15791.58 | AK181: 3608.52 | AL181: 108621.3 | AM181: 97697.54 | AN181: 47614.25 | AO181: 34826.42 | AP181: 0 | AQ181: 0 | AR181: 48793.4 | AS181: 0 | AT181: 0 | AU181: -1709501.04 | AV181: -676014.57 | AW181: -200021.76 | AX181: -131582.79 | AY181: 0 | AZ181: -334330 | BA181: -40252.46 | BB181: -24984.52 | BC181: 0 | BD181: -30278.37 | BE181: 0 | BF181: -13410 | BG181: 0 | BH181: -7399 | BI181: -5014.14 | BJ181: 0 | BK181: 0 | BL181: 0 | BM181: -47388 | BN181: 0 | BO181: 0 | BP181: -27853.49 | BQ181: -2717120.16 | BR181: 18666.67 | BS181: 76000 | BT181: 105355.09 | BU181: 200021.76 | BV181: 0 | BW181: 131582.79 | BX181: 131582.79
A182: 3181 | B182: St Saviours CEJ School | C182: 0 | D182: 372 | E182: 0 | F182: 3 | G182: No | H182: Primary | I182: 300-399 | J182: =IF(G182=Benchmarking!$I$4,1,0) -> 0 | K182: =IF(Benchmarking!$I$6="All",1,IF(Benchmarking!$I$6=H182,1,0)) -> 0 | L182: =IF(Benchmarking!$I$8="All",1,IF(Benchmarking!$I$8=I182,1,0)) -> 0 | M182: 0 | N182: 1178336.82 | O182: 9326.36 | P182: 238543.76 | Q182: 81136.03 | R182: 78156.27 | S182: 0 | T182: 64719.87 | U182: 11324.79 | V182: 4393.35 | W182: 3250 | X182: 10016.36 | Y182: 8072.28 | Z182: 4736 | AA182: 2936.21 | AB182: 4669.58 | AC182: 39427.34 | AD182: 55319.9 | AE182: 11280.12 | AF182: 86846.24 | AG182: 36657.73 | AH182: 0 | AI182: 18575.77 | AJ182: 14712.88 | AK182: 5763.27 | AL182: 33146.68 | AM182: 2460.78 | AN182: 61837.47 | AO182: 43717.27 | AP182: 0 | AQ182: 0 | AR182: 0 | AS182: 0 | AT182: 0 | AU182: -1531126.52 | AV182: -220107.95 | AW182: 0 | AX182: -28212.98 | AY182: 0 | AZ182: -186600 | BA182: -26120.63 | BB182: -2460 | BC182: 0 | BD182: -22324.07 | BE182: 0 | BF182: 0 | BG182: -16085.44 | BH182: -15203.12 | BI182: -9995.47 | BJ182: 0 | BK182: 0 | BL182: 0 | BM182: -19713 | BN182: 0 | BO182: 0 | BP182: -30345.21 | BQ182: -1779447.45 | BR182: 0 | BS182: 0 | BT182: 0 | BU182: 0 | BV182: 0 | BW182: 28212.98 | BX182: 28212.98
A183: 3182 | B183: Minster CEP School | C183: 0 | D183: 387 | E183: 0 | F183: 13.58333333 | G183: No | H183: Primary | I183: 300-399 | J183: =IF(G183=Benchmarking!$I$4,1,0) -> 0 | K183: =IF(Benchmarking!$I$6="All",1,IF(Benchmarking!$I$6=H183,1,0)) -> 0 | L183: =IF(Benchmarking!$I$8="All",1,IF(Benchmarking!$I$8=I183,1,0)) -> 0 | M183: 0 | N183: 1147431.42 | O183: 8906.09 | P183: 392029.38 | Q183: 97756.94 | R183: 113863.13 | S183: 0 | T183: 62897.05 | U183: 8055.78 | V183: 10447.34 | W183: 774 | X183: 10644.79 | Y183: 13705.78 | Z183: 4581.61 | AA183: 10953.41 | AB183: 5842.38 | AC183: 39906.71 | AD183: 35072 | AE183: 24425.14 | AF183: 174888.61 | AG183: 12484.28 | AH183: 0 | AI183: 9819.95 | AJ183: 15433.24 | AK183: 26985.57 | AL183: 81743.57 | AM183: 11318 | AN183: 49906.03 | AO183: 30124.98 | AP183: 0 | AQ183: 0 | AR183: 0 | AS183: 0 | AT183: 0 | AU183: -1545180.14 | AV183: -253785.74 | AW183: 0 | AX183: -128740.36 | AY183: 0 | AZ183: -137855 | BA183: -24946.58 | BB183: -2558.77 | BC183: -1743.82 | BD183: -59835.59 | BE183: -4271.86 | BF183: -1030 | BG183: -1502.27 | BH183: -71354.96 | BI183: -14624.02 | BJ183: 0 | BK183: 0 | BL183: 0 | BM183: -81885 | BN183: 0 | BO183: 0 | BP183: -21712.1 | BQ183: -1927706.24 | BR183: 0 | BS183: 0 | BT183: 0 | BU183: 0 | BV183: 0 | BW183: 128740.36 | BX183: 128740.36
A184: 3183 | B184: Monkton CEP School | C184: 0 | D184: 106 | E184: 0 | F184: 5.333333333 | G184: No | H184: Primary | I184: 100-199 | J184: =IF(G184=Benchmarking!$I$4,1,0) -> 0 | K184: =IF(Benchmarking!$I$6="All",1,IF(Benchmarking!$I$6=H184,1,0)) -> 0 | L184: =IF(Benchmarking!$I$8="All",1,IF(Benchmarking!$I$8=I184,1,0)) -> 0 | M184: 0 | N184: 282909.08 | O184: 0 | P184: 101702.51 | Q184: 12058.65 | R184: 47187.7 | S184: 0 | T184: 22551.83 | U184: 19174.59 | V184: 3427.95 | W184: 212 | X184: 2691.36 | Y184: 2163.38 | Z184: 4896.81 | AA184: 10866.13 | AB184: 1140 | AC184: 21560.72 | AD184: 21949.76 | AE184: 8087.63 | AF184: 21912.26 | AG184: 10522.32 | AH184: 0 | AI184: 10010.16 | AJ184: 4165.1 | AK184: 5030.83 | AL184: 21478.94 | AM184: 2422.64 | AN184: 51362.01 | AO184: 16389.12 | AP184: 0 | AQ184: 0 | AR184: 3730.91 | AS184: 0 | AT184: 0 | AU184: -530263.77 | AV184: -75993.05 | AW184: 0 | AX184: -43367.14 | AY184: 0 | AZ184: -39240 | BA184: -17488.95 | BB184: -3139.01 | BC184: 0 | BD184: -11483.16 | BE184: -558.8 | BF184: -1080 | BG184: 0 | BH184: -7670.45 | BI184: -100 | BJ184: 0 | BK184: 0 | BL184: 0 | BM184: -32419 | BN184: 0 | BO184: 0 | BP184: -2642.79 | BQ184: -649623.96 | BR184: 0 | BS184: 0 | BT184: 0 | BU184: 0 | BV184: 0 | BW184: 43367.14 | BX184: 43367.14
A185: 3186 | B185: St Nicholas-at-Wade CEP School | C185: 0 | D185: 191 | E185: 0 | F185: 6.416666667 | G185: =IF(C185=0,"No","Yes") -> No | H185: Primary | I185: 100-199 | J185: =IF(G185=Benchmarking!$I$4,1,0) -> 0 | K185: =IF(Benchmarking!$I$6="All",1,IF(Benchmarking!$I$6=H185,1,0)) -> 0 | L185: =IF(Benchmarking!$I$8="All",1,IF(Benchmarking!$I$8=I185,1,0)) -> 0 | M185: =IF(SUM(J185:L185)=3,1,0) -> 0 | N185: 542270.59 | O185: 12019.08 | P185: 201214.85 | Q185: 13136.11 | R185: 45920.22 | S185: 0 | T185: 7092.76 | U185: 3616.28 | V185: 4209.22 | W185: 382 | X185: 4849.44 | Y185: 2142.39 | Z185: 10045.21 | AA185: 25118.56 | AB185: 2657.96 | AC185: 12794.69 | AD185: 15493.95 | AE185: 7414.29 | AF185: 85229.27 | AG185: 6169.19 | AH185: 0 | AI185: 4920.56 | AJ185: 7135.72 | AK185: 1486.19 | AL185: 34317.53 | AM185: 0 | AN185: 8270 | AO185: 36126.27 | AP185: 0 | AQ185: 0 | AR185: 0 | AS185: 0 | AT185: 0 | AU185: =BQ185-AV185-AW185-AX185 -> -815759.44 | AV185: -101092.62 | AW185: =-BU185 -> 0 | AX185: =-BX185 -> -59762.74 | AY185: 0 | AZ185: -46255 | BA185: -20269.88 | BB185: -2943 | BC185: 0 | BD185: -7982.96 | BE185: 0 | BF185: 0 | BG185: 0 | BH185: -24552.2 | BI185: -610.69 | BJ185: 0 | BK185: 0 | BL185: 0 | BM185: -42020 | BN185: 0 | BO185: 0 | BP185: -3360.5 | BQ185: -976614.8 | BR185: 0 | BS185: 0 | BT185: 0 | BU185: =SUM(BR185:BT185) -> 0 | BV185: 0 | BW185: 59762.74 | BX185: =SUM(BV185:BW185) -> 59762.74
A186: 3198 | B186: Frittenden CEP School | C186: 0 | D186: 98 | E186: 0 | F186: 4.166666667 | G186: No | H186: Primary | I186: 0-99 | J186: =IF(G186=Benchmarking!$I$4,1,0) -> 0 | K186: =IF(Benchmarking!$I$6="All",1,IF(Benchmarking!$I$6=H186,1,0)) -> 0 | L186: =IF(Benchmarking!$I$8="All",1,IF(Benchmarking!$I$8=I186,1,0)) -> 0 | M186: 0 | N186: 328105.88 | O186: 1027.18 | P186: 157539.31 | Q186: 0 | R186: 28768.17 | S186: 0 | T186: 0 | U186: 2195.05 | V186: 11099.92 | W186: 1713.51 | X186: 2488.2 | Y186: 11799.91 | Z186: 23.98 | AA186: 19840.24 | AB186: 2004.02 | AC186: 15300.17 | AD186: 12974 | AE186: 4747.08 | AF186: 16324.52 | AG186: 6620.3 | AH186: 0 | AI186: 11464.35 | AJ186: 3661.24 | AK186: 105.96 | AL186: 20032.61 | AM186: 6431.51 | AN186: 8470.5 | AO186: 33059.5 | AP186: 0 | AQ186: 0 | AR186: 2919.06 | AS186: 0 | AT186: 0 | AU186: -533022.6 | AV186: -56532.79 | AW186: 0 | AX186: -38866.2 | AY186: 0 | AZ186: -31630 | BA186: -5497 | BB186: -3960 | BC186: 0 | BD186: -4320.87 | BE186: 0 | BF186: 0 | BG186: -1152.62 | BH186: -0.05 | BI186: -249.5 | BJ186: 0 | BK186: 0 | BL186: 0 | BM186: -30888 | BN186: 0 | BO186: 0 | BP186: -2098.38 | BQ186: -628421.59 | BR186: 0 | BS186: 0 | BT186: 0 | BU186: 0 | BV186: 1386.72 | BW186: 37479.48 | BX186: 38866.2
A187: 3199 | B187: Egerton CEP School | C187: 0 | D187: 188 | E187: 0 | F187: 7.083333333 | G187: No | H187: Primary | I187: 100-199 | J187: =IF(G187=Benchmarking!$I$4,1,0) -> 0 | K187: =IF(Benchmarking!$I$6="All",1,IF(Benchmarking!$I$6=H187,1,0)) -> 0 | L187: =IF(Benchmarking!$I$8="All",1,IF(Benchmarking!$I$8=I187,1,0)) -> 0 | M187: 0 | N187: 507845 | O187: 6036.12 | P187: 199458.72 | Q187: 33199.45 | R187: 66164.64 | S187: 0 | T187: 21376.99 | U187: 6445.01 | V187: 5060.51 | W187: 3969.89 | X187: 4773.24 | Y187: 10251.62 | Z187: 7275.67 | AA187: 1301.28 | AB187: 3557.94 | AC187: 22587.65 | AD187: 11103 | AE187: 6224.44 | AF187: 51802.96 | AG187: 13231.75 | AH187: 0 | AI187: 17441.69 | AJ187: 7023.64 | AK187: 6324.28 | AL187: 50577.24 | AM187: 40467.8 | AN187: 32943.37 | AO187: 18435.35 | AP187: 0 | AQ187: 0 | AR187: 0 | AS187: 0 | AT187: 0 | AU187: -809937.43 | AV187: -129195.56 | AW187: 0 | AX187: -35562.06 | AY187: 0 | AZ187: -56745 | BA187: -13111.65 | BB187: 0 | BC187: 0 | BD187: -40756.16 | BE187: -18506.25 | BF187: -4440 | BG187: -3603.33 | BH187: -11952.96 | BI187: -4689.09 | BJ187: 0 | BK187: 0 | BL187: 0 | BM187: -45034 | BN187: 0 | BO187: 0 | BP187: -3897.26 | BQ187: -974695.05 | BR187: 0 | BS187: 0 | BT187: 0 | BU187: 0 | BV187: 0 | BW187: 35562.06 | BX187: 35562.06
A188: 3201 | B188: St Lawrence CEP School, Sevenoaks | C188: 0 | D188: 78 | E188: 0 | F188: 3.166666667 | G188: No | H188: Primary | I188: 0-99 | J188: =IF(G188=Benchmarking!$I$4,1,0) -> 0 | K188: =IF(Benchmarking!$I$6="All",1,IF(Benchmarking!$I$6=H188,1,0)) -> 0 | L188: =IF(Benchmarking!$I$8="All",1,IF(Benchmarking!$I$8=I188,1,0)) -> 0 | M188: 0 | N188: 313060.27 | O188: 400 | P188: 96223.42 | Q188: 11002.08 | R188: 29472.37 | S188: 0 | T188: 0 | U188: 2269.4 | V188: 1632.5 | W188: 784.88 | X188: 1980.48 | Y188: 3583.98 | Z188: 2928.7 | AA188: 11441.8 | AB188: 1922.4 | AC188: 12053.57 | AD188: 6861 | AE188: 2748.57 | AF188: 33171.38 | AG188: 9453.09 | AH188: 0 | AI188: 6382.09 | AJ188: 2972.19 | AK188: 0 | AL188: 13139.81 | AM188: 0 | AN188: 4156.84 | AO188: 12030.34 | AP188: 0 | AQ188: 0 | AR188: 1371 | AS188: 0 | AT188: 0 | AU188: -428046.17 | AV188: -27769.24 | AW188: 0 | AX188: -37341.49 | AY188: 0 | AZ188: -4365 | BA188: -22204.78 | BB188: -660.7 | BC188: -210.74 | BD188: 0 | BE188: 0 | BF188: 0 | BG188: 0 | BH188: 0 | BI188: -23599.13 | BJ188: 0 | BK188: 0 | BL188: 0 | BM188: -30563 | BN188: 0 | BO188: 0 | BP188: -2150.52 | BQ188: -493156.9 | BR188: 0 | BS188: 0 | BT188: 0 | BU188: 0 | BV188: 10206.42 | BW188: 27135.07 | BX188: 37341.49
A189: 3282 | B189: Boughton-under-Blean & Dunkirk Primary School | C189: 0 | D189: 201 | E189: 0 | F189: 7.75 | G189: No | H189: Primary | I189: 200-299 | J189: =IF(G189=Benchmarking!$I$4,1,0) -> 0 | K189: =IF(Benchmarking!$I$6="All",1,IF(Benchmarking!$I$6=H189,1,0)) -> 0 | L189: =IF(Benchmarking!$I$8="All",1,IF(Benchmarking!$I$8=I189,1,0)) -> 0 | M189: 0 | N189: 627442.17 | O189: 8050.77 | P189: 236285.71 | Q189: 24721.86 | R189: 45461.61 | S189: 0 | T189: 90335.91 | U189: 4381.26 | V189: 1996 | W189: 2665.33 | X189: 5273.4 | Y189: 4820.17 | Z189: 2724.19 | AA189: 20309.13 | AB189: 3831.64 | AC189: 39771.87 | AD189: 19086.75 | AE189: 6079.89 | AF189: 39607.91 | AG189: 5686.55 | AH189: 0 | AI189: 11360.81 | AJ189: 8189.4 | AK189: 11893.22 | AL189: 43261.29 | AM189: 0 | AN189: 3444 | AO189: 29765.37 | AP189: 0 | AQ189: 0 | AR189: 391.59 | AS189: 0 | AT189: 0 | AU189: -864903.2 | AV189: -115577.47 | AW189: 0 | AX189: -53392 | AY189: 0 | AZ189: -85760 | BA189: -9953 | BB189: -1318.68 | BC189: -1188 | BD189: -57514.53 | BE189: 0 | BF189: 0 | BG189: 0 | BH189: -19428.35 | BI189: -15618.83 | BJ189: 0 | BK189: 0 | BL189: 0 | BM189: -42642 | BN189: 0 | BO189: 0 | BP189: -5235.09 | BQ189: -1033872.67 | BR189: 0 | BS189: 0 | BT189: 0 | BU189: 0 | BV189: 0 | BW189: 53392 | BX189: 53392
A190: 3284 | B190: Lady Joanna Thornhill (Endowed) Primary School | C190: 0 | D190: 421 | E190: 0 | F190: 22.08333333 | G190: No | H190: Primary | I190: 400-499 | J190: =IF(G190=Benchmarking!$I$4,1,0) -> 0 | K190: =IF(Benchmarking!$I$6="All",1,IF(Benchmarking!$I$6=H190,1,0)) -> 0 | L190: =IF(Benchmarking!$I$8="All",1,IF(Benchmarking!$I$8=I190,1,0)) -> 0 | M190: 0 | N190: 1171981.12 | O190: 0 | P190: 626556.85 | Q190: 65505.23 | R190: 112878.32 | S190: 0 | T190: 60747.69 | U190: 10516.98 | V190: 18110.39 | W190: 842 | X190: 10689.24 | Y190: 23575.53 | Z190: 2014.36 | AA190: 44945.38 | AB190: 0 | AC190: 37292.83 | AD190: 42496 | AE190: 20810.98 | AF190: 82509.71 | AG190: 21369.17 | AH190: 0 | AI190: 27669.22 | AJ190: 15728.6 | AK190: 0 | AL190: 129444.61 | AM190: 0 | AN190: 28216.14 | AO190: 34360.82 | AP190: 0 | AQ190: 0 | AR190: 19957.1 | AS190: 0 | AT190: 0 | AU190: -1681116.05 | AV190: -293881.62 | AW190: 0 | AX190: -153230.15 | AY190: 0 | AZ190: -82165 | BA190: -22486.86 | BB190: -42209.09 | BC190: -916.5 | BD190: -98470.1 | BE190: -43709.94 | BF190: 0 | BG190: -14517.05 | BH190: -33465.01 | BI190: -29054.61 | BJ190: 0 | BK190: 0 | BL190: 0 | BM190: -81487 | BN190: 0 | BO190: 0 | BP190: -11954.16 | BQ190: -2128227.82 | BR190: 0 | BS190: 0 | BT190: 0 | BU190: 0 | BV190: 0 | BW190: 153230.15 | BX190: 153230.15
A191: 3289 | B191: St Peters Methodist Primary School, Canterbury | C191: 0 | D191: 210 | E191: 0 | F191: 11 | G191: No | H191: Primary | I191: 200-299 | J191: =IF(G191=Benchmarking!$I$4,1,0) -> 0 | K191: =IF(Benchmarking!$I$6="All",1,IF(Benchmarking!$I$6=H191,1,0)) -> 0 | L191: =IF(Benchmarking!$I$8="All",1,IF(Benchmarking!$I$8=I191,1,0)) -> 0 | M191: 0 | N191: 568463.76 | O191: 0 | P191: 345004.25 | Q191: 43899.8 | R191: 72789.95 | S191: 0 | T191: 23056.35 | U191: 5567.9 | V191: 8020 | W191: 3842.46 | X191: 5331.96 | Y191: 15675.15 | Z191: 4710 | AA191: 1349.44 | AB191: 3367.7 | AC191: 30667.98 | AD191: 18837 | AE191: 12642.69 | AF191: 67253.73 | AG191: 9838.6 | AH191: 0 | AI191: 17341.89 | AJ191: 7845.6 | AK191: 10924.1 | AL191: 41667.21 | AM191: 358 | AN191: 30441 | AO191: 20824.12 | AP191: 0 | AQ191: 0 | AR191: 63163.58 | AS191: 0 | AT191: 0 | AU191: -897068.25 | AV191: -172060.31 | AW191: 0 | AX191: -100357.02 | AY191: 0 | AZ191: -72750 | BA191: -28092.16 | BB191: -1380 | BC191: 0 | BD191: -44174.64 | BE191: 0 | BF191: -20423.64 | BG191: -1137.81 | BH191: -17217.73 | BI191: -8932.4 | BJ191: 0 | BK191: 0 | BL191: 0 | BM191: -48263 | BN191: 0 | BO191: 0 | BP191: -10965.94 | BQ191: -1169485.58 | BR191: 0 | BS191: 0 | BT191: 0 | BU191: 0 | BV191: 0 | BW191: 100357.02 | BX191: 100357.02
A192: 3294 | B192: St Matthews High Brooms CEP School | C192: 0 | D192: 351 | E192: 0 | F192: 15.75 | G192: No | H192: Primary | I192: 300-399 | J192: =IF(G192=Benchmarking!$I$4,1,0) -> 0 | K192: =IF(Benchmarking!$I$6="All",1,IF(Benchmarking!$I$6=H192,1,0)) -> 0 | L192: =IF(Benchmarking!$I$8="All",1,IF(Benchmarking!$I$8=I192,1,0)) -> 0 | M192: 0 | N192: 1056969.37 | O192: 20880.32 | P192: 509337.7 | Q192: 28280.51 | R192: 61922.52 | S192: 0 | T192: 26328.73 | U192: 8968.74 | V192: 8863.11 | W192: 20630.33 | X192: 8911.92 | Y192: 10360.38 | Z192: 7373.1 | AA192: 46124.97 | AB192: 4795.93 | AC192: 49577.14 | AD192: 38656 | AE192: 12887.15 | AF192: 55847.09 | AG192: 10766.63 | AH192: 0 | AI192: 26749.05 | AJ192: 13113.36 | AK192: 4252.93 | AL192: 84826.65 | AM192: 14600.5 | AN192: 49411.26 | AO192: 42160.58 | AP192: 0 | AQ192: 0 | AR192: 0 | AS192: 0 | AT192: 0 | AU192: -1473391.51 | AV192: -284884.25 | AW192: 0 | AX192: -145987.43 | AY192: 0 | AZ192: -232840 | BA192: -29867.88 | BB192: -13962.94 | BC192: -2623 | BD192: -17028.33 | BE192: 0 | BF192: -14100 | BG192: 0 | BH192: -18491.74 | BI192: -4242.39 | BJ192: 0 | BK192: 0 | BL192: 0 | BM192: -50168 | BN192: 0 | BO192: 0 | BP192: -16399.17 | BQ192: -1904263.19 | BR192: 0 | BS192: 0 | BT192: 0 | BU192: 0 | BV192: 0 | BW192: 145987.43 | BX192: 145987.43
A193: 3295 | B193: Herne CE Infant & Nursery School | C193: 32 | D193: 270 | E193: 0 | F193: 25.66666667 | G193: Yes | H193: Primary | I193: 200-299 | J193: =IF(G193=Benchmarking!$I$4,1,0) -> 0 | K193: =IF(Benchmarking!$I$6="All",1,IF(Benchmarking!$I$6=H193,1,0)) -> 0 | L193: =IF(Benchmarking!$I$8="All",1,IF(Benchmarking!$I$8=I193,1,0)) -> 0 | M193: 0 | N193: 849652.21 | O193: 0 | P193: 596532.24 | Q193: 43960.93 | R193: 97233.74 | S193: 0 | T193: 35774.38 | U193: 7089.21 | V193: 7182.75 | W193: 540 | X193: 7005 | Y193: 10045.4 | Z193: 9368.46 | AA193: 4603.53 | AB193: 5034.22 | AC193: 30549.91 | AD193: 51712 | AE193: 4244.53 | AF193: 52487.85 | AG193: 11588.69 | AH193: 0 | AI193: 9681.99 | AJ193: 10685.64 | AK193: 2180.88 | AL193: 100422.86 | AM193: 0 | AN193: 11711.5 | AO193: 19097.22 | AP193: 0 | AQ193: 0 | AR193: 16000 | AS193: 0 | AT193: 0 | AU193: -1348395.89 | AV193: -154988.47 | AW193: 0 | AX193: -267813.76 | AY193: 0 | AZ193: -37385 | BA193: -16697.51 | BB193: -14951.88 | BC193: 0 | BD193: -61188.32 | BE193: 0 | BF193: 0 | BG193: -4805.43 | BH193: 0 | BI193: -252.05 | BJ193: 0 | BK193: 0 | BL193: 0 | BM193: -132110 | BN193: 0 | BO193: 0 | BP193: -5205.42 | BQ193: -1771198.12 | BR193: 0 | BS193: 0 | BT193: 0 | BU193: 0 | BV193: 0 | BW193: 267813.76 | BX193: 267813.76
A194: 3296 | B194: Langafel CEP School | C194: 0 | D194: 323 | E194: 31.83333333 | F194: 7.083333333 | G194: No | H194: Primary | I194: 300-399 | J194: =IF(G194=Benchmarking!$I$4,1,0) -> 0 | K194: =IF(Benchmarking!$I$6="All",1,IF(Benchmarking!$I$6=H194,1,0)) -> 0 | L194: =IF(Benchmarking!$I$8="All",1,IF(Benchmarking!$I$8=I194,1,0)) -> 0 | M194: 0 | N194: 1105238.56 | O194: 39556.47 | P194: 579502.75 | Q194: 39522.91 | R194: 116538.96 | S194: 0 | T194: 123071.42 | U194: 10681.15 | V194: 19866.07 | W194: 5659.03 | X194: 8200.92 | Y194: 55698.13 | Z194: 9707.35 | AA194: 46996.59 | AB194: 9197.59 | AC194: 50877.02 | AD194: 37888 | AE194: 30692.03 | AF194: 134337.09 | AG194: 13227.43 | AH194: 0 | AI194: 10908.1 | AJ194: 12386.42 | AK194: 15960.66 | AL194: 55355.77 | AM194: 24098.66 | AN194: 29940.57 | AO194: 31324.39 | AP194: 0 | AQ194: 0 | AR194: 155809 | AS194: 0 | AT194: 0 | AU194: -1583489.11 | AV194: -255293.25 | AW194: -472420.67 | AX194: -34920.92 | AY194: 0 | AZ194: -156084 | BA194: -17700.53 | BB194: -3033.75 | BC194: -28915 | BD194: -70635.11 | BE194: -2021.76 | BF194: -4220 | BG194: -9235.74 | BH194: -15593.91 | BI194: -8247.76 | BJ194: 0 | BK194: 0 | BL194: 0 | BM194: -61709 | BN194: 0 | BO194: 0 | BP194: -35177.84 | BQ194: -2346123.95 | BR194: 4666.67 | BS194: 167500 | BT194: 300254 | BU194: 472420.67 | BV194: 0 | BW194: 34920.92 | BX194: 34920.92
A195: 3297 | B195: Southborough CEP School, Tunbridge Wells | C195: 0 | D195: 611 | E195: 0 | F195: 20.41666667 | G195: No | H195: Primary | I195: =IFERROR(VLOOKUP($D195,$D$256:$F$261,3,TRUE),0) -> 500+ | J195: =IF(G195=Benchmarking!$I$4,1,0) -> 0 | K195: =IF(Benchmarking!$I$6="All",1,IF(Benchmarking!$I$6=H195,1,0)) -> 0 | L195: =IF(Benchmarking!$I$8="All",1,IF(Benchmarking!$I$8=I195,1,0)) -> 0 | M195: 0 | N195: 1732743.31 | O195: 6373.46 | P195: 752035.13 | Q195: 56408.39 | R195: 196134.71 | S195: 0 | T195: 59681.71 | U195: 17005.03 | V195: 12117.57 | W195: 27746.14 | X195: 15513.24 | Y195: 24351.72 | Z195: 20829.37 | AA195: 82474.49 | AB195: 1010.24 | AC195: 77162.6 | AD195: 73216 | AE195: 17665.36 | AF195: 142423.27 | AG195: 30443.34 | AH195: 0 | AI195: 25718.5 | AJ195: 22826.92 | AK195: 773.25 | AL195: 136231.11 | AM195: 12480.65 | AN195: 66302.93 | AO195: 34060.11 | AP195: 0 | AQ195: 0 | AR195: 0 | AS195: 0 | AT195: 0 | AU195: -2379409.9 | AV195: -469596.78 | AW195: 0 | AX195: -210512.35 | AY195: 0 | AZ195: -158550 | BA195: -41501.23 | BB195: -2945.4 | BC195: -25826.14 | BD195: -31171.13 | BE195: -2730.6 | BF195: -34397.6 | BG195: -12570.88 | BH195: -73703.22 | BI195: -11950.13 | BJ195: 0 | BK195: 0 | BL195: 0 | BM195: -120448 | BN195: 0 | BO195: 0 | BP195: -25533.73 | BQ195: -3059519.03 | BR195: 0 | BS195: 0 | BT195: 0 | BU195: 0 | BV195: 0 | BW195: 210512.35 | BX195: 210512.35
